Workbook

Sheet 下单-验单
A1: 订单生成时间 | B1: 总订单数 | C1: 1hour | D1: 2hour | E1: 3hour | F1: 4hour | G1: 5hour | H1: 6hour | I1: 7hour | J1: 8hour | K1: 9hour | L1: 10hour | M1: 11hour | N1: 12hour | O1: 13hour | P1: 14hour | Q1: 15hour | R1: 16hour | S1: 17hour | T1: 18hour | U1: 19hour | V1: 20hour | W1: 21hour | X1: 22hour | Y1: 23hour | Z1: 24hour | AA1: >24hour
A2: 2024-01-01 | B2: 889 | C2: 541 | D2: 550 | E2: 567 | F2: 573 | G2: 581 | H2: 595 | I2: 597 | J2: 597 | K2: 597 | L2: 597 | M2: 599 | N2: 600 | O2: 601 | P2: 603 | Q2: 603 | R2: 603 | S2: 604 | T2: 605 | U2: 605 | V2: 605 | W2: 607 | X2: 607 | Y2: 610 | Z2: 611 | AA2: 38
A3: 2024-01-02 | B3: 1193 | C3: 767 | D3: 774 | E3: 778 | F3: 782 | G3: 782 | H3: 788 | I3: 794 | J3: 795 | K3: 796 | L3: 797 | M3: 798 | N3: 801 | O3: 803 | P3: 804 | Q3: 805 | R3: 806 | S3: 806 | T3: 806 | U3: 806 | V3: 809 | W3: 811 | X3: 811 | Y3: 811 | Z3: 812 | AA3: 13
A4: 2024-01-03 | B4: 1201 | C4: 686 | D4: 709 | E4: 718 | F4: 734 | G4: 744 | H4: 747 | I4: 748 | J4: 750 | K4: 752 | L4: 770 | M4: 775 | N4: 779 | O4: 792 | P4: 792 | Q4: 793 | R4: 793 | S4: 793 | T4: 793 | U4: 794 | V4: 794 | W4: 794 | X4: 794 | Y4: 795 | Z4: 796 | AA4: 10
A5: 2024-01-04 | B5: 1100 | C5: 631 | D5: 645 | E5: 653 | F5: 657 | G5: 663 | H5: 667 | I5: 672 | J5: 673 | K5: 676 | L5: 683 | M5: 688 | N5: 691 | O5: 698 | P5: 720 | Q5: 722 | R5: 728 | S5: 733 | T5: 737 | U5: 737 | V5: 737 | W5: 737 | X5: 737 | Y5: 737 | Z5: 737 | AA5: 13
A6: 2024-01-05 | B6: 1060 | C6: 597 | D6: 613 | E6: 623 | F6: 629 | G6: 647 | H6: 648 | I6: 651 | J6: 655 | K6: 659 | L6: 664 | M6: 665 | N6: 666 | O6: 667 | P6: 667 | Q6: 667 | R6: 667 | S6: 667 | T6: 667 | U6: 667 | V6: 667 | W6: 667 | X6: 667 | Y6: 668 | Z6: 668 | AA6: 13
A7: 2024-01-06 | B7: 1083 | C7: 577 | D7: 592 | E7: 603 | F7: 604 | G7: 612 | H7: 620 | I7: 624 | J7: 628 | K7: 631 | L7: 631 | M7: 631 | N7: 633 | O7: 633 | P7: 633 | Q7: 633 | R7: 633 | S7: 633 | T7: 633 | U7: 633 | V7: 633 | W7: 633 | X7: 633 | Y7: 633 | Z7: 633 | AA7: 42
A8: 2024-01-07 | B8: 1206 | C8: 695 | D8: 702 | E8: 705 | F8: 710 | G8: 721 | H8: 725 | I8: 731 | J8: 732 | K8: 733 | L8: 736 | M8: 736 | N8: 736 | O8: 739 | P8: 741 | Q8: 743 | R8: 743 | S8: 744 | T8: 744 | U8: 744 | V8: 745 | W8: 746 | X8: 747 | Y8: 749 | Z8: 749 | AA8: 34
A9: 2024-01-08 | B9: 1285 | C9: 770 | D9: 794 | E9: 803 | F9: 822 | G9: 831 | H9: 841 | I9: 848 | J9: 850 | K9: 855 | L9: 861 | M9: 863 | N9: 865 | O9: 871 | P9: 877 | Q9: 877 | R9: 878 | S9: 879 | T9: 880 | U9: 882 | V9: 882 | W9: 882 | X9: 882 | Y9: 884 | Z9: 884 | AA9: 16
A10: 2024-01-09 | B10: 1000 | C10: 517 | D10: 526 | E10: 531 | F10: 534 | G10: 544 | H10: 551 | I10: 554 | J10: 560 | K10: 564 | L10: 575 | M10: 581 | N10: 586 | O10: 591 | P10: 591 | Q10: 593 | R10: 595 | S10: 596 | T10: 597 | U10: 599 | V10: 600 | W10: 600 | X10: 601 | Y10: 601 | Z10: 601 | AA10: 8
A11: 2024-01-10 | B11: 976 | C11: 533 | D11: 541 | E11: 552 | F11: 559 | G11: 572 | H11: 582 | I11: 584 | J11: 590 | K11: 594 | L11: 599 | M11: 603 | N11: 605 | O11: 605 | P11: 606 | Q11: 612 | R11: 612 | S11: 612 | T11: 612 | U11: 613 | V11: 613 | W11: 613 | X11: 613 | Y11: 613 | Z11: 613 | AA11: 12
A12: 2024-01-11 | B12: 968 | C12: 518 | D12: 527 | E12: 534 | F12: 544 | G12: 555 | H12: 560 | I12: 570 | J12: 573 | K12: 575 | L12: 575 | M12: 576 | N12: 579 | O12: 591 | P12: 591 | Q12: 592 | R12: 592 | S12: 592 | T12: 593 | U12: 593 | V12: 594 | W12: 594 | X12: 596 | Y12: 597 | Z12: 597 | AA12: 19
A13: 2024-01-12 | B13: 803 | C13: 452 | D13: 471 | E13: 480 | F13: 487 | G13: 488 | H13: 493 | I13: 495 | J13: 499 | K13: 504 | L13: 506 | M13: 507 | N13: 508 | O13: 509 | P13: 509 | Q13: 509 | R13: 509 | S13: 511 | T13: 511 | U13: 511 | V13: 511 | W13: 511 | X13: 511 | Y13: 511 | Z13: 511 | AA13: 13
A14: 2024-01-13 | B14: 849 | C14: 489 | D14: 502 | E14: 505 | F14: 507 | G14: 509 | H14: 509 | I14: 512 | J14: 512 | K14: 512 | L14: 512 | M14: 512 | N14: 512 | O14: 512 | P14: 513 | Q14: 513 | R14: 515 | S14: 515 | T14: 515 | U14: 515 | V14: 515 | W14: 515 | X14: 515 | Y14: 515 | Z14: 515 | AA14: 42
A15: 2024-01-14 | B15: 1059 | C15: 597 | D15: 605 | E15: 606 | F15: 613 | G15: 619 | H15: 622 | I15: 622 | J15: 625 | K15: 627 | L15: 630 | M15: 631 | N15: 633 | O15: 633 | P15: 633 | Q15: 633 | R15: 633 | S15: 634 | T15: 634 | U15: 638 | V15: 639 | W15: 640 | X15: 640 | Y15: 642 | Z15: 642 | AA15: 39
A16: 2024-01-15 | B16: 1192 | C16: 675 | D16: 707 | E16: 724 | F16: 733 | G16: 739 | H16: 741 | I16: 753 | J16: 758 | K16: 759 | L16: 764 | M16: 770 | N16: 775 | O16: 778 | P16: 779 | Q16: 779 | R16: 780 | S16: 780 | T16: 780 | U16: 780 | V16: 782 | W16: 785 | X16: 785 | Y16: 786 | Z16: 786 | AA16: 7
A17: 2024-01-16 | B17: 1158 | C17: 712 | D17: 747 | E17: 755 | F17: 762 | G17: 772 | H17: 776 | I17: 777 | J17: 780 | K17: 782 | L17: 784 | M17: 787 | N17: 789 | O17: 790 | P17: 791 | Q17: 795 | R17: 795 | S17: 795 | T17: 795 | U17: 795 | V17: 795 | W17: 795 | X17: 796 | Y17: 797 | Z17: 797 | AA17: 17
A18: 2024-01-17 | B18: 1055 | C18: 588 | D18: 596 | E18: 614 | F18: 636 | G18: 651 | H18: 655 | I18: 659 | J18: 666 | K18: 669 | L18: 671 | M18: 671 | N18: 672 | O18: 674 | P18: 674 | Q18: 674 | R18: 679 | S18: 681 | T18: 682 | U18: 683 | V18: 683 | W18: 683 | X18: 684 | Y18: 685 | Z18: 687 | AA18: 18
A19: 2024-01-18 | B19: 1018 | C19: 549 | D19: 560 | E19: 566 | F19: 576 | G19: 581 | H19: 583 | I19: 592 | J19: 597 | K19: 600 | L19: 600 | M19: 603 | N19: 609 | O19: 615 | P19: 622 | Q19: 625 | R19: 628 | S19: 632 | T19: 633 | U19: 633 | V19: 634 | W19: 634 | X19: 634 | Y19: 635 | Z19: 638 | AA19: 18
A20: 2024-01-19 | B20: 872 | C20: 528 | D20: 540 | E20: 547 | F20: 550 | G20: 554 | H20: 561 | I20: 575 | J20: 577 | K20: 579 | L20: 583 | M20: 585 | N20: 585 | O20: 586 | P20: 586 | Q20: 586 | R20: 587 | S20: 587 | T20: 587 | U20: 587 | V20: 587 | W20: 587 | X20: 589 | Y20: 589 | Z20: 589 | AA20: 17
A21: 2024-01-20 | B21: 925 | C21: 560 | D21: 572 | E21: 572 | F21: 574 | G21: 583 | H21: 586 | I21: 587 | J21: 587 | K21: 587 | L21: 587 | M21: 587 | N21: 588 | O21: 588 | P21: 588 | Q21: 588 | R21: 588 | S21: 589 | T21: 589 | U21: 589 | V21: 589 | W21: 589 | X21: 589 | Y21: 589 | Z21: 589 | AA21: 48
A22: 2024-01-21 | B22: 1175 | C22: 714 | D22: 721 | E22: 727 | F22: 729 | G22: 731 | H22: 732 | I22: 732 | J22: 738 | K22: 743 | L22: 751 | M22: 751 | N22: 751 | O22: 753 | P22: 759 | Q22: 761 | R22: 763 | S22: 766 | T22: 767 | U22: 767 | V22: 771 | W22: 771 | X22: 773 | Y22: 773 | Z22: 776 | AA22: 56
A23: 2024-01-22 | B23: 1168 | C23: 705 | D23: 720 | E23: 728 | F23: 738 | G23: 752 | H23: 761 | I23: 765 | J23: 770 | K23: 777 | L23: 779 | M23: 783 | N23: 784 | O23: 784 | P23: 785 | Q23: 785 | R23: 786 | S23: 786 | T23: 787 | U23: 787 | V23: 787 | W23: 787 | X23: 787 | Y23: 787 | Z23: 788 | AA23: 16
A24: 2024-01-23 | B24: 1028 | C24: 567 | D24: 590 | E24: 595 | F24: 612 | G24: 625 | H24: 628 | I24: 634 | J24: 640 | K24: 647 | L24: 652 | M24: 664 | N24: 669 | O24: 673 | P24: 675 | Q24: 680 | R24: 687 | S24: 687 | T24: 689 | U24: 689 | V24: 689 | W24: 689 | X24: 689 | Y24: 689 | Z24: 689 | AA24: 14
A25: 2024-01-24 | B25: 897 | C25: 532 | D25: 540 | E25: 543 | F25: 549 | G25: 555 | H25: 558 | I25: 568 | J25: 575 | K25: 585 | L25: 586 | M25: 591 | N25: 593 | O25: 596 | P25: 600 | Q25: 601 | R25: 601 | S25: 601 | T25: 601 | U25: 601 | V25: 601 | W25: 601 | X25: 601 | Y25: 601 | Z25: 601 | AA25: 4
A26: 2024-01-25 | B26: 918 | C26: 522 | D26: 536 | E26: 549 | F26: 557 | G26: 564 | H26: 569 | I26: 575 | J26: 583 | K26: 590 | L26: 595 | M26: 601 | N26: 605 | O26: 606 | P26: 608 | Q26: 609 | R26: 612 | S26: 613 | T26: 614 | U26: 614 | V26: 614 | W26: 614 | X26: 614 | Y26: 615 | Z26: 615 | AA26: 10
A27: 2024-01-26 | B27: 969 | C27: 531 | D27: 545 | E27: 564 | F27: 576 | G27: 582 | H27: 595 | I27: 599 | J27: 611 | K27: 616 | L27: 619 | M27: 624 | N27: 625 | O27: 626 | P27: 627 | Q27: 630 | R27: 630 | S27: 638 | T27: 638 | U27: 638 | V27: 638 | W27: 638 | X27: 638 | Y27: 638 | Z27: 638 | AA27: 25
A28: 2024-01-27 | B28: 980 | C28: 585 | D28: 597 | E28: 605 | F28: 613 | G28: 615 | H28: 618 | I28: 630 | J28: 640 | K28: 643 | L28: 645 | M28: 653 | N28: 653 | O28: 653 | P28: 655 | Q28: 656 | R28: 656 | S28: 656 | T28: 656 | U28: 656 | V28: 657 | W28: 659 | X28: 659 | Y28: 662 | Z28: 662 | AA28: 21
A29: 2024-01-28 | B29: 1026 | C29: 608 | D29: 620 | E29: 630 | F29: 631 | G29: 636 | H29: 636 | I29: 638 | J29: 644 | K29: 645 | L29: 647 | M29: 651 | N29: 655 | O29: 656 | P29: 658 | Q29: 660 | R29: 661 | S29: 661 | T29: 664 | U29: 667 | V29: 668 | W29: 670 | X29: 673 | Y29: 677 | Z29: 681 | AA29: 36
A30: 2024-01-29 | B30: 1172 | C30: 701 | D30: 735 | E30: 744 | F30: 753 | G30: 759 | H30: 764 | I30: 767 | J30: 770 | K30: 773 | L30: 776 | M30: 782 | N30: 783 | O30: 786 | P30: 795 | Q30: 800 | R30: 803 | S30: 810 | T30: 813 | U30: 816 | V30: 816 | W30: 816 | X30: 818 | Y30: 821 | Z30: 823 | AA30: 14
A31: 2024-01-30 | B31: 1389 | C31: 786 | D31: 794 | E31: 809 | F31: 822 | G31: 831 | H31: 839 | I31: 852 | J31: 862 | K31: 869 | L31: 880 | M31: 889 | N31: 889 | O31: 893 | P31: 895 | Q31: 895 | R31: 895 | S31: 895 | T31: 895 | U31: 895 | V31: 896 | W31: 898 | X31: 899 | Y31: 899 | Z31: 899 | AA31: 22
A32: 2024-01-31 | B32: 1310 | C32: 814 | D32: 827 | E32: 836 | F32: 846 | G32: 857 | H32: 875 | I32: 881 | J32: 881 | K32: 883 | L32: 888 | M32: 893 | N32: 895 | O32: 897 | P32: 901 | Q32: 902 | R32: 903 | S32: 903 | T32: 903 | U32: 903 | V32: 905 | W32: 905 | X32: 906 | Y32: 909 | Z32: 912 | AA32: 13
A33: 2024-02-01 | B33: 1313 | C33: 782 | D33: 798 | E33: 809 | F33: 815 | G33: 830 | H33: 837 | I33: 843 | J33: 850 | K33: 857 | L33: 858 | M33: 872 | N33: 884 | O33: 885 | P33: 885 | Q33: 886 | R33: 891 | S33: 893 | T33: 898 | U33: 898 | V33: 898 | W33: 899 | X33: 899 | Y33: 900 | Z33: 901 | AA33: 8
A34: 2024-02-02 | B34: 1303 | C34: 815 | D34: 830 | E34: 841 | F34: 850 | G34: 860 | H34: 865 | I34: 870 | J34: 879 | K34: 879 | L34: 881 | M34: 892 | N34: 897 | O34: 897 | P34: 897 | Q34: 897 | R34: 897 | S34: 897 | T34: 897 | U34: 897 | V34: 897 | W34: 897 | X34: 897 | Y34: 897 | Z34: 897 | AA34: 28
A35: 2024-02-03 | B35: 1363 | C35: 809 | D35: 821 | E35: 828 | F35: 845 | G35: 851 | H35: 860 | I35: 868 | J35: 873 | K35: 877 | L35: 882 | M35: 889 | N35: 893 | O35: 896 | P35: 897 | Q35: 898 | R35: 898 | S35: 898 | T35: 899 | U35: 899 | V35: 899 | W35: 900 | X35: 901 | Y35: 901 | Z35: 904 | AA35: 45
A36: 2024-02-04 | B36: 1543 | C36: 968 | D36: 992 | E36: 1005 | F36: 1017 | G36: 1024 | H36: 1027 | I36: 1035 | J36: 1049 | K36: 1054 | L36: 1065 | M36: 1071 | N36: 1081 | O36: 1084 | P36: 1087 | Q36: 1088 | R36: 1089 | S36: 1089 | T36: 1089 | U36: 1089 | V36: 1090 | W36: 1095 | X36: 1098 | Y36: 1098 | Z36: 1101 | AA36: 4
A37: 2024-02-05 | B37: 1735 | C37: 1058 | D37: 1081 | E37: 1099 | F37: 1117 | G37: 1124 | H37: 1140 | I37: 1146 | J37: 1152 | K37: 1161 | L37: 1163 | M37: 1168 | N37: 1172 | O37: 1174 | P37: 1175 | Q37: 1175 | R37: 1181 | S37: 1184 | T37: 1184 | U37: 1193 | V37: 1194 | W37: 1197 | X37: 1198 | Y37: 1199 | Z37: 1201 | AA37: 7
A38: 2024-02-06 | B38: 1424 | C38: 852 | D38: 865 | E38: 878 | F38: 899 | G38: 905 | H38: 916 | I38: 925 | J38: 952 | K38: 960 | L38: 966 | M38: 970 | N38: 980 | O38: 982 | P38: 987 | Q38: 989 | R38: 994 | S38: 995 | T38: 998 | U38: 1000 | V38: 1000 | W38: 1003 | X38: 1003 | Y38: 1003 | Z38: 1003 | AA38: 15
A39: 2024-02-07 | B39: 1438 | C39: 809 | D39: 835 | E39: 855 | F39: 864 | G39: 874 | H39: 879 | I39: 899 | J39: 911 | K39: 923 | L39: 930 | M39: 932 | N39: 935 | O39: 945 | P39: 946 | Q39: 947 | R39: 947 | S39: 947 | T39: 947 | U39: 947 | V39: 947 | W39: 947 | X39: 949 | Y39: 950 | Z39: 951 | AA39: 12
A40: 2024-02-08 | B40: 1326 | C40: 781 | D40: 801 | E40: 812 | F40: 818 | G40: 822 | H40: 825 | I40: 828 | J40: 832 | K40: 840 | L40: 846 | M40: 847 | N40: 850 | O40: 855 | P40: 858 | Q40: 861 | R40: 863 | S40: 864 | T40: 864 | U40: 864 | V40: 864 | W40: 864 | X40: 866 | Y40: 866 | Z40: 866 | AA40: 23
A41: 2024-02-09 | B41: 1256 | C41: 743 | D41: 750 | E41: 752 | F41: 753 | G41: 753 | H41: 756 | I41: 758 | J41: 759 | K41: 761 | L41: 761 | M41: 761 | N41: 763 | O41: 763 | P41: 763 | Q41: 763 | R41: 763 | S41: 763 | T41: 763 | U41: 763 | V41: 763 | W41: 763 | X41: 763 | Y41: 763 | Z41: 765 | AA41: 89
A42: 2024-02-10 | B42: 1253 | C42: 697 | D42: 706 | E42: 708 | F42: 708 | G42: 712 | H42: 712 | I42: 713 | J42: 713 | K42: 713 | L42: 713 | M42: 713 | N42: 713 | O42: 714 | P42: 714 | Q42: 715 | R42: 715 | S42: 717 | T42: 718 | U42: 718 | V42: 718 | W42: 719 | X42: 719 | Y42: 719 | Z42: 719 | AA42: 122
A43: 2024-02-11 | B43: 1414 | C43: 800 | D43: 801 | E43: 801 | F43: 801 | G43: 803 | H43: 803 | I43: 804 | J43: 805 | K43: 805 | L43: 805 | M43: 806 | N43: 807 | O43: 807 | P43: 807 | Q43: 808 | R43: 811 | S43: 817 | T43: 820 | U43: 823 | V43: 824 | W43: 826 | X43: 826 | Y43: 827 | Z43: 828 | AA43: 95
A44: 2024-02-12 | B44: 1493 | C44: 867 | D44: 869 | E44: 874 | F44: 875 | G44: 877 | H44: 880 | I44: 884 | J44: 894 | K44: 898 | L44: 900 | M44: 912 | N44: 917 | O44: 923 | P44: 931 | Q44: 935 | R44: 940 | S44: 941 | T44: 944 | U44: 952 | V44: 956 | W44: 959 | X44: 965 | Y44: 965 | Z44: 965 | AA44: 31
A45: 2024-02-13 | B45: 1445 | C45: 808 | D45: 811 | E45: 812 | F45: 821 | G45: 828 | H45: 830 | I45: 833 | J45: 835 | K45: 840 | L45: 847 | M45: 850 | N45: 855 | O45: 857 | P45: 860 | Q45: 861 | R45: 868 | S45: 869 | T45: 869 | U45: 869 | V45: 869 | W45: 870 | X45: 870 | Y45: 870 | Z45: 870 | AA45: 74
A46: 2024-02-14 | B46: 1362 | C46: 738 | D46: 739 | E46: 739 | F46: 739 | G46: 739 | H46: 739 | I46: 739 | J46: 739 | K46: 740 | L46: 740 | M46: 740 | N46: 740 | O46: 741 | P46: 742 | Q46: 742 | R46: 742 | S46: 743 | T46: 743 | U46: 745 | V46: 748 | W46: 749 | X46: 749 | Y46: 749 | Z46: 749 | AA46: 134
A47: 2024-02-15 | B47: 1141 | C47: 652 | D47: 658 | E47: 662 | F47: 664 | G47: 667 | H47: 670 | I47: 671 | J47: 679 | K47: 679 | L47: 683 | M47: 685 | N47: 687 | O47: 709 | P47: 713 | Q47: 716 | R47: 720 | S47: 721 | T47: 721 | U47: 722 | V47: 725 | W47: 729 | X47: 729 | Y47: 733 | Z47: 733 | AA47: 40
A48: 2024-02-16 | B48: 1230 | C48: 735 | D48: 753 | E48: 756 | F48: 757 | G48: 767 | H48: 768 | I48: 768 | J48: 771 | K48: 772 | L48: 774 | M48: 776 | N48: 784 | O48: 788 | P48: 788 | Q48: 788 | R48: 789 | S48: 791 | T48: 792 | U48: 793 | V48: 793 | W48: 794 | X48: 794 | Y48: 796 | Z48: 796 | AA48: 23
A49: 2024-02-17 | B49: 1264 | C49: 714 | D49: 724 | E49: 727 | F49: 733 | G49: 738 | H49: 740 | I49: 743 | J49: 744 | K49: 752 | L49: 756 | M49: 762 | N49: 765 | O49: 773 | P49: 775 | Q49: 778 | R49: 782 | S49: 783 | T49: 784 | U49: 785 | V49: 787 | W49: 789 | X49: 789 | Y49: 789 | Z49: 789 | AA49: 32
A50: 2024-02-18 | B50: 1464 | C50: 918 | D50: 927 | E50: 931 | F50: 941 | G50: 948 | H50: 955 | I50: 973 | J50: 984 | K50: 987 | L50: 989 | M50: 991 | N50: 993 | O50: 997 | P50: 997 | Q50: 997 | R50: 997 | S50: 997 | T50: 997 | U50: 997 | V50: 997 | W50: 997 | X50: 1001 | Y50: 1002 | Z50: 1013 | AA50: 20
A51: 2024-02-19 | B51: 1449 | C51: 854 | D51: 873 | E51: 874 | F51: 884 | G51: 895 | H51: 895 | I51: 904 | J51: 911 | K51: 915 | L51: 925 | M51: 934 | N51: 937 | O51: 944 | P51: 951 | Q51: 953 | R51: 962 | S51: 967 | T51: 970 | U51: 973 | V51: 974 | W51: 974 | X51: 975 | Y51: 978 | Z51: 978 | AA51: 8
A52: 2024-02-20 | B52: 1500 | C52: 850 | D52: 858 | E52: 868 | F52: 875 | G52: 880 | H52: 882 | I52: 893 | J52: 906 | K52: 909 | L52: 920 | M52: 935 | N52: 945 | O52: 949 | P52: 951 | Q52: 952 | R52: 952 | S52: 952 | T52: 952 | U52: 960 | V52: 962 | W52: 963 | X52: 963 | Y52: 963 | Z52: 963 | AA52: 24
A53: 2024-02-21 | B53: 1159 | C53: 649 | D53: 658 | E53: 664 | F53: 672 | G53: 679 | H53: 680 | I53: 690 | J53: 699 | K53: 710 | L53: 717 | M53: 722 | N53: 730 | O53: 734 | P53: 737 | Q53: 741 | R53: 742 | S53: 743 | T53: 743 | U53: 744 | V53: 746 | W53: 748 | X53: 749 | Y53: 754 | Z53: 755 | AA53: 23
A54: 2024-02-22 | B54: 1192 | C54: 600 | D54: 630 | E54: 641 | F54: 661 | G54: 682 | H54: 713 | I54: 723 | J54: 728 | K54: 734 | L54: 740 | M54: 749 | N54: 752 | O54: 754 | P54: 754 | Q54: 759 | R54: 761 | S54: 767 | T54: 767 | U54: 772 | V54: 775 | W54: 775 | X54: 776 | Y54: 777 | Z54: 777 | AA54: 28
A55: 2024-02-23 | B55: 1105 | C55: 603 | D55: 620 | E55: 630 | F55: 638 | G55: 655 | H55: 659 | I55: 666 | J55: 674 | K55: 676 | L55: 678 | M55: 684 | N55: 687 | O55: 691 | P55: 697 | Q55: 701 | R55: 701 | S55: 702 | T55: 702 | U55: 703 | V55: 703 | W55: 703 | X55: 703 | Y55: 703 | Z55: 703 | AA55: 19
A56: 2024-02-24 | B56: 1275 | C56: 771 | D56: 775 | E56: 778 | F56: 783 | G56: 786 | H56: 791 | I56: 796 | J56: 799 | K56: 805 | L56: 806 | M56: 806 | N56: 812 | O56: 816 | P56: 816 | Q56: 817 | R56: 817 | S56: 818 | T56: 819 | U56: 819 | V56: 821 | W56: 821 | X56: 821 | Y56: 821 | Z56: 821 | AA56: 44
A57: 2024-02-25 | B57: 1274 | C57: 804 | D57: 814 | E57: 819 | F57: 823 | G57: 827 | H57: 831 | I57: 834 | J57: 837 | K57: 840 | L57: 848 | M57: 851 | N57: 852 | O57: 854 | P57: 856 | Q57: 857 | R57: 858 | S57: 858 | T57: 858 | U57: 860 | V57: 863 | W57: 867 | X57: 868 | Y57: 868 | Z57: 871 | AA57: 42
A58: 2024-02-26 | B58: 1395 | C58: 814 | D58: 835 | E58: 841 | F58: 858 | G58: 871 | H58: 878 | I58: 882 | J58: 884 | K58: 892 | L58: 897 | M58: 903 | N58: 910 | O58: 918 | P58: 920 | Q58: 942 | R58: 947 | S58: 948 | T58: 951 | U58: 951 | V58: 951 | W58: 951 | X58: 951 | Y58: 951 | Z58: 953 | AA58: 22
A59: 2024-02-27 | B59: 1243 | C59: 741 | D59: 753 | E59: 760 | F59: 772 | G59: 775 | H59: 780 | I59: 790 | J59: 792 | K59: 803 | L59: 811 | M59: 816 | N59: 820 | O59: 825 | P59: 827 | Q59: 830 | R59: 833 | S59: 837 | T59: 837 | U59: 838 | V59: 838 | W59: 838 | X59: 838 | Y59: 838 | Z59: 839 | AA59: 31
A60: 2024-02-28 | B60: 1401 | C60: 767 | D60: 785 | E60: 796 | F60: 808 | G60: 818 | H60: 826 | I60: 835 | J60: 842 | K60: 849 | L60: 852 | M60: 856 | N60: 867 | O60: 879 | P60: 883 | Q60: 892 | R60: 895 | S60: 896 | T60: 900 | U60: 900 | V60: 900 | W60: 901 | X60: 901 | Y60: 902 | Z60: 905 | AA60: 11
A61: 2024-02-29 | B61: 1154 | C61: 679 | D61: 688 | E61: 703 | F61: 712 | G61: 722 | H61: 728 | I61: 735 | J61: 737 | K61: 744 | L61: 751 | M61: 757 | N61: 759 | O61: 767 | P61: 767 | Q61: 769 | R61: 771 | S61: 772 | T61: 772 | U61: 773 | V61: 773 | W61: 774 | X61: 780 | Y61: 780 | Z61: 781 | AA61: 14
A62: 2024-03-01 | B62: 1163 | C62: 664 | D62: 672 | E62: 685 | F62: 691 | G62: 698 | H62: 705 | I62: 710 | J62: 713 | K62: 716 | L62: 724 | M62: 727 | N62: 727 | O62: 727 | P62: 728 | Q62: 728 | R62: 730 | S62: 730 | T62: 730 | U62: 735 | V62: 738 | W62: 738 | X62: 739 | Y62: 739 | Z62: 739 | AA62: 40
A63: 2024-03-02 | B63: 1198 | C63: 682 | D63: 686 | E63: 686 | F63: 689 | G63: 693 | H63: 696 | I63: 701 | J63: 705 | K63: 708 | L63: 714 | M63: 720 | N63: 722 | O63: 724 | P63: 732 | Q63: 736 | R63: 745 | S63: 746 | T63: 746 | U63: 746 | V63: 748 | W63: 750 | X63: 750 | Y63: 751 | Z63: 751 | AA63: 64
A64: 2024-03-03 | B64: 1408 | C64: 820 | D64: 824 | E64: 839 | F64: 845 | G64: 849 | H64: 851 | I64: 854 | J64: 860 | K64: 862 | L64: 867 | M64: 874 | N64: 876 | O64: 879 | P64: 882 | Q64: 885 | R64: 886 | S64: 887 | T64: 887 | U64: 887 | V64: 891 | W64: 892 | X64: 896 | Y64: 901 | Z64: 902 | AA64: 50
A65: 2024-03-04 | B65: 1465 | C65: 888 | D65: 903 | E65: 912 | F65: 918 | G65: 926 | H65: 942 | I65: 945 | J65: 956 | K65: 961 | L65: 968 | M65: 971 | N65: 971 | O65: 975 | P65: 976 | Q65: 978 | R65: 981 | S65: 983 | T65: 985 | U65: 988 | V65: 988 | W65: 988 | X65: 989 | Y65: 989 | Z65: 989 | AA65: 13
A66: 2024-03-05 | B66: 1298 | C66: 788 | D66: 803 | E66: 808 | F66: 814 | G66: 821 | H66: 830 | I66: 836 | J66: 841 | K66: 843 | L66: 851 | M66: 856 | N66: 860 | O66: 866 | P66: 867 | Q66: 867 | R66: 868 | S66: 868 | T66: 868 | U66: 868 | V66: 868 | W66: 868 | X66: 868 | Y66: 868 | Z66: 868 | AA66: 8
A67: 2024-03-06 | B67: 1320 | C67: 722 | D67: 737 | E67: 773 | F67: 786 | G67: 794 | H67: 801 | I67: 806 | J67: 818 | K67: 824 | L67: 826 | M67: 834 | N67: 839 | O67: 840 | P67: 853 | Q67: 856 | R67: 859 | S67: 861 | T67: 861 | U67: 865 | V67: 866 | W67: 875 | X67: 875 | Y67: 876 | Z67: 878 | AA67: 18
A68: 2024-03-07 | B68: 1347 | C68: 759 | D68: 784 | E68: 795 | F68: 815 | G68: 828 | H68: 839 | I68: 844 | J68: 848 | K68: 854 | L68: 865 | M68: 872 | N68: 874 | O68: 878 | P68: 886 | Q68: 890 | R68: 892 | S68: 894 | T68: 897 | U68: 898 | V68: 900 | W68: 902 | X68: 903 | Y68: 904 | Z68: 908 | AA68: 7
A69: 2024-03-08 | B69: 1138 | C69: 669 | D69: 679 | E69: 692 | F69: 703 | G69: 709 | H69: 715 | I69: 726 | J69: 738 | K69: 747 | L69: 751 | M69: 755 | N69: 756 | O69: 756 | P69: 756 | Q69: 756 | R69: 756 | S69: 756 | T69: 756 | U69: 756 | V69: 756 | W69: 756 | X69: 756 | Y69: 756 | Z69: 757 | AA69: 15
A70: 2024-03-09 | B70: 1118 | C70: 660 | D70: 668 | E70: 684 | F70: 695 | G70: 696 | H70: 704 | I70: 706 | J70: 707 | K70: 707 | L70: 708 | M70: 708 | N70: 711 | O70: 711 | P70: 711 | Q70: 711 | R70: 711 | S70: 711 | T70: 711 | U70: 711 | V70: 711 | W70: 711 | X70: 711 | Y70: 712 | Z70: 712 | AA70: 44
A71: 2024-03-10 | B71: 1246 | C71: 749 | D71: 756 | E71: 758 | F71: 762 | G71: 766 | H71: 771 | I71: 778 | J71: 784 | K71: 787 | L71: 791 | M71: 793 | N71: 797 | O71: 800 | P71: 800 | Q71: 801 | R71: 802 | S71: 803 | T71: 805 | U71: 805 | V71: 808 | W71: 810 | X71: 810 | Y71: 812 | Z71: 812 | AA71: 22
A72: 2024-03-11 | B72: 1362 | C72: 788 | D72: 802 | E72: 811 | F72: 818 | G72: 828 | H72: 840 | I72: 857 | J72: 859 | K72: 869 | L72: 873 | M72: 881 | N72: 905 | O72: 907 | P72: 912 | Q72: 913 | R72: 913 | S72: 914 | T72: 915 | U72: 918 | V72: 920 | W72: 920 | X72: 920 | Y72: 921 | Z72: 921 | AA72: 7
A73: 2024-03-12 | B73: 1207 | C73: 701 | D73: 714 | E73: 724 | F73: 736 | G73: 756 | H73: 769 | I73: 770 | J73: 776 | K73: 786 | L73: 791 | M73: 795 | N73: 798 | O73: 801 | P73: 803 | Q73: 805 | R73: 805 | S73: 805 | T73: 805 | U73: 805 | V73: 805 | W73: 805 | X73: 805 | Y73: 805 | Z73: 806 | AA73: 14
A74: 2024-03-13 | B74: 1051 | C74: 612 | D74: 624 | E74: 633 | F74: 640 | G74: 645 | H74: 659 | I74: 663 | J74: 667 | K74: 673 | L74: 677 | M74: 678 | N74: 678 | O74: 680 | P74: 682 | Q74: 687 | R74: 687 | S74: 687 | T74: 687 | U74: 688 | V74: 688 | W74: 688 | X74: 688 | Y74: 690 | Z74: 690 | AA74: 7
A75: 2024-03-14 | B75: 1004 | C75: 525 | D75: 533 | E75: 547 | F75: 557 | G75: 569 | H75: 572 | I75: 578 | J75: 586 | K75: 592 | L75: 597 | M75: 600 | N75: 607 | O75: 613 | P75: 625 | Q75: 629 | R75: 645 | S75: 648 | T75: 655 | U75: 659 | V75: 659 | W75: 659 | X75: 660 | Y75: 660 | Z75: 662 | AA75: 14
A76: 2024-03-15 | B76: 1053 | C76: 550 | D76: 561 | E76: 564 | F76: 569 | G76: 578 | H76: 581 | I76: 583 | J76: 590 | K76: 598 | L76: 614 | M76: 614 | N76: 621 | O76: 623 | P76: 626 | Q76: 632 | R76: 632 | S76: 637 | T76: 640 | U76: 643 | V76: 645 | W76: 649 | X76: 649 | Y76: 649 | Z76: 650 | AA76: 32
A77: 2024-03-16 | B77: 1017 | C77: 564 | D77: 573 | E77: 575 | F77: 575 | G77: 585 | H77: 588 | I77: 591 | J77: 596 | K77: 598 | L77: 598 | M77: 600 | N77: 606 | O77: 608 | P77: 611 | Q77: 614 | R77: 614 | S77: 617 | T77: 622 | U77: 627 | V77: 631 | W77: 631 | X77: 640 | Y77: 642 | Z77: 643 | AA77: 44
A78: 2024-03-17 | B78: 1247 | C78: 704 | D78: 712 | E78: 713 | F78: 715 | G78: 717 | H78: 718 | I78: 718 | J78: 720 | K78: 721 | L78: 721 | M78: 722 | N78: 727 | O78: 729 | P78: 731 | Q78: 734 | R78: 735 | S78: 735 | T78: 736 | U78: 737 | V78: 740 | W78: 742 | X78: 744 | Y78: 745 | Z78: 746 | AA78: 40
A79: 2024-03-18 | B79: 1256 | C79: 749 | D79: 762 | E79: 769 | F79: 770 | G79: 778 | H79: 785 | I79: 793 | J79: 812 | K79: 816 | L79: 826 | M79: 834 | N79: 838 | O79: 842 | P79: 842 | Q79: 843 | R79: 844 | S79: 844 | T79: 850 | U79: 851 | V79: 852 | W79: 855 | X79: 858 | Y79: 859 | Z79: 860 | AA79: 12
A80: 2024-03-19 | B80: 1126 | C80: 626 | D80: 637 | E80: 645 | F80: 650 | G80: 655 | H80: 662 | I80: 666 | J80: 670 | K80: 676 | L80: 689 | M80: 701 | N80: 705 | O80: 708 | P80: 712 | Q80: 713 | R80: 713 | S80: 713 | T80: 713 | U80: 713 | V80: 713 | W80: 713 | X80: 713 | Y80: 717 | Z80: 717 | AA80: 9
A81: 2024-03-20 | B81: 979 | C81: 527 | D81: 538 | E81: 546 | F81: 568 | G81: 571 | H81: 573 | I81: 575 | J81: 580 | K81: 587 | L81: 595 | M81: 598 | N81: 599 | O81: 601 | P81: 604 | Q81: 606 | R81: 606 | S81: 607 | T81: 607 | U81: 607 | V81: 608 | W81: 608 | X81: 608 | Y81: 608 | Z81: 609 | AA81: 55
A82: 2024-03-21 | B82: 927 | C82: 525 | D82: 538 | E82: 546 | F82: 560 | G82: 568 | H82: 573 | I82: 575 | J82: 577 | K82: 587 | L82: 590 | M82: 594 | N82: 595 | O82: 600 | P82: 602 | Q82: 604 | R82: 605 | S82: 608 | T82: 609 | U82: 615 | V82: 616 | W82: 619 | X82: 623 | Y82: 624 | Z82: 625 | AA82: 8
A83: 2024-03-22 | B83: 882 | C83: 478 | D83: 498 | E83: 507 | F83: 520 | G83: 538 | H83: 543 | I83: 545 | J83: 549 | K83: 553 | L83: 553 | M83: 555 | N83: 556 | O83: 556 | P83: 558 | Q83: 558 | R83: 558 | S83: 559 | T83: 559 | U83: 559 | V83: 559 | W83: 560 | X83: 563 | Y83: 566 | Z83: 566 | AA83: 17
A84: 2024-03-23 | B84: 803 | C84: 490 | D84: 502 | E84: 506 | F84: 507 | G84: 509 | H84: 509 | I84: 509 | J84: 509 | K84: 512 | L84: 515 | M84: 516 | N84: 516 | O84: 516 | P84: 516 | Q84: 516 | R84: 516 | S84: 516 | T84: 516 | U84: 516 | V84: 516 | W84: 516 | X84: 516 | Y84: 516 | Z84: 516 | AA84: 40
A85: 2024-03-24 | B85: 1065 | C85: 631 | D85: 636 | E85: 637 | F85: 643 | G85: 646 | H85: 651 | I85: 652 | J85: 654 | K85: 654 | L85: 654 | M85: 654 | N85: 654 | O85: 654 | P85: 654 | Q85: 655 | R85: 658 | S85: 659 | T85: 660 | U85: 661 | V85: 661 | W85: 662 | X85: 662 | Y85: 664 | Z85: 665 | AA85: 43
A86: 2024-03-25 | B86: 1054 | C86: 653 | D86: 657 | E86: 661 | F86: 672 | G86: 682 | H86: 689 | I86: 694 | J86: 699 | K86: 700 | L86: 705 | M86: 713 | N86: 721 | O86: 723 | P86: 727 | Q86: 727 | R86: 728 | S86: 731 | T86: 731 | U86: 731 | V86: 731 | W86: 731 | X86: 731 | Y86: 740 | Z86: 740 | AA86: 15
A87: 2024-03-26 | B87: 951 | C87: 527 | D87: 557 | E87: 571 | F87: 578 | G87: 585 | H87: 591 | I87: 598 | J87: 602 | K87: 605 | L87: 613 | M87: 616 | N87: 619 | O87: 622 | P87: 623 | Q87: 625 | R87: 625 | S87: 626 | T87: 626 | U87: 626 | V87: 627 | W87: 627 | X87: 627 | Y87: 627 | Z87: 628 | AA87: 12
A88: 2024-03-27 | B88: 829 | C88: 410 | D88: 422 | E88: 433 | F88: 439 | G88: 443 | H88: 456 | I88: 466 | J88: 480 | K88: 492 | L88: 497 | M88: 500 | N88: 508 | O88: 515 | P88: 517 | Q88: 518 | R88: 519 | S88: 519 | T88: 519 | U88: 519 | V88: 520 | W88: 520 | X88: 521 | Y88: 522 | Z88: 522 | AA88: 3
A89: 2024-03-28 | B89: 830 | C89: 423 | D89: 465 | E89: 484 | F89: 497 | G89: 500 | H89: 502 | I89: 508 | J89: 508 | K89: 508 | L89: 512 | M89: 514 | N89: 519 | O89: 522 | P89: 523 | Q89: 525 | R89: 525 | S89: 525 | T89: 525 | U89: 526 | V89: 526 | W89: 526 | X89: 527 | Y89: 527 | Z89: 527 | AA89: 10
A90: 2024-03-29 | B90: 970 | C90: 542 | D90: 555 | E90: 569 | F90: 578 | G90: 589 | H90: 600 | I90: 606 | J90: 612 | K90: 613 | L90: 614 | M90: 615 | N90: 615 | O90: 616 | P90: 616 | Q90: 616 | R90: 616 | S90: 616 | T90: 618 | U90: 618 | V90: 618 | W90: 618 | X90: 618 | Y90: 618 | Z90: 618 | AA90: 25
A91: 2024-03-30 | B91: 817 | C91: 467 | D91: 474 | E91: 479 | F91: 486 | G91: 498 | H91: 509 | I91: 512 | J91: 514 | K91: 520 | L91: 520 | M91: 523 | N91: 526 | O91: 527 | P91: 527 | Q91: 527 | R91: 527 | S91: 527 | T91: 527 | U91: 527 | V91: 527 | W91: 527 | X91: 527 | Y91: 527 | Z91: 527 | AA91: 39
A92: 2024-03-31 | B92: 879 | C92: 478 | D92: 487 | E92: 495 | F92: 505 | G92: 511 | H92: 534 | I92: 539 | J92: 541 | K92: 546 | L92: 551 | M92: 552 | N92: 552 | O92: 554 | P92: 554 | Q92: 555 | R92: 555 | S92: 556 | T92: 556 | U92: 557 | V92: 558 | W92: 558 | X92: 558 | Y92: 559 | Z92: 562 | AA92: 30
A93: 2024-04-01 | B93: 995 | C93: 546 | D93: 563 | E93: 570 | F93: 575 | G93: 581 | H93: 584 | I93: 589 | J93: 601 | K93: 607 | L93: 615 | M93: 616 | N93: 618 | O93: 618 | P93: 620 | Q93: 622 | R93: 622 | S93: 624 | T93: 624 | U93: 625 | V93: 625 | W93: 625 | X93: 627 | Y93: 627 | Z93: 628 | AA93: 4
A94: 2024-04-02 | B94: 1036 | C94: 478 | D94: 491 | E94: 500 | F94: 507 | G94: 524 | H94: 543 | I94: 566 | J94: 569 | K94: 574 | L94: 589 | M94: 593 | N94: 600 | O94: 611 | P94: 615 | Q94: 617 | R94: 617 | S94: 617 | T94: 617 | U94: 618 | V94: 618 | W94: 618 | X94: 618 | Y94: 618 | Z94: 618 | AA94: 8
A95: 2024-04-03 | B95: 1014 | C95: 541 | D95: 566 | E95: 588 | F95: 603 | G95: 609 | H95: 611 | I95: 618 | J95: 629 | K95: 638 | L95: 642 | M95: 644 | N95: 644 | O95: 644 | P95: 644 | Q95: 644 | R95: 645 | S95: 645 | T95: 645 | U95: 645 | V95: 645 | W95: 645 | X95: 645 | Y95: 645 | Z95: 646 | AA95: 24
A96: 2024-04-04 | B96: 1076 | C96: 580 | D96: 583 | E96: 593 | F96: 599 | G96: 614 | H96: 620 | I96: 624 | J96: 625 | K96: 631 | L96: 635 | M96: 641 | N96: 649 | O96: 660 | P96: 662 | Q96: 663 | R96: 666 | S96: 673 | T96: 675 | U96: 677 | V96: 678 | W96: 679 | X96: 682 | Y96: 684 | Z96: 686 | AA96: 33
A97: 2024-04-05 | B97: 924 | C97: 514 | D97: 547 | E97: 568 | F97: 586 | G97: 597 | H97: 599 | I97: 607 | J97: 612 | K97: 616 | L97: 621 | M97: 623 | N97: 623 | O97: 623 | P97: 626 | Q97: 628 | R97: 630 | S97: 630 | T97: 630 | U97: 631 | V97: 631 | W97: 631 | X97: 631 | Y97: 631 | Z97: 631 | AA97: 19
A98: 2024-04-06 | B98: 1044 | C98: 561 | D98: 573 | E98: 584 | F98: 590 | G98: 593 | H98: 596 | I98: 602 | J98: 626 | K98: 631 | L98: 638 | M98: 638 | N98: 638 | O98: 641 | P98: 641 | Q98: 641 | R98: 641 | S98: 641 | T98: 642 | U98: 642 | V98: 642 | W98: 642 | X98: 642 | Y98: 643 | Z98: 643 | AA98: 49
A99: 2024-04-07 | B99: 1194 | C99: 729 | D99: 738 | E99: 750 | F99: 761 | G99: 774 | H99: 789 | I99: 805 | J99: 819 | K99: 824 | L99: 825 | M99: 829 | N99: 833 | O99: 835 | P99: 836 | Q99: 837 | R99: 837 | S99: 838 | T99: 838 | U99: 838 | V99: 838 | W99: 838 | X99: 838 | Y99: 839 | Z99: 840 | AA99: 21
A100: 2024-04-08 | B100: 1238 | C100: 659 | D100: 675 | E100: 698 | F100: 714 | G100: 733 | H100: 755 | I100: 760 | J100: 766 | K100: 784 | L100: 794 | M100: 796 | N100: 800 | O100: 800 | P100: 801 | Q100: 801 | R100: 802 | S100: 804 | T100: 804 | U100: 805 | V100: 805 | W100: 805 | X100: 805 | Y100: 811 | Z100: 811 | AA100: 16
A101: 2024-04-09 | B101: 1107 | C101: 592 | D101: 598 | E101: 603 | F101: 608 | G101: 613 | H101: 630 | I101: 645 | J101: 649 | K101: 659 | L101: 661 | M101: 665 | N101: 671 | O101: 675 | P101: 676 | Q101: 682 | R101: 682 | S101: 685 | T101: 687 | U101: 693 | V101: 694 | W101: 696 | X101: 698 | Y101: 698 | Z101: 704 | AA101: 44
A102: 2024-04-10 | B102: 1148 | C102: 656 | D102: 668 | E102: 673 | F102: 684 | G102: 704 | H102: 714 | I102: 721 | J102: 721 | K102: 726 | L102: 729 | M102: 740 | N102: 742 | O102: 745 | P102: 748 | Q102: 775 | R102: 777 | S102: 780 | T102: 781 | U102: 781 | V102: 781 | W102: 781 | X102: 781 | Y102: 782 | Z102: 782 | AA102: 13
A103: 2024-04-11 | B103: 1217 | C103: 702 | D103: 709 | E103: 716 | F103: 734 | G103: 753 | H103: 762 | I103: 770 | J103: 786 | K103: 794 | L103: 801 | M103: 804 | N103: 818 | O103: 834 | P103: 842 | Q103: 853 | R103: 855 | S103: 855 | T103: 856 | U103: 856 | V103: 856 | W103: 860 | X103: 860 | Y103: 860 | Z103: 860 | AA103: 17
A104: 2024-04-12 | B104: 1217 | C104: 674 | D104: 708 | E104: 729 | F104: 741 | G104: 755 | H104: 764 | I104: 768 | J104: 771 | K104: 775 | L104: 779 | M104: 782 | N104: 782 | O104: 783 | P104: 786 | Q104: 787 | R104: 787 | S104: 787 | T104: 787 | U104: 787 | V104: 787 | W104: 787 | X104: 787 | Y104: 787 | Z104: 787 | AA104: 22
A105: 2024-04-13 | B105: 1043 | C105: 619 | D105: 639 | E105: 646 | F105: 651 | G105: 659 | H105: 666 | I105: 667 | J105: 668 | K105: 669 | L105: 669 | M105: 669 | N105: 671 | O105: 672 | P105: 672 | Q105: 672 | R105: 672 | S105: 672 | T105: 672 | U105: 672 | V105: 672 | W105: 672 | X105: 673 | Y105: 673 | Z105: 673 | AA105: 25
A106: 2024-04-14 | B106: 1083 | C106: 673 | D106: 680 | E106: 687 | F106: 687 | G106: 687 | H106: 688 | I106: 693 | J106: 695 | K106: 696 | L106: 698 | M106: 701 | N106: 702 | O106: 702 | P106: 702 | Q106: 706 | R106: 706 | S106: 708 | T106: 710 | U106: 710 | V106: 713 | W106: 713 | X106: 714 | Y106: 715 | Z106: 716 | AA106: 28
A107: 2024-04-15 | B107: 1270 | C107: 783 | D107: 794 | E107: 811 | F107: 821 | G107: 823 | H107: 826 | I107: 828 | J107: 835 | K107: 839 | L107: 843 | M107: 849 | N107: 850 | O107: 853 | P107: 855 | Q107: 856 | R107: 856 | S107: 856 | T107: 859 | U107: 862 | V107: 864 | W107: 864 | X107: 864 | Y107: 864 | Z107: 864 | AA107: 22
A108: 2024-04-16 | B108: 1004 | C108: 576 | D108: 580 | E108: 587 | F108: 590 | G108: 593 | H108: 595 | I108: 602 | J108: 615 | K108: 619 | L108: 625 | M108: 632 | N108: 641 | O108: 646 | P108: 651 | Q108: 652 | R108: 653 | S108: 654 | T108: 655 | U108: 655 | V108: 656 | W108: 656 | X108: 656 | Y108: 656 | Z108: 656 | AA108: 14
A109: 2024-04-17 | B109: 1118 | C109: 649 | D109: 669 | E109: 690 | F109: 705 | G109: 709 | H109: 714 | I109: 718 | J109: 724 | K109: 728 | L109: 732 | M109: 735 | N109: 736 | O109: 740 | P109: 742 | Q109: 745 | R109: 745 | S109: 747 | T109: 747 | U109: 747 | V109: 747 | W109: 747 | X109: 748 | Y109: 748 | Z109: 748 | AA109: 3
A110: 2024-04-18 | B110: 1050 | C110: 630 | D110: 642 | E110: 651 | F110: 658 | G110: 667 | H110: 670 | I110: 676 | J110: 681 | K110: 683 | L110: 687 | M110: 689 | N110: 695 | O110: 698 | P110: 703 | Q110: 703 | R110: 704 | S110: 704 | T110: 704 | U110: 707 | V110: 708 | W110: 708 | X110: 708 | Y110: 710 | Z110: 712 | AA110: 4
A111: 2024-04-19 | B111: 1064 | C111: 609 | D111: 628 | E111: 637 | F111: 648 | G111: 652 | H111: 658 | I111: 664 | J111: 666 | K111: 670 | L111: 675 | M111: 681 | N111: 682 | O111: 682 | P111: 683 | Q111: 686 | R111: 687 | S111: 687 | T111: 688 | U111: 689 | V111: 689 | W111: 691 | X111: 691 | Y111: 691 | Z111: 691 | AA111: 28
A112: 2024-04-20 | B112: 1030 | C112: 599 | D112: 607 | E112: 610 | F112: 612 | G112: 613 | H112: 619 | I112: 623 | J112: 624 | K112: 627 | L112: 627 | M112: 627 | N112: 629 | O112: 631 | P112: 639 | Q112: 641 | R112: 641 | S112: 641 | T112: 641 | U112: 641 | V112: 641 | W112: 641 | X112: 641 | Y112: 641 | Z112: 641 | AA112: 34
A113: 2024-04-21 | B113: 1243 | C113: 775 | D113: 782 | E113: 784 | F113: 787 | G113: 797 | H113: 800 | I113: 801 | J113: 805 | K113: 806 | L113: 806 | M113: 808 | N113: 810 | O113: 813 | P113: 814 | Q113: 814 | R113: 815 | S113: 815 | T113: 816 | U113: 817 | V113: 818 | W113: 818 | X113: 818 | Y113: 819 | Z113: 820 | AA113: 23
A114: 2024-04-22 | B114: 1320 | C114: 777 | D114: 796 | E114: 804 | F114: 811 | G114: 815 | H114: 822 | I114: 831 | J114: 840 | K114: 844 | L114: 847 | M114: 847 | N114: 860 | O114: 865 | P114: 881 | Q114: 884 | R114: 887 | S114: 893 | T114: 894 | U114: 894 | V114: 895 | W114: 896 | X114: 896 | Y114: 896 | Z114: 896 | AA114: 23
A115: 2024-04-23 | B115: 1178 | C115: 693 | D115: 709 | E115: 711 | F115: 713 | G115: 718 | H115: 723 | I115: 731 | J115: 738 | K115: 756 | L115: 769 | M115: 778 | N115: 786 | O115: 788 | P115: 790 | Q115: 794 | R115: 795 | S115: 795 | T115: 795 | U115: 797 | V115: 797 | W115: 797 | X115: 797 | Y115: 797 | Z115: 797 | AA115: 11
A116: 2024-04-24 | B116: 1040 | C116: 576 | D116: 587 | E116: 595 | F116: 607 | G116: 619 | H116: 623 | I116: 630 | J116: 636 | K116: 642 | L116: 646 | M116: 654 | N116: 658 | O116: 662 | P116: 664 | Q116: 667 | R116: 671 | S116: 674 | T116: 675 | U116: 677 | V116: 679 | W116: 680 | X116: 683 | Y116: 684 | Z116: 684 | AA116: 20
A117: 2024-04-25 | B117: 1134 | C117: 667 | D117: 676 | E117: 684 | F117: 689 | G117: 693 | H117: 702 | I117: 708 | J117: 720 | K117: 731 | L117: 736 | M117: 742 | N117: 746 | O117: 751 | P117: 753 | Q117: 753 | R117: 754 | S117: 755 | T117: 755 | U117: 757 | V117: 758 | W117: 758 | X117: 760 | Y117: 762 | Z117: 763 | AA117: 12
A118: 2024-04-26 | B118: 1156 | C118: 671 | D118: 691 | E118: 708 | F118: 727 | G118: 734 | H118: 741 | I118: 744 | J118: 748 | K118: 750 | L118: 751 | M118: 751 | N118: 753 | O118: 756 | P118: 758 | Q118: 758 | R118: 759 | S118: 759 | T118: 760 | U118: 764 | V118: 764 | W118: 766 | X118: 766 | Y118: 766 | Z118: 766 | AA118: 16
A119: 2024-04-27 | B119: 1082 | C119: 690 | D119: 699 | E119: 703 | F119: 704 | G119: 704 | H119: 704 | I119: 704 | J119: 705 | K119: 705 | L119: 705 | M119: 709 | N119: 717 | O119: 720 | P119: 721 | Q119: 723 | R119: 724 | S119: 724 | T119: 724 | U119: 725 | V119: 727 | W119: 728 | X119: 730 | Y119: 732 | Z119: 733 | AA119: 35
A120: 2024-04-28 | B120: 1125 | C120: 726 | D120: 735 | E120: 744 | F120: 751 | G120: 756 | H120: 758 | I120: 766 | J120: 772 | K120: 776 | L120: 778 | M120: 780 | N120: 783 | O120: 783 | P120: 783 | Q120: 783 | R120: 783 | S120: 783 | T120: 784 | U120: 784 | V120: 784 | W120: 784 | X120: 784 | Y120: 784 | Z120: 784 | AA120: 7
A121: 2024-04-29 | B121: 1288 | C121: 748 | D121: 770 | E121: 809 | F121: 819 | G121: 828 | H121: 836 | I121: 848 | J121: 864 | K121: 869 | L121: 870 | M121: 874 | N121: 875 | O121: 877 | P121: 881 | Q121: 882 | R121: 884 | S121: 884 | T121: 884 | U121: 884 | V121: 884 | W121: 884 | X121: 885 | Y121: 885 | Z121: 886 | AA121: 4
A122: 2024-04-30 | B122: 1276 | C122: 743 | D122: 756 | E122: 767 | F122: 773 | G122: 782 | H122: 792 | I122: 793 | J122: 797 | K122: 804 | L122: 807 | M122: 809 | N122: 813 | O122: 824 | P122: 824 | Q122: 826 | R122: 826 | S122: 826 | T122: 826 | U122: 826 | V122: 826 | W122: 826 | X122: 826 | Y122: 826 | Z122: 826 | AA122: 50
A123: 2024-05-01 | B123: 1057 | C123: 604 | D123: 631 | E123: 641 | F123: 644 | G123: 651 | H123: 656 | I123: 658 | J123: 658 | K123: 662 | L123: 663 | M123: 670 | N123: 670 | O123: 670 | P123: 671 | Q123: 675 | R123: 677 | S123: 680 | T123: 685 | U123: 687 | V123: 690 | W123: 692 | X123: 693 | Y123: 693 | Z123: 693 | AA123: 51
A124: 2024-05-02 | B124: 1175 | C124: 667 | D124: 670 | E124: 675 | F124: 683 | G124: 690 | H124: 694 | I124: 702 | J124: 708 | K124: 713 | L124: 719 | M124: 725 | N124: 726 | O124: 729 | P124: 729 | Q124: 731 | R124: 734 | S124: 734 | T124: 734 | U124: 735 | V124: 735 | W124: 735 | X124: 735 | Y124: 735 | Z124: 739 | AA124: 48
A125: 2024-05-03 | B125: 1121 | C125: 666 | D125: 676 | E125: 682 | F125: 690 | G125: 690 | H125: 696 | I125: 699 | J125: 708 | K125: 711 | L125: 715 | M125: 721 | N125: 729 | O125: 730 | P125: 730 | Q125: 730 | R125: 732 | S125: 737 | T125: 738 | U125: 738 | V125: 738 | W125: 738 | X125: 738 | Y125: 738 | Z125: 741 | AA125: 53
A126: 2024-05-04 | B126: 1097 | C126: 659 | D126: 661 | E126: 663 | F126: 663 | G126: 664 | H126: 664 | I126: 667 | J126: 668 | K126: 670 | L126: 671 | M126: 671 | N126: 673 | O126: 679 | P126: 680 | Q126: 686 | R126: 689 | S126: 693 | T126: 694 | U126: 695 | V126: 697 | W126: 699 | X126: 699 | Y126: 700 | Z126: 701 | AA126: 17
A127: 2024-05-05 | B127: 1109 | C127: 640 | D127: 646 | E127: 651 | F127: 657 | G127: 662 | H127: 670 | I127: 674 | J127: 679 | K127: 681 | L127: 682 | M127: 684 | N127: 688 | O127: 692 | P127: 694 | Q127: 694 | R127: 694 | S127: 694 | T127: 694 | U127: 694 | V127: 694 | W127: 695 | X127: 695 | Y127: 696 | Z127: 696 | AA127: 6
A128: 2024-05-06 | B128: 1320 | C128: 783 | D128: 810 | E128: 819 | F128: 834 | G128: 848 | H128: 853 | I128: 861 | J128: 865 | K128: 867 | L128: 871 | M128: 871 | N128: 874 | O128: 876 | P128: 877 | Q128: 878 | R128: 881 | S128: 881 | T128: 881 | U128: 881 | V128: 881 | W128: 882 | X128: 885 | Y128: 885 | Z128: 886 | AA128: 11
A129: 2024-05-07 | B129: 847 | C129: 483 | D129: 503 | E129: 507 | F129: 514 | G129: 522 | H129: 528 | I129: 529 | J129: 529 | K129: 534 | L129: 537 | M129: 540 | N129: 540 | O129: 541 | P129: 542 | Q129: 542 | R129: 544 | S129: 544 | T129: 544 | U129: 545 | V129: 545 | W129: 545 | X129: 545 | Y129: 545 | Z129: 545 | AA129: 9
A130: 2024-05-08 | B130: 972 | C130: 554 | D130: 563 | E130: 571 | F130: 576 | G130: 585 | H130: 587 | I130: 595 | J130: 603 | K130: 614 | L130: 620 | M130: 629 | N130: 633 | O130: 634 | P130: 637 | Q130: 638 | R130: 638 | S130: 638 | T130: 638 | U130: 638 | V130: 640 | W130: 642 | X130: 642 | Y130: 642 | Z130: 643 | AA130: 11
A131: 2024-05-09 | B131: 985 | C131: 560 | D131: 565 | E131: 567 | F131: 572 | G131: 575 | H131: 581 | I131: 586 | J131: 589 | K131: 592 | L131: 606 | M131: 609 | N131: 611 | O131: 638 | P131: 639 | Q131: 639 | R131: 642 | S131: 645 | T131: 647 | U131: 648 | V131: 651 | W131: 652 | X131: 655 | Y131: 655 | Z131: 658 | AA131: 15
A132: 2024-05-10 | B132: 857 | C132: 497 | D132: 522 | E132: 528 | F132: 539 | G132: 551 | H132: 556 | I132: 559 | J132: 560 | K132: 563 | L132: 563 | M132: 563 | N132: 563 | O132: 563 | P132: 564 | Q132: 565 | R132: 565 | S132: 565 | T132: 566 | U132: 566 | V132: 566 | W132: 566 | X132: 566 | Y132: 566 | Z132: 566 | AA132: 23
A133: 2024-05-11 | B133: 810 | C133: 519 | D133: 524 | E133: 532 | F133: 536 | G133: 541 | H133: 544 | I133: 545 | J133: 546 | K133: 546 | L133: 547 | M133: 547 | N133: 549 | O133: 549 | P133: 550 | Q133: 550 | R133: 551 | S133: 551 | T133: 551 | U133: 551 | V133: 551 | W133: 551 | X133: 551 | Y133: 551 | Z133: 551 | AA133: 24
A134: 2024-05-12 | B134: 854 | C134: 548 | D134: 564 | E134: 568 | F134: 576 | G134: 577 | H134: 577 | I134: 577 | J134: 577 | K134: 578 | L134: 578 | M134: 579 | N134: 579 | O134: 580 | P134: 580 | Q134: 580 | R134: 580 | S134: 580 | T134: 580 | U134: 580 | V134: 581 | W134: 581 | X134: 581 | Y134: 583 | Z134: 583 | AA134: 21
A135: 2024-05-13 | B135: 1058 | C135: 658 | D135: 667 | E135: 677 | F135: 683 | G135: 687 | H135: 688 | I135: 692 | J135: 694 | K135: 696 | L135: 697 | M135: 697 | N135: 700 | O135: 701 | P135: 701 | Q135: 702 | R135: 705 | S135: 708 | T135: 710 | U135: 713 | V135: 715 | W135: 716 | X135: 719 | Y135: 719 | Z135: 719 | AA135: 32
A136: 2024-05-14 | B136: 1094 | C136: 646 | D136: 653 | E136: 662 | F136: 673 | G136: 676 | H136: 682 | I136: 687 | J136: 700 | K136: 704 | L136: 707 | M136: 713 | N136: 721 | O136: 722 | P136: 726 | Q136: 733 | R136: 733 | S136: 744 | T136: 745 | U136: 747 | V136: 747 | W136: 747 | X136: 747 | Y136: 747 | Z136: 747 | AA136: 12
A137: 2024-05-15 | B137: 1160 | C137: 697 | D137: 705 | E137: 712 | F137: 713 | G137: 719 | H137: 728 | I137: 733 | J137: 735 | K137: 739 | L137: 741 | M137: 741 | N137: 742 | O137: 747 | P137: 748 | Q137: 751 | R137: 751 | S137: 752 | T137: 759 | U137: 761 | V137: 763 | W137: 763 | X137: 765 | Y137: 766 | Z137: 767 | AA137: 45
A138: 2024-05-16 | B138: 1156 | C138: 665 | D138: 670 | E138: 682 | F138: 688 | G138: 694 | H138: 696 | I138: 703 | J138: 710 | K138: 712 | L138: 719 | M138: 726 | N138: 735 | O138: 739 | P138: 747 | Q138: 750 | R138: 750 | S138: 751 | T138: 751 | U138: 752 | V138: 752 | W138: 752 | X138: 753 | Y138: 754 | Z138: 754 | AA138: 11
A139: 2024-05-17 | B139: 1104 | C139: 609 | D139: 627 | E139: 649 | F139: 657 | G139: 661 | H139: 667 | I139: 680 | J139: 683 | K139: 683 | L139: 689 | M139: 689 | N139: 689 | O139: 689 | P139: 690 | Q139: 691 | R139: 692 | S139: 692 | T139: 692 | U139: 692 | V139: 692 | W139: 692 | X139: 692 | Y139: 692 | Z139: 692 | AA139: 31
A140: 2024-05-18 | B140: 973 | C140: 569 | D140: 578 | E140: 588 | F140: 592 | G140: 597 | H140: 599 | I140: 602 | J140: 605 | K140: 608 | L140: 610 | M140: 612 | N140: 612 | O140: 612 | P140: 612 | Q140: 612 | R140: 612 | S140: 612 | T140: 612 | U140: 612 | V140: 612 | W140: 613 | X140: 613 | Y140: 613 | Z140: 613 | AA140: 38
A141: 2024-05-19 | B141: 1028 | C141: 671 | D141: 680 | E141: 683 | F141: 688 | G141: 691 | H141: 691 | I141: 694 | J141: 696 | K141: 699 | L141: 699 | M141: 699 | N141: 699 | O141: 702 | P141: 702 | Q141: 702 | R141: 702 | S141: 706 | T141: 707 | U141: 707 | V141: 708 | W141: 709 | X141: 709 | Y141: 709 | Z141: 709 | AA141: 27
A142: 2024-05-20 | B142: 1121 | C142: 699 | D142: 710 | E142: 724 | F142: 736 | G142: 737 | H142: 741 | I142: 747 | J142: 749 | K142: 753 | L142: 760 | M142: 764 | N142: 768 | O142: 773 | P142: 775 | Q142: 776 | R142: 777 | S142: 780 | T142: 780 | U142: 780 | V142: 780 | W142: 780 | X142: 780 | Y142: 780 | Z142: 780 | AA142: 7
A143: 2024-05-21 | B143: 1084 | C143: 628 | D143: 638 | E143: 650 | F143: 661 | G143: 669 | H143: 678 | I143: 691 | J143: 699 | K143: 705 | L143: 718 | M143: 720 | N143: 722 | O143: 724 | P143: 726 | Q143: 728 | R143: 729 | S143: 729 | T143: 729 | U143: 730 | V143: 730 | W143: 731 | X143: 731 | Y143: 731 | Z143: 734 | AA143: 14
A144: 2024-05-22 | B144: 1135 | C144: 615 | D144: 620 | E144: 628 | F144: 631 | G144: 636 | H144: 649 | I144: 668 | J144: 689 | K144: 694 | L144: 695 | M144: 698 | N144: 702 | O144: 705 | P144: 711 | Q144: 713 | R144: 717 | S144: 717 | T144: 719 | U144: 719 | V144: 720 | W144: 720 | X144: 720 | Y144: 720 | Z144: 720 | AA144: 12
A145: 2024-05-23 | B145: 1033 | C145: 584 | D145: 588 | E145: 601 | F145: 611 | G145: 619 | H145: 630 | I145: 633 | J145: 637 | K145: 644 | L145: 653 | M145: 659 | N145: 662 | O145: 664 | P145: 667 | Q145: 669 | R145: 670 | S145: 670 | T145: 670 | U145: 671 | V145: 671 | W145: 671 | X145: 671 | Y145: 671 | Z145: 671 | AA145: 6
A146: 2024-05-24 | B146: 977 | C146: 567 | D146: 579 | E146: 588 | F146: 596 | G146: 600 | H146: 607 | I146: 609 | J146: 611 | K146: 617 | L146: 618 | M146: 621 | N146: 625 | O146: 626 | P146: 626 | Q146: 626 | R146: 627 | S146: 627 | T146: 627 | U146: 627 | V146: 630 | W146: 630 | X146: 630 | Y146: 630 | Z146: 630 | AA146: 18
A147: 2024-05-25 | B147: 994 | C147: 646 | D147: 657 | E147: 660 | F147: 664 | G147: 665 | H147: 665 | I147: 666 | J147: 666 | K147: 666 | L147: 667 | M147: 667 | N147: 672 | O147: 674 | P147: 680 | Q147: 680 | R147: 681 | S147: 682 | T147: 682 | U147: 682 | V147: 682 | W147: 682 | X147: 682 | Y147: 682 | Z147: 682 | AA147: 29
A148: 2024-05-26 | B148: 1000 | C148: 631 | D148: 637 | E148: 637 | F148: 645 | G148: 647 | H148: 647 | I148: 647 | J148: 650 | K148: 657 | L148: 662 | M148: 668 | N148: 671 | O148: 673 | P148: 674 | Q148: 675 | R148: 676 | S148: 677 | T148: 677 | U148: 677 | V148: 677 | W148: 678 | X148: 678 | Y148: 679 | Z148: 681 | AA148: 32
A149: 2024-05-27 | B149: 1189 | C149: 702 | D149: 708 | E149: 716 | F149: 727 | G149: 736 | H149: 740 | I149: 747 | J149: 756 | K149: 762 | L149: 764 | M149: 769 | N149: 771 | O149: 773 | P149: 777 | Q149: 779 | R149: 781 | S149: 783 | T149: 783 | U149: 783 | V149: 783 | W149: 785 | X149: 786 | Y149: 786 | Z149: 787 | AA149: 9
A150: 2024-05-28 | B150: 1438 | C150: 866 | D150: 884 | E150: 892 | F150: 900 | G150: 907 | H150: 916 | I150: 919 | J150: 926 | K150: 938 | L150: 948 | M150: 952 | N150: 956 | O150: 965 | P150: 966 | Q150: 968 | R150: 970 | S150: 970 | T150: 970 | U150: 970 | V150: 970 | W150: 972 | X150: 972 | Y150: 972 | Z150: 972 | AA150: 13
A151: 2024-05-29 | B151: 1142 | C151: 628 | D151: 637 | E151: 650 | F151: 662 | G151: 664 | H151: 670 | I151: 672 | J151: 681 | K151: 687 | L151: 695 | M151: 699 | N151: 705 | O151: 707 | P151: 708 | Q151: 711 | R151: 714 | S151: 714 | T151: 716 | U151: 716 | V151: 717 | W151: 717 | X151: 717 | Y151: 717 | Z151: 718 | AA151: 13
A152: 2024-05-30 | B152: 1160 | C152: 659 | D152: 676 | E152: 687 | F152: 690 | G152: 696 | H152: 703 | I152: 713 | J152: 714 | K152: 720 | L152: 722 | M152: 726 | N152: 729 | O152: 730 | P152: 733 | Q152: 735 | R152: 740 | S152: 740 | T152: 744 | U152: 745 | V152: 745 | W152: 745 | X152: 745 | Y152: 746 | Z152: 746 | AA152: 34
A153: 2024-05-31 | B153: 1087 | C153: 626 | D153: 638 | E153: 649 | F153: 653 | G153: 663 | H153: 672 | I153: 677 | J153: 679 | K153: 689 | L153: 690 | M153: 691 | N153: 691 | O153: 692 | P153: 693 | Q153: 693 | R153: 693 | S153: 693 | T153: 693 | U153: 693 | V153: 694 | W153: 694 | X153: 694 | Y153: 694 | Z153: 694 | AA153: 16
A154: 2024-06-01 | B154: 1099 | C154: 679 | D154: 683 | E154: 685 | F154: 686 | G154: 686 | H154: 688 | I154: 690 | J154: 691 | K154: 692 | L154: 694 | M154: 698 | N154: 699 | O154: 699 | P154: 700 | Q154: 700 | R154: 700 | S154: 704 | T154: 705 | U154: 706 | V154: 709 | W154: 710 | X154: 711 | Y154: 711 | Z154: 711 | AA154: 42
A155: 2024-06-02 | B155: 1066 | C155: 693 | D155: 707 | E155: 714 | F155: 714 | G155: 714 | H155: 718 | I155: 718 | J155: 718 | K155: 718 | L155: 720 | M155: 721 | N155: 721 | O155: 725 | P155: 726 | Q155: 726 | R155: 727 | S155: 727 | T155: 727 | U155: 729 | V155: 729 | W155: 729 | X155: 730 | Y155: 731 | Z155: 731 | AA155: 38
A156: 2024-06-03 | B156: 1192 | C156: 739 | D156: 765 | E156: 774 | F156: 781 | G156: 793 | H156: 804 | I156: 809 | J156: 813 | K156: 815 | L156: 820 | M156: 823 | N156: 823 | O156: 824 | P156: 827 | Q156: 829 | R156: 831 | S156: 831 | T156: 831 | U156: 831 | V156: 831 | W156: 831 | X156: 831 | Y156: 832 | Z156: 833 | AA156: 7
A157: 2024-06-04 | B157: 1172 | C157: 681 | D157: 693 | E157: 703 | F157: 716 | G157: 725 | H157: 735 | I157: 741 | J157: 752 | K157: 756 | L157: 758 | M157: 759 | N157: 763 | O157: 765 | P157: 766 | Q157: 769 | R157: 771 | S157: 773 | T157: 773 | U157: 773 | V157: 773 | W157: 773 | X157: 774 | Y157: 774 | Z157: 774 | AA157: 6
A158: 2024-06-05 | B158: 1152 | C158: 650 | D158: 661 | E158: 674 | F158: 684 | G158: 697 | H158: 709 | I158: 721 | J158: 726 | K158: 726 | L158: 729 | M158: 732 | N158: 734 | O158: 735 | P158: 736 | Q158: 738 | R158: 739 | S158: 740 | T158: 742 | U158: 742 | V158: 742 | W158: 742 | X158: 742 | Y158: 743 | Z158: 743 | AA158: 19
A159: 2024-06-06 | B159: 1096 | C159: 621 | D159: 635 | E159: 643 | F159: 655 | G159: 667 | H159: 676 | I159: 684 | J159: 695 | K159: 705 | L159: 706 | M159: 712 | N159: 714 | O159: 718 | P159: 719 | Q159: 722 | R159: 726 | S159: 726 | T159: 727 | U159: 727 | V159: 727 | W159: 727 | X159: 727 | Y159: 727 | Z159: 727 | AA159: 6
A160: 2024-06-07 | B160: 1109 | C160: 650 | D160: 670 | E160: 706 | F160: 713 | G160: 718 | H160: 722 | I160: 729 | J160: 732 | K160: 740 | L160: 742 | M160: 746 | N160: 747 | O160: 747 | P160: 747 | Q160: 749 | R160: 750 | S160: 750 | T160: 751 | U160: 751 | V160: 753 | W160: 753 | X160: 753 | Y160: 753 | Z160: 753 | AA160: 29
A161: 2024-06-08 | B161: 944 | C161: 540 | D161: 560 | E161: 565 | F161: 567 | G161: 570 | H161: 571 | I161: 572 | J161: 572 | K161: 572 | L161: 572 | M161: 574 | N161: 576 | O161: 577 | P161: 577 | Q161: 578 | R161: 579 | S161: 579 | T161: 579 | U161: 579 | V161: 579 | W161: 581 | X161: 581 | Y161: 581 | Z161: 583 | AA161: 60
A162: 2024-06-09 | B162: 1025 | C162: 619 | D162: 626 | E162: 628 | F162: 630 | G162: 632 | H162: 635 | I162: 638 | J162: 642 | K162: 643 | L162: 644 | M162: 645 | N162: 645 | O162: 645 | P162: 645 | Q162: 645 | R162: 645 | S162: 645 | T162: 646 | U162: 646 | V162: 646 | W162: 646 | X162: 646 | Y162: 646 | Z162: 647 | AA162: 56
A163: 2024-06-10 | B163: 1194 | C163: 763 | D163: 766 | E163: 776 | F163: 783 | G163: 786 | H163: 786 | I163: 786 | J163: 786 | K163: 787 | L163: 787 | M163: 792 | N163: 799 | O163: 801 | P163: 803 | Q163: 804 | R163: 804 | S163: 804 | T163: 805 | U163: 805 | V163: 805 | W163: 807 | X163: 808 | Y163: 809 | Z163: 810 | AA163: 41
A164: 2024-06-11 | B164: 1068 | C164: 608 | D164: 621 | E164: 628 | F164: 633 | G164: 634 | H164: 636 | I164: 640 | J164: 647 | K164: 654 | L164: 660 | M164: 663 | N164: 672 | O164: 676 | P164: 682 | Q164: 685 | R164: 690 | S164: 692 | T164: 696 | U164: 697 | V164: 698 | W164: 698 | X164: 698 | Y164: 699 | Z164: 699 | AA164: 19
A165: 2024-06-12 | B165: 1203 | C165: 677 | D165: 690 | E165: 715 | F165: 720 | G165: 727 | H165: 736 | I165: 739 | J165: 745 | K165: 748 | L165: 754 | M165: 755 | N165: 758 | O165: 760 | P165: 761 | Q165: 763 | R165: 763 | S165: 763 | T165: 765 | U165: 767 | V165: 768 | W165: 768 | X165: 768 | Y165: 768 | Z165: 768 | AA165: 16
A166: 2024-06-13 | B166: 1129 | C166: 631 | D166: 660 | E166: 673 | F166: 683 | G166: 696 | H166: 709 | I166: 717 | J166: 723 | K166: 727 | L166: 732 | M166: 735 | N166: 735 | O166: 737 | P166: 739 | Q166: 739 | R166: 740 | S166: 743 | T166: 745 | U166: 746 | V166: 746 | W166: 746 | X166: 746 | Y166: 746 | Z166: 747 | AA166: 19
A167: 2024-06-14 | B167: 1051 | C167: 625 | D167: 638 | E167: 645 | F167: 653 | G167: 659 | H167: 664 | I167: 680 | J167: 691 | K167: 700 | L167: 704 | M167: 707 | N167: 711 | O167: 713 | P167: 715 | Q167: 720 | R167: 721 | S167: 722 | T167: 723 | U167: 724 | V167: 724 | W167: 724 | X167: 724 | Y167: 725 | Z167: 725 | AA167: 16
A168: 2024-06-15 | B168: 1103 | C168: 631 | D168: 642 | E168: 649 | F168: 649 | G168: 652 | H168: 652 | I168: 658 | J168: 659 | K168: 662 | L168: 664 | M168: 664 | N168: 666 | O168: 673 | P168: 680 | Q168: 682 | R168: 684 | S168: 685 | T168: 685 | U168: 687 | V168: 687 | W168: 687 | X168: 687 | Y168: 687 | Z168: 687 | AA168: 45
A169: 2024-06-16 | B169: 1213 | C169: 712 | D169: 731 | E169: 737 | F169: 737 | G169: 740 | H169: 741 | I169: 744 | J169: 747 | K169: 747 | L169: 751 | M169: 755 | N169: 763 | O169: 768 | P169: 768 | Q169: 768 | R169: 769 | S169: 772 | T169: 778 | U169: 778 | V169: 778 | W169: 780 | X169: 780 | Y169: 781 | Z169: 782 | AA169: 43
A170: 2024-06-17 | B170: 1115 | C170: 603 | D170: 615 | E170: 625 | F170: 636 | G170: 643 | H170: 648 | I170: 657 | J170: 664 | K170: 671 | L170: 683 | M170: 684 | N170: 702 | O170: 711 | P170: 721 | Q170: 729 | R170: 740 | S170: 750 | T170: 758 | U170: 758 | V170: 759 | W170: 759 | X170: 759 | Y170: 759 | Z170: 759 | AA170: 13
A171: 2024-06-18 | B171: 1205 | C171: 616 | D171: 627 | E171: 641 | F171: 648 | G171: 660 | H171: 681 | I171: 697 | J171: 717 | K171: 727 | L171: 736 | M171: 743 | N171: 757 | O171: 763 | P171: 767 | Q171: 779 | R171: 784 | S171: 785 | T171: 786 | U171: 788 | V171: 789 | W171: 790 | X171: 790 | Y171: 790 | Z171: 790 | AA171: 25
A172: 2024-06-19 | B172: 1136 | C172: 614 | D172: 643 | E172: 653 | F172: 665 | G172: 674 | H172: 681 | I172: 686 | J172: 694 | K172: 699 | L172: 706 | M172: 712 | N172: 718 | O172: 724 | P172: 725 | Q172: 725 | R172: 731 | S172: 733 | T172: 733 | U172: 735 | V172: 735 | W172: 735 | X172: 736 | Y172: 736 | Z172: 739 | AA172: 17
A173: 2024-06-20 | B173: 1088 | C173: 628 | D173: 641 | E173: 649 | F173: 656 | G173: 666 | H173: 677 | I173: 685 | J173: 692 | K173: 699 | L173: 702 | M173: 707 | N173: 712 | O173: 720 | P173: 723 | Q173: 726 | R173: 734 | S173: 734 | T173: 738 | U173: 739 | V173: 743 | W173: 743 | X173: 743 | Y173: 743 | Z173: 743 | AA173: 11
A174: 2024-06-21 | B174: 1037 | C174: 593 | D174: 604 | E174: 612 | F174: 623 | G174: 629 | H174: 638 | I174: 643 | J174: 647 | K174: 680 | L174: 681 | M174: 683 | N174: 685 | O174: 685 | P174: 685 | Q174: 686 | R174: 686 | S174: 686 | T174: 687 | U174: 687 | V174: 689 | W174: 689 | X174: 689 | Y174: 689 | Z174: 689 | AA174: 25
A175: 2024-06-22 | B175: 1034 | C175: 433 | D175: 476 | E175: 505 | F175: 524 | G175: 544 | H175: 560 | I175: 586 | J175: 624 | K175: 636 | L175: 660 | M175: 664 | N175: 667 | O175: 671 | P175: 672 | Q175: 677 | R175: 678 | S175: 678 | T175: 679 | U175: 679 | V175: 679 | W175: 679 | X175: 679 | Y175: 679 | Z175: 679 | AA175: 49
A176: 2024-06-23 | B176: 1156 | C176: 706 | D176: 716 | E176: 723 | F176: 729 | G176: 735 | H176: 739 | I176: 739 | J176: 741 | K176: 743 | L176: 744 | M176: 744 | N176: 746 | O176: 747 | P176: 748 | Q176: 749 | R176: 750 | S176: 751 | T176: 753 | U176: 756 | V176: 758 | W176: 758 | X176: 759 | Y176: 759 | Z176: 760 | AA176: 40
A177: 2024-06-24 | B177: 1063 | C177: 617 | D177: 633 | E177: 637 | F177: 644 | G177: 652 | H177: 656 | I177: 661 | J177: 662 | K177: 667 | L177: 668 | M177: 670 | N177: 676 | O177: 679 | P177: 683 | Q177: 683 | R177: 684 | S177: 685 | T177: 685 | U177: 685 | V177: 685 | W177: 687 | X177: 687 | Y177: 687 | Z177: 687 | AA177: 7
A178: 2024-06-25 | B178: 1018 | C178: 576 | D178: 595 | E178: 603 | F178: 608 | G178: 628 | H178: 632 | I178: 638 | J178: 641 | K178: 646 | L178: 652 | M178: 654 | N178: 655 | O178: 657 | P178: 659 | Q178: 662 | R178: 662 | S178: 662 | T178: 662 | U178: 662 | V178: 663 | W178: 664 | X178: 664 | Y178: 664 | Z178: 665 | AA178: 13
A179: 2024-06-26 | B179: 1041 | C179: 597 | D179: 616 | E179: 625 | F179: 634 | G179: 643 | H179: 651 | I179: 655 | J179: 660 | K179: 670 | L179: 671 | M179: 672 | N179: 673 | O179: 673 | P179: 675 | Q179: 677 | R179: 682 | S179: 682 | T179: 682 | U179: 682 | V179: 682 | W179: 682 | X179: 682 | Y179: 685 | Z179: 685 | AA179: 10
A180: 2024-06-27 | B180: 988 | C180: 573 | D180: 590 | E180: 599 | F180: 606 | G180: 612 | H180: 618 | I180: 626 | J180: 627 | K180: 629 | L180: 634 | M180: 638 | N180: 640 | O180: 644 | P180: 646 | Q180: 646 | R180: 647 | S180: 647 | T180: 650 | U180: 650 | V180: 650 | W180: 650 | X180: 650 | Y180: 667 | Z180: 667 | AA180: 7
A181: 2024-06-28 | B181: 1045 | C181: 638 | D181: 670 | E181: 683 | F181: 692 | G181: 695 | H181: 705 | I181: 712 | J181: 714 | K181: 717 | L181: 719 | M181: 721 | N181: 722 | O181: 723 | P181: 723 | Q181: 724 | R181: 725 | S181: 726 | T181: 727 | U181: 727 | V181: 727 | W181: 727 | X181: 727 | Y181: 727 | Z181: 727 | AA181: 11
A182: 2024-06-29 | B182: 990 | C182: 626 | D182: 637 | E182: 642 | F182: 649 | G182: 651 | H182: 652 | I182: 654 | J182: 656 | K182: 662 | L182: 666 | M182: 668 | N182: 668 | O182: 668 | P182: 668 | Q182: 668 | R182: 668 | S182: 668 | T182: 668 | U182: 668 | V182: 668 | W182: 668 | X182: 668 | Y182: 668 | Z182: 668 | AA182: 26
A183: 2024-06-30 | B183: 1371 | C183: 867 | D183: 876 | E183: 888 | F183: 891 | G183: 896 | H183: 898 | I183: 899 | J183: 899 | K183: 899 | L183: 899 | M183: 900 | N183: 903 | O183: 907 | P183: 907 | Q183: 908 | R183: 909 | S183: 910 | T183: 910 | U183: 910 | V183: 910 | W183: 910 | X183: 910 | Y183: 914 | Z183: 918 | AA183: 31
A184: 2024-07-01 | B184: 1231 | C184: 729 | D184: 747 | E184: 759 | F184: 768 | G184: 772 | H184: 778 | I184: 786 | J184: 788 | K184: 789 | L184: 789 | M184: 794 | N184: 797 | O184: 798 | P184: 799 | Q184: 799 | R184: 804 | S184: 805 | T184: 810 | U184: 813 | V184: 814 | W184: 818 | X184: 818 | Y184: 818 | Z184: 819 | AA184: 10
A185: 2024-07-02 | B185: 1198 | C185: 739 | D185: 756 | E185: 776 | F185: 787 | G185: 796 | H185: 802 | I185: 809 | J185: 815 | K185: 818 | L185: 819 | M185: 822 | N185: 824 | O185: 825 | P185: 828 | Q185: 831 | R185: 831 | S185: 832 | T185: 832 | U185: 832 | V185: 832 | W185: 832 | X185: 832 | Y185: 832 | Z185: 832 | AA185: 5
A186: 2024-07-03 | B186: 1282 | C186: 739 | D186: 758 | E186: 778 | F186: 784 | G186: 791 | H186: 799 | I186: 805 | J186: 811 | K186: 813 | L186: 815 | M186: 823 | N186: 848 | O186: 854 | P186: 856 | Q186: 858 | R186: 858 | S186: 859 | T186: 859 | U186: 859 | V186: 859 | W186: 859 | X186: 859 | Y186: 859 | Z186: 859 | AA186: 17
A187: 2024-07-04 | B187: 1061 | C187: 625 | D187: 639 | E187: 649 | F187: 658 | G187: 667 | H187: 672 | I187: 679 | J187: 690 | K187: 700 | L187: 704 | M187: 710 | N187: 713 | O187: 713 | P187: 715 | Q187: 715 | R187: 715 | S187: 718 | T187: 719 | U187: 719 | V187: 720 | W187: 720 | X187: 720 | Y187: 720 | Z187: 721 | AA187: 10
A188: 2024-07-05 | B188: 1099 | C188: 656 | D188: 683 | E188: 699 | F188: 707 | G188: 713 | H188: 715 | I188: 720 | J188: 725 | K188: 731 | L188: 733 | M188: 736 | N188: 737 | O188: 737 | P188: 739 | Q188: 739 | R188: 740 | S188: 740 | T188: 740 | U188: 740 | V188: 741 | W188: 742 | X188: 742 | Y188: 742 | Z188: 742 | AA188: 15
A189: 2024-07-06 | B189: 1131 | C189: 674 | D189: 692 | E189: 700 | F189: 701 | G189: 704 | H189: 707 | I189: 709 | J189: 709 | K189: 710 | L189: 711 | M189: 713 | N189: 714 | O189: 716 | P189: 718 | Q189: 718 | R189: 719 | S189: 719 | T189: 719 | U189: 720 | V189: 720 | W189: 722 | X189: 723 | Y189: 724 | Z189: 724 | AA189: 33
A190: 2024-07-07 | B190: 1223 | C190: 784 | D190: 793 | E190: 809 | F190: 817 | G190: 821 | H190: 826 | I190: 827 | J190: 831 | K190: 832 | L190: 837 | M190: 838 | N190: 843 | O190: 845 | P190: 846 | Q190: 846 | R190: 846 | S190: 848 | T190: 849 | U190: 850 | V190: 850 | W190: 851 | X190: 855 | Y190: 860 | Z190: 862 | AA190: 25
A191: 2024-07-08 | B191: 1327 | C191: 803 | D191: 816 | E191: 820 | F191: 824 | G191: 827 | H191: 844 | I191: 851 | J191: 857 | K191: 871 | L191: 880 | M191: 889 | N191: 893 | O191: 903 | P191: 905 | Q191: 908 | R191: 909 | S191: 912 | T191: 912 | U191: 913 | V191: 915 | W191: 915 | X191: 915 | Y191: 915 | Z191: 917 | AA191: 5
A192: 2024-07-09 | B192: 1142 | C192: 669 | D192: 696 | E192: 713 | F192: 750 | G192: 757 | H192: 761 | I192: 768 | J192: 773 | K192: 776 | L192: 782 | M192: 783 | N192: 787 | O192: 790 | P192: 791 | Q192: 791 | R192: 791 | S192: 791 | T192: 792 | U192: 794 | V192: 794 | W192: 794 | X192: 797 | Y192: 799 | Z192: 799 | AA192: 9
A193: 2024-07-10 | B193: 1158 | C193: 662 | D193: 688 | E193: 696 | F193: 703 | G193: 708 | H193: 712 | I193: 732 | J193: 750 | K193: 762 | L193: 766 | M193: 774 | N193: 777 | O193: 778 | P193: 780 | Q193: 785 | R193: 786 | S193: 786 | T193: 786 | U193: 786 | V193: 786 | W193: 790 | X193: 790 | Y193: 790 | Z193: 791 | AA193: 12
A194: 2024-07-11 | B194: 1148 | C194: 678 | D194: 695 | E194: 726 | F194: 735 | G194: 755 | H194: 765 | I194: 767 | J194: 772 | K194: 776 | L194: 783 | M194: 784 | N194: 790 | O194: 794 | P194: 796 | Q194: 797 | R194: 799 | S194: 799 | T194: 800 | U194: 800 | V194: 800 | W194: 800 | X194: 800 | Y194: 800 | Z194: 801 | AA194: 8
A195: 2024-07-12 | B195: 1171 | C195: 703 | D195: 724 | E195: 744 | F195: 757 | G195: 761 | H195: 766 | I195: 769 | J195: 773 | K195: 774 | L195: 775 | M195: 779 | N195: 779 | O195: 779 | P195: 780 | Q195: 780 | R195: 780 | S195: 780 | T195: 780 | U195: 780 | V195: 780 | W195: 780 | X195: 780 | Y195: 780 | Z195: 780 | AA195: 17
A196: 2024-07-13 | B196: 1097 | C196: 668 | D196: 681 | E196: 690 | F196: 693 | G196: 699 | H196: 700 | I196: 700 | J196: 704 | K196: 708 | L196: 709 | M196: 710 | N196: 715 | O196: 717 | P196: 717 | Q196: 717 | R196: 717 | S196: 717 | T196: 718 | U196: 719 | V196: 719 | W196: 719 | X196: 719 | Y196: 719 | Z196: 719 | AA196: 32
A197: 2024-07-14 | B197: 1112 | C197: 713 | D197: 716 | E197: 728 | F197: 734 | G197: 735 | H197: 739 | I197: 739 | J197: 739 | K197: 739 | L197: 739 | M197: 739 | N197: 740 | O197: 740 | P197: 740 | Q197: 740 | R197: 740 | S197: 740 | T197: 740 | U197: 740 | V197: 740 | W197: 740 | X197: 740 | Y197: 741 | Z197: 742 | AA197: 37
A198: 2024-07-15 | B198: 1152 | C198: 727 | D198: 736 | E198: 747 | F198: 749 | G198: 755 | H198: 760 | I198: 763 | J198: 767 | K198: 769 | L198: 777 | M198: 783 | N198: 785 | O198: 787 | P198: 788 | Q198: 789 | R198: 790 | S198: 790 | T198: 792 | U198: 793 | V198: 793 | W198: 795 | X198: 795 | Y198: 800 | Z198: 801 | AA198: 20
A199: 2024-07-16 | B199: 1056 | C199: 572 | D199: 591 | E199: 605 | F199: 612 | G199: 617 | H199: 621 | I199: 624 | J199: 636 | K199: 640 | L199: 646 | M199: 654 | N199: 659 | O199: 673 | P199: 679 | Q199: 682 | R199: 686 | S199: 688 | T199: 689 | U199: 689 | V199: 693 | W199: 693 | X199: 693 | Y199: 693 | Z199: 693 | AA199: 11
A200: 2024-07-17 | B200: 1122 | C200: 640 | D200: 678 | E200: 685 | F200: 699 | G200: 708 | H200: 720 | I200: 726 | J200: 741 | K200: 746 | L200: 755 | M200: 768 | N200: 774 | O200: 778 | P200: 785 | Q200: 788 | R200: 791 | S200: 791 | T200: 792 | U200: 796 | V200: 796 | W200: 797 | X200: 798 | Y200: 798 | Z200: 798 | AA200: 5
... 664 more rows

Sheet 验单-提单
A1: 验单时间 | B1: 非补发子订单数 | C1: 1hour | D1: 2hour | E1: 3hour | F1: 4hour | G1: 5hour | H1: 6hour | I1: 7hour | J1: 8hour | K1: 9hour | L1: 10hour | M1: 11hour | N1: 12hour | O1: 13hour | P1: 14hour | Q1: 15hour | R1: 16hour | S1: 17hour | T1: 18hour | U1: 19hour | V1: 20hour | W1: 21hour | X1: 22hour | Y1: 23hour | Z1: 24hour | AA1: >24hour
A2: 2024-01-01 | B2: 602 | C2: 441 | D2: 441 | E2: 475 | F2: 479 | G2: 498 | H2: 508 | I2: 523 | J2: 532 | K2: 542 | L2: 545 | M2: 550 | N2: 560 | O2: 570 | P2: 575 | Q2: 580 | R2: 589 | S2: 590 | T2: 590 | U2: 590 | V2: 590 | W2: 590 | X2: 590 | Y2: 590 | Z2: 590 | AA2: 8
A3: 2024-01-02 | B3: 915 | C3: 652 | D3: 721 | E3: 738 | F3: 754 | G3: 760 | H3: 782 | I3: 806 | J3: 821 | K3: 836 | L3: 852 | M3: 862 | N3: 870 | O3: 878 | P3: 885 | Q3: 889 | R3: 889 | S3: 892 | T3: 892 | U3: 892 | V3: 892 | W3: 892 | X3: 892 | Y3: 892 | Z3: 892 | AA3: 18
A4: 2024-01-03 | B4: 813 | C4: 545 | D4: 607 | E4: 616 | F4: 637 | G4: 653 | H4: 665 | I4: 678 | J4: 690 | K4: 704 | L4: 708 | M4: 717 | N4: 721 | O4: 730 | P4: 737 | Q4: 747 | R4: 765 | S4: 775 | T4: 780 | U4: 783 | V4: 783 | W4: 783 | X4: 783 | Y4: 783 | Z4: 783 | AA4: 22
A5: 2024-01-04 | B5: 755 | C5: 496 | D5: 538 | E5: 549 | F5: 552 | G5: 558 | H5: 571 | I5: 589 | J5: 618 | K5: 632 | L5: 669 | M5: 682 | N5: 694 | O5: 700 | P5: 704 | Q5: 711 | R5: 740 | S5: 743 | T5: 743 | U5: 743 | V5: 743 | W5: 743 | X5: 743 | Y5: 743 | Z5: 743 | AA5: 11
A6: 2024-01-05 | B6: 696 | C6: 508 | D6: 542 | E6: 546 | F6: 563 | G6: 572 | H6: 575 | I6: 584 | J6: 601 | K6: 613 | L6: 633 | M6: 643 | N6: 659 | O6: 660 | P6: 665 | Q6: 669 | R6: 669 | S6: 669 | T6: 669 | U6: 669 | V6: 669 | W6: 669 | X6: 669 | Y6: 669 | Z6: 669 | AA6: 23
A7: 2024-01-06 | B7: 643 | C7: 402 | D7: 426 | E7: 467 | F7: 488 | G7: 500 | H7: 513 | I7: 521 | J7: 540 | K7: 555 | L7: 561 | M7: 563 | N7: 577 | O7: 587 | P7: 592 | Q7: 600 | R7: 607 | S7: 613 | T7: 622 | U7: 622 | V7: 622 | W7: 622 | X7: 622 | Y7: 622 | Z7: 622 | AA7: 19
A8: 2024-01-07 | B8: 743 | C8: 538 | D8: 566 | E8: 570 | F8: 587 | G8: 600 | H8: 611 | I8: 627 | J8: 654 | K8: 662 | L8: 665 | M8: 671 | N8: 692 | O8: 701 | P8: 703 | Q8: 720 | R8: 723 | S8: 723 | T8: 723 | U8: 723 | V8: 723 | W8: 723 | X8: 723 | Y8: 723 | Z8: 723 | AA8: 20
A9: 2024-01-08 | B9: 962 | C9: 680 | D9: 735 | E9: 746 | F9: 759 | G9: 782 | H9: 795 | I9: 807 | J9: 813 | K9: 839 | L9: 871 | M9: 876 | N9: 882 | O9: 895 | P9: 905 | Q9: 919 | R9: 931 | S9: 931 | T9: 931 | U9: 931 | V9: 931 | W9: 931 | X9: 931 | Y9: 931 | Z9: 933 | AA9: 25
A10: 2024-01-09 | B10: 595 | C10: 437 | D10: 450 | E10: 465 | F10: 475 | G10: 485 | H10: 493 | I10: 509 | J10: 541 | K10: 541 | L10: 549 | M10: 559 | N10: 570 | O10: 578 | P10: 581 | Q10: 583 | R10: 585 | S10: 585 | T10: 585 | U10: 585 | V10: 585 | W10: 585 | X10: 585 | Y10: 585 | Z10: 585 | AA10: 7
A11: 2024-01-10 | B11: 644 | C11: 477 | D11: 491 | E11: 505 | F11: 514 | G11: 548 | H11: 552 | I11: 572 | J11: 579 | K11: 583 | L11: 593 | M11: 610 | N11: 621 | O11: 624 | P11: 632 | Q11: 635 | R11: 636 | S11: 638 | T11: 638 | U11: 638 | V11: 638 | W11: 638 | X11: 638 | Y11: 638 | Z11: 638 | AA11: 4
A12: 2024-01-11 | B12: 596 | C12: 429 | D12: 451 | E12: 458 | F12: 473 | G12: 483 | H12: 486 | I12: 496 | J12: 508 | K12: 514 | L12: 528 | M12: 559 | N12: 563 | O12: 566 | P12: 572 | Q12: 575 | R12: 576 | S12: 576 | T12: 576 | U12: 576 | V12: 576 | W12: 576 | X12: 576 | Y12: 576 | Z12: 578 | AA12: 12
A13: 2024-01-12 | B13: 543 | C13: 347 | D13: 401 | E13: 412 | F13: 422 | G13: 432 | H13: 434 | I13: 449 | J13: 455 | K13: 468 | L13: 484 | M13: 496 | N13: 502 | O13: 518 | P13: 519 | Q13: 521 | R13: 521 | S13: 521 | T13: 522 | U13: 522 | V13: 522 | W13: 522 | X13: 522 | Y13: 522 | Z13: 522 | AA13: 17
A14: 2024-01-13 | B14: 523 | C14: 351 | D14: 388 | E14: 406 | F14: 416 | G14: 421 | H14: 431 | I14: 435 | J14: 442 | K14: 450 | L14: 450 | M14: 453 | N14: 460 | O14: 470 | P14: 483 | Q14: 495 | R14: 496 | S14: 500 | T14: 500 | U14: 500 | V14: 500 | W14: 500 | X14: 500 | Y14: 500 | Z14: 500 | AA14: 21
A15: 2024-01-14 | B15: 610 | C15: 444 | D15: 462 | E15: 475 | F15: 493 | G15: 502 | H15: 514 | I15: 526 | J15: 527 | K15: 537 | L15: 554 | M15: 565 | N15: 569 | O15: 571 | P15: 574 | Q15: 581 | R15: 585 | S15: 585 | T15: 587 | U15: 587 | V15: 587 | W15: 587 | X15: 588 | Y15: 588 | Z15: 588 | AA15: 18
A16: 2024-01-15 | B16: 898 | C16: 653 | D16: 693 | E16: 703 | F16: 717 | G16: 734 | H16: 745 | I16: 766 | J16: 789 | K16: 795 | L16: 804 | M16: 805 | N16: 821 | O16: 830 | P16: 839 | Q16: 851 | R16: 861 | S16: 861 | T16: 861 | U16: 861 | V16: 861 | W16: 861 | X16: 861 | Y16: 861 | Z16: 861 | AA16: 31
A17: 2024-01-16 | B17: 816 | C17: 606 | D17: 624 | E17: 632 | F17: 646 | G17: 678 | H17: 697 | I17: 719 | J17: 724 | K17: 726 | L17: 738 | M17: 753 | N17: 767 | O17: 770 | P17: 776 | Q17: 791 | R17: 798 | S17: 798 | T17: 798 | U17: 798 | V17: 798 | W17: 798 | X17: 798 | Y17: 798 | Z17: 798 | AA17: 17
A18: 2024-01-17 | B18: 705 | C18: 536 | D18: 542 | E18: 570 | F18: 584 | G18: 601 | H18: 611 | I18: 615 | J18: 620 | K18: 627 | L18: 647 | M18: 655 | N18: 667 | O18: 669 | P18: 674 | Q18: 678 | R18: 685 | S18: 685 | T18: 685 | U18: 685 | V18: 685 | W18: 685 | X18: 685 | Y18: 685 | Z18: 685 | AA18: 15
A19: 2024-01-18 | B19: 659 | C19: 430 | D19: 436 | E19: 455 | F19: 479 | G19: 497 | H19: 519 | I19: 535 | J19: 552 | K19: 561 | L19: 585 | M19: 623 | N19: 632 | O19: 635 | P19: 636 | Q19: 644 | R19: 644 | S19: 644 | T19: 644 | U19: 644 | V19: 644 | W19: 644 | X19: 644 | Y19: 644 | Z19: 644 | AA19: 9
A20: 2024-01-19 | B20: 596 | C20: 446 | D20: 458 | E20: 468 | F20: 480 | G20: 493 | H20: 501 | I20: 514 | J20: 526 | K20: 535 | L20: 548 | M20: 556 | N20: 563 | O20: 571 | P20: 578 | Q20: 579 | R20: 579 | S20: 579 | T20: 579 | U20: 579 | V20: 579 | W20: 579 | X20: 579 | Y20: 579 | Z20: 579 | AA20: 16
A21: 2024-01-20 | B21: 602 | C21: 380 | D21: 418 | E21: 428 | F21: 449 | G21: 470 | H21: 481 | I21: 494 | J21: 526 | K21: 537 | L21: 543 | M21: 552 | N21: 555 | O21: 560 | P21: 565 | Q21: 575 | R21: 580 | S21: 581 | T21: 581 | U21: 581 | V21: 581 | W21: 581 | X21: 581 | Y21: 581 | Z21: 581 | AA21: 15
A22: 2024-01-21 | B22: 753 | C22: 515 | D22: 538 | E22: 538 | F22: 549 | G22: 560 | H22: 584 | I22: 620 | J22: 629 | K22: 643 | L22: 652 | M22: 670 | N22: 671 | O22: 687 | P22: 693 | Q22: 699 | R22: 716 | S22: 716 | T22: 716 | U22: 716 | V22: 716 | W22: 720 | X22: 720 | Y22: 720 | Z22: 720 | AA22: 31
A23: 2024-01-22 | B23: 935 | C23: 681 | D23: 730 | E23: 758 | F23: 758 | G23: 767 | H23: 790 | I23: 813 | J23: 822 | K23: 836 | L23: 842 | M23: 853 | N23: 871 | O23: 883 | P23: 891 | Q23: 908 | R23: 909 | S23: 909 | T23: 909 | U23: 909 | V23: 909 | W23: 911 | X23: 911 | Y23: 911 | Z23: 911 | AA23: 17
A24: 2024-01-23 | B24: 690 | C24: 533 | D24: 565 | E24: 575 | F24: 592 | G24: 604 | H24: 625 | I24: 640 | J24: 642 | K24: 654 | L24: 664 | M24: 670 | N24: 676 | O24: 681 | P24: 681 | Q24: 683 | R24: 683 | S24: 683 | T24: 683 | U24: 683 | V24: 683 | W24: 683 | X24: 683 | Y24: 683 | Z24: 683 | AA24: 7
A25: 2024-01-24 | B25: 612 | C25: 467 | D25: 472 | E25: 484 | F25: 488 | G25: 502 | H25: 515 | I25: 521 | J25: 532 | K25: 541 | L25: 544 | M25: 555 | N25: 562 | O25: 568 | P25: 580 | Q25: 584 | R25: 590 | S25: 590 | T25: 590 | U25: 590 | V25: 590 | W25: 590 | X25: 590 | Y25: 590 | Z25: 590 | AA25: 20
A26: 2024-01-25 | B26: 623 | C26: 434 | D26: 449 | E26: 459 | F26: 471 | G26: 501 | H26: 519 | I26: 533 | J26: 536 | K26: 547 | L26: 567 | M26: 575 | N26: 581 | O26: 586 | P26: 590 | Q26: 598 | R26: 602 | S26: 602 | T26: 602 | U26: 602 | V26: 602 | W26: 602 | X26: 602 | Y26: 602 | Z26: 602 | AA26: 16
A27: 2024-01-26 | B27: 662 | C27: 456 | D27: 475 | E27: 503 | F27: 508 | G27: 518 | H27: 540 | I27: 557 | J27: 564 | K27: 564 | L27: 608 | M27: 625 | N27: 633 | O27: 637 | P27: 639 | Q27: 649 | R27: 649 | S27: 649 | T27: 649 | U27: 649 | V27: 649 | W27: 649 | X27: 649 | Y27: 649 | Z27: 649 | AA27: 11
A28: 2024-01-27 | B28: 665 | C28: 421 | D28: 468 | E28: 483 | F28: 495 | G28: 511 | H28: 516 | I28: 528 | J28: 537 | K28: 561 | L28: 564 | M28: 590 | N28: 609 | O28: 615 | P28: 615 | Q28: 628 | R28: 640 | S28: 645 | T28: 650 | U28: 650 | V28: 650 | W28: 650 | X28: 650 | Y28: 650 | Z28: 650 | AA28: 10
A29: 2024-01-28 | B29: 689 | C29: 455 | D29: 470 | E29: 478 | F29: 504 | G29: 514 | H29: 516 | I29: 519 | J29: 548 | K29: 556 | L29: 566 | M29: 577 | N29: 609 | O29: 637 | P29: 639 | Q29: 652 | R29: 656 | S29: 669 | T29: 669 | U29: 669 | V29: 669 | W29: 669 | X29: 669 | Y29: 669 | Z29: 669 | AA29: 19
A30: 2024-01-29 | B30: 853 | C30: 601 | D30: 641 | E30: 660 | F30: 693 | G30: 708 | H30: 729 | I30: 740 | J30: 745 | K30: 766 | L30: 775 | M30: 793 | N30: 811 | O30: 820 | P30: 826 | Q30: 829 | R30: 832 | S30: 832 | T30: 832 | U30: 832 | V30: 832 | W30: 832 | X30: 832 | Y30: 832 | Z30: 832 | AA30: 15
A31: 2024-01-30 | B31: 921 | C31: 677 | D31: 698 | E31: 712 | F31: 716 | G31: 735 | H31: 744 | I31: 759 | J31: 767 | K31: 780 | L31: 794 | M31: 795 | N31: 836 | O31: 855 | P31: 862 | Q31: 868 | R31: 883 | S31: 886 | T31: 887 | U31: 887 | V31: 887 | W31: 887 | X31: 887 | Y31: 887 | Z31: 887 | AA31: 22
A32: 2024-01-31 | B32: 916 | C32: 633 | D32: 664 | E32: 679 | F32: 704 | G32: 737 | H32: 757 | I32: 779 | J32: 786 | K32: 796 | L32: 813 | M32: 842 | N32: 852 | O32: 856 | P32: 864 | Q32: 872 | R32: 878 | S32: 885 | T32: 885 | U32: 885 | V32: 885 | W32: 885 | X32: 885 | Y32: 886 | Z32: 886 | AA32: 26
A33: 2024-02-01 | B33: 913 | C33: 624 | D33: 651 | E33: 664 | F33: 686 | G33: 712 | H33: 718 | I33: 720 | J33: 730 | K33: 752 | L33: 782 | M33: 793 | N33: 799 | O33: 808 | P33: 839 | Q33: 851 | R33: 866 | S33: 867 | T33: 867 | U33: 867 | V33: 867 | W33: 867 | X33: 867 | Y33: 867 | Z33: 867 | AA33: 44
A34: 2024-02-02 | B34: 921 | C34: 648 | D34: 687 | E34: 699 | F34: 720 | G34: 736 | H34: 750 | I34: 757 | J34: 777 | K34: 788 | L34: 804 | M34: 804 | N34: 804 | O34: 804 | P34: 804 | Q34: 804 | R34: 804 | S34: 804 | T34: 804 | U34: 804 | V34: 804 | W34: 804 | X34: 804 | Y34: 804 | Z34: 804 | AA34: 113
A35: 2024-02-03 | B35: 896 | C35: 496 | D35: 496 | E35: 496 | F35: 496 | G35: 496 | H35: 496 | I35: 496 | J35: 496 | K35: 496 | L35: 499 | M35: 505 | N35: 530 | O35: 573 | P35: 595 | Q35: 603 | R35: 609 | S35: 614 | T35: 621 | U35: 623 | V35: 635 | W35: 643 | X35: 654 | Y35: 660 | Z35: 666 | AA35: 221
A36: 2024-02-04 | B36: 1141 | C36: 669 | D36: 779 | E36: 830 | F36: 854 | G36: 898 | H36: 930 | I36: 952 | J36: 970 | K36: 989 | L36: 997 | M36: 1003 | N36: 1032 | O36: 1049 | P36: 1063 | Q36: 1073 | R36: 1084 | S36: 1091 | T36: 1091 | U36: 1091 | V36: 1091 | W36: 1091 | X36: 1091 | Y36: 1091 | Z36: 1092 | AA36: 44
A37: 2024-02-05 | B37: 1213 | C37: 837 | D37: 875 | E37: 934 | F37: 966 | G37: 979 | H37: 999 | I37: 1019 | J37: 1043 | K37: 1064 | L37: 1083 | M37: 1087 | N37: 1106 | O37: 1114 | P37: 1133 | Q37: 1147 | R37: 1158 | S37: 1159 | T37: 1159 | U37: 1159 | V37: 1159 | W37: 1159 | X37: 1159 | Y37: 1159 | Z37: 1159 | AA37: 49
A38: 2024-02-06 | B38: 1001 | C38: 736 | D38: 792 | E38: 812 | F38: 828 | G38: 856 | H38: 875 | I38: 889 | J38: 912 | K38: 922 | L38: 936 | M38: 953 | N38: 968 | O38: 970 | P38: 973 | Q38: 979 | R38: 982 | S38: 982 | T38: 983 | U38: 983 | V38: 983 | W38: 983 | X38: 983 | Y38: 983 | Z38: 983 | AA38: 15
A39: 2024-02-07 | B39: 942 | C39: 678 | D39: 706 | E39: 713 | F39: 728 | G39: 782 | H39: 792 | I39: 802 | J39: 819 | K39: 830 | L39: 845 | M39: 846 | N39: 854 | O39: 871 | P39: 886 | Q39: 900 | R39: 908 | S39: 913 | T39: 913 | U39: 913 | V39: 913 | W39: 913 | X39: 913 | Y39: 913 | Z39: 913 | AA39: 26
A40: 2024-02-08 | B40: 934 | C40: 553 | D40: 594 | E40: 597 | F40: 651 | G40: 677 | H40: 694 | I40: 710 | J40: 712 | K40: 719 | L40: 751 | M40: 760 | N40: 760 | O40: 760 | P40: 760 | Q40: 760 | R40: 760 | S40: 760 | T40: 760 | U40: 760 | V40: 760 | W40: 760 | X40: 760 | Y40: 760 | Z40: 760 | AA40: 166
A41: 2024-02-09 | B41: 767 | C41: 477 | D41: 477 | E41: 477 | F41: 477 | G41: 477 | H41: 477 | I41: 477 | J41: 477 | K41: 477 | L41: 477 | M41: 477 | N41: 477 | O41: 477 | P41: 477 | Q41: 477 | R41: 477 | S41: 477 | T41: 477 | U41: 477 | V41: 477 | W41: 477 | X41: 477 | Y41: 477 | Z41: 477 | AA41: 275
A42: 2024-02-10 | B42: 722 | C42: 418 | D42: 418 | E42: 418 | F42: 418 | G42: 418 | H42: 418 | I42: 418 | J42: 418 | K42: 418 | L42: 418 | M42: 418 | N42: 418 | O42: 418 | P42: 418 | Q42: 420 | R42: 425 | S42: 438 | T42: 446 | U42: 457 | V42: 469 | W42: 481 | X42: 487 | Y42: 491 | Z42: 504 | AA42: 212
A43: 2024-02-11 | B43: 811 | C43: 512 | D43: 522 | E43: 542 | F43: 554 | G43: 567 | H43: 579 | I43: 591 | J43: 600 | K43: 608 | L43: 611 | M43: 611 | N43: 623 | O43: 639 | P43: 664 | Q43: 679 | R43: 681 | S43: 681 | T43: 681 | U43: 681 | V43: 681 | W43: 681 | X43: 681 | Y43: 681 | Z43: 681 | AA43: 122
A44: 2024-02-12 | B44: 1190 | C44: 557 | D44: 557 | E44: 557 | F44: 557 | G44: 557 | H44: 557 | I44: 557 | J44: 557 | K44: 557 | L44: 557 | M44: 557 | N44: 557 | O44: 557 | P44: 557 | Q44: 557 | R44: 557 | S44: 557 | T44: 557 | U44: 557 | V44: 557 | W44: 557 | X44: 557 | Y44: 557 | Z44: 557 | AA44: 616
A45: 2024-02-13 | B45: 909 | C45: 516 | D45: 516 | E45: 516 | F45: 516 | G45: 516 | H45: 516 | I45: 516 | J45: 516 | K45: 516 | L45: 516 | M45: 516 | N45: 516 | O45: 516 | P45: 516 | Q45: 516 | R45: 516 | S45: 516 | T45: 516 | U45: 516 | V45: 516 | W45: 516 | X45: 516 | Y45: 516 | Z45: 516 | AA45: 373
A46: 2024-02-14 | B46: 757 | C46: 482 | D46: 482 | E46: 482 | F46: 482 | G46: 482 | H46: 482 | I46: 482 | J46: 482 | K46: 482 | L46: 482 | M46: 482 | N46: 482 | O46: 482 | P46: 482 | Q46: 482 | R46: 482 | S46: 482 | T46: 482 | U46: 482 | V46: 482 | W46: 482 | X46: 482 | Y46: 482 | Z46: 482 | AA46: 263
A47: 2024-02-15 | B47: 745 | C47: 405 | D47: 405 | E47: 405 | F47: 405 | G47: 405 | H47: 405 | I47: 405 | J47: 405 | K47: 405 | L47: 405 | M47: 405 | N47: 405 | O47: 405 | P47: 405 | Q47: 405 | R47: 405 | S47: 405 | T47: 405 | U47: 405 | V47: 405 | W47: 405 | X47: 405 | Y47: 405 | Z47: 405 | AA47: 333
A48: 2024-02-16 | B48: 934 | C48: 455 | D48: 455 | E48: 455 | F48: 455 | G48: 455 | H48: 455 | I48: 455 | J48: 455 | K48: 455 | L48: 455 | M48: 455 | N48: 456 | O48: 458 | P48: 458 | Q48: 458 | R48: 458 | S48: 458 | T48: 462 | U48: 462 | V48: 462 | W48: 474 | X48: 474 | Y48: 475 | Z48: 475 | AA48: 456
A49: 2024-02-17 | B49: 813 | C49: 450 | D49: 473 | E49: 502 | F49: 525 | G49: 541 | H49: 554 | I49: 557 | J49: 558 | K49: 560 | L49: 564 | M49: 574 | N49: 581 | O49: 589 | P49: 598 | Q49: 604 | R49: 612 | S49: 618 | T49: 629 | U49: 637 | V49: 657 | W49: 681 | X49: 686 | Y49: 694 | Z49: 716 | AA49: 91
A50: 2024-02-18 | B50: 1151 | C50: 716 | D50: 771 | E50: 808 | F50: 840 | G50: 898 | H50: 925 | I50: 965 | J50: 1007 | K50: 1032 | L50: 1047 | M50: 1060 | N50: 1079 | O50: 1092 | P50: 1106 | Q50: 1119 | R50: 1120 | S50: 1120 | T50: 1120 | U50: 1120 | V50: 1120 | W50: 1120 | X50: 1120 | Y50: 1120 | Z50: 1120 | AA50: 24
A51: 2024-02-19 | B51: 1062 | C51: 675 | D51: 728 | E51: 767 | F51: 790 | G51: 795 | H51: 827 | I51: 839 | J51: 858 | K51: 880 | L51: 883 | M51: 894 | N51: 939 | O51: 957 | P51: 1003 | Q51: 1028 | R51: 1037 | S51: 1038 | T51: 1039 | U51: 1039 | V51: 1039 | W51: 1039 | X51: 1039 | Y51: 1039 | Z51: 1039 | AA51: 19
A52: 2024-02-20 | B52: 946 | C52: 632 | D52: 701 | E52: 718 | F52: 740 | G52: 755 | H52: 772 | I52: 785 | J52: 789 | K52: 814 | L52: 841 | M52: 868 | N52: 882 | O52: 908 | P52: 912 | Q52: 919 | R52: 924 | S52: 929 | T52: 929 | U52: 929 | V52: 929 | W52: 929 | X52: 929 | Y52: 929 | Z52: 929 | AA52: 15
A53: 2024-02-21 | B53: 758 | C53: 533 | D53: 563 | E53: 622 | F53: 632 | G53: 639 | H53: 650 | I53: 657 | J53: 667 | K53: 677 | L53: 695 | M53: 699 | N53: 711 | O53: 717 | P53: 721 | Q53: 730 | R53: 743 | S53: 743 | T53: 743 | U53: 743 | V53: 743 | W53: 743 | X53: 743 | Y53: 745 | Z53: 745 | AA53: 6
A54: 2024-02-22 | B54: 757 | C54: 472 | D54: 529 | E54: 557 | F54: 593 | G54: 628 | H54: 641 | I54: 651 | J54: 660 | K54: 673 | L54: 677 | M54: 726 | N54: 726 | O54: 729 | P54: 731 | Q54: 734 | R54: 734 | S54: 734 | T54: 734 | U54: 734 | V54: 734 | W54: 734 | X54: 734 | Y54: 734 | Z54: 734 | AA54: 16
A55: 2024-02-23 | B55: 801 | C55: 419 | D55: 485 | E55: 526 | F55: 533 | G55: 539 | H55: 552 | I55: 560 | J55: 568 | K55: 625 | L55: 667 | M55: 668 | N55: 668 | O55: 669 | P55: 670 | Q55: 687 | R55: 696 | S55: 712 | T55: 733 | U55: 742 | V55: 745 | W55: 758 | X55: 770 | Y55: 772 | Z55: 772 | AA55: 23
A56: 2024-02-24 | B56: 832 | C56: 504 | D56: 514 | E56: 542 | F56: 555 | G56: 573 | H56: 578 | I56: 608 | J56: 616 | K56: 633 | L56: 648 | M56: 694 | N56: 723 | O56: 758 | P56: 774 | Q56: 783 | R56: 788 | S56: 789 | T56: 790 | U56: 790 | V56: 790 | W56: 790 | X56: 792 | Y56: 792 | Z56: 794 | AA56: 33
A57: 2024-02-25 | B57: 867 | C57: 555 | D57: 624 | E57: 677 | F57: 710 | G57: 730 | H57: 737 | I57: 743 | J57: 755 | K57: 764 | L57: 776 | M57: 793 | N57: 801 | O57: 813 | P57: 819 | Q57: 842 | R57: 842 | S57: 842 | T57: 842 | U57: 842 | V57: 842 | W57: 842 | X57: 843 | Y57: 843 | Z57: 843 | AA57: 18
A58: 2024-02-26 | B58: 1009 | C58: 653 | D58: 738 | E58: 774 | F58: 802 | G58: 854 | H58: 862 | I58: 892 | J58: 901 | K58: 916 | L58: 929 | M58: 953 | N58: 970 | O58: 979 | P58: 987 | Q58: 997 | R58: 997 | S58: 997 | T58: 997 | U58: 997 | V58: 997 | W58: 997 | X58: 997 | Y58: 997 | Z58: 997 | AA58: 6
A59: 2024-02-27 | B59: 871 | C59: 637 | D59: 695 | E59: 702 | F59: 726 | G59: 729 | H59: 738 | I59: 751 | J59: 771 | K59: 789 | L59: 798 | M59: 810 | N59: 816 | O59: 821 | P59: 841 | Q59: 851 | R59: 854 | S59: 854 | T59: 854 | U59: 854 | V59: 854 | W59: 855 | X59: 855 | Y59: 855 | Z59: 855 | AA59: 9
A60: 2024-02-28 | B60: 915 | C60: 652 | D60: 743 | E60: 751 | F60: 756 | G60: 777 | H60: 790 | I60: 808 | J60: 823 | K60: 839 | L60: 853 | M60: 866 | N60: 869 | O60: 873 | P60: 888 | Q60: 896 | R60: 903 | S60: 904 | T60: 904 | U60: 904 | V60: 904 | W60: 904 | X60: 904 | Y60: 904 | Z60: 904 | AA60: 8
A61: 2024-02-29 | B61: 822 | C61: 562 | D61: 647 | E61: 660 | F61: 688 | G61: 696 | H61: 711 | I61: 725 | J61: 735 | K61: 744 | L61: 750 | M61: 757 | N61: 768 | O61: 777 | P61: 784 | Q61: 788 | R61: 811 | S61: 811 | T61: 811 | U61: 811 | V61: 812 | W61: 812 | X61: 812 | Y61: 813 | Z61: 815 | AA61: 5
A62: 2024-03-01 | B62: 775 | C62: 571 | D62: 606 | E62: 612 | F62: 616 | G62: 632 | H62: 645 | I62: 658 | J62: 676 | K62: 685 | L62: 703 | M62: 717 | N62: 722 | O62: 730 | P62: 744 | Q62: 754 | R62: 754 | S62: 755 | T62: 755 | U62: 756 | V62: 756 | W62: 756 | X62: 756 | Y62: 756 | Z62: 756 | AA62: 13
A63: 2024-03-02 | B63: 782 | C63: 469 | D63: 512 | E63: 534 | F63: 558 | G63: 570 | H63: 586 | I63: 598 | J63: 611 | K63: 625 | L63: 628 | M63: 647 | N63: 664 | O63: 683 | P63: 695 | Q63: 700 | R63: 713 | S63: 724 | T63: 767 | U63: 767 | V63: 767 | W63: 767 | X63: 767 | Y63: 767 | Z63: 767 | AA63: 10
A64: 2024-03-03 | B64: 896 | C64: 640 | D64: 695 | E64: 695 | F64: 698 | G64: 723 | H64: 743 | I64: 767 | J64: 789 | K64: 796 | L64: 809 | M64: 822 | N64: 824 | O64: 830 | P64: 849 | Q64: 870 | R64: 878 | S64: 878 | T64: 878 | U64: 878 | V64: 878 | W64: 879 | X64: 879 | Y64: 879 | Z64: 879 | AA64: 15
A65: 2024-03-04 | B65: 1112 | C65: 749 | D65: 795 | E65: 830 | F65: 847 | G65: 876 | H65: 896 | I65: 910 | J65: 925 | K65: 949 | L65: 969 | M65: 987 | N65: 1003 | O65: 1012 | P65: 1047 | Q65: 1061 | R65: 1087 | S65: 1091 | T65: 1091 | U65: 1091 | V65: 1091 | W65: 1091 | X65: 1091 | Y65: 1091 | Z65: 1091 | AA65: 13
A66: 2024-03-05 | B66: 896 | C66: 549 | D66: 645 | E66: 670 | F66: 699 | G66: 726 | H66: 734 | I66: 761 | J66: 774 | K66: 790 | L66: 802 | M66: 816 | N66: 827 | O66: 838 | P66: 845 | Q66: 863 | R66: 867 | S66: 867 | T66: 867 | U66: 867 | V66: 867 | W66: 867 | X66: 867 | Y66: 867 | Z66: 867 | AA66: 25
A67: 2024-03-06 | B67: 859 | C67: 587 | D67: 661 | E67: 688 | F67: 708 | G67: 717 | H67: 734 | I67: 753 | J67: 764 | K67: 774 | L67: 785 | M67: 797 | N67: 804 | O67: 816 | P67: 825 | Q67: 839 | R67: 845 | S67: 846 | T67: 846 | U67: 846 | V67: 846 | W67: 846 | X67: 846 | Y67: 847 | Z67: 847 | AA67: 11
A68: 2024-03-07 | B68: 931 | C68: 631 | D68: 705 | E68: 756 | F68: 771 | G68: 777 | H68: 786 | I68: 806 | J68: 823 | K68: 843 | L68: 859 | M68: 865 | N68: 878 | O68: 887 | P68: 892 | Q68: 899 | R68: 912 | S68: 914 | T68: 914 | U68: 914 | V68: 914 | W68: 914 | X68: 914 | Y68: 914 | Z68: 914 | AA68: 14
A69: 2024-03-08 | B69: 811 | C69: 532 | D69: 593 | E69: 611 | F69: 618 | G69: 629 | H69: 646 | I69: 662 | J69: 678 | K69: 693 | L69: 727 | M69: 736 | N69: 764 | O69: 775 | P69: 784 | Q69: 792 | R69: 792 | S69: 792 | T69: 793 | U69: 793 | V69: 793 | W69: 793 | X69: 793 | Y69: 793 | Z69: 793 | AA69: 15
A70: 2024-03-09 | B70: 712 | C70: 432 | D70: 459 | E70: 499 | F70: 532 | G70: 552 | H70: 581 | I70: 608 | J70: 615 | K70: 629 | L70: 633 | M70: 634 | N70: 656 | O70: 669 | P70: 673 | Q70: 677 | R70: 683 | S70: 689 | T70: 693 | U70: 693 | V70: 693 | W70: 693 | X70: 693 | Y70: 693 | Z70: 693 | AA70: 19
A71: 2024-03-10 | B71: 793 | C71: 562 | D71: 617 | E71: 627 | F71: 638 | G71: 646 | H71: 668 | I71: 685 | J71: 705 | K71: 712 | L71: 725 | M71: 730 | N71: 739 | O71: 762 | P71: 765 | Q71: 775 | R71: 781 | S71: 781 | T71: 781 | U71: 781 | V71: 781 | W71: 781 | X71: 781 | Y71: 781 | Z71: 781 | AA71: 8
A72: 2024-03-11 | B72: 948 | C72: 574 | D72: 689 | E72: 702 | F72: 762 | G72: 774 | H72: 784 | I72: 806 | J72: 826 | K72: 853 | L72: 872 | M72: 877 | N72: 886 | O72: 906 | P72: 915 | Q72: 922 | R72: 925 | S72: 926 | T72: 926 | U72: 926 | V72: 926 | W72: 926 | X72: 926 | Y72: 926 | Z72: 926 | AA72: 12
A73: 2024-03-12 | B73: 861 | C73: 546 | D73: 607 | E73: 628 | F73: 676 | G73: 709 | H73: 722 | I73: 732 | J73: 749 | K73: 766 | L73: 780 | M73: 784 | N73: 791 | O73: 805 | P73: 818 | Q73: 831 | R73: 834 | S73: 835 | T73: 835 | U73: 835 | V73: 835 | W73: 835 | X73: 835 | Y73: 835 | Z73: 835 | AA73: 22
A74: 2024-03-13 | B74: 716 | C74: 469 | D74: 496 | E74: 536 | F74: 551 | G74: 561 | H74: 575 | I74: 585 | J74: 603 | K74: 618 | L74: 643 | M74: 660 | N74: 660 | O74: 660 | P74: 667 | Q74: 679 | R74: 694 | S74: 700 | T74: 701 | U74: 701 | V74: 701 | W74: 701 | X74: 701 | Y74: 701 | Z74: 701 | AA74: 10
A75: 2024-03-14 | B75: 648 | C75: 455 | D75: 490 | E75: 519 | F75: 528 | G75: 534 | H75: 560 | I75: 574 | J75: 586 | K75: 598 | L75: 601 | M75: 611 | N75: 624 | O75: 630 | P75: 637 | Q75: 641 | R75: 644 | S75: 644 | T75: 644 | U75: 644 | V75: 644 | W75: 644 | X75: 644 | Y75: 644 | Z75: 644 | AA75: 4
A76: 2024-03-15 | B76: 689 | C76: 538 | D76: 559 | E76: 564 | F76: 583 | G76: 592 | H76: 607 | I76: 616 | J76: 620 | K76: 629 | L76: 649 | M76: 659 | N76: 668 | O76: 672 | P76: 675 | Q76: 677 | R76: 677 | S76: 677 | T76: 677 | U76: 677 | V76: 677 | W76: 677 | X76: 677 | Y76: 677 | Z76: 677 | AA76: 8
A77: 2024-03-16 | B77: 649 | C77: 437 | D77: 467 | E77: 486 | F77: 502 | G77: 511 | H77: 529 | I77: 538 | J77: 551 | K77: 559 | L77: 569 | M77: 570 | N77: 580 | O77: 590 | P77: 595 | Q77: 604 | R77: 617 | S77: 629 | T77: 631 | U77: 631 | V77: 631 | W77: 631 | X77: 631 | Y77: 631 | Z77: 631 | AA77: 18
A78: 2024-03-17 | B78: 762 | C78: 562 | D78: 586 | E78: 591 | F78: 615 | G78: 626 | H78: 639 | I78: 650 | J78: 660 | K78: 681 | L78: 695 | M78: 696 | N78: 711 | O78: 718 | P78: 737 | Q78: 744 | R78: 750 | S78: 750 | T78: 750 | U78: 750 | V78: 750 | W78: 750 | X78: 750 | Y78: 750 | Z78: 750 | AA78: 10
A79: 2024-03-18 | B79: 948 | C79: 675 | D79: 734 | E79: 743 | F79: 772 | G79: 784 | H79: 792 | I79: 813 | J79: 854 | K79: 867 | L79: 876 | M79: 901 | N79: 904 | O79: 928 | P79: 931 | Q79: 935 | R79: 938 | S79: 938 | T79: 938 | U79: 938 | V79: 938 | W79: 938 | X79: 938 | Y79: 938 | Z79: 938 | AA79: 5
A80: 2024-03-19 | B80: 749 | C80: 538 | D80: 562 | E80: 584 | F80: 596 | G80: 607 | H80: 612 | I80: 617 | J80: 635 | K80: 670 | L80: 682 | M80: 691 | N80: 699 | O80: 712 | P80: 715 | Q80: 721 | R80: 732 | S80: 732 | T80: 732 | U80: 732 | V80: 733 | W80: 733 | X80: 733 | Y80: 733 | Z80: 733 | AA80: 11
A81: 2024-03-20 | B81: 623 | C81: 412 | D81: 450 | E81: 453 | F81: 465 | G81: 510 | H81: 513 | I81: 521 | J81: 532 | K81: 538 | L81: 559 | M81: 569 | N81: 581 | O81: 583 | P81: 591 | Q81: 596 | R81: 598 | S81: 598 | T81: 598 | U81: 598 | V81: 598 | W81: 598 | X81: 598 | Y81: 598 | Z81: 598 | AA81: 23
A82: 2024-03-21 | B82: 651 | C82: 449 | D82: 485 | E82: 494 | F82: 505 | G82: 518 | H82: 536 | I82: 541 | J82: 550 | K82: 559 | L82: 577 | M82: 599 | N82: 605 | O82: 610 | P82: 615 | Q82: 627 | R82: 631 | S82: 643 | T82: 643 | U82: 643 | V82: 643 | W82: 643 | X82: 643 | Y82: 643 | Z82: 643 | AA82: 3
A83: 2024-03-22 | B83: 618 | C83: 332 | D83: 404 | E83: 404 | F83: 417 | G83: 422 | H83: 454 | I83: 466 | J83: 491 | K83: 511 | L83: 545 | M83: 545 | N83: 545 | O83: 545 | P83: 545 | Q83: 545 | R83: 545 | S83: 545 | T83: 545 | U83: 545 | V83: 545 | W83: 545 | X83: 545 | Y83: 545 | Z83: 545 | AA83: 69
A84: 2024-03-23 | B84: 530 | C84: 268 | D84: 268 | E84: 268 | F84: 268 | G84: 268 | H84: 268 | I84: 268 | J84: 268 | K84: 268 | L84: 268 | M84: 293 | N84: 303 | O84: 309 | P84: 309 | Q84: 322 | R84: 328 | S84: 328 | T84: 332 | U84: 342 | V84: 346 | W84: 352 | X84: 361 | Y84: 370 | Z84: 386 | AA84: 141
A85: 2024-03-24 | B85: 652 | C85: 443 | D85: 472 | E85: 491 | F85: 503 | G85: 517 | H85: 518 | I85: 538 | J85: 555 | K85: 574 | L85: 580 | M85: 594 | N85: 608 | O85: 617 | P85: 625 | Q85: 629 | R85: 635 | S85: 637 | T85: 637 | U85: 637 | V85: 637 | W85: 637 | X85: 637 | Y85: 637 | Z85: 637 | AA85: 10
A86: 2024-03-25 | B86: 795 | C86: 569 | D86: 579 | E86: 597 | F86: 623 | G86: 671 | H86: 687 | I86: 699 | J86: 712 | K86: 720 | L86: 730 | M86: 743 | N86: 751 | O86: 757 | P86: 764 | Q86: 772 | R86: 783 | S86: 784 | T86: 784 | U86: 785 | V86: 785 | W86: 785 | X86: 785 | Y86: 785 | Z86: 785 | AA86: 6
A87: 2024-03-26 | B87: 667 | C87: 426 | D87: 489 | E87: 508 | F87: 516 | G87: 541 | H87: 546 | I87: 564 | J87: 564 | K87: 574 | L87: 590 | M87: 605 | N87: 621 | O87: 623 | P87: 632 | Q87: 646 | R87: 646 | S87: 646 | T87: 646 | U87: 646 | V87: 646 | W87: 646 | X87: 646 | Y87: 646 | Z87: 646 | AA87: 16
A88: 2024-03-27 | B88: 493 | C88: 370 | D88: 377 | E88: 388 | F88: 400 | G88: 410 | H88: 416 | I88: 430 | J88: 444 | K88: 453 | L88: 454 | M88: 460 | N88: 467 | O88: 471 | P88: 478 | Q88: 484 | R88: 487 | S88: 487 | T88: 487 | U88: 487 | V88: 487 | W88: 487 | X88: 487 | Y88: 487 | Z88: 487 | AA88: 2
A89: 2024-03-28 | B89: 583 | C89: 343 | D89: 392 | E89: 396 | F89: 404 | G89: 462 | H89: 467 | I89: 474 | J89: 510 | K89: 522 | L89: 535 | M89: 545 | N89: 545 | O89: 554 | P89: 561 | Q89: 578 | R89: 580 | S89: 580 | T89: 580 | U89: 580 | V89: 580 | W89: 580 | X89: 580 | Y89: 580 | Z89: 580 | AA89: 1
A90: 2024-03-29 | B90: 636 | C90: 409 | D90: 438 | E90: 448 | F90: 473 | G90: 492 | H90: 515 | I90: 533 | J90: 549 | K90: 565 | L90: 587 | M90: 609 | N90: 614 | O90: 617 | P90: 626 | Q90: 627 | R90: 627 | S90: 627 | T90: 627 | U90: 627 | V90: 628 | W90: 628 | X90: 628 | Y90: 628 | Z90: 628 | AA90: 7
A91: 2024-03-30 | B91: 528 | C91: 321 | D91: 342 | E91: 377 | F91: 389 | G91: 402 | H91: 425 | I91: 443 | J91: 451 | K91: 473 | L91: 474 | M91: 486 | N91: 494 | O91: 496 | P91: 499 | Q91: 505 | R91: 513 | S91: 516 | T91: 517 | U91: 517 | V91: 517 | W91: 517 | X91: 517 | Y91: 517 | Z91: 518 | AA91: 7
A92: 2024-03-31 | B92: 543 | C92: 405 | D92: 412 | E92: 420 | F92: 427 | G92: 430 | H92: 443 | I92: 455 | J92: 462 | K92: 469 | L92: 479 | M92: 483 | N92: 494 | O92: 503 | P92: 509 | Q92: 511 | R92: 512 | S92: 512 | T92: 512 | U92: 512 | V92: 512 | W92: 512 | X92: 512 | Y92: 512 | Z92: 512 | AA92: 24
A93: 2024-04-01 | B93: 715 | C93: 532 | D93: 541 | E93: 550 | F93: 564 | G93: 603 | H93: 611 | I93: 621 | J93: 632 | K93: 643 | L93: 662 | M93: 669 | N93: 683 | O93: 689 | P93: 695 | Q93: 697 | R93: 700 | S93: 700 | T93: 700 | U93: 700 | V93: 700 | W93: 700 | X93: 700 | Y93: 700 | Z93: 700 | AA93: 10
A94: 2024-04-02 | B94: 621 | C94: 478 | D94: 498 | E94: 512 | F94: 513 | G94: 520 | H94: 525 | I94: 531 | J94: 537 | K94: 548 | L94: 558 | M94: 566 | N94: 579 | O94: 588 | P94: 592 | Q94: 599 | R94: 604 | S94: 604 | T94: 605 | U94: 605 | V94: 605 | W94: 605 | X94: 605 | Y94: 605 | Z94: 605 | AA94: 12
A95: 2024-04-03 | B95: 679 | C95: 451 | D95: 484 | E95: 496 | F95: 512 | G95: 564 | H95: 565 | I95: 583 | J95: 597 | K95: 607 | L95: 617 | M95: 623 | N95: 634 | O95: 648 | P95: 652 | Q95: 666 | R95: 671 | S95: 671 | T95: 671 | U95: 671 | V95: 671 | W95: 671 | X95: 671 | Y95: 671 | Z95: 671 | AA95: 3
A96: 2024-04-04 | B96: 654 | C96: 414 | D96: 432 | E96: 468 | F96: 481 | G96: 498 | H96: 507 | I96: 512 | J96: 514 | K96: 531 | L96: 552 | M96: 557 | N96: 568 | O96: 608 | P96: 633 | Q96: 642 | R96: 643 | S96: 643 | T96: 643 | U96: 643 | V96: 643 | W96: 643 | X96: 643 | Y96: 643 | Z96: 643 | AA96: 10
A97: 2024-04-05 | B97: 688 | C97: 416 | D97: 432 | E97: 489 | F97: 523 | G97: 535 | H97: 553 | I97: 561 | J97: 587 | K97: 597 | L97: 613 | M97: 616 | N97: 624 | O97: 642 | P97: 646 | Q97: 676 | R97: 680 | S97: 680 | T97: 680 | U97: 680 | V97: 680 | W97: 680 | X97: 680 | Y97: 681 | Z97: 682 | AA97: 4
A98: 2024-04-06 | B98: 668 | C98: 385 | D98: 397 | E98: 434 | F98: 498 | G98: 518 | H98: 529 | I98: 547 | J98: 581 | K98: 589 | L98: 590 | M98: 609 | N98: 618 | O98: 632 | P98: 648 | Q98: 650 | R98: 664 | S98: 664 | T98: 664 | U98: 664 | V98: 664 | W98: 664 | X98: 664 | Y98: 664 | Z98: 664 | AA98: 3
A99: 2024-04-07 | B99: 831 | C99: 525 | D99: 565 | E99: 636 | F99: 636 | G99: 641 | H99: 655 | I99: 674 | J99: 696 | K99: 709 | L99: 723 | M99: 746 | N99: 758 | O99: 765 | P99: 776 | Q99: 789 | R99: 800 | S99: 817 | T99: 817 | U99: 817 | V99: 817 | W99: 817 | X99: 817 | Y99: 817 | Z99: 817 | AA99: 9
A100: 2024-04-08 | B100: 882 | C100: 584 | D100: 629 | E100: 707 | F100: 715 | G100: 726 | H100: 729 | I100: 735 | J100: 760 | K100: 781 | L100: 799 | M100: 808 | N100: 821 | O100: 843 | P100: 858 | Q100: 861 | R100: 865 | S100: 865 | T100: 865 | U100: 865 | V100: 865 | W100: 865 | X100: 865 | Y100: 865 | Z100: 865 | AA100: 14
A101: 2024-04-09 | B101: 659 | C101: 476 | D101: 499 | E101: 512 | F101: 520 | G101: 527 | H101: 541 | I101: 556 | J101: 575 | K101: 581 | L101: 583 | M101: 599 | N101: 605 | O101: 614 | P101: 622 | Q101: 631 | R101: 638 | S101: 643 | T101: 643 | U101: 643 | V101: 643 | W101: 643 | X101: 643 | Y101: 643 | Z101: 644 | AA101: 13
A102: 2024-04-10 | B102: 886 | C102: 513 | D102: 543 | E102: 546 | F102: 592 | G102: 681 | H102: 703 | I102: 717 | J102: 731 | K102: 742 | L102: 746 | M102: 751 | N102: 814 | O102: 817 | P102: 822 | Q102: 848 | R102: 862 | S102: 867 | T102: 867 | U102: 867 | V102: 867 | W102: 869 | X102: 869 | Y102: 869 | Z102: 869 | AA102: 10
A103: 2024-04-11 | B103: 836 | C103: 654 | D103: 688 | E103: 710 | F103: 721 | G103: 732 | H103: 743 | I103: 748 | J103: 751 | K103: 763 | L103: 777 | M103: 782 | N103: 795 | O103: 803 | P103: 808 | Q103: 815 | R103: 819 | S103: 823 | T103: 823 | U103: 823 | V103: 823 | W103: 823 | X103: 823 | Y103: 823 | Z103: 823 | AA103: 12
A104: 2024-04-12 | B104: 836 | C104: 528 | D104: 561 | E104: 592 | F104: 614 | G104: 633 | H104: 651 | I104: 656 | J104: 686 | K104: 751 | L104: 774 | M104: 785 | N104: 798 | O104: 806 | P104: 812 | Q104: 824 | R104: 824 | S104: 824 | T104: 824 | U104: 824 | V104: 824 | W104: 824 | X104: 824 | Y104: 824 | Z104: 824 | AA104: 9
A105: 2024-04-13 | B105: 699 | C105: 417 | D105: 447 | E105: 462 | F105: 482 | G105: 491 | H105: 500 | I105: 514 | J105: 533 | K105: 574 | L105: 574 | M105: 578 | N105: 593 | O105: 607 | P105: 618 | Q105: 623 | R105: 631 | S105: 639 | T105: 647 | U105: 654 | V105: 657 | W105: 680 | X105: 683 | Y105: 683 | Z105: 683 | AA105: 1
A106: 2024-04-14 | B106: 712 | C106: 508 | D106: 534 | E106: 552 | F106: 560 | G106: 568 | H106: 581 | I106: 604 | J106: 605 | K106: 610 | L106: 628 | M106: 638 | N106: 648 | O106: 663 | P106: 669 | Q106: 676 | R106: 692 | S106: 696 | T106: 696 | U106: 696 | V106: 696 | W106: 696 | X106: 696 | Y106: 696 | Z106: 696 | AA106: 12
A107: 2024-04-15 | B107: 925 | C107: 617 | D107: 702 | E107: 727 | F107: 733 | G107: 751 | H107: 776 | I107: 792 | J107: 795 | K107: 809 | L107: 834 | M107: 856 | N107: 879 | O107: 890 | P107: 901 | Q107: 906 | R107: 912 | S107: 912 | T107: 912 | U107: 912 | V107: 912 | W107: 912 | X107: 912 | Y107: 912 | Z107: 912 | AA107: 9
A108: 2024-04-16 | B108: 678 | C108: 492 | D108: 507 | E108: 526 | F108: 534 | G108: 544 | H108: 555 | I108: 564 | J108: 577 | K108: 593 | L108: 596 | M108: 606 | N108: 619 | O108: 632 | P108: 644 | Q108: 653 | R108: 667 | S108: 667 | T108: 667 | U108: 667 | V108: 667 | W108: 667 | X108: 667 | Y108: 667 | Z108: 667 | AA108: 9
A109: 2024-04-17 | B109: 753 | C109: 509 | D109: 524 | E109: 530 | F109: 551 | G109: 563 | H109: 577 | I109: 600 | J109: 618 | K109: 625 | L109: 626 | M109: 645 | N109: 658 | O109: 670 | P109: 714 | Q109: 721 | R109: 729 | S109: 732 | T109: 732 | U109: 732 | V109: 732 | W109: 732 | X109: 732 | Y109: 732 | Z109: 732 | AA109: 16
A110: 2024-04-18 | B110: 720 | C110: 461 | D110: 513 | E110: 545 | F110: 557 | G110: 575 | H110: 590 | I110: 592 | J110: 608 | K110: 621 | L110: 655 | M110: 666 | N110: 672 | O110: 683 | P110: 690 | Q110: 697 | R110: 702 | S110: 702 | T110: 702 | U110: 702 | V110: 702 | W110: 702 | X110: 702 | Y110: 702 | Z110: 702 | AA110: 15
A111: 2024-04-19 | B111: 713 | C111: 487 | D111: 511 | E111: 514 | F111: 532 | G111: 537 | H111: 559 | I111: 593 | J111: 609 | K111: 611 | L111: 644 | M111: 666 | N111: 679 | O111: 683 | P111: 692 | Q111: 696 | R111: 696 | S111: 696 | T111: 696 | U111: 696 | V111: 696 | W111: 696 | X111: 696 | Y111: 696 | Z111: 696 | AA111: 9
A112: 2024-04-20 | B112: 665 | C112: 401 | D112: 436 | E112: 457 | F112: 464 | G112: 477 | H112: 489 | I112: 498 | J112: 537 | K112: 552 | L112: 552 | M112: 566 | N112: 577 | O112: 597 | P112: 608 | Q112: 618 | R112: 623 | S112: 637 | T112: 638 | U112: 641 | V112: 641 | W112: 641 | X112: 641 | Y112: 641 | Z112: 641 | AA112: 19
A113: 2024-04-21 | B113: 810 | C113: 526 | D113: 546 | E113: 627 | F113: 639 | G113: 659 | H113: 661 | I113: 665 | J113: 684 | K113: 704 | L113: 720 | M113: 739 | N113: 750 | O113: 765 | P113: 772 | Q113: 778 | R113: 789 | S113: 798 | T113: 798 | U113: 798 | V113: 798 | W113: 798 | X113: 798 | Y113: 800 | Z113: 800 | AA113: 7
A114: 2024-04-22 | B114: 931 | C114: 620 | D114: 647 | E114: 703 | F114: 728 | G114: 745 | H114: 760 | I114: 770 | J114: 792 | K114: 809 | L114: 835 | M114: 847 | N114: 861 | O114: 870 | P114: 879 | Q114: 885 | R114: 906 | S114: 906 | T114: 906 | U114: 906 | V114: 906 | W114: 906 | X114: 906 | Y114: 906 | Z114: 906 | AA114: 15
A115: 2024-04-23 | B115: 816 | C115: 578 | D115: 612 | E115: 627 | F115: 636 | G115: 644 | H115: 664 | I115: 674 | J115: 696 | K115: 710 | L115: 721 | M115: 721 | N115: 734 | O115: 746 | P115: 755 | Q115: 774 | R115: 782 | S115: 782 | T115: 782 | U115: 782 | V115: 782 | W115: 782 | X115: 782 | Y115: 782 | Z115: 782 | AA115: 29
A116: 2024-04-24 | B116: 701 | C116: 434 | D116: 478 | E116: 530 | F116: 536 | G116: 559 | H116: 584 | I116: 597 | J116: 609 | K116: 625 | L116: 631 | M116: 633 | N116: 639 | O116: 649 | P116: 657 | Q116: 670 | R116: 677 | S116: 680 | T116: 680 | U116: 680 | V116: 680 | W116: 680 | X116: 680 | Y116: 680 | Z116: 680 | AA116: 19
A117: 2024-04-25 | B117: 811 | C117: 477 | D117: 524 | E117: 574 | F117: 600 | G117: 629 | H117: 640 | I117: 658 | J117: 678 | K117: 699 | L117: 709 | M117: 730 | N117: 749 | O117: 772 | P117: 783 | Q117: 791 | R117: 792 | S117: 792 | T117: 792 | U117: 792 | V117: 792 | W117: 792 | X117: 792 | Y117: 792 | Z117: 792 | AA117: 16
A118: 2024-04-26 | B118: 801 | C118: 547 | D118: 586 | E118: 609 | F118: 645 | G118: 661 | H118: 675 | I118: 691 | J118: 705 | K118: 718 | L118: 726 | M118: 745 | N118: 759 | O118: 766 | P118: 775 | Q118: 781 | R118: 781 | S118: 782 | T118: 782 | U118: 782 | V118: 782 | W118: 782 | X118: 782 | Y118: 782 | Z118: 782 | AA118: 14
A119: 2024-04-27 | B119: 730 | C119: 482 | D119: 510 | E119: 531 | F119: 548 | G119: 566 | H119: 588 | I119: 591 | J119: 611 | K119: 622 | L119: 634 | M119: 647 | N119: 654 | O119: 666 | P119: 679 | Q119: 688 | R119: 701 | S119: 702 | T119: 703 | U119: 703 | V119: 703 | W119: 703 | X119: 703 | Y119: 703 | Z119: 703 | AA119: 25
A120: 2024-04-28 | B120: 850 | C120: 623 | D120: 659 | E120: 677 | F120: 684 | G120: 692 | H120: 704 | I120: 719 | J120: 730 | K120: 739 | L120: 751 | M120: 758 | N120: 770 | O120: 779 | P120: 791 | Q120: 807 | R120: 827 | S120: 833 | T120: 833 | U120: 833 | V120: 833 | W120: 833 | X120: 833 | Y120: 833 | Z120: 833 | AA120: 12
A121: 2024-04-29 | B121: 887 | C121: 588 | D121: 646 | E121: 673 | F121: 685 | G121: 692 | H121: 698 | I121: 730 | J121: 742 | K121: 764 | L121: 788 | M121: 788 | N121: 809 | O121: 823 | P121: 832 | Q121: 839 | R121: 861 | S121: 861 | T121: 861 | U121: 861 | V121: 861 | W121: 867 | X121: 867 | Y121: 867 | Z121: 867 | AA121: 14
A122: 2024-04-30 | B122: 827 | C122: 534 | D122: 588 | E122: 610 | F122: 621 | G122: 645 | H122: 650 | I122: 662 | J122: 703 | K122: 728 | L122: 750 | M122: 754 | N122: 774 | O122: 789 | P122: 804 | Q122: 812 | R122: 817 | S122: 817 | T122: 817 | U122: 817 | V122: 817 | W122: 817 | X122: 817 | Y122: 817 | Z122: 817 | AA122: 6
A123: 2024-05-01 | B123: 701 | C123: 407 | D123: 429 | E123: 465 | F123: 498 | G123: 520 | H123: 578 | I123: 580 | J123: 592 | K123: 607 | L123: 610 | M123: 636 | N123: 647 | O123: 666 | P123: 677 | Q123: 684 | R123: 686 | S123: 686 | T123: 686 | U123: 686 | V123: 686 | W123: 686 | X123: 686 | Y123: 686 | Z123: 686 | AA123: 12
A124: 2024-05-02 | B124: 787 | C124: 549 | D124: 556 | E124: 575 | F124: 585 | G124: 633 | H124: 654 | I124: 666 | J124: 685 | K124: 698 | L124: 702 | M124: 710 | N124: 726 | O124: 741 | P124: 750 | Q124: 763 | R124: 771 | S124: 771 | T124: 771 | U124: 771 | V124: 771 | W124: 771 | X124: 771 | Y124: 771 | Z124: 771 | AA124: 15
A125: 2024-05-03 | B125: 741 | C125: 452 | D125: 464 | E125: 494 | F125: 512 | G125: 520 | H125: 537 | I125: 545 | J125: 573 | K125: 606 | L125: 643 | M125: 670 | N125: 687 | O125: 698 | P125: 725 | Q125: 729 | R125: 729 | S125: 729 | T125: 729 | U125: 729 | V125: 729 | W125: 729 | X125: 729 | Y125: 729 | Z125: 729 | AA125: 8
A126: 2024-05-04 | B126: 721 | C126: 456 | D126: 475 | E126: 484 | F126: 489 | G126: 507 | H126: 520 | I126: 584 | J126: 605 | K126: 619 | L126: 628 | M126: 641 | N126: 650 | O126: 666 | P126: 669 | Q126: 672 | R126: 679 | S126: 679 | T126: 681 | U126: 685 | V126: 685 | W126: 685 | X126: 685 | Y126: 687 | Z126: 687 | AA126: 28
A127: 2024-05-05 | B127: 850 | C127: 560 | D127: 574 | E127: 685 | F127: 713 | G127: 719 | H127: 726 | I127: 735 | J127: 745 | K127: 754 | L127: 762 | M127: 772 | N127: 786 | O127: 801 | P127: 810 | Q127: 821 | R127: 832 | S127: 833 | T127: 833 | U127: 833 | V127: 833 | W127: 833 | X127: 833 | Y127: 833 | Z127: 833 | AA127: 6
A128: 2024-05-06 | B128: 888 | C128: 574 | D128: 641 | E128: 660 | F128: 684 | G128: 713 | H128: 726 | I128: 737 | J128: 757 | K128: 768 | L128: 777 | M128: 786 | N128: 812 | O128: 828 | P128: 850 | Q128: 856 | R128: 862 | S128: 862 | T128: 862 | U128: 862 | V128: 862 | W128: 862 | X128: 862 | Y128: 863 | Z128: 863 | AA128: 23
A129: 2024-05-07 | B129: 569 | C129: 372 | D129: 408 | E129: 414 | F129: 424 | G129: 430 | H129: 437 | I129: 459 | J129: 462 | K129: 477 | L129: 484 | M129: 494 | N129: 516 | O129: 529 | P129: 538 | Q129: 545 | R129: 547 | S129: 547 | T129: 547 | U129: 547 | V129: 547 | W129: 547 | X129: 547 | Y129: 547 | Z129: 547 | AA129: 17
A130: 2024-05-08 | B130: 632 | C130: 459 | D130: 465 | E130: 480 | F130: 491 | G130: 507 | H130: 521 | I130: 541 | J130: 542 | K130: 551 | L130: 565 | M130: 569 | N130: 580 | O130: 588 | P130: 594 | Q130: 602 | R130: 610 | S130: 610 | T130: 610 | U130: 610 | V130: 610 | W130: 611 | X130: 611 | Y130: 611 | Z130: 611 | AA130: 20
A131: 2024-05-09 | B131: 618 | C131: 408 | D131: 417 | E131: 438 | F131: 454 | G131: 464 | H131: 478 | I131: 493 | J131: 537 | K131: 553 | L131: 555 | M131: 558 | N131: 570 | O131: 576 | P131: 581 | Q131: 588 | R131: 595 | S131: 595 | T131: 595 | U131: 595 | V131: 595 | W131: 595 | X131: 595 | Y131: 595 | Z131: 595 | AA131: 20
A132: 2024-05-10 | B132: 649 | C132: 369 | D132: 376 | E132: 395 | F132: 411 | G132: 445 | H132: 490 | I132: 546 | J132: 559 | K132: 567 | L132: 581 | M132: 594 | N132: 601 | O132: 606 | P132: 635 | Q132: 641 | R132: 641 | S132: 641 | T132: 641 | U132: 641 | V132: 641 | W132: 641 | X132: 641 | Y132: 641 | Z132: 641 | AA132: 3
A133: 2024-05-11 | B133: 564 | C133: 347 | D133: 372 | E133: 394 | F133: 410 | G133: 424 | H133: 440 | I133: 464 | J133: 475 | K133: 495 | L133: 495 | M133: 501 | N133: 513 | O133: 522 | P133: 531 | Q133: 536 | R133: 552 | S133: 552 | T133: 552 | U133: 553 | V133: 553 | W133: 553 | X133: 553 | Y133: 553 | Z133: 553 | AA133: 10
A134: 2024-05-12 | B134: 581 | C134: 405 | D134: 412 | E134: 425 | F134: 439 | G134: 467 | H134: 470 | I134: 477 | J134: 487 | K134: 501 | L134: 506 | M134: 513 | N134: 528 | O134: 534 | P134: 543 | Q134: 550 | R134: 559 | S134: 559 | T134: 559 | U134: 559 | V134: 559 | W134: 559 | X134: 561 | Y134: 561 | Z134: 561 | AA134: 15
A135: 2024-05-13 | B135: 729 | C135: 521 | D135: 565 | E135: 583 | F135: 589 | G135: 602 | H135: 611 | I135: 620 | J135: 627 | K135: 635 | L135: 654 | M135: 668 | N135: 675 | O135: 690 | P135: 699 | Q135: 703 | R135: 710 | S135: 710 | T135: 710 | U135: 710 | V135: 710 | W135: 710 | X135: 714 | Y135: 714 | Z135: 714 | AA135: 10
A136: 2024-05-14 | B136: 769 | C136: 586 | D136: 598 | E136: 611 | F136: 624 | G136: 639 | H136: 655 | I136: 665 | J136: 665 | K136: 676 | L136: 686 | M136: 704 | N136: 711 | O136: 720 | P136: 732 | Q136: 742 | R136: 743 | S136: 743 | T136: 743 | U136: 743 | V136: 743 | W136: 743 | X136: 743 | Y136: 743 | Z136: 743 | AA136: 15
A137: 2024-05-15 | B137: 802 | C137: 554 | D137: 574 | E137: 583 | F137: 589 | G137: 605 | H137: 637 | I137: 664 | J137: 682 | K137: 702 | L137: 711 | M137: 729 | N137: 766 | O137: 773 | P137: 779 | Q137: 785 | R137: 785 | S137: 785 | T137: 785 | U137: 785 | V137: 785 | W137: 785 | X137: 785 | Y137: 785 | Z137: 785 | AA137: 14
A138: 2024-05-16 | B138: 779 | C138: 574 | D138: 577 | E138: 590 | F138: 604 | G138: 623 | H138: 638 | I138: 656 | J138: 670 | K138: 681 | L138: 706 | M138: 715 | N138: 725 | O138: 738 | P138: 755 | Q138: 767 | R138: 767 | S138: 767 | T138: 767 | U138: 767 | V138: 767 | W138: 767 | X138: 767 | Y138: 767 | Z138: 767 | AA138: 5
A139: 2024-05-17 | B139: 751 | C139: 415 | D139: 484 | E139: 526 | F139: 541 | G139: 609 | H139: 620 | I139: 635 | J139: 647 | K139: 659 | L139: 677 | M139: 687 | N139: 693 | O139: 703 | P139: 708 | Q139: 721 | R139: 731 | S139: 732 | T139: 733 | U139: 733 | V139: 733 | W139: 733 | X139: 733 | Y139: 735 | Z139: 735 | AA139: 11
A140: 2024-05-18 | B140: 628 | C140: 387 | D140: 410 | E140: 434 | F140: 467 | G140: 476 | H140: 486 | I140: 497 | J140: 508 | K140: 517 | L140: 527 | M140: 544 | N140: 567 | O140: 581 | P140: 589 | Q140: 599 | R140: 606 | S140: 608 | T140: 608 | U140: 608 | V140: 608 | W140: 608 | X140: 608 | Y140: 608 | Z140: 608 | AA140: 16
A141: 2024-05-19 | B141: 696 | C141: 500 | D141: 517 | E141: 517 | F141: 543 | G141: 559 | H141: 567 | I141: 572 | J141: 589 | K141: 601 | L141: 611 | M141: 622 | N141: 626 | O141: 642 | P141: 648 | Q141: 662 | R141: 678 | S141: 686 | T141: 686 | U141: 686 | V141: 686 | W141: 686 | X141: 686 | Y141: 686 | Z141: 686 | AA141: 9
A142: 2024-05-20 | B142: 827 | C142: 597 | D142: 616 | E142: 637 | F142: 651 | G142: 672 | H142: 686 | I142: 696 | J142: 717 | K142: 747 | L142: 757 | M142: 758 | N142: 771 | O142: 779 | P142: 797 | Q142: 807 | R142: 812 | S142: 814 | T142: 814 | U142: 814 | V142: 814 | W142: 814 | X142: 814 | Y142: 814 | Z142: 815 | AA142: 6
A143: 2024-05-21 | B143: 764 | C143: 469 | D143: 499 | E143: 522 | F143: 536 | G143: 563 | H143: 594 | I143: 608 | J143: 618 | K143: 628 | L143: 635 | M143: 661 | N143: 672 | O143: 688 | P143: 689 | Q143: 723 | R143: 749 | S143: 752 | T143: 752 | U143: 752 | V143: 752 | W143: 752 | X143: 752 | Y143: 752 | Z143: 752 | AA143: 6
A144: 2024-05-22 | B144: 743 | C144: 494 | D144: 517 | E144: 556 | F144: 563 | G144: 577 | H144: 595 | I144: 599 | J144: 608 | K144: 634 | L144: 656 | M144: 664 | N144: 671 | O144: 681 | P144: 695 | Q144: 702 | R144: 720 | S144: 720 | T144: 720 | U144: 720 | V144: 720 | W144: 720 | X144: 720 | Y144: 720 | Z144: 720 | AA144: 19
A145: 2024-05-23 | B145: 679 | C145: 458 | D145: 472 | E145: 485 | F145: 499 | G145: 508 | H145: 551 | I145: 564 | J145: 576 | K145: 601 | L145: 613 | M145: 621 | N145: 629 | O145: 635 | P145: 647 | Q145: 652 | R145: 654 | S145: 654 | T145: 654 | U145: 655 | V145: 655 | W145: 655 | X145: 655 | Y145: 655 | Z145: 655 | AA145: 21
A146: 2024-05-24 | B146: 673 | C146: 444 | D146: 468 | E146: 483 | F146: 499 | G146: 525 | H146: 535 | I146: 544 | J146: 564 | K146: 574 | L146: 591 | M146: 610 | N146: 617 | O146: 631 | P146: 642 | Q146: 648 | R146: 648 | S146: 648 | T146: 648 | U146: 648 | V146: 648 | W146: 648 | X146: 648 | Y146: 648 | Z146: 648 | AA146: 21
A147: 2024-05-25 | B147: 675 | C147: 433 | D147: 470 | E147: 495 | F147: 510 | G147: 529 | H147: 550 | I147: 557 | J147: 572 | K147: 582 | L147: 582 | M147: 588 | N147: 607 | O147: 621 | P147: 636 | Q147: 656 | R147: 662 | S147: 668 | T147: 668 | U147: 668 | V147: 668 | W147: 668 | X147: 668 | Y147: 668 | Z147: 668 | AA147: 4
A148: 2024-05-26 | B148: 690 | C148: 485 | D148: 496 | E148: 524 | F148: 534 | G148: 541 | H148: 558 | I148: 570 | J148: 579 | K148: 588 | L148: 588 | M148: 610 | N148: 625 | O148: 643 | P148: 652 | Q148: 659 | R148: 675 | S148: 675 | T148: 675 | U148: 675 | V148: 675 | W148: 675 | X148: 675 | Y148: 675 | Z148: 677 | AA148: 11
A149: 2024-05-27 | B149: 828 | C149: 588 | D149: 592 | E149: 601 | F149: 622 | G149: 629 | H149: 656 | I149: 675 | J149: 694 | K149: 713 | L149: 713 | M149: 741 | N149: 753 | O149: 770 | P149: 785 | Q149: 798 | R149: 814 | S149: 817 | T149: 817 | U149: 817 | V149: 818 | W149: 818 | X149: 818 | Y149: 818 | Z149: 818 | AA149: 6
A150: 2024-05-28 | B150: 1008 | C150: 721 | D150: 736 | E150: 748 | F150: 769 | G150: 794 | H150: 829 | I150: 839 | J150: 854 | K150: 873 | L150: 901 | M150: 936 | N150: 951 | O150: 962 | P150: 974 | Q150: 994 | R150: 999 | S150: 1001 | T150: 1002 | U150: 1002 | V150: 1002 | W150: 1002 | X150: 1002 | Y150: 1002 | Z150: 1002 | AA150: 2
A151: 2024-05-29 | B151: 714 | C151: 456 | D151: 491 | E151: 521 | F151: 534 | G151: 550 | H151: 550 | I151: 577 | J151: 589 | K151: 604 | L151: 639 | M151: 650 | N151: 662 | O151: 676 | P151: 686 | Q151: 692 | R151: 704 | S151: 704 | T151: 704 | U151: 704 | V151: 704 | W151: 704 | X151: 704 | Y151: 704 | Z151: 704 | AA151: 9
A152: 2024-05-30 | B152: 759 | C152: 533 | D152: 543 | E152: 555 | F152: 568 | G152: 571 | H152: 581 | I152: 589 | J152: 619 | K152: 648 | L152: 656 | M152: 665 | N152: 675 | O152: 693 | P152: 715 | Q152: 736 | R152: 745 | S152: 746 | T152: 746 | U152: 746 | V152: 746 | W152: 746 | X152: 746 | Y152: 746 | Z152: 746 | AA152: 12
A153: 2024-05-31 | B153: 721 | C153: 485 | D153: 499 | E153: 525 | F153: 539 | G153: 544 | H153: 561 | I153: 581 | J153: 593 | K153: 614 | L153: 652 | M153: 667 | N153: 679 | O153: 696 | P153: 705 | Q153: 709 | R153: 709 | S153: 709 | T153: 709 | U153: 709 | V153: 709 | W153: 709 | X153: 709 | Y153: 709 | Z153: 712 | AA153: 0
A154: 2024-06-01 | B154: 730 | C154: 443 | D154: 460 | E154: 501 | F154: 521 | G154: 534 | H154: 548 | I154: 558 | J154: 597 | K154: 621 | L154: 629 | M154: 635 | N154: 638 | O154: 654 | P154: 666 | Q154: 681 | R154: 700 | S154: 715 | T154: 715 | U154: 715 | V154: 715 | W154: 715 | X154: 715 | Y154: 715 | Z154: 715 | AA154: 10
A155: 2024-06-02 | B155: 721 | C155: 465 | D155: 492 | E155: 521 | F155: 531 | G155: 541 | H155: 563 | I155: 593 | J155: 605 | K155: 616 | L155: 636 | M155: 638 | N155: 659 | O155: 676 | P155: 687 | Q155: 697 | R155: 704 | S155: 707 | T155: 707 | U155: 707 | V155: 707 | W155: 707 | X155: 707 | Y155: 707 | Z155: 709 | AA155: 8
A156: 2024-06-03 | B156: 903 | C156: 598 | D156: 660 | E156: 692 | F156: 708 | G156: 732 | H156: 754 | I156: 768 | J156: 786 | K156: 816 | L156: 822 | M156: 830 | N156: 839 | O156: 854 | P156: 858 | Q156: 876 | R156: 895 | S156: 896 | T156: 897 | U156: 897 | V156: 897 | W156: 897 | X156: 897 | Y156: 897 | Z156: 897 | AA156: 2
A157: 2024-06-04 | B157: 812 | C157: 556 | D157: 572 | E157: 592 | F157: 603 | G157: 607 | H157: 639 | I157: 658 | J157: 675 | K157: 717 | L157: 723 | M157: 737 | N157: 749 | O157: 752 | P157: 770 | Q157: 781 | R157: 801 | S157: 801 | T157: 801 | U157: 801 | V157: 801 | W157: 801 | X157: 801 | Y157: 804 | Z157: 804 | AA157: 5
A158: 2024-06-05 | B158: 738 | C158: 475 | D158: 516 | E158: 543 | F158: 557 | G158: 560 | H158: 596 | I158: 610 | J158: 631 | K158: 653 | L158: 660 | M158: 680 | N158: 689 | O158: 701 | P158: 716 | Q158: 720 | R158: 723 | S158: 723 | T158: 723 | U158: 723 | V158: 723 | W158: 723 | X158: 723 | Y158: 723 | Z158: 723 | AA158: 12
A159: 2024-06-06 | B159: 720 | C159: 505 | D159: 510 | E159: 531 | F159: 535 | G159: 557 | H159: 572 | I159: 592 | J159: 614 | K159: 631 | L159: 662 | M159: 668 | N159: 672 | O159: 679 | P159: 696 | Q159: 701 | R159: 706 | S159: 706 | T159: 706 | U159: 706 | V159: 706 | W159: 706 | X159: 706 | Y159: 706 | Z159: 707 | AA159: 10
A160: 2024-06-07 | B160: 809 | C160: 530 | D160: 550 | E160: 559 | F160: 573 | G160: 584 | H160: 632 | I160: 664 | J160: 677 | K160: 700 | L160: 719 | M160: 744 | N160: 755 | O160: 774 | P160: 782 | Q160: 789 | R160: 789 | S160: 789 | T160: 789 | U160: 789 | V160: 789 | W160: 789 | X160: 804 | Y160: 804 | Z160: 804 | AA160: 2
A161: 2024-06-08 | B161: 591 | C161: 383 | D161: 400 | E161: 430 | F161: 463 | G161: 479 | H161: 488 | I161: 499 | J161: 512 | K161: 522 | L161: 522 | M161: 535 | N161: 548 | O161: 556 | P161: 568 | Q161: 571 | R161: 579 | S161: 583 | T161: 583 | U161: 583 | V161: 583 | W161: 583 | X161: 583 | Y161: 583 | Z161: 583 | AA161: 5
A162: 2024-06-09 | B162: 652 | C162: 447 | D162: 473 | E162: 493 | F162: 502 | G162: 526 | H162: 531 | I162: 549 | J162: 550 | K162: 561 | L162: 576 | M162: 590 | N162: 601 | O162: 613 | P162: 618 | Q162: 625 | R162: 628 | S162: 628 | T162: 628 | U162: 628 | V162: 628 | W162: 628 | X162: 628 | Y162: 628 | Z162: 628 | AA162: 19
A163: 2024-06-10 | B163: 802 | C163: 523 | D163: 538 | E163: 549 | F163: 585 | G163: 595 | H163: 617 | I163: 634 | J163: 651 | K163: 675 | L163: 684 | M163: 705 | N163: 718 | O163: 719 | P163: 745 | Q163: 768 | R163: 796 | S163: 797 | T163: 797 | U163: 797 | V163: 797 | W163: 797 | X163: 797 | Y163: 797 | Z163: 797 | AA163: 2
A164: 2024-06-11 | B164: 838 | C164: 582 | D164: 621 | E164: 640 | F164: 655 | G164: 667 | H164: 674 | I164: 681 | J164: 699 | K164: 727 | L164: 743 | M164: 755 | N164: 770 | O164: 782 | P164: 815 | Q164: 824 | R164: 831 | S164: 831 | T164: 831 | U164: 833 | V164: 833 | W164: 833 | X164: 833 | Y164: 833 | Z164: 833 | AA164: 0
A165: 2024-06-12 | B165: 816 | C165: 545 | D165: 562 | E165: 571 | F165: 585 | G165: 597 | H165: 619 | I165: 635 | J165: 654 | K165: 677 | L165: 679 | M165: 687 | N165: 741 | O165: 755 | P165: 780 | Q165: 791 | R165: 795 | S165: 798 | T165: 798 | U165: 798 | V165: 798 | W165: 799 | X165: 799 | Y165: 799 | Z165: 799 | AA165: 16
A166: 2024-06-13 | B166: 754 | C166: 463 | D166: 519 | E166: 539 | F166: 543 | G166: 555 | H166: 579 | I166: 614 | J166: 626 | K166: 644 | L166: 645 | M166: 652 | N166: 709 | O166: 715 | P166: 723 | Q166: 725 | R166: 739 | S166: 739 | T166: 742 | U166: 747 | V166: 747 | W166: 747 | X166: 747 | Y166: 747 | Z166: 747 | AA166: 2
A167: 2024-06-14 | B167: 713 | C167: 485 | D167: 498 | E167: 504 | F167: 519 | G167: 549 | H167: 578 | I167: 596 | J167: 617 | K167: 618 | L167: 637 | M167: 660 | N167: 667 | O167: 677 | P167: 687 | Q167: 698 | R167: 699 | S167: 699 | T167: 699 | U167: 699 | V167: 699 | W167: 699 | X167: 699 | Y167: 699 | Z167: 699 | AA167: 11
A168: 2024-06-15 | B168: 734 | C168: 417 | D168: 435 | E168: 455 | F168: 487 | G168: 541 | H168: 556 | I168: 569 | J168: 589 | K168: 607 | L168: 614 | M168: 630 | N168: 649 | O168: 670 | P168: 679 | Q168: 685 | R168: 691 | S168: 700 | T168: 711 | U168: 711 | V168: 711 | W168: 711 | X168: 711 | Y168: 711 | Z168: 711 | AA168: 18
A169: 2024-06-16 | B169: 772 | C169: 527 | D169: 565 | E169: 577 | F169: 578 | G169: 595 | H169: 612 | I169: 624 | J169: 652 | K169: 669 | L169: 685 | M169: 697 | N169: 722 | O169: 741 | P169: 744 | Q169: 754 | R169: 758 | S169: 758 | T169: 758 | U169: 758 | V169: 758 | W169: 758 | X169: 758 | Y169: 758 | Z169: 758 | AA169: 11
A170: 2024-06-17 | B170: 798 | C170: 435 | D170: 559 | E170: 596 | F170: 618 | G170: 631 | H170: 645 | I170: 663 | J170: 671 | K170: 702 | L170: 715 | M170: 721 | N170: 725 | O170: 746 | P170: 757 | Q170: 771 | R170: 779 | S170: 781 | T170: 782 | U170: 782 | V170: 782 | W170: 782 | X170: 782 | Y170: 782 | Z170: 782 | AA170: 11
A171: 2024-06-18 | B171: 858 | C171: 610 | D171: 634 | E171: 638 | F171: 658 | G171: 669 | H171: 684 | I171: 700 | J171: 716 | K171: 723 | L171: 727 | M171: 736 | N171: 766 | O171: 795 | P171: 802 | Q171: 829 | R171: 842 | S171: 842 | T171: 842 | U171: 842 | V171: 842 | W171: 842 | X171: 842 | Y171: 842 | Z171: 842 | AA171: 12
A172: 2024-06-19 | B172: 767 | C172: 491 | D172: 518 | E172: 539 | F172: 550 | G172: 578 | H172: 597 | I172: 605 | J172: 619 | K172: 635 | L172: 648 | M172: 672 | N172: 679 | O172: 687 | P172: 696 | Q172: 705 | R172: 749 | S172: 750 | T172: 750 | U172: 750 | V172: 750 | W172: 750 | X172: 750 | Y172: 750 | Z172: 753 | AA172: 8
A173: 2024-06-20 | B173: 758 | C173: 504 | D173: 567 | E173: 588 | F173: 604 | G173: 622 | H173: 631 | I173: 638 | J173: 655 | K173: 668 | L173: 681 | M173: 690 | N173: 697 | O173: 717 | P173: 727 | Q173: 733 | R173: 740 | S173: 740 | T173: 740 | U173: 740 | V173: 740 | W173: 740 | X173: 740 | Y173: 740 | Z173: 740 | AA173: 9
A174: 2024-06-21 | B174: 699 | C174: 452 | D174: 499 | E174: 509 | F174: 519 | G174: 543 | H174: 561 | I174: 581 | J174: 596 | K174: 608 | L174: 614 | M174: 614 | N174: 614 | O174: 614 | P174: 614 | Q174: 614 | R174: 614 | S174: 614 | T174: 614 | U174: 614 | V174: 614 | W174: 614 | X174: 614 | Y174: 614 | Z174: 614 | AA174: 79
A175: 2024-06-22 | B175: 706 | C175: 253 | D175: 253 | E175: 253 | F175: 253 | G175: 253 | H175: 253 | I175: 253 | J175: 253 | K175: 253 | L175: 262 | M175: 278 | N175: 291 | O175: 330 | P175: 342 | Q175: 349 | R175: 366 | S175: 371 | T175: 453 | U175: 505 | V175: 518 | W175: 524 | X175: 524 | Y175: 524 | Z175: 524 | AA175: 175
A176: 2024-06-23 | B176: 763 | C176: 524 | D176: 570 | E176: 593 | F176: 601 | G176: 608 | H176: 608 | I176: 611 | J176: 642 | K176: 673 | L176: 679 | M176: 697 | N176: 703 | O176: 712 | P176: 720 | Q176: 730 | R176: 742 | S176: 744 | T176: 745 | U176: 745 | V176: 745 | W176: 745 | X176: 745 | Y176: 745 | Z176: 746 | AA176: 14
A177: 2024-06-24 | B177: 789 | C177: 576 | D177: 589 | E177: 614 | F177: 621 | G177: 623 | H177: 649 | I177: 666 | J177: 680 | K177: 696 | L177: 709 | M177: 720 | N177: 730 | O177: 740 | P177: 745 | Q177: 766 | R177: 777 | S177: 777 | T177: 777 | U177: 777 | V177: 777 | W177: 777 | X177: 777 | Y177: 777 | Z177: 777 | AA177: 11
A178: 2024-06-25 | B178: 680 | C178: 487 | D178: 497 | E178: 509 | F178: 531 | G178: 574 | H178: 581 | I178: 591 | J178: 597 | K178: 606 | L178: 610 | M178: 619 | N178: 632 | O178: 640 | P178: 649 | Q178: 661 | R178: 661 | S178: 663 | T178: 663 | U178: 663 | V178: 663 | W178: 663 | X178: 663 | Y178: 663 | Z178: 663 | AA178: 14
A179: 2024-06-26 | B179: 691 | C179: 470 | D179: 491 | E179: 510 | F179: 529 | G179: 543 | H179: 545 | I179: 553 | J179: 575 | K179: 589 | L179: 599 | M179: 614 | N179: 638 | O179: 647 | P179: 652 | Q179: 660 | R179: 671 | S179: 672 | T179: 672 | U179: 672 | V179: 672 | W179: 672 | X179: 672 | Y179: 672 | Z179: 672 | AA179: 16
A180: 2024-06-27 | B180: 672 | C180: 466 | D180: 490 | E180: 499 | F180: 509 | G180: 527 | H180: 544 | I180: 547 | J180: 575 | K180: 592 | L180: 603 | M180: 630 | N180: 632 | O180: 639 | P180: 646 | Q180: 653 | R180: 663 | S180: 663 | T180: 663 | U180: 663 | V180: 663 | W180: 663 | X180: 663 | Y180: 663 | Z180: 663 | AA180: 7
A181: 2024-06-28 | B181: 745 | C181: 478 | D181: 511 | E181: 539 | F181: 554 | G181: 578 | H181: 605 | I181: 616 | J181: 633 | K181: 642 | L181: 663 | M181: 675 | N181: 691 | O181: 706 | P181: 719 | Q181: 727 | R181: 727 | S181: 727 | T181: 729 | U181: 729 | V181: 729 | W181: 729 | X181: 729 | Y181: 729 | Z181: 729 | AA181: 14
A182: 2024-06-29 | B182: 690 | C182: 466 | D182: 507 | E182: 528 | F182: 535 | G182: 544 | H182: 557 | I182: 565 | J182: 597 | K182: 607 | L182: 607 | M182: 622 | N182: 646 | O182: 654 | P182: 660 | Q182: 673 | R182: 677 | S182: 677 | T182: 677 | U182: 677 | V182: 677 | W182: 677 | X182: 677 | Y182: 677 | Z182: 677 | AA182: 11
A183: 2024-06-30 | B183: 900 | C183: 621 | D183: 661 | E183: 678 | F183: 691 | G183: 710 | H183: 711 | I183: 741 | J183: 754 | K183: 764 | L183: 776 | M183: 786 | N183: 805 | O183: 816 | P183: 839 | Q183: 855 | R183: 860 | S183: 860 | T183: 860 | U183: 860 | V183: 860 | W183: 860 | X183: 860 | Y183: 860 | Z183: 860 | AA183: 40
A184: 2024-07-01 | B184: 851 | C184: 547 | D184: 606 | E184: 611 | F184: 630 | G184: 659 | H184: 677 | I184: 698 | J184: 719 | K184: 737 | L184: 759 | M184: 770 | N184: 777 | O184: 795 | P184: 806 | Q184: 815 | R184: 827 | S184: 827 | T184: 827 | U184: 827 | V184: 827 | W184: 827 | X184: 827 | Y184: 827 | Z184: 827 | AA184: 15
A185: 2024-07-02 | B185: 862 | C185: 557 | D185: 597 | E185: 621 | F185: 623 | G185: 650 | H185: 671 | I185: 690 | J185: 730 | K185: 755 | L185: 769 | M185: 788 | N185: 802 | O185: 804 | P185: 809 | Q185: 823 | R185: 828 | S185: 828 | T185: 828 | U185: 828 | V185: 828 | W185: 828 | X185: 828 | Y185: 828 | Z185: 828 | AA185: 32
A186: 2024-07-03 | B186: 867 | C186: 546 | D186: 570 | E186: 584 | F186: 600 | G186: 626 | H186: 642 | I186: 661 | J186: 695 | K186: 705 | L186: 715 | M186: 726 | N186: 733 | O186: 743 | P186: 818 | Q186: 836 | R186: 850 | S186: 850 | T186: 850 | U186: 850 | V186: 850 | W186: 850 | X186: 850 | Y186: 850 | Z186: 852 | AA186: 7
A187: 2024-07-04 | B187: 726 | C187: 502 | D187: 519 | E187: 531 | F187: 547 | G187: 549 | H187: 561 | I187: 580 | J187: 606 | K187: 616 | L187: 639 | M187: 654 | N187: 663 | O187: 667 | P187: 673 | Q187: 687 | R187: 703 | S187: 706 | T187: 706 | U187: 706 | V187: 706 | W187: 707 | X187: 707 | Y187: 711 | Z187: 711 | AA187: 12
A188: 2024-07-05 | B188: 772 | C188: 485 | D188: 529 | E188: 541 | F188: 558 | G188: 584 | H188: 601 | I188: 608 | J188: 635 | K188: 663 | L188: 683 | M188: 704 | N188: 716 | O188: 732 | P188: 745 | Q188: 757 | R188: 757 | S188: 757 | T188: 757 | U188: 757 | V188: 757 | W188: 757 | X188: 757 | Y188: 757 | Z188: 757 | AA188: 11
A189: 2024-07-06 | B189: 731 | C189: 444 | D189: 474 | E189: 509 | F189: 542 | G189: 557 | H189: 569 | I189: 596 | J189: 605 | K189: 618 | L189: 623 | M189: 631 | N189: 655 | O189: 665 | P189: 678 | Q189: 698 | R189: 709 | S189: 716 | T189: 718 | U189: 718 | V189: 718 | W189: 718 | X189: 718 | Y189: 718 | Z189: 718 | AA189: 12
A190: 2024-07-07 | B190: 855 | C190: 531 | D190: 588 | E190: 590 | F190: 604 | G190: 638 | H190: 669 | I190: 678 | J190: 702 | K190: 720 | L190: 727 | M190: 762 | N190: 781 | O190: 797 | P190: 806 | Q190: 821 | R190: 823 | S190: 827 | T190: 827 | U190: 827 | V190: 827 | W190: 827 | X190: 827 | Y190: 827 | Z190: 827 | AA190: 26
A191: 2024-07-08 | B191: 913 | C191: 607 | D191: 678 | E191: 697 | F191: 704 | G191: 712 | H191: 738 | I191: 762 | J191: 790 | K191: 802 | L191: 813 | M191: 826 | N191: 848 | O191: 859 | P191: 869 | Q191: 884 | R191: 891 | S191: 898 | T191: 898 | U191: 898 | V191: 898 | W191: 898 | X191: 898 | Y191: 899 | Z191: 899 | AA191: 9
A192: 2024-07-09 | B192: 871 | C192: 520 | D192: 572 | E192: 622 | F192: 623 | G192: 639 | H192: 647 | I192: 725 | J192: 732 | K192: 751 | L192: 761 | M192: 784 | N192: 811 | O192: 835 | P192: 841 | Q192: 844 | R192: 851 | S192: 855 | T192: 855 | U192: 855 | V192: 855 | W192: 855 | X192: 855 | Y192: 855 | Z192: 855 | AA192: 12
A193: 2024-07-10 | B193: 818 | C193: 470 | D193: 508 | E193: 524 | F193: 543 | G193: 577 | H193: 583 | I193: 608 | J193: 617 | K193: 628 | L193: 656 | M193: 666 | N193: 740 | O193: 746 | P193: 761 | Q193: 772 | R193: 786 | S193: 791 | T193: 791 | U193: 791 | V193: 791 | W193: 791 | X193: 791 | Y193: 791 | Z193: 791 | AA193: 20
A194: 2024-07-11 | B194: 809 | C194: 500 | D194: 563 | E194: 565 | F194: 590 | G194: 619 | H194: 638 | I194: 655 | J194: 668 | K194: 673 | L194: 684 | M194: 701 | N194: 702 | O194: 745 | P194: 756 | Q194: 776 | R194: 786 | S194: 789 | T194: 789 | U194: 789 | V194: 789 | W194: 789 | X194: 789 | Y194: 789 | Z194: 791 | AA194: 16
A195: 2024-07-12 | B195: 811 | C195: 531 | D195: 567 | E195: 581 | F195: 597 | G195: 609 | H195: 625 | I195: 662 | J195: 674 | K195: 682 | L195: 715 | M195: 729 | N195: 753 | O195: 775 | P195: 793 | Q195: 803 | R195: 803 | S195: 803 | T195: 803 | U195: 803 | V195: 803 | W195: 803 | X195: 803 | Y195: 803 | Z195: 803 | AA195: 5
A196: 2024-07-13 | B196: 709 | C196: 484 | D196: 502 | E196: 512 | F196: 523 | G196: 538 | H196: 558 | I196: 571 | J196: 602 | K196: 613 | L196: 614 | M196: 639 | N196: 648 | O196: 657 | P196: 668 | Q196: 680 | R196: 687 | S196: 699 | T196: 701 | U196: 701 | V196: 701 | W196: 701 | X196: 701 | Y196: 701 | Z196: 701 | AA196: 5
A197: 2024-07-14 | B197: 757 | C197: 511 | D197: 541 | E197: 563 | F197: 576 | G197: 577 | H197: 594 | I197: 604 | J197: 619 | K197: 630 | L197: 674 | M197: 686 | N197: 688 | O197: 704 | P197: 718 | Q197: 724 | R197: 746 | S197: 747 | T197: 748 | U197: 748 | V197: 748 | W197: 748 | X197: 748 | Y197: 748 | Z197: 748 | AA197: 5
A198: 2024-07-15 | B198: 823 | C198: 570 | D198: 598 | E198: 611 | F198: 634 | G198: 662 | H198: 665 | I198: 690 | J198: 728 | K198: 743 | L198: 757 | M198: 770 | N198: 778 | O198: 793 | P198: 804 | Q198: 811 | R198: 814 | S198: 814 | T198: 814 | U198: 814 | V198: 814 | W198: 814 | X198: 814 | Y198: 814 | Z198: 814 | AA198: 5
A199: 2024-07-16 | B199: 701 | C199: 465 | D199: 512 | E199: 524 | F199: 540 | G199: 560 | H199: 566 | I199: 586 | J199: 604 | K199: 614 | L199: 631 | M199: 648 | N199: 662 | O199: 670 | P199: 673 | Q199: 682 | R199: 691 | S199: 691 | T199: 691 | U199: 691 | V199: 691 | W199: 691 | X199: 691 | Y199: 691 | Z199: 693 | AA199: 6
A200: 2024-07-17 | B200: 823 | C200: 502 | D200: 600 | E200: 604 | F200: 631 | G200: 647 | H200: 675 | I200: 683 | J200: 703 | K200: 733 | L200: 753 | M200: 761 | N200: 771 | O200: 785 | P200: 794 | Q200: 799 | R200: 809 | S200: 811 | T200: 811 | U200: 811 | V200: 811 | W200: 811 | X200: 811 | Y200: 811 | Z200: 811 | AA200: 9
... 666 more rows

Sheet 采购单生成-填款时间
A1: 采购单生成时间 | B1: 采购单数 | C1: 1hour | D1: 2hour | E1: 3hour | F1: 4hour | G1: 5hour | H1: 6hour | I1: 7hour | J1: 8hour | K1: 9hour | L1: 10hour | M1: 11hour | N1: 12hour | O1: 13hour | P1: 14hour | Q1: 15hour | R1: 16hour | S1: 17hour | T1: 18hour | U1: 19hour | V1: 20hour | W1: 21hour | X1: 22hour | Y1: 23hour | Z1: 24hour | AA1: >24hour
A2: 2024-01-01 | B2: 569 | C2: 56 | D2: 95 | E2: 129 | F2: 173 | G2: 218 | H2: 248 | I2: 276 | J2: 306 | K2: 335 | L2: 354 | M2: 366 | N2: 376 | O2: 393 | P2: 411 | Q2: 428 | R2: 449 | S2: 463 | T2: 470 | U2: 471 | V2: 477 | W2: 479 | X2: 489 | Y2: 492 | Z2: 500 | AA2: 69
A3: 2024-01-02 | B3: 931 | C3: 93 | D3: 194 | E3: 251 | F3: 317 | G3: 388 | H3: 459 | I3: 511 | J3: 544 | K3: 569 | L3: 591 | M3: 611 | N3: 628 | O3: 659 | P3: 688 | Q3: 709 | R3: 727 | S3: 739 | T3: 753 | U3: 766 | V3: 779 | W3: 785 | X3: 792 | Y3: 802 | Z3: 811 | AA3: 120
A4: 2024-01-03 | B4: 816 | C4: 84 | D4: 171 | E4: 242 | F4: 287 | G4: 328 | H4: 373 | I4: 423 | J4: 449 | K4: 492 | L4: 512 | M4: 535 | N4: 563 | O4: 582 | P4: 600 | Q4: 618 | R4: 629 | S4: 657 | T4: 673 | U4: 684 | V4: 698 | W4: 712 | X4: 719 | Y4: 723 | Z4: 728 | AA4: 88
A5: 2024-01-04 | B5: 803 | C5: 77 | D5: 153 | E5: 208 | F5: 263 | G5: 293 | H5: 351 | I5: 412 | J5: 448 | K5: 464 | L5: 488 | M5: 508 | N5: 545 | O5: 564 | P5: 579 | Q5: 600 | R5: 626 | S5: 639 | T5: 656 | U5: 664 | V5: 669 | W5: 687 | X5: 692 | Y5: 701 | Z5: 710 | AA5: 93
A6: 2024-01-05 | B6: 724 | C6: 113 | D6: 178 | E6: 231 | F6: 272 | G6: 307 | H6: 355 | I6: 409 | J6: 463 | K6: 486 | L6: 512 | M6: 535 | N6: 559 | O6: 580 | P6: 590 | Q6: 605 | R6: 620 | S6: 639 | T6: 649 | U6: 658 | V6: 664 | W6: 673 | X6: 676 | Y6: 678 | Z6: 682 | AA6: 42
A7: 2024-01-06 | B7: 619 | C7: 45 | D7: 100 | E7: 165 | F7: 214 | G7: 267 | H7: 309 | I7: 339 | J7: 368 | K7: 392 | L7: 398 | M7: 410 | N7: 418 | O7: 430 | P7: 435 | Q7: 444 | R7: 460 | S7: 469 | T7: 484 | U7: 499 | V7: 512 | W7: 524 | X7: 531 | Y7: 534 | Z7: 537 | AA7: 82
A8: 2024-01-07 | B8: 718 | C8: 38 | D8: 87 | E8: 147 | F8: 171 | G8: 197 | H8: 220 | I8: 262 | J8: 292 | K8: 308 | L8: 324 | M8: 343 | N8: 367 | O8: 392 | P8: 413 | Q8: 435 | R8: 458 | S8: 479 | T8: 500 | U8: 509 | V8: 519 | W8: 530 | X8: 540 | Y8: 553 | Z8: 563 | AA8: 155
A9: 2024-01-08 | B9: 955 | C9: 90 | D9: 167 | E9: 256 | F9: 342 | G9: 411 | H9: 481 | I9: 539 | J9: 583 | K9: 606 | L9: 638 | M9: 656 | N9: 682 | O9: 703 | P9: 729 | Q9: 745 | R9: 757 | S9: 770 | T9: 784 | U9: 799 | V9: 804 | W9: 810 | X9: 827 | Y9: 835 | Z9: 841 | AA9: 114
A10: 2024-01-09 | B10: 701 | C10: 87 | D10: 174 | E10: 234 | F10: 292 | G10: 326 | H10: 352 | I10: 401 | J10: 436 | K10: 452 | L10: 473 | M10: 490 | N10: 505 | O10: 518 | P10: 534 | Q10: 541 | R10: 548 | S10: 557 | T10: 570 | U10: 583 | V10: 589 | W10: 597 | X10: 602 | Y10: 607 | Z10: 619 | AA10: 82
A11: 2024-01-10 | B11: 624 | C11: 74 | D11: 135 | E11: 186 | F11: 217 | G11: 273 | H11: 312 | I11: 341 | J11: 375 | K11: 392 | L11: 408 | M11: 419 | N11: 436 | O11: 450 | P11: 475 | Q11: 487 | R11: 507 | S11: 526 | T11: 544 | U11: 548 | V11: 555 | W11: 559 | X11: 566 | Y11: 573 | Z11: 576 | AA11: 48
A12: 2024-01-11 | B12: 649 | C12: 79 | D12: 154 | E12: 205 | F12: 252 | G12: 281 | H12: 316 | I12: 355 | J12: 379 | K12: 399 | L12: 414 | M12: 434 | N12: 449 | O12: 465 | P12: 478 | Q12: 495 | R12: 509 | S12: 525 | T12: 534 | U12: 549 | V12: 556 | W12: 564 | X12: 574 | Y12: 583 | Z12: 585 | AA12: 64
A13: 2024-01-12 | B13: 615 | C13: 34 | D13: 72 | E13: 111 | F13: 143 | G13: 191 | H13: 222 | I13: 257 | J13: 310 | K13: 326 | L13: 345 | M13: 365 | N13: 376 | O13: 391 | P13: 406 | Q13: 421 | R13: 436 | S13: 455 | T13: 466 | U13: 477 | V13: 483 | W13: 490 | X13: 492 | Y13: 505 | Z13: 511 | AA13: 104
A14: 2024-01-13 | B14: 513 | C14: 25 | D14: 57 | E14: 96 | F14: 113 | G14: 142 | H14: 175 | I14: 200 | J14: 225 | K14: 241 | L14: 260 | M14: 279 | N14: 284 | O14: 298 | P14: 312 | Q14: 326 | R14: 334 | S14: 343 | T14: 346 | U14: 355 | V14: 365 | W14: 375 | X14: 388 | Y14: 394 | Z14: 398 | AA14: 115
A15: 2024-01-14 | B15: 572 | C15: 24 | D15: 47 | E15: 82 | F15: 108 | G15: 129 | H15: 151 | I15: 180 | J15: 211 | K15: 226 | L15: 236 | M15: 247 | N15: 263 | O15: 283 | P15: 291 | Q15: 309 | R15: 329 | S15: 343 | T15: 364 | U15: 379 | V15: 386 | W15: 396 | X15: 403 | Y15: 405 | Z15: 416 | AA15: 156
A16: 2024-01-15 | B16: 869 | C16: 71 | D16: 111 | E16: 168 | F16: 237 | G16: 307 | H16: 355 | I16: 406 | J16: 459 | K16: 489 | L16: 500 | M16: 525 | N16: 544 | O16: 556 | P16: 583 | Q16: 598 | R16: 617 | S16: 646 | T16: 656 | U16: 665 | V16: 683 | W16: 690 | X16: 697 | Y16: 700 | Z16: 709 | AA16: 160
A17: 2024-01-16 | B17: 821 | C17: 97 | D17: 155 | E17: 215 | F17: 271 | G17: 351 | H17: 390 | I17: 425 | J17: 466 | K17: 489 | L17: 505 | M17: 524 | N17: 549 | O17: 559 | P17: 571 | Q17: 584 | R17: 601 | S17: 618 | T17: 634 | U17: 644 | V17: 662 | W17: 679 | X17: 692 | Y17: 694 | Z17: 703 | AA17: 118
A18: 2024-01-17 | B18: 711 | C18: 74 | D18: 130 | E18: 174 | F18: 235 | G18: 275 | H18: 308 | I18: 346 | J18: 383 | K18: 408 | L18: 434 | M18: 447 | N18: 471 | O18: 494 | P18: 506 | Q18: 522 | R18: 537 | S18: 560 | T18: 570 | U18: 581 | V18: 593 | W18: 599 | X18: 610 | Y18: 619 | Z18: 629 | AA18: 82
A19: 2024-01-18 | B19: 667 | C19: 54 | D19: 109 | E19: 154 | F19: 198 | G19: 244 | H19: 280 | I19: 336 | J19: 374 | K19: 385 | L19: 402 | M19: 424 | N19: 448 | O19: 470 | P19: 484 | Q19: 496 | R19: 514 | S19: 523 | T19: 541 | U19: 548 | V19: 558 | W19: 566 | X19: 570 | Y19: 579 | Z19: 597 | AA19: 70
A20: 2024-01-19 | B20: 650 | C20: 86 | D20: 142 | E20: 187 | F20: 218 | G20: 251 | H20: 276 | I20: 318 | J20: 371 | K20: 400 | L20: 417 | M20: 428 | N20: 445 | O20: 460 | P20: 475 | Q20: 486 | R20: 510 | S20: 525 | T20: 539 | U20: 546 | V20: 551 | W20: 559 | X20: 569 | Y20: 575 | Z20: 580 | AA20: 70
A21: 2024-01-20 | B21: 597 | C21: 26 | D21: 57 | E21: 88 | F21: 105 | G21: 138 | H21: 183 | I21: 208 | J21: 247 | K21: 277 | L21: 288 | M21: 303 | N21: 316 | O21: 325 | P21: 333 | Q21: 338 | R21: 349 | S21: 359 | T21: 367 | U21: 377 | V21: 386 | W21: 395 | X21: 408 | Y21: 415 | Z21: 421 | AA21: 176
A22: 2024-01-21 | B22: 663 | C22: 52 | D22: 75 | E22: 101 | F22: 119 | G22: 145 | H22: 167 | I22: 200 | J22: 228 | K22: 243 | L22: 259 | M22: 271 | N22: 284 | O22: 293 | P22: 308 | Q22: 323 | R22: 346 | S22: 369 | T22: 387 | U22: 403 | V22: 417 | W22: 425 | X22: 437 | Y22: 443 | Z22: 449 | AA22: 214
A23: 2024-01-22 | B23: 913 | C23: 64 | D23: 103 | E23: 151 | F23: 181 | G23: 295 | H23: 358 | I23: 412 | J23: 453 | K23: 488 | L23: 507 | M23: 527 | N23: 549 | O23: 564 | P23: 579 | Q23: 600 | R23: 620 | S23: 641 | T23: 655 | U23: 668 | V23: 685 | W23: 696 | X23: 705 | Y23: 716 | Z23: 738 | AA23: 175
A24: 2024-01-23 | B24: 721 | C24: 78 | D24: 131 | E24: 172 | F24: 213 | G24: 295 | H24: 332 | I24: 372 | J24: 393 | K24: 430 | L24: 448 | M24: 462 | N24: 481 | O24: 500 | P24: 513 | Q24: 532 | R24: 549 | S24: 567 | T24: 582 | U24: 586 | V24: 598 | W24: 600 | X24: 604 | Y24: 615 | Z24: 623 | AA24: 98
A25: 2024-01-24 | B25: 580 | C25: 59 | D25: 111 | E25: 144 | F25: 170 | G25: 189 | H25: 219 | I25: 245 | J25: 275 | K25: 295 | L25: 312 | M25: 331 | N25: 344 | O25: 363 | P25: 374 | Q25: 399 | R25: 411 | S25: 422 | T25: 432 | U25: 447 | V25: 455 | W25: 468 | X25: 472 | Y25: 476 | Z25: 484 | AA25: 96
A26: 2024-01-25 | B26: 597 | C26: 73 | D26: 165 | E26: 187 | F26: 215 | G26: 237 | H26: 268 | I26: 297 | J26: 328 | K26: 343 | L26: 358 | M26: 364 | N26: 381 | O26: 392 | P26: 400 | Q26: 409 | R26: 422 | S26: 433 | T26: 441 | U26: 445 | V26: 455 | W26: 462 | X26: 470 | Y26: 477 | Z26: 483 | AA26: 114
A27: 2024-01-26 | B27: 610 | C27: 74 | D27: 138 | E27: 168 | F27: 189 | G27: 203 | H27: 226 | I27: 258 | J27: 289 | K27: 303 | L27: 317 | M27: 326 | N27: 332 | O27: 342 | P27: 351 | Q27: 366 | R27: 373 | S27: 384 | T27: 391 | U27: 403 | V27: 406 | W27: 411 | X27: 416 | Y27: 420 | Z27: 425 | AA27: 185
A28: 2024-01-27 | B28: 575 | C28: 25 | D28: 51 | E28: 77 | F28: 91 | G28: 102 | H28: 126 | I28: 149 | J28: 175 | K28: 194 | L28: 200 | M28: 213 | N28: 223 | O28: 232 | P28: 250 | Q28: 265 | R28: 270 | S28: 276 | T28: 289 | U28: 294 | V28: 304 | W28: 309 | X28: 318 | Y28: 322 | Z28: 332 | AA28: 243
A29: 2024-01-28 | B29: 612 | C29: 37 | D29: 53 | E29: 78 | F29: 112 | G29: 140 | H29: 151 | I29: 171 | J29: 185 | K29: 194 | L29: 199 | M29: 206 | N29: 213 | O29: 218 | P29: 228 | Q29: 236 | R29: 245 | S29: 255 | T29: 264 | U29: 272 | V29: 279 | W29: 286 | X29: 289 | Y29: 295 | Z29: 306 | AA29: 306
A30: 2024-01-29 | B30: 836 | C30: 38 | D30: 71 | E30: 102 | F30: 159 | G30: 205 | H30: 231 | I30: 267 | J30: 297 | K30: 311 | L30: 328 | M30: 344 | N30: 363 | O30: 376 | P30: 385 | Q30: 391 | R30: 396 | S30: 407 | T30: 418 | U30: 420 | V30: 425 | W30: 433 | X30: 438 | Y30: 447 | Z30: 454 | AA30: 382
A31: 2024-01-30 | B31: 769 | C31: 29 | D31: 67 | E31: 98 | F31: 134 | G31: 167 | H31: 192 | I31: 215 | J31: 237 | K31: 253 | L31: 266 | M31: 283 | N31: 295 | O31: 300 | P31: 309 | Q31: 321 | R31: 327 | S31: 333 | T31: 338 | U31: 342 | V31: 346 | W31: 347 | X31: 352 | Y31: 363 | Z31: 365 | AA31: 404
A32: 2024-01-31 | B32: 847 | C32: 37 | D32: 70 | E32: 84 | F32: 116 | G32: 149 | H32: 170 | I32: 190 | J32: 214 | K32: 225 | L32: 232 | M32: 242 | N32: 252 | O32: 260 | P32: 265 | Q32: 276 | R32: 285 | S32: 296 | T32: 300 | U32: 301 | V32: 309 | W32: 314 | X32: 314 | Y32: 314 | Z32: 315 | AA32: 532
A33: 2024-02-01 | B33: 739 | C33: 23 | D33: 35 | E33: 43 | F33: 54 | G33: 66 | H33: 70 | I33: 74 | J33: 75 | K33: 78 | L33: 80 | M33: 87 | N33: 90 | O33: 97 | P33: 100 | Q33: 104 | R33: 104 | S33: 106 | T33: 107 | U33: 109 | V33: 109 | W33: 109 | X33: 109 | Y33: 109 | Z33: 109 | AA33: 630
A34: 2024-02-02 | B34: 834 | C34: 12 | D34: 19 | E34: 21 | F34: 22 | G34: 22 | H34: 24 | I34: 25 | J34: 26 | K34: 28 | L34: 29 | M34: 29 | N34: 29 | O34: 30 | P34: 30 | Q34: 30 | R34: 30 | S34: 30 | T34: 30 | U34: 30 | V34: 30 | W34: 30 | X34: 30 | Y34: 30 | Z34: 30 | AA34: 804
A35: 2024-02-03 | B35: 445 | C35: 2 | D35: 2 | E35: 2 | F35: 3 | G35: 3 | H35: 3 | I35: 3 | J35: 3 | K35: 3 | L35: 3 | M35: 3 | N35: 3 | O35: 3 | P35: 3 | Q35: 3 | R35: 3 | S35: 3 | T35: 3 | U35: 3 | V35: 3 | W35: 3 | X35: 3 | Y35: 3 | Z35: 3 | AA35: 442
A36: 2024-02-04 | B36: 1308 | C36: 0 | D36: 0 | E36: 0 | F36: 0 | G36: 1 | H36: 1 | I36: 3 | J36: 3 | K36: 3 | L36: 3 | M36: 4 | N36: 4 | O36: 4 | P36: 4 | Q36: 4 | R36: 4 | S36: 4 | T36: 4 | U36: 4 | V36: 4 | W36: 4 | X36: 4 | Y36: 5 | Z36: 5 | AA36: 1303
A37: 2024-02-05 | B37: 1077 | C37: 0 | D37: 0 | E37: 1 | F37: 1 | G37: 1 | H37: 1 | I37: 1 | J37: 1 | K37: 1 | L37: 1 | M37: 1 | N37: 1 | O37: 1 | P37: 1 | Q37: 1 | R37: 1 | S37: 1 | T37: 1 | U37: 1 | V37: 1 | W37: 1 | X37: 1 | Y37: 1 | Z37: 1 | AA37: 1076
A38: 2024-02-06 | B38: 914 | C38: 0 | D38: 1 | E38: 1 | F38: 1 | G38: 1 | H38: 1 | I38: 1 | J38: 1 | K38: 1 | L38: 1 | M38: 1 | N38: 1 | O38: 1 | P38: 1 | Q38: 1 | R38: 1 | S38: 1 | T38: 1 | U38: 1 | V38: 1 | W38: 1 | X38: 1 | Y38: 1 | Z38: 1 | AA38: 913
A39: 2024-02-07 | B39: 798 | C39: 0 | D39: 0 | E39: 0 | F39: 0 | G39: 0 | H39: 0 | I39: 0 | J39: 0 | K39: 0 | L39: 0 | M39: 0 | N39: 0 | O39: 0 | P39: 0 | Q39: 0 | R39: 0 | S39: 0 | T39: 0 | U39: 0 | V39: 0 | W39: 0 | X39: 0 | Y39: 0 | Z39: 0 | AA39: 798
A40: 2024-02-08 | B40: 780 | C40: 0 | D40: 0 | E40: 0 | F40: 0 | G40: 0 | H40: 0 | I40: 0 | J40: 0 | K40: 0 | L40: 0 | M40: 0 | N40: 0 | O40: 0 | P40: 0 | Q40: 0 | R40: 0 | S40: 0 | T40: 0 | U40: 0 | V40: 0 | W40: 0 | X40: 0 | Y40: 0 | Z40: 0 | AA40: 780
A41: 2024-02-09 | B41: 427 | C41: 0 | D41: 0 | E41: 0 | F41: 0 | G41: 0 | H41: 0 | I41: 0 | J41: 0 | K41: 0 | L41: 0 | M41: 0 | N41: 0 | O41: 0 | P41: 0 | Q41: 0 | R41: 0 | S41: 0 | T41: 0 | U41: 0 | V41: 0 | W41: 0 | X41: 0 | Y41: 0 | Z41: 0 | AA41: 427
A42: 2024-02-10 | B42: 369 | C42: 0 | D42: 0 | E42: 0 | F42: 0 | G42: 0 | H42: 0 | I42: 0 | J42: 0 | K42: 0 | L42: 0 | M42: 0 | N42: 0 | O42: 0 | P42: 0 | Q42: 0 | R42: 0 | S42: 0 | T42: 0 | U42: 0 | V42: 0 | W42: 0 | X42: 0 | Y42: 0 | Z42: 0 | AA42: 369
A43: 2024-02-11 | B43: 1155 | C43: 0 | D43: 0 | E43: 0 | F43: 0 | G43: 0 | H43: 0 | I43: 0 | J43: 0 | K43: 0 | L43: 0 | M43: 0 | N43: 0 | O43: 0 | P43: 0 | Q43: 0 | R43: 0 | S43: 0 | T43: 0 | U43: 0 | V43: 0 | W43: 0 | X43: 0 | Y43: 0 | Z43: 0 | AA43: 1155
A44: 2024-02-12 | B44: 497 | C44: 0 | D44: 0 | E44: 0 | F44: 0 | G44: 0 | H44: 0 | I44: 0 | J44: 0 | K44: 0 | L44: 0 | M44: 0 | N44: 0 | O44: 0 | P44: 0 | Q44: 0 | R44: 0 | S44: 0 | T44: 0 | U44: 0 | V44: 0 | W44: 0 | X44: 0 | Y44: 0 | Z44: 0 | AA44: 497
A45: 2024-02-13 | B45: 458 | C45: 0 | D45: 0 | E45: 0 | F45: 0 | G45: 0 | H45: 0 | I45: 0 | J45: 0 | K45: 0 | L45: 0 | M45: 0 | N45: 0 | O45: 0 | P45: 0 | Q45: 0 | R45: 0 | S45: 0 | T45: 0 | U45: 0 | V45: 0 | W45: 0 | X45: 0 | Y45: 0 | Z45: 0 | AA45: 458
A46: 2024-02-14 | B46: 415 | C46: 0 | D46: 0 | E46: 0 | F46: 0 | G46: 0 | H46: 0 | I46: 0 | J46: 0 | K46: 0 | L46: 0 | M46: 0 | N46: 0 | O46: 0 | P46: 0 | Q46: 0 | R46: 0 | S46: 0 | T46: 0 | U46: 0 | V46: 0 | W46: 0 | X46: 0 | Y46: 0 | Z46: 0 | AA46: 415
A47: 2024-02-15 | B47: 399 | C47: 0 | D47: 0 | E47: 0 | F47: 0 | G47: 0 | H47: 0 | I47: 0 | J47: 0 | K47: 0 | L47: 0 | M47: 0 | N47: 0 | O47: 0 | P47: 0 | Q47: 0 | R47: 0 | S47: 0 | T47: 0 | U47: 0 | V47: 0 | W47: 0 | X47: 0 | Y47: 0 | Z47: 0 | AA47: 399
A48: 2024-02-16 | B48: 577 | C48: 0 | D48: 0 | E48: 0 | F48: 0 | G48: 0 | H48: 0 | I48: 0 | J48: 0 | K48: 0 | L48: 0 | M48: 0 | N48: 0 | O48: 0 | P48: 2 | Q48: 2 | R48: 4 | S48: 7 | T48: 7 | U48: 9 | V48: 10 | W48: 15 | X48: 19 | Y48: 22 | Z48: 28 | AA48: 549
A49: 2024-02-17 | B49: 1409 | C49: 17 | D49: 63 | E49: 75 | F49: 101 | G49: 113 | H49: 134 | I49: 152 | J49: 166 | K49: 186 | L49: 205 | M49: 230 | N49: 239 | O49: 242 | P49: 248 | Q49: 260 | R49: 271 | S49: 282 | T49: 287 | U49: 288 | V49: 291 | W49: 316 | X49: 326 | Y49: 331 | Z49: 338 | AA49: 1071
A50: 2024-02-18 | B50: 2076 | C50: 55 | D50: 100 | E50: 135 | F50: 180 | G50: 223 | H50: 247 | I50: 268 | J50: 289 | K50: 316 | L50: 342 | M50: 354 | N50: 367 | O50: 372 | P50: 381 | Q50: 389 | R50: 399 | S50: 427 | T50: 454 | U50: 468 | V50: 485 | W50: 501 | X50: 520 | Y50: 538 | Z50: 554 | AA50: 1522
A51: 2024-02-19 | B51: 1010 | C51: 16 | D51: 43 | E51: 83 | F51: 106 | G51: 122 | H51: 150 | I51: 170 | J51: 195 | K51: 219 | L51: 236 | M51: 248 | N51: 260 | O51: 268 | P51: 280 | Q51: 302 | R51: 307 | S51: 316 | T51: 328 | U51: 341 | V51: 352 | W51: 359 | X51: 366 | Y51: 376 | Z51: 388 | AA51: 622
A52: 2024-02-20 | B52: 950 | C52: 54 | D52: 97 | E52: 122 | F52: 134 | G52: 150 | H52: 186 | I52: 205 | J52: 235 | K52: 277 | L52: 301 | M52: 315 | N52: 329 | O52: 344 | P52: 349 | Q52: 355 | R52: 365 | S52: 382 | T52: 395 | U52: 399 | V52: 408 | W52: 413 | X52: 424 | Y52: 438 | Z52: 449 | AA52: 501
A53: 2024-02-21 | B53: 811 | C53: 41 | D53: 80 | E53: 113 | F53: 139 | G53: 173 | H53: 206 | I53: 223 | J53: 236 | K53: 266 | L53: 302 | M53: 319 | N53: 331 | O53: 350 | P53: 367 | Q53: 378 | R53: 387 | S53: 400 | T53: 410 | U53: 425 | V53: 431 | W53: 437 | X53: 449 | Y53: 458 | Z53: 463 | AA53: 348
A54: 2024-02-22 | B54: 747 | C54: 51 | D54: 97 | E54: 126 | F54: 147 | G54: 176 | H54: 194 | I54: 211 | J54: 234 | K54: 281 | L54: 302 | M54: 337 | N54: 350 | O54: 358 | P54: 370 | Q54: 381 | R54: 388 | S54: 401 | T54: 412 | U54: 421 | V54: 428 | W54: 440 | X54: 450 | Y54: 455 | Z54: 463 | AA54: 284
A55: 2024-02-23 | B55: 775 | C55: 53 | D55: 99 | E55: 141 | F55: 161 | G55: 195 | H55: 217 | I55: 236 | J55: 267 | K55: 320 | L55: 354 | M55: 368 | N55: 389 | O55: 400 | P55: 413 | Q55: 426 | R55: 440 | S55: 448 | T55: 462 | U55: 470 | V55: 479 | W55: 484 | X55: 486 | Y55: 494 | Z55: 497 | AA55: 278
A56: 2024-02-24 | B56: 783 | C56: 10 | D56: 53 | E56: 143 | F56: 201 | G56: 242 | H56: 258 | I56: 269 | J56: 278 | K56: 291 | L56: 303 | M56: 319 | N56: 336 | O56: 342 | P56: 346 | Q56: 358 | R56: 368 | S56: 378 | T56: 393 | U56: 401 | V56: 414 | W56: 434 | X56: 450 | Y56: 456 | Z56: 465 | AA56: 318
A57: 2024-02-25 | B57: 918 | C57: 91 | D57: 147 | E57: 182 | F57: 201 | G57: 218 | H57: 248 | I57: 264 | J57: 286 | K57: 305 | L57: 330 | M57: 346 | N57: 363 | O57: 377 | P57: 390 | Q57: 405 | R57: 420 | S57: 437 | T57: 451 | U57: 467 | V57: 484 | W57: 491 | X57: 500 | Y57: 513 | Z57: 526 | AA57: 392
A58: 2024-02-26 | B58: 967 | C58: 93 | D58: 175 | E58: 230 | F58: 278 | G58: 351 | H58: 404 | I58: 430 | J58: 461 | K58: 499 | L58: 523 | M58: 543 | N58: 567 | O58: 587 | P58: 607 | Q58: 627 | R58: 641 | S58: 657 | T58: 674 | U58: 688 | V58: 704 | W58: 710 | X58: 720 | Y58: 733 | Z58: 741 | AA58: 226
A59: 2024-02-27 | B59: 846 | C59: 111 | D59: 194 | E59: 234 | F59: 280 | G59: 316 | H59: 360 | I59: 396 | J59: 433 | K59: 454 | L59: 482 | M59: 516 | N59: 548 | O59: 561 | P59: 575 | Q59: 597 | R59: 609 | S59: 622 | T59: 639 | U59: 652 | V59: 660 | W59: 666 | X59: 671 | Y59: 672 | Z59: 676 | AA59: 170
A60: 2024-02-28 | B60: 953 | C60: 108 | D60: 158 | E60: 194 | F60: 253 | G60: 291 | H60: 328 | I60: 350 | J60: 388 | K60: 433 | L60: 451 | M60: 460 | N60: 478 | O60: 502 | P60: 524 | Q60: 549 | R60: 569 | S60: 592 | T60: 612 | U60: 626 | V60: 636 | W60: 638 | X60: 648 | Y60: 654 | Z60: 670 | AA60: 283
A61: 2024-02-29 | B61: 868 | C61: 52 | D61: 104 | E61: 168 | F61: 211 | G61: 252 | H61: 278 | I61: 322 | J61: 354 | K61: 379 | L61: 396 | M61: 409 | N61: 426 | O61: 439 | P61: 453 | Q61: 469 | R61: 487 | S61: 501 | T61: 509 | U61: 515 | V61: 533 | W61: 548 | X61: 558 | Y61: 565 | Z61: 577 | AA61: 291
A62: 2024-03-01 | B62: 819 | C62: 51 | D62: 133 | E62: 180 | F62: 226 | G62: 254 | H62: 278 | I62: 313 | J62: 364 | K62: 400 | L62: 452 | M62: 479 | N62: 492 | O62: 500 | P62: 514 | Q62: 534 | R62: 552 | S62: 573 | T62: 587 | U62: 589 | V62: 593 | W62: 598 | X62: 601 | Y62: 607 | Z62: 613 | AA62: 206
A63: 2024-03-02 | B63: 686 | C63: 39 | D63: 73 | E63: 102 | F63: 118 | G63: 145 | H63: 174 | I63: 211 | J63: 229 | K63: 248 | L63: 255 | M63: 267 | N63: 275 | O63: 287 | P63: 297 | Q63: 301 | R63: 310 | S63: 317 | T63: 325 | U63: 331 | V63: 343 | W63: 359 | X63: 362 | Y63: 368 | Z63: 374 | AA63: 312
A64: 2024-03-03 | B64: 934 | C64: 18 | D64: 51 | E64: 87 | F64: 126 | G64: 182 | H64: 214 | I64: 256 | J64: 286 | K64: 299 | L64: 311 | M64: 325 | N64: 336 | O64: 347 | P64: 354 | Q64: 363 | R64: 375 | S64: 390 | T64: 407 | U64: 419 | V64: 434 | W64: 453 | X64: 463 | Y64: 475 | Z64: 494 | AA64: 440
A65: 2024-03-04 | B65: 1065 | C65: 26 | D65: 77 | E65: 135 | F65: 228 | G65: 272 | H65: 317 | I65: 380 | J65: 412 | K65: 428 | L65: 448 | M65: 468 | N65: 484 | O65: 500 | P65: 522 | Q65: 538 | R65: 550 | S65: 565 | T65: 581 | U65: 599 | V65: 614 | W65: 637 | X65: 658 | Y65: 675 | Z65: 698 | AA65: 367
A66: 2024-03-05 | B66: 945 | C66: 78 | D66: 148 | E66: 229 | F66: 325 | G66: 400 | H66: 446 | I66: 488 | J66: 527 | K66: 564 | L66: 602 | M66: 638 | N66: 667 | O66: 688 | P66: 707 | Q66: 724 | R66: 744 | S66: 750 | T66: 761 | U66: 769 | V66: 777 | W66: 789 | X66: 795 | Y66: 808 | Z66: 811 | AA66: 134
A67: 2024-03-06 | B67: 945 | C67: 82 | D67: 134 | E67: 187 | F67: 234 | G67: 311 | H67: 364 | I67: 399 | J67: 453 | K67: 466 | L67: 478 | M67: 498 | N67: 511 | O67: 530 | P67: 544 | Q67: 567 | R67: 580 | S67: 603 | T67: 629 | U67: 642 | V67: 658 | W67: 671 | X67: 680 | Y67: 688 | Z67: 705 | AA67: 240
A68: 2024-03-07 | B68: 1055 | C68: 69 | D68: 158 | E68: 217 | F68: 304 | G68: 353 | H68: 390 | I68: 445 | J68: 502 | K68: 529 | L68: 543 | M68: 567 | N68: 585 | O68: 605 | P68: 627 | Q68: 647 | R68: 667 | S68: 685 | T68: 698 | U68: 719 | V68: 732 | W68: 749 | X68: 755 | Y68: 773 | Z68: 802 | AA68: 253
A69: 2024-03-08 | B69: 877 | C69: 51 | D69: 104 | E69: 146 | F69: 193 | G69: 268 | H69: 311 | I69: 363 | J69: 402 | K69: 429 | L69: 450 | M69: 469 | N69: 489 | O69: 508 | P69: 523 | Q69: 534 | R69: 558 | S69: 569 | T69: 580 | U69: 586 | V69: 594 | W69: 602 | X69: 605 | Y69: 610 | Z69: 614 | AA69: 263
A70: 2024-03-09 | B70: 671 | C70: 21 | D70: 37 | E70: 58 | F70: 65 | G70: 110 | H70: 135 | I70: 159 | J70: 209 | K70: 223 | L70: 236 | M70: 249 | N70: 266 | O70: 272 | P70: 285 | Q70: 292 | R70: 312 | S70: 326 | T70: 332 | U70: 344 | V70: 352 | W70: 363 | X70: 366 | Y70: 378 | Z70: 386 | AA70: 285
A71: 2024-03-10 | B71: 852 | C71: 28 | D71: 58 | E71: 70 | F71: 86 | G71: 146 | H71: 187 | I71: 222 | J71: 251 | K71: 264 | L71: 278 | M71: 296 | N71: 306 | O71: 315 | P71: 330 | Q71: 339 | R71: 357 | S71: 368 | T71: 386 | U71: 402 | V71: 409 | W71: 421 | X71: 434 | Y71: 447 | Z71: 456 | AA71: 396
A72: 2024-03-11 | B72: 998 | C72: 49 | D72: 107 | E72: 188 | F72: 255 | G72: 330 | H72: 403 | I72: 462 | J72: 521 | K72: 576 | L72: 602 | M72: 622 | N72: 643 | O72: 666 | P72: 683 | Q72: 700 | R72: 721 | S72: 736 | T72: 752 | U72: 763 | V72: 776 | W72: 787 | X72: 797 | Y72: 806 | Z72: 811 | AA72: 187
A73: 2024-03-12 | B73: 967 | C73: 29 | D73: 87 | E73: 140 | F73: 203 | G73: 247 | H73: 331 | I73: 403 | J73: 457 | K73: 478 | L73: 505 | M73: 524 | N73: 550 | O73: 568 | P73: 585 | Q73: 607 | R73: 626 | S73: 642 | T73: 660 | U73: 669 | V73: 689 | W73: 699 | X73: 716 | Y73: 755 | Z73: 770 | AA73: 197
A74: 2024-03-13 | B74: 825 | C74: 40 | D74: 112 | E74: 157 | F74: 205 | G74: 248 | H74: 293 | I74: 348 | J74: 423 | K74: 446 | L74: 465 | M74: 486 | N74: 505 | O74: 520 | P74: 538 | Q74: 551 | R74: 566 | S74: 582 | T74: 594 | U74: 608 | V74: 614 | W74: 625 | X74: 636 | Y74: 657 | Z74: 679 | AA74: 146
A75: 2024-03-14 | B75: 767 | C75: 50 | D75: 122 | E75: 180 | F75: 230 | G75: 283 | H75: 324 | I75: 370 | J75: 408 | K75: 426 | L75: 448 | M75: 460 | N75: 479 | O75: 492 | P75: 503 | Q75: 513 | R75: 527 | S75: 540 | T75: 552 | U75: 569 | V75: 580 | W75: 596 | X75: 616 | Y75: 635 | Z75: 669 | AA75: 98
A76: 2024-03-15 | B76: 762 | C76: 57 | D76: 143 | E76: 204 | F76: 291 | G76: 340 | H76: 377 | I76: 426 | J76: 470 | K76: 486 | L76: 507 | M76: 522 | N76: 538 | O76: 547 | P76: 565 | Q76: 586 | R76: 602 | S76: 614 | T76: 630 | U76: 643 | V76: 656 | W76: 665 | X76: 667 | Y76: 671 | Z76: 677 | AA76: 85
A77: 2024-03-16 | B77: 607 | C77: 28 | D77: 72 | E77: 109 | F77: 125 | G77: 183 | H77: 210 | I77: 246 | J77: 270 | K77: 296 | L77: 306 | M77: 315 | N77: 326 | O77: 341 | P77: 350 | Q77: 361 | R77: 373 | S77: 387 | T77: 399 | U77: 401 | V77: 410 | W77: 412 | X77: 417 | Y77: 425 | Z77: 430 | AA77: 177
A78: 2024-03-17 | B78: 782 | C78: 20 | D78: 58 | E78: 91 | F78: 131 | G78: 186 | H78: 226 | I78: 249 | J78: 278 | K78: 286 | L78: 302 | M78: 306 | N78: 315 | O78: 321 | P78: 337 | Q78: 346 | R78: 356 | S78: 364 | T78: 378 | U78: 392 | V78: 402 | W78: 410 | X78: 423 | Y78: 436 | Z78: 458 | AA78: 324
A79: 2024-03-18 | B79: 1006 | C79: 22 | D79: 82 | E79: 157 | F79: 206 | G79: 263 | H79: 309 | I79: 380 | J79: 437 | K79: 461 | L79: 483 | M79: 501 | N79: 523 | O79: 533 | P79: 549 | Q79: 558 | R79: 566 | S79: 581 | T79: 591 | U79: 612 | V79: 631 | W79: 647 | X79: 656 | Y79: 663 | Z79: 672 | AA79: 334
A80: 2024-03-19 | B80: 747 | C80: 23 | D80: 106 | E80: 163 | F80: 200 | G80: 254 | H80: 320 | I80: 358 | J80: 395 | K80: 415 | L80: 424 | M80: 433 | N80: 445 | O80: 461 | P80: 477 | Q80: 489 | R80: 506 | S80: 518 | T80: 525 | U80: 537 | V80: 544 | W80: 552 | X80: 559 | Y80: 570 | Z80: 577 | AA80: 170
A81: 2024-03-20 | B81: 631 | C81: 49 | D81: 109 | E81: 150 | F81: 187 | G81: 234 | H81: 269 | I81: 310 | J81: 360 | K81: 389 | L81: 397 | M81: 411 | N81: 429 | O81: 445 | P81: 464 | Q81: 472 | R81: 482 | S81: 490 | T81: 499 | U81: 512 | V81: 519 | W81: 526 | X81: 536 | Y81: 542 | Z81: 550 | AA81: 81
A82: 2024-03-21 | B82: 618 | C82: 37 | D82: 111 | E82: 144 | F82: 175 | G82: 222 | H82: 267 | I82: 318 | J82: 354 | K82: 371 | L82: 392 | M82: 407 | N82: 435 | O82: 455 | P82: 467 | Q82: 482 | R82: 498 | S82: 514 | T82: 520 | U82: 529 | V82: 533 | W82: 537 | X82: 540 | Y82: 546 | Z82: 548 | AA82: 70
A83: 2024-03-22 | B83: 642 | C83: 48 | D83: 95 | E83: 155 | F83: 215 | G83: 303 | H83: 337 | I83: 386 | J83: 430 | K83: 450 | L83: 465 | M83: 472 | N83: 476 | O83: 482 | P83: 490 | Q83: 499 | R83: 510 | S83: 516 | T83: 525 | U83: 531 | V83: 535 | W83: 538 | X83: 540 | Y83: 543 | Z83: 551 | AA83: 91
A84: 2024-03-23 | B84: 271 | C84: 7 | D84: 21 | E84: 39 | F84: 52 | G84: 61 | H84: 84 | I84: 100 | J84: 111 | K84: 123 | L84: 132 | M84: 146 | N84: 153 | O84: 157 | P84: 167 | Q84: 175 | R84: 180 | S84: 184 | T84: 187 | U84: 191 | V84: 194 | W84: 196 | X84: 198 | Y84: 199 | Z84: 199 | AA84: 72
A85: 2024-03-24 | B85: 895 | C85: 9 | D85: 53 | E85: 93 | F85: 135 | G85: 193 | H85: 262 | I85: 323 | J85: 361 | K85: 371 | L85: 389 | M85: 400 | N85: 413 | O85: 425 | P85: 435 | Q85: 448 | R85: 459 | S85: 468 | T85: 478 | U85: 491 | V85: 500 | W85: 506 | X85: 513 | Y85: 522 | Z85: 554 | AA85: 341
A86: 2024-03-25 | B86: 786 | C86: 38 | D86: 82 | E86: 135 | F86: 179 | G86: 249 | H86: 332 | I86: 383 | J86: 429 | K86: 457 | L86: 471 | M86: 492 | N86: 511 | O86: 529 | P86: 541 | Q86: 552 | R86: 561 | S86: 578 | T86: 588 | U86: 599 | V86: 611 | W86: 619 | X86: 629 | Y86: 634 | Z86: 646 | AA86: 140
A87: 2024-03-26 | B87: 655 | C87: 36 | D87: 131 | E87: 185 | F87: 223 | G87: 287 | H87: 326 | I87: 356 | J87: 390 | K87: 407 | L87: 426 | M87: 440 | N87: 462 | O87: 478 | P87: 484 | Q87: 497 | R87: 512 | S87: 520 | T87: 534 | U87: 544 | V87: 548 | W87: 555 | X87: 562 | Y87: 569 | Z87: 581 | AA87: 74
A88: 2024-03-27 | B88: 557 | C88: 43 | D88: 94 | E88: 147 | F88: 196 | G88: 231 | H88: 295 | I88: 335 | J88: 380 | K88: 397 | L88: 412 | M88: 425 | N88: 431 | O88: 441 | P88: 448 | Q88: 455 | R88: 462 | S88: 469 | T88: 475 | U88: 479 | V88: 484 | W88: 487 | X88: 493 | Y88: 501 | Z88: 511 | AA88: 46
A89: 2024-03-28 | B89: 597 | C89: 56 | D89: 130 | E89: 168 | F89: 210 | G89: 254 | H89: 306 | I89: 349 | J89: 391 | K89: 413 | L89: 434 | M89: 446 | N89: 456 | O89: 468 | P89: 481 | Q89: 493 | R89: 504 | S89: 518 | T89: 529 | U89: 532 | V89: 540 | W89: 545 | X89: 549 | Y89: 555 | Z89: 560 | AA89: 37
A90: 2024-03-29 | B90: 672 | C90: 42 | D90: 106 | E90: 175 | F90: 236 | G90: 297 | H90: 349 | I90: 395 | J90: 454 | K90: 469 | L90: 483 | M90: 498 | N90: 511 | O90: 521 | P90: 528 | Q90: 537 | R90: 548 | S90: 562 | T90: 570 | U90: 577 | V90: 583 | W90: 591 | X90: 599 | Y90: 602 | Z90: 604 | AA90: 68
A91: 2024-03-30 | B91: 530 | C91: 11 | D91: 41 | E91: 85 | F91: 115 | G91: 152 | H91: 196 | I91: 247 | J91: 277 | K91: 299 | L91: 309 | M91: 322 | N91: 334 | O91: 342 | P91: 349 | Q91: 361 | R91: 362 | S91: 368 | T91: 372 | U91: 380 | V91: 390 | W91: 399 | X91: 405 | Y91: 409 | Z91: 410 | AA91: 120
A92: 2024-03-31 | B92: 522 | C92: 17 | D92: 45 | E92: 61 | F92: 98 | G92: 131 | H92: 158 | I92: 199 | J92: 228 | K92: 233 | L92: 242 | M92: 247 | N92: 258 | O92: 269 | P92: 272 | Q92: 285 | R92: 294 | S92: 299 | T92: 306 | U92: 313 | V92: 320 | W92: 329 | X92: 334 | Y92: 338 | Z92: 344 | AA92: 178
A93: 2024-04-01 | B93: 742 | C93: 50 | D93: 111 | E93: 172 | F93: 238 | G93: 302 | H93: 344 | I93: 381 | J93: 419 | K93: 435 | L93: 450 | M93: 457 | N93: 474 | O93: 483 | P93: 493 | Q93: 507 | R93: 519 | S93: 532 | T93: 545 | U93: 550 | V93: 557 | W93: 562 | X93: 579 | Y93: 586 | Z93: 597 | AA93: 145
A94: 2024-04-02 | B94: 666 | C94: 53 | D94: 147 | E94: 219 | F94: 266 | G94: 302 | H94: 333 | I94: 389 | J94: 419 | K94: 437 | L94: 451 | M94: 456 | N94: 469 | O94: 483 | P94: 494 | Q94: 502 | R94: 514 | S94: 525 | T94: 538 | U94: 548 | V94: 558 | W94: 566 | X94: 574 | Y94: 587 | Z94: 600 | AA94: 66
A95: 2024-04-03 | B95: 689 | C95: 28 | D95: 88 | E95: 139 | F95: 175 | G95: 247 | H95: 289 | I95: 355 | J95: 405 | K95: 418 | L95: 429 | M95: 446 | N95: 467 | O95: 476 | P95: 490 | Q95: 493 | R95: 499 | S95: 505 | T95: 521 | U95: 530 | V95: 532 | W95: 538 | X95: 547 | Y95: 556 | Z95: 564 | AA95: 125
A96: 2024-04-04 | B96: 588 | C96: 10 | D96: 19 | E96: 74 | F96: 90 | G96: 137 | H96: 165 | I96: 182 | J96: 211 | K96: 224 | L96: 234 | M96: 244 | N96: 253 | O96: 258 | P96: 265 | Q96: 269 | R96: 282 | S96: 292 | T96: 302 | U96: 305 | V96: 318 | W96: 328 | X96: 338 | Y96: 349 | Z96: 356 | AA96: 232
A97: 2024-04-05 | B97: 714 | C97: 24 | D97: 91 | E97: 156 | F97: 192 | G97: 237 | H97: 273 | I97: 306 | J97: 355 | K97: 386 | L97: 397 | M97: 423 | N97: 442 | O97: 465 | P97: 477 | Q97: 489 | R97: 497 | S97: 509 | T97: 515 | U97: 520 | V97: 529 | W97: 532 | X97: 537 | Y97: 546 | Z97: 551 | AA97: 163
A98: 2024-04-06 | B98: 661 | C98: 24 | D98: 64 | E98: 111 | F98: 135 | G98: 157 | H98: 188 | I98: 208 | J98: 250 | K98: 288 | L98: 305 | M98: 325 | N98: 337 | O98: 346 | P98: 366 | Q98: 379 | R98: 386 | S98: 391 | T98: 396 | U98: 397 | V98: 403 | W98: 413 | X98: 419 | Y98: 422 | Z98: 423 | AA98: 238
A99: 2024-04-07 | B99: 793 | C99: 15 | D99: 34 | E99: 49 | F99: 63 | G99: 131 | H99: 169 | I99: 180 | J99: 201 | K99: 209 | L99: 214 | M99: 219 | N99: 224 | O99: 228 | P99: 235 | Q99: 248 | R99: 261 | S99: 271 | T99: 287 | U99: 304 | V99: 319 | W99: 336 | X99: 347 | Y99: 367 | Z99: 390 | AA99: 403
A100: 2024-04-08 | B100: 908 | C100: 41 | D100: 93 | E100: 133 | F100: 184 | G100: 270 | H100: 363 | I100: 411 | J100: 457 | K100: 483 | L100: 503 | M100: 522 | N100: 536 | O100: 546 | P100: 565 | Q100: 576 | R100: 590 | S100: 599 | T100: 620 | U100: 641 | V100: 654 | W100: 666 | X100: 677 | Y100: 690 | Z100: 709 | AA100: 199
A101: 2024-04-09 | B101: 676 | C101: 30 | D101: 72 | E101: 123 | F101: 151 | G101: 198 | H101: 244 | I101: 286 | J101: 310 | K101: 324 | L101: 344 | M101: 362 | N101: 372 | O101: 390 | P101: 405 | Q101: 417 | R101: 429 | S101: 450 | T101: 469 | U101: 477 | V101: 487 | W101: 495 | X101: 501 | Y101: 510 | Z101: 518 | AA101: 158
A102: 2024-04-10 | B102: 822 | C102: 38 | D102: 95 | E102: 118 | F102: 177 | G102: 211 | H102: 283 | I102: 336 | J102: 380 | K102: 397 | L102: 412 | M102: 423 | N102: 444 | O102: 466 | P102: 487 | Q102: 505 | R102: 516 | S102: 529 | T102: 541 | U102: 557 | V102: 567 | W102: 583 | X102: 594 | Y102: 603 | Z102: 609 | AA102: 213
A103: 2024-04-11 | B103: 901 | C103: 49 | D103: 95 | E103: 144 | F103: 214 | G103: 251 | H103: 334 | I103: 379 | J103: 428 | K103: 451 | L103: 467 | M103: 488 | N103: 510 | O103: 518 | P103: 533 | Q103: 544 | R103: 562 | S103: 577 | T103: 595 | U103: 614 | V103: 624 | W103: 638 | X103: 649 | Y103: 657 | Z103: 682 | AA103: 219
A104: 2024-04-12 | B104: 821 | C104: 32 | D104: 101 | E104: 151 | F104: 195 | G104: 250 | H104: 276 | I104: 330 | J104: 376 | K104: 404 | L104: 421 | M104: 436 | N104: 456 | O104: 476 | P104: 496 | Q104: 512 | R104: 526 | S104: 545 | T104: 554 | U104: 564 | V104: 571 | W104: 584 | X104: 596 | Y104: 611 | Z104: 627 | AA104: 194
A105: 2024-04-13 | B105: 606 | C105: 5 | D105: 28 | E105: 67 | F105: 82 | G105: 113 | H105: 136 | I105: 161 | J105: 205 | K105: 229 | L105: 238 | M105: 250 | N105: 254 | O105: 263 | P105: 280 | Q105: 290 | R105: 299 | S105: 305 | T105: 317 | U105: 323 | V105: 332 | W105: 338 | X105: 344 | Y105: 350 | Z105: 356 | AA105: 250
A106: 2024-04-14 | B106: 761 | C106: 29 | D106: 59 | E106: 97 | F106: 120 | G106: 145 | H106: 187 | I106: 226 | J106: 263 | K106: 280 | L106: 285 | M106: 292 | N106: 298 | O106: 305 | P106: 315 | Q106: 332 | R106: 352 | S106: 371 | T106: 381 | U106: 399 | V106: 408 | W106: 420 | X106: 432 | Y106: 439 | Z106: 461 | AA106: 300
A107: 2024-04-15 | B107: 881 | C107: 42 | D107: 92 | E107: 143 | F107: 206 | G107: 260 | H107: 346 | I107: 397 | J107: 436 | K107: 453 | L107: 471 | M107: 494 | N107: 510 | O107: 527 | P107: 556 | Q107: 572 | R107: 590 | S107: 613 | T107: 623 | U107: 640 | V107: 650 | W107: 665 | X107: 673 | Y107: 677 | Z107: 692 | AA107: 189
A108: 2024-04-16 | B108: 700 | C108: 27 | D108: 58 | E108: 104 | F108: 124 | G108: 178 | H108: 224 | I108: 273 | J108: 326 | K108: 342 | L108: 362 | M108: 377 | N108: 398 | O108: 422 | P108: 440 | Q108: 450 | R108: 465 | S108: 485 | T108: 506 | U108: 518 | V108: 535 | W108: 546 | X108: 552 | Y108: 564 | Z108: 578 | AA108: 122
A109: 2024-04-17 | B109: 744 | C109: 37 | D109: 87 | E109: 133 | F109: 186 | G109: 223 | H109: 280 | I109: 316 | J109: 371 | K109: 395 | L109: 419 | M109: 441 | N109: 458 | O109: 476 | P109: 493 | Q109: 509 | R109: 524 | S109: 544 | T109: 552 | U109: 561 | V109: 576 | W109: 595 | X109: 610 | Y109: 624 | Z109: 635 | AA109: 109
A110: 2024-04-18 | B110: 794 | C110: 71 | D110: 130 | E110: 181 | F110: 240 | G110: 299 | H110: 361 | I110: 453 | J110: 495 | K110: 516 | L110: 538 | M110: 556 | N110: 568 | O110: 585 | P110: 611 | Q110: 623 | R110: 644 | S110: 652 | T110: 665 | U110: 672 | V110: 681 | W110: 683 | X110: 692 | Y110: 706 | Z110: 716 | AA110: 78
A111: 2024-04-19 | B111: 708 | C111: 61 | D111: 112 | E111: 159 | F111: 208 | G111: 277 | H111: 347 | I111: 395 | J111: 431 | K111: 453 | L111: 478 | M111: 495 | N111: 509 | O111: 527 | P111: 542 | Q111: 563 | R111: 583 | S111: 594 | T111: 615 | U111: 621 | V111: 633 | W111: 641 | X111: 645 | Y111: 652 | Z111: 653 | AA111: 55
A112: 2024-04-20 | B112: 589 | C112: 88 | D112: 172 | E112: 240 | F112: 256 | G112: 283 | H112: 305 | I112: 330 | J112: 345 | K112: 365 | L112: 375 | M112: 386 | N112: 390 | O112: 404 | P112: 413 | Q112: 415 | R112: 418 | S112: 428 | T112: 437 | U112: 441 | V112: 444 | W112: 450 | X112: 455 | Y112: 458 | Z112: 458 | AA112: 131
A113: 2024-04-21 | B113: 837 | C113: 4 | D113: 14 | E113: 21 | F113: 22 | G113: 41 | H113: 76 | I113: 118 | J113: 149 | K113: 166 | L113: 177 | M113: 186 | N113: 200 | O113: 216 | P113: 235 | Q113: 245 | R113: 257 | S113: 271 | T113: 300 | U113: 333 | V113: 345 | W113: 357 | X113: 370 | Y113: 388 | Z113: 405 | AA113: 432
A114: 2024-04-22 | B114: 895 | C114: 42 | D114: 101 | E114: 153 | F114: 186 | G114: 254 | H114: 329 | I114: 418 | J114: 478 | K114: 508 | L114: 523 | M114: 541 | N114: 562 | O114: 590 | P114: 604 | Q114: 627 | R114: 650 | S114: 661 | T114: 681 | U114: 692 | V114: 702 | W114: 709 | X114: 718 | Y114: 730 | Z114: 739 | AA114: 156
A115: 2024-04-23 | B115: 849 | C115: 43 | D115: 96 | E115: 144 | F115: 201 | G115: 272 | H115: 323 | I115: 416 | J115: 468 | K115: 488 | L115: 501 | M115: 511 | N115: 527 | O115: 543 | P115: 561 | Q115: 586 | R115: 607 | S115: 631 | T115: 649 | U115: 660 | V115: 675 | W115: 686 | X115: 693 | Y115: 701 | Z115: 706 | AA115: 143
A116: 2024-04-24 | B116: 751 | C116: 51 | D116: 121 | E116: 183 | F116: 250 | G116: 293 | H116: 359 | I116: 403 | J116: 456 | K116: 484 | L116: 502 | M116: 516 | N116: 528 | O116: 543 | P116: 557 | Q116: 575 | R116: 587 | S116: 599 | T116: 607 | U116: 616 | V116: 628 | W116: 637 | X116: 645 | Y116: 657 | Z116: 670 | AA116: 81
A117: 2024-04-25 | B117: 783 | C117: 59 | D117: 147 | E117: 206 | F117: 271 | G117: 340 | H117: 389 | I117: 445 | J117: 497 | K117: 523 | L117: 549 | M117: 563 | N117: 581 | O117: 599 | P117: 610 | Q117: 629 | R117: 651 | S117: 666 | T117: 681 | U117: 684 | V117: 689 | W117: 693 | X117: 696 | Y117: 701 | Z117: 707 | AA117: 76
A118: 2024-04-26 | B118: 780 | C118: 89 | D118: 184 | E118: 257 | F118: 301 | G118: 346 | H118: 395 | I118: 455 | J118: 501 | K118: 533 | L118: 551 | M118: 565 | N118: 588 | O118: 617 | P118: 634 | Q118: 654 | R118: 675 | S118: 688 | T118: 695 | U118: 701 | V118: 707 | W118: 709 | X118: 712 | Y118: 713 | Z118: 716 | AA118: 64
A119: 2024-04-27 | B119: 686 | C119: 97 | D119: 166 | E119: 216 | F119: 260 | G119: 306 | H119: 337 | I119: 373 | J119: 415 | K119: 426 | L119: 448 | M119: 467 | N119: 480 | O119: 487 | P119: 497 | Q119: 504 | R119: 521 | S119: 530 | T119: 536 | U119: 543 | V119: 544 | W119: 546 | X119: 548 | Y119: 553 | Z119: 558 | AA119: 128
A120: 2024-04-28 | B120: 850 | C120: 19 | D120: 47 | E120: 84 | F120: 105 | G120: 156 | H120: 171 | I120: 197 | J120: 218 | K120: 224 | L120: 233 | M120: 246 | N120: 256 | O120: 282 | P120: 302 | Q120: 319 | R120: 329 | S120: 338 | T120: 354 | U120: 368 | V120: 401 | W120: 423 | X120: 435 | Y120: 454 | Z120: 480 | AA120: 370
A121: 2024-04-29 | B121: 928 | C121: 48 | D121: 116 | E121: 184 | F121: 262 | G121: 351 | H121: 409 | I121: 490 | J121: 529 | K121: 555 | L121: 573 | M121: 589 | N121: 607 | O121: 622 | P121: 629 | Q121: 643 | R121: 664 | S121: 678 | T121: 693 | U121: 710 | V121: 720 | W121: 735 | X121: 747 | Y121: 758 | Z121: 766 | AA121: 162
A122: 2024-04-30 | B122: 843 | C122: 31 | D122: 93 | E122: 169 | F122: 230 | G122: 305 | H122: 362 | I122: 418 | J122: 463 | K122: 497 | L122: 514 | M122: 529 | N122: 542 | O122: 564 | P122: 588 | Q122: 600 | R122: 617 | S122: 636 | T122: 653 | U122: 666 | V122: 684 | W122: 690 | X122: 696 | Y122: 702 | Z122: 710 | AA122: 133
A123: 2024-05-01 | B123: 717 | C123: 58 | D123: 139 | E123: 200 | F123: 252 | G123: 329 | H123: 373 | I123: 399 | J123: 429 | K123: 443 | L123: 455 | M123: 474 | N123: 488 | O123: 508 | P123: 518 | Q123: 527 | R123: 539 | S123: 547 | T123: 560 | U123: 566 | V123: 576 | W123: 579 | X123: 582 | Y123: 589 | Z123: 594 | AA123: 123
A124: 2024-05-02 | B124: 754 | C124: 134 | D124: 241 | E124: 294 | F124: 320 | G124: 375 | H124: 398 | I124: 436 | J124: 465 | K124: 476 | L124: 485 | M124: 498 | N124: 515 | O124: 525 | P124: 545 | Q124: 559 | R124: 572 | S124: 597 | T124: 613 | U124: 626 | V124: 636 | W124: 641 | X124: 653 | Y124: 657 | Z124: 660 | AA124: 94
A125: 2024-05-03 | B125: 676 | C125: 64 | D125: 152 | E125: 190 | F125: 248 | G125: 289 | H125: 309 | I125: 334 | J125: 357 | K125: 368 | L125: 384 | M125: 389 | N125: 402 | O125: 422 | P125: 442 | Q125: 466 | R125: 494 | S125: 506 | T125: 512 | U125: 518 | V125: 524 | W125: 530 | X125: 540 | Y125: 549 | Z125: 551 | AA125: 125
A126: 2024-05-04 | B126: 705 | C126: 122 | D126: 224 | E126: 276 | F126: 293 | G126: 332 | H126: 377 | I126: 414 | J126: 435 | K126: 469 | L126: 482 | M126: 500 | N126: 509 | O126: 516 | P126: 525 | Q126: 539 | R126: 551 | S126: 553 | T126: 558 | U126: 562 | V126: 569 | W126: 572 | X126: 574 | Y126: 578 | Z126: 581 | AA126: 124
A127: 2024-05-05 | B127: 794 | C127: 29 | D127: 71 | E127: 141 | F127: 185 | G127: 209 | H127: 255 | I127: 273 | J127: 311 | K127: 335 | L127: 340 | M127: 351 | N127: 369 | O127: 388 | P127: 410 | Q127: 424 | R127: 434 | S127: 451 | T127: 472 | U127: 481 | V127: 498 | W127: 511 | X127: 532 | Y127: 542 | Z127: 557 | AA127: 237
A128: 2024-05-06 | B128: 956 | C128: 53 | D128: 102 | E128: 171 | F128: 256 | G128: 356 | H128: 421 | I128: 468 | J128: 501 | K128: 519 | L128: 533 | M128: 548 | N128: 575 | O128: 602 | P128: 631 | Q128: 651 | R128: 671 | S128: 695 | T128: 708 | U128: 717 | V128: 721 | W128: 727 | X128: 736 | Y128: 744 | Z128: 759 | AA128: 197
A129: 2024-05-07 | B129: 682 | C129: 102 | D129: 169 | E129: 230 | F129: 279 | G129: 311 | H129: 343 | I129: 378 | J129: 392 | K129: 400 | L129: 410 | M129: 426 | N129: 436 | O129: 452 | P129: 465 | Q129: 480 | R129: 492 | S129: 508 | T129: 516 | U129: 519 | V129: 524 | W129: 527 | X129: 530 | Y129: 535 | Z129: 548 | AA129: 134
A130: 2024-05-08 | B130: 681 | C130: 118 | D130: 217 | E130: 271 | F130: 326 | G130: 360 | H130: 385 | I130: 417 | J130: 445 | K130: 464 | L130: 475 | M130: 487 | N130: 499 | O130: 512 | P130: 524 | Q130: 540 | R130: 548 | S130: 561 | T130: 571 | U130: 578 | V130: 588 | W130: 595 | X130: 604 | Y130: 613 | Z130: 622 | AA130: 59
A131: 2024-05-09 | B131: 680 | C131: 98 | D131: 211 | E131: 263 | F131: 302 | G131: 330 | H131: 363 | I131: 405 | J131: 439 | K131: 449 | L131: 467 | M131: 481 | N131: 490 | O131: 501 | P131: 514 | Q131: 529 | R131: 539 | S131: 547 | T131: 550 | U131: 555 | V131: 562 | W131: 569 | X131: 580 | Y131: 592 | Z131: 601 | AA131: 79
A132: 2024-05-10 | B132: 681 | C132: 75 | D132: 206 | E132: 246 | F132: 301 | G132: 338 | H132: 393 | I132: 432 | J132: 467 | K132: 484 | L132: 491 | M132: 500 | N132: 504 | O132: 512 | P132: 523 | Q132: 532 | R132: 538 | S132: 546 | T132: 553 | U132: 562 | V132: 570 | W132: 574 | X132: 580 | Y132: 583 | Z132: 593 | AA132: 88
A133: 2024-05-11 | B133: 557 | C133: 33 | D133: 108 | E133: 168 | F133: 188 | G133: 241 | H133: 266 | I133: 284 | J133: 300 | K133: 306 | L133: 314 | M133: 331 | N133: 347 | O133: 357 | P133: 365 | Q133: 374 | R133: 380 | S133: 389 | T133: 399 | U133: 405 | V133: 414 | W133: 419 | X133: 429 | Y133: 435 | Z133: 436 | AA133: 121
A134: 2024-05-12 | B134: 551 | C134: 23 | D134: 64 | E134: 98 | F134: 124 | G134: 173 | H134: 217 | I134: 240 | J134: 268 | K134: 279 | L134: 286 | M134: 299 | N134: 317 | O134: 327 | P134: 339 | Q134: 358 | R134: 364 | S134: 372 | T134: 381 | U134: 389 | V134: 393 | W134: 399 | X134: 401 | Y134: 410 | Z134: 421 | AA134: 130
A135: 2024-05-13 | B135: 734 | C135: 56 | D135: 143 | E135: 193 | F135: 237 | G135: 302 | H135: 345 | I135: 394 | J135: 433 | K135: 451 | L135: 466 | M135: 477 | N135: 492 | O135: 509 | P135: 524 | Q135: 540 | R135: 567 | S135: 572 | T135: 580 | U135: 593 | V135: 609 | W135: 624 | X135: 629 | Y135: 642 | Z135: 650 | AA135: 84
A136: 2024-05-14 | B136: 802 | C136: 78 | D136: 187 | E136: 298 | F136: 379 | G136: 425 | H136: 469 | I136: 504 | J136: 543 | K136: 559 | L136: 580 | M136: 593 | N136: 615 | O136: 625 | P136: 638 | Q136: 653 | R136: 662 | S136: 669 | T136: 676 | U136: 691 | V136: 700 | W136: 709 | X136: 720 | Y136: 721 | Z136: 733 | AA136: 69
A137: 2024-05-15 | B137: 827 | C137: 65 | D137: 160 | E137: 242 | F137: 314 | G137: 381 | H137: 423 | I137: 458 | J137: 504 | K137: 531 | L137: 549 | M137: 570 | N137: 593 | O137: 609 | P137: 624 | Q137: 644 | R137: 661 | S137: 676 | T137: 691 | U137: 702 | V137: 708 | W137: 714 | X137: 723 | Y137: 731 | Z137: 739 | AA137: 88
A138: 2024-05-16 | B138: 791 | C138: 49 | D138: 173 | E138: 269 | F138: 317 | G138: 374 | H138: 407 | I138: 453 | J138: 498 | K138: 521 | L138: 541 | M138: 561 | N138: 578 | O138: 594 | P138: 615 | Q138: 623 | R138: 632 | S138: 646 | T138: 660 | U138: 667 | V138: 676 | W138: 690 | X138: 704 | Y138: 714 | Z138: 722 | AA138: 69
A139: 2024-05-17 | B139: 725 | C139: 92 | D139: 204 | E139: 257 | F139: 280 | G139: 325 | H139: 372 | I139: 418 | J139: 468 | K139: 493 | L139: 506 | M139: 523 | N139: 533 | O139: 547 | P139: 563 | Q139: 575 | R139: 594 | S139: 610 | T139: 620 | U139: 624 | V139: 628 | W139: 639 | X139: 642 | Y139: 646 | Z139: 650 | AA139: 75
A140: 2024-05-18 | B140: 621 | C140: 43 | D140: 126 | E140: 187 | F140: 210 | G140: 247 | H140: 282 | I140: 310 | J140: 355 | K140: 382 | L140: 401 | M140: 415 | N140: 426 | O140: 435 | P140: 447 | Q140: 455 | R140: 467 | S140: 475 | T140: 481 | U140: 485 | V140: 489 | W140: 492 | X140: 495 | Y140: 497 | Z140: 498 | AA140: 123
A141: 2024-05-19 | B141: 667 | C141: 24 | D141: 49 | E141: 80 | F141: 109 | G141: 147 | H141: 176 | I141: 204 | J141: 238 | K141: 260 | L141: 270 | M141: 277 | N141: 295 | O141: 306 | P141: 316 | Q141: 328 | R141: 340 | S141: 354 | T141: 373 | U141: 393 | V141: 404 | W141: 419 | X141: 435 | Y141: 455 | Z141: 468 | AA141: 199
A142: 2024-05-20 | B142: 871 | C142: 67 | D142: 140 | E142: 213 | F142: 265 | G142: 360 | H142: 436 | I142: 468 | J142: 510 | K142: 529 | L142: 540 | M142: 553 | N142: 568 | O142: 579 | P142: 591 | Q142: 613 | R142: 626 | S142: 641 | T142: 656 | U142: 670 | V142: 679 | W142: 687 | X142: 709 | Y142: 724 | Z142: 739 | AA142: 132
A143: 2024-05-21 | B143: 763 | C143: 66 | D143: 172 | E143: 219 | F143: 276 | G143: 315 | H143: 360 | I143: 397 | J143: 432 | K143: 459 | L143: 477 | M143: 499 | N143: 515 | O143: 533 | P143: 548 | Q143: 563 | R143: 577 | S143: 588 | T143: 608 | U143: 612 | V143: 623 | W143: 638 | X143: 646 | Y143: 655 | Z143: 664 | AA143: 99
A144: 2024-05-22 | B144: 745 | C144: 82 | D144: 163 | E144: 227 | F144: 275 | G144: 351 | H144: 380 | I144: 416 | J144: 463 | K144: 488 | L144: 504 | M144: 520 | N144: 546 | O144: 563 | P144: 583 | Q144: 602 | R144: 628 | S144: 640 | T144: 649 | U144: 657 | V144: 659 | W144: 663 | X144: 667 | Y144: 669 | Z144: 677 | AA144: 68
A145: 2024-05-23 | B145: 723 | C145: 91 | D145: 188 | E145: 241 | F145: 331 | G145: 386 | H145: 433 | I145: 462 | J145: 495 | K145: 511 | L145: 532 | M145: 550 | N145: 566 | O145: 582 | P145: 591 | Q145: 604 | R145: 618 | S145: 633 | T145: 644 | U145: 652 | V145: 662 | W145: 671 | X145: 675 | Y145: 680 | Z145: 687 | AA145: 36
A146: 2024-05-24 | B146: 705 | C146: 113 | D146: 223 | E146: 267 | F146: 312 | G146: 357 | H146: 388 | I146: 416 | J146: 446 | K146: 459 | L146: 477 | M146: 502 | N146: 520 | O146: 533 | P146: 545 | Q146: 555 | R146: 571 | S146: 586 | T146: 599 | U146: 604 | V146: 610 | W146: 618 | X146: 619 | Y146: 619 | Z146: 620 | AA146: 85
A147: 2024-05-25 | B147: 663 | C147: 81 | D147: 170 | E147: 240 | F147: 258 | G147: 309 | H147: 340 | I147: 366 | J147: 382 | K147: 411 | L147: 436 | M147: 449 | N147: 463 | O147: 474 | P147: 498 | Q147: 503 | R147: 516 | S147: 519 | T147: 526 | U147: 533 | V147: 536 | W147: 541 | X147: 543 | Y147: 546 | Z147: 551 | AA147: 112
A148: 2024-05-26 | B148: 616 | C148: 13 | D148: 46 | E148: 100 | F148: 124 | G148: 168 | H148: 187 | I148: 210 | J148: 237 | K148: 255 | L148: 264 | M148: 273 | N148: 292 | O148: 304 | P148: 319 | Q148: 336 | R148: 351 | S148: 363 | T148: 376 | U148: 389 | V148: 398 | W148: 404 | X148: 412 | Y148: 419 | Z148: 427 | AA148: 189
A149: 2024-05-27 | B149: 838 | C149: 78 | D149: 146 | E149: 211 | F149: 264 | G149: 347 | H149: 378 | I149: 418 | J149: 450 | K149: 473 | L149: 482 | M149: 500 | N149: 518 | O149: 534 | P149: 548 | Q149: 570 | R149: 591 | S149: 607 | T149: 622 | U149: 644 | V149: 658 | W149: 666 | X149: 669 | Y149: 672 | Z149: 682 | AA149: 156
A150: 2024-05-28 | B150: 1011 | C150: 73 | D150: 167 | E150: 242 | F150: 302 | G150: 424 | H150: 461 | I150: 496 | J150: 544 | K150: 570 | L150: 595 | M150: 622 | N150: 654 | O150: 680 | P150: 710 | Q150: 728 | R150: 752 | S150: 771 | T150: 789 | U150: 809 | V150: 820 | W150: 831 | X150: 848 | Y150: 860 | Z150: 876 | AA150: 135
A151: 2024-05-29 | B151: 842 | C151: 90 | D151: 213 | E151: 244 | F151: 311 | G151: 348 | H151: 381 | I151: 438 | J151: 471 | K151: 491 | L151: 507 | M151: 533 | N151: 552 | O151: 566 | P151: 586 | Q151: 603 | R151: 624 | S151: 650 | T151: 671 | U151: 682 | V151: 703 | W151: 712 | X151: 726 | Y151: 744 | Z151: 763 | AA151: 79
A152: 2024-05-30 | B152: 767 | C152: 79 | D152: 199 | E152: 270 | F152: 314 | G152: 370 | H152: 406 | I152: 449 | J152: 493 | K152: 517 | L152: 533 | M152: 550 | N152: 580 | O152: 604 | P152: 624 | Q152: 643 | R152: 656 | S152: 671 | T152: 684 | U152: 694 | V152: 706 | W152: 710 | X152: 716 | Y152: 718 | Z152: 723 | AA152: 44
A153: 2024-05-31 | B153: 754 | C153: 81 | D153: 214 | E153: 261 | F153: 347 | G153: 417 | H153: 454 | I153: 500 | J153: 531 | K153: 551 | L153: 567 | M153: 584 | N153: 594 | O153: 597 | P153: 612 | Q153: 631 | R153: 650 | S153: 668 | T153: 674 | U153: 685 | V153: 695 | W153: 697 | X153: 700 | Y153: 702 | Z153: 704 | AA153: 49
A154: 2024-06-01 | B154: 671 | C154: 88 | D154: 163 | E154: 247 | F154: 271 | G154: 288 | H154: 327 | I154: 356 | J154: 381 | K154: 410 | L154: 429 | M154: 449 | N154: 471 | O154: 483 | P154: 491 | Q154: 503 | R154: 509 | S154: 517 | T154: 525 | U154: 531 | V154: 535 | W154: 538 | X154: 544 | Y154: 550 | Z154: 557 | AA154: 114
A155: 2024-06-02 | B155: 739 | C155: 19 | D155: 45 | E155: 87 | F155: 126 | G155: 177 | H155: 195 | I155: 239 | J155: 277 | K155: 293 | L155: 299 | M155: 313 | N155: 328 | O155: 338 | P155: 352 | Q155: 363 | R155: 371 | S155: 385 | T155: 400 | U155: 412 | V155: 423 | W155: 434 | X155: 450 | Y155: 461 | Z155: 484 | AA155: 255
A156: 2024-06-03 | B156: 977 | C156: 53 | D156: 128 | E156: 200 | F156: 252 | G156: 367 | H156: 418 | I156: 459 | J156: 501 | K156: 527 | L156: 548 | M156: 563 | N156: 576 | O156: 589 | P156: 607 | Q156: 626 | R156: 647 | S156: 672 | T156: 698 | U156: 720 | V156: 735 | W156: 748 | X156: 760 | Y156: 782 | Z156: 805 | AA156: 172
A157: 2024-06-04 | B157: 811 | C157: 42 | D157: 94 | E157: 137 | F157: 208 | G157: 276 | H157: 328 | I157: 379 | J157: 430 | K157: 450 | L157: 469 | M157: 489 | N157: 527 | O157: 552 | P157: 566 | Q157: 587 | R157: 605 | S157: 623 | T157: 631 | U157: 647 | V157: 661 | W157: 676 | X157: 688 | Y157: 697 | Z157: 715 | AA157: 96
A158: 2024-06-05 | B158: 798 | C158: 83 | D158: 199 | E158: 252 | F158: 325 | G158: 376 | H158: 412 | I158: 466 | J158: 518 | K158: 530 | L158: 543 | M158: 562 | N158: 578 | O158: 606 | P158: 628 | Q158: 645 | R158: 659 | S158: 671 | T158: 682 | U158: 691 | V158: 697 | W158: 706 | X158: 711 | Y158: 714 | Z158: 721 | AA158: 77
A159: 2024-06-06 | B159: 749 | C159: 125 | D159: 214 | E159: 282 | F159: 311 | G159: 385 | H159: 433 | I159: 478 | J159: 510 | K159: 533 | L159: 550 | M159: 573 | N159: 598 | O159: 608 | P159: 620 | Q159: 630 | R159: 641 | S159: 652 | T159: 658 | U159: 664 | V159: 668 | W159: 671 | X159: 675 | Y159: 676 | Z159: 687 | AA159: 62
A160: 2024-06-07 | B160: 785 | C160: 117 | D160: 215 | E160: 301 | F160: 368 | G160: 409 | H160: 444 | I160: 498 | J160: 544 | K160: 555 | L160: 572 | M160: 579 | N160: 594 | O160: 607 | P160: 629 | Q160: 651 | R160: 670 | S160: 687 | T160: 695 | U160: 703 | V160: 710 | W160: 714 | X160: 719 | Y160: 727 | Z160: 731 | AA160: 54
A161: 2024-06-08 | B161: 591 | C161: 76 | D161: 121 | E161: 165 | F161: 188 | G161: 197 | H161: 245 | I161: 272 | J161: 296 | K161: 333 | L161: 350 | M161: 370 | N161: 392 | O161: 407 | P161: 420 | Q161: 432 | R161: 437 | S161: 446 | T161: 454 | U161: 458 | V161: 461 | W161: 462 | X161: 468 | Y161: 470 | Z161: 471 | AA161: 120
A162: 2024-06-09 | B162: 688 | C162: 32 | D162: 75 | E162: 124 | F162: 170 | G162: 205 | H162: 231 | I162: 242 | J162: 261 | K162: 271 | L162: 282 | M162: 296 | N162: 305 | O162: 310 | P162: 316 | Q162: 329 | R162: 336 | S162: 340 | T162: 350 | U162: 355 | V162: 357 | W162: 363 | X162: 371 | Y162: 377 | Z162: 386 | AA162: 302
A163: 2024-06-10 | B163: 772 | C163: 46 | D163: 91 | E163: 133 | F163: 166 | G163: 195 | H163: 239 | I163: 270 | J163: 292 | K163: 307 | L163: 322 | M163: 341 | N163: 361 | O163: 378 | P163: 393 | Q163: 408 | R163: 429 | S163: 447 | T163: 458 | U163: 477 | V163: 489 | W163: 501 | X163: 505 | Y163: 513 | Z163: 528 | AA163: 244
A164: 2024-06-11 | B164: 874 | C164: 88 | D164: 148 | E164: 211 | F164: 253 | G164: 320 | H164: 380 | I164: 444 | J164: 484 | K164: 518 | L164: 532 | M164: 541 | N164: 557 | O164: 574 | P164: 596 | Q164: 617 | R164: 634 | S164: 653 | T164: 666 | U164: 676 | V164: 690 | W164: 696 | X164: 710 | Y164: 718 | Z164: 732 | AA164: 142
A165: 2024-06-12 | B165: 830 | C165: 52 | D165: 131 | E165: 210 | F165: 244 | G165: 317 | H165: 399 | I165: 435 | J165: 485 | K165: 500 | L165: 518 | M165: 539 | N165: 557 | O165: 574 | P165: 594 | Q165: 605 | R165: 621 | S165: 639 | T165: 650 | U165: 663 | V165: 678 | W165: 692 | X165: 706 | Y165: 719 | Z165: 728 | AA165: 102
A166: 2024-06-13 | B166: 768 | C166: 67 | D166: 160 | E166: 233 | F166: 314 | G166: 394 | H166: 423 | I166: 468 | J166: 515 | K166: 538 | L166: 550 | M166: 562 | N166: 584 | O166: 600 | P166: 615 | Q166: 639 | R166: 647 | S166: 673 | T166: 684 | U166: 694 | V166: 702 | W166: 712 | X166: 716 | Y166: 725 | Z166: 729 | AA166: 39
A167: 2024-06-14 | B167: 753 | C167: 124 | D167: 233 | E167: 315 | F167: 357 | G167: 418 | H167: 466 | I167: 505 | J167: 535 | K167: 552 | L167: 558 | M167: 580 | N167: 596 | O167: 625 | P167: 635 | Q167: 646 | R167: 658 | S167: 669 | T167: 692 | U167: 699 | V167: 708 | W167: 711 | X167: 719 | Y167: 719 | Z167: 720 | AA167: 33
A168: 2024-06-15 | B168: 713 | C168: 40 | D168: 101 | E168: 201 | F168: 218 | G168: 245 | H168: 275 | I168: 296 | J168: 348 | K168: 383 | L168: 411 | M168: 428 | N168: 442 | O168: 468 | P168: 473 | Q168: 482 | R168: 489 | S168: 495 | T168: 503 | U168: 511 | V168: 525 | W168: 529 | X168: 531 | Y168: 541 | Z168: 544 | AA168: 169
A169: 2024-06-16 | B169: 756 | C169: 26 | D169: 67 | E169: 115 | F169: 152 | G169: 198 | H169: 252 | I169: 273 | J169: 303 | K169: 324 | L169: 339 | M169: 355 | N169: 370 | O169: 388 | P169: 403 | Q169: 418 | R169: 430 | S169: 449 | T169: 470 | U169: 482 | V169: 492 | W169: 502 | X169: 505 | Y169: 516 | Z169: 525 | AA169: 231
A170: 2024-06-17 | B170: 825 | C170: 64 | D170: 141 | E170: 202 | F170: 246 | G170: 322 | H170: 383 | I170: 420 | J170: 465 | K170: 499 | L170: 516 | M170: 534 | N170: 544 | O170: 557 | P170: 568 | Q170: 572 | R170: 580 | S170: 597 | T170: 613 | U170: 630 | V170: 639 | W170: 641 | X170: 658 | Y170: 666 | Z170: 675 | AA170: 150
A171: 2024-06-18 | B171: 840 | C171: 54 | D171: 127 | E171: 208 | F171: 289 | G171: 363 | H171: 447 | I171: 488 | J171: 512 | K171: 528 | L171: 545 | M171: 562 | N171: 574 | O171: 591 | P171: 611 | Q171: 623 | R171: 642 | S171: 650 | T171: 684 | U171: 704 | V171: 715 | W171: 728 | X171: 741 | Y171: 752 | Z171: 767 | AA171: 73
A172: 2024-06-19 | B172: 799 | C172: 105 | D172: 204 | E172: 286 | F172: 345 | G172: 424 | H172: 481 | I172: 530 | J172: 573 | K172: 587 | L172: 599 | M172: 610 | N172: 629 | O172: 643 | P172: 666 | Q172: 691 | R172: 719 | S172: 736 | T172: 755 | U172: 763 | V172: 765 | W172: 768 | X172: 770 | Y172: 773 | Z172: 778 | AA172: 21
A173: 2024-06-20 | B173: 860 | C173: 133 | D173: 241 | E173: 321 | F173: 387 | G173: 462 | H173: 497 | I173: 539 | J173: 582 | K173: 609 | L173: 620 | M173: 644 | N173: 663 | O173: 679 | P173: 690 | Q173: 710 | R173: 733 | S173: 743 | T173: 756 | U173: 771 | V173: 791 | W173: 802 | X173: 812 | Y173: 817 | Z173: 820 | AA173: 40
A174: 2024-06-21 | B174: 748 | C174: 118 | D174: 223 | E174: 311 | F174: 362 | G174: 418 | H174: 442 | I174: 497 | J174: 535 | K174: 550 | L174: 565 | M174: 576 | N174: 583 | O174: 591 | P174: 598 | Q174: 605 | R174: 607 | S174: 609 | T174: 609 | U174: 609 | V174: 609 | W174: 609 | X174: 609 | Y174: 609 | Z174: 609 | AA174: 139
A175: 2024-06-22 | B175: 242 | C175: 0 | D175: 0 | E175: 0 | F175: 0 | G175: 0 | H175: 0 | I175: 0 | J175: 0 | K175: 0 | L175: 0 | M175: 9 | N175: 18 | O175: 27 | P175: 38 | Q175: 45 | R175: 54 | S175: 60 | T175: 69 | U175: 81 | V175: 92 | W175: 104 | X175: 106 | Y175: 108 | Z175: 110 | AA175: 132
A176: 2024-06-23 | B176: 1191 | C176: 75 | D176: 159 | E176: 250 | F176: 340 | G176: 415 | H176: 498 | I176: 603 | J176: 675 | K176: 711 | L176: 736 | M176: 760 | N176: 776 | O176: 795 | P176: 807 | Q176: 819 | R176: 839 | S176: 855 | T176: 865 | U176: 875 | V176: 889 | W176: 898 | X176: 912 | Y176: 928 | Z176: 941 | AA176: 250
A177: 2024-06-24 | B177: 809 | C177: 75 | D177: 176 | E177: 226 | F177: 275 | G177: 306 | H177: 342 | I177: 377 | J177: 423 | K177: 441 | L177: 467 | M177: 475 | N177: 505 | O177: 513 | P177: 533 | Q177: 557 | R177: 578 | S177: 592 | T177: 617 | U177: 629 | V177: 643 | W177: 659 | X177: 670 | Y177: 690 | Z177: 711 | AA177: 98
A178: 2024-06-25 | B178: 722 | C178: 71 | D178: 124 | E178: 178 | F178: 234 | G178: 305 | H178: 356 | I178: 418 | J178: 460 | K178: 493 | L178: 510 | M178: 532 | N178: 560 | O178: 578 | P178: 593 | Q178: 615 | R178: 630 | S178: 642 | T178: 661 | U178: 672 | V178: 679 | W178: 682 | X178: 688 | Y178: 696 | Z178: 697 | AA178: 25
A179: 2024-06-26 | B179: 729 | C179: 120 | D179: 198 | E179: 275 | F179: 308 | G179: 376 | H179: 417 | I179: 460 | J179: 497 | K179: 515 | L179: 531 | M179: 546 | N179: 562 | O179: 579 | P179: 596 | Q179: 607 | R179: 627 | S179: 641 | T179: 653 | U179: 661 | V179: 672 | W179: 680 | X179: 686 | Y179: 690 | Z179: 694 | AA179: 35
A180: 2024-06-27 | B180: 727 | C180: 120 | D180: 209 | E180: 247 | F180: 301 | G180: 378 | H180: 420 | I180: 448 | J180: 469 | K180: 486 | L180: 507 | M180: 529 | N180: 547 | O180: 571 | P180: 599 | Q180: 620 | R180: 641 | S180: 658 | T180: 670 | U180: 675 | V180: 684 | W180: 687 | X180: 695 | Y180: 698 | Z180: 704 | AA180: 23
A181: 2024-06-28 | B181: 775 | C181: 100 | D181: 191 | E181: 286 | F181: 344 | G181: 405 | H181: 443 | I181: 483 | J181: 518 | K181: 537 | L181: 552 | M181: 563 | N181: 576 | O181: 587 | P181: 603 | Q181: 619 | R181: 631 | S181: 651 | T181: 659 | U181: 667 | V181: 676 | W181: 679 | X181: 684 | Y181: 684 | Z181: 689 | AA181: 86
A182: 2024-06-29 | B182: 657 | C182: 102 | D182: 181 | E182: 224 | F182: 251 | G182: 284 | H182: 309 | I182: 348 | J182: 381 | K182: 401 | L182: 415 | M182: 423 | N182: 435 | O182: 453 | P182: 466 | Q182: 483 | R182: 488 | S182: 497 | T182: 506 | U182: 518 | V182: 522 | W182: 524 | X182: 529 | Y182: 533 | Z182: 534 | AA182: 123
A183: 2024-06-30 | B183: 818 | C183: 33 | D183: 100 | E183: 151 | F183: 173 | G183: 226 | H183: 257 | I183: 287 | J183: 305 | K183: 314 | L183: 329 | M183: 342 | N183: 354 | O183: 385 | P183: 413 | Q183: 429 | R183: 455 | S183: 474 | T183: 499 | U183: 520 | V183: 531 | W183: 539 | X183: 548 | Y183: 561 | Z183: 569 | AA183: 249
A184: 2024-07-01 | B184: 858 | C184: 34 | D184: 91 | E184: 163 | F184: 216 | G184: 287 | H184: 374 | I184: 435 | J184: 464 | K184: 498 | L184: 519 | M184: 542 | N184: 564 | O184: 569 | P184: 585 | Q184: 592 | R184: 611 | S184: 634 | T184: 648 | U184: 655 | V184: 664 | W184: 673 | X184: 683 | Y184: 690 | Z184: 697 | AA184: 161
A185: 2024-07-02 | B185: 888 | C185: 71 | D185: 143 | E185: 213 | F185: 275 | G185: 347 | H185: 422 | I185: 470 | J185: 508 | K185: 527 | L185: 545 | M185: 557 | N185: 578 | O185: 591 | P185: 622 | Q185: 643 | R185: 673 | S185: 692 | T185: 713 | U185: 730 | V185: 741 | W185: 752 | X185: 763 | Y185: 777 | Z185: 788 | AA185: 100
A186: 2024-07-03 | B186: 872 | C186: 88 | D186: 196 | E186: 272 | F186: 319 | G186: 414 | H186: 458 | I186: 498 | J186: 541 | K186: 573 | L186: 593 | M186: 620 | N186: 640 | O186: 660 | P186: 684 | Q186: 695 | R186: 718 | S186: 737 | T186: 750 | U186: 764 | V186: 770 | W186: 782 | X186: 793 | Y186: 806 | Z186: 814 | AA186: 58
A187: 2024-07-04 | B187: 852 | C187: 106 | D187: 211 | E187: 273 | F187: 340 | G187: 443 | H187: 486 | I187: 531 | J187: 567 | K187: 590 | L187: 602 | M187: 619 | N187: 641 | O187: 655 | P187: 677 | Q187: 697 | R187: 711 | S187: 727 | T187: 740 | U187: 746 | V187: 761 | W187: 770 | X187: 773 | Y187: 779 | Z187: 784 | AA187: 68
A188: 2024-07-05 | B188: 781 | C188: 93 | D188: 188 | E188: 257 | F188: 337 | G188: 391 | H188: 439 | I188: 475 | J188: 510 | K188: 527 | L188: 543 | M188: 563 | N188: 572 | O188: 581 | P188: 596 | Q188: 615 | R188: 626 | S188: 645 | T188: 654 | U188: 666 | V188: 675 | W188: 685 | X188: 695 | Y188: 708 | Z188: 710 | AA188: 71
A189: 2024-07-06 | B189: 729 | C189: 30 | D189: 110 | E189: 165 | F189: 187 | G189: 228 | H189: 272 | I189: 302 | J189: 330 | K189: 394 | L189: 406 | M189: 425 | N189: 447 | O189: 463 | P189: 474 | Q189: 491 | R189: 499 | S189: 506 | T189: 518 | U189: 533 | V189: 545 | W189: 559 | X189: 572 | Y189: 581 | Z189: 585 | AA189: 144
A190: 2024-07-07 | B190: 838 | C190: 31 | D190: 81 | E190: 120 | F190: 148 | G190: 210 | H190: 233 | I190: 271 | J190: 296 | K190: 308 | L190: 311 | M190: 316 | N190: 332 | O190: 351 | P190: 364 | Q190: 381 | R190: 403 | S190: 416 | T190: 432 | U190: 445 | V190: 459 | W190: 463 | X190: 472 | Y190: 488 | Z190: 503 | AA190: 335
A191: 2024-07-08 | B191: 909 | C191: 47 | D191: 111 | E191: 177 | F191: 210 | G191: 300 | H191: 385 | I191: 461 | J191: 487 | K191: 506 | L191: 542 | M191: 554 | N191: 574 | O191: 588 | P191: 603 | Q191: 621 | R191: 640 | S191: 659 | T191: 680 | U191: 687 | V191: 696 | W191: 704 | X191: 714 | Y191: 718 | Z191: 728 | AA191: 181
A192: 2024-07-09 | B192: 888 | C192: 72 | D192: 133 | E192: 196 | F192: 267 | G192: 358 | H192: 431 | I192: 494 | J192: 541 | K192: 560 | L192: 572 | M192: 591 | N192: 606 | O192: 625 | P192: 647 | Q192: 657 | R192: 672 | S192: 688 | T192: 698 | U192: 714 | V192: 726 | W192: 733 | X192: 746 | Y192: 752 | Z192: 772 | AA192: 116
A193: 2024-07-10 | B193: 814 | C193: 77 | D193: 183 | E193: 242 | F193: 277 | G193: 368 | H193: 412 | I193: 477 | J193: 525 | K193: 546 | L193: 561 | M193: 581 | N193: 600 | O193: 623 | P193: 643 | Q193: 656 | R193: 675 | S193: 696 | T193: 709 | U193: 724 | V193: 729 | W193: 734 | X193: 745 | Y193: 758 | Z193: 771 | AA193: 43
A194: 2024-07-11 | B194: 837 | C194: 119 | D194: 184 | E194: 281 | F194: 362 | G194: 449 | H194: 496 | I194: 557 | J194: 593 | K194: 619 | L194: 638 | M194: 651 | N194: 669 | O194: 683 | P194: 702 | Q194: 719 | R194: 736 | S194: 743 | T194: 757 | U194: 763 | V194: 777 | W194: 782 | X194: 785 | Y194: 790 | Z194: 798 | AA194: 39
A195: 2024-07-12 | B195: 806 | C195: 93 | D195: 172 | E195: 235 | F195: 295 | G195: 379 | H195: 430 | I195: 476 | J195: 521 | K195: 534 | L195: 549 | M195: 567 | N195: 587 | O195: 604 | P195: 617 | Q195: 630 | R195: 662 | S195: 672 | T195: 678 | U195: 693 | V195: 704 | W195: 706 | X195: 716 | Y195: 723 | Z195: 732 | AA195: 74
A196: 2024-07-13 | B196: 709 | C196: 34 | D196: 91 | E196: 136 | F196: 157 | G196: 206 | H196: 285 | I196: 310 | J196: 362 | K196: 393 | L196: 411 | M196: 425 | N196: 432 | O196: 453 | P196: 465 | Q196: 474 | R196: 482 | S196: 485 | T196: 494 | U196: 504 | V196: 515 | W196: 524 | X196: 529 | Y196: 541 | Z196: 543 | AA196: 166
A197: 2024-07-14 | B197: 801 | C197: 41 | D197: 83 | E197: 107 | F197: 134 | G197: 196 | H197: 235 | I197: 263 | J197: 287 | K197: 298 | L197: 313 | M197: 326 | N197: 339 | O197: 358 | P197: 380 | Q197: 397 | R197: 410 | S197: 427 | T197: 452 | U197: 470 | V197: 475 | W197: 490 | X197: 501 | Y197: 509 | Z197: 526 | AA197: 275
A198: 2024-07-15 | B198: 915 | C198: 57 | D198: 125 | E198: 195 | F198: 252 | G198: 315 | H198: 384 | I198: 458 | J198: 501 | K198: 529 | L198: 549 | M198: 565 | N198: 583 | O198: 596 | P198: 618 | Q198: 636 | R198: 652 | S198: 665 | T198: 685 | U198: 697 | V198: 706 | W198: 718 | X198: 727 | Y198: 735 | Z198: 746 | AA198: 169
A199: 2024-07-16 | B199: 733 | C199: 62 | D199: 109 | E199: 180 | F199: 228 | G199: 327 | H199: 382 | I199: 446 | J199: 476 | K199: 497 | L199: 513 | M199: 531 | N199: 546 | O199: 563 | P199: 574 | Q199: 581 | R199: 601 | S199: 612 | T199: 621 | U199: 626 | V199: 632 | W199: 639 | X199: 645 | Y199: 658 | Z199: 671 | AA199: 62
A200: 2024-07-17 | B200: 807 | C200: 84 | D200: 173 | E200: 257 | F200: 328 | G200: 401 | H200: 452 | I200: 504 | J200: 570 | K200: 587 | L200: 603 | M200: 626 | N200: 634 | O200: 660 | P200: 676 | Q200: 691 | R200: 710 | S200: 715 | T200: 729 | U200: 731 | V200: 741 | W200: 745 | X200: 748 | Y200: 755 | Z200: 763 | AA200: 44
... 666 more rows

Sheet 填款时间-支付时间
A1: 填款时间 | B1: 采购单数 | C1: 1hour | D1: 2hour | E1: 3hour | F1: 4hour | G1: 5hour | H1: 6hour | I1: 7hour | J1: 8hour | K1: 9hour | L1: 10hour | M1: 11hour | N1: 12hour | O1: 13hour | P1: 14hour | Q1: 15hour | R1: 16hour | S1: 17hour | T1: 18hour | U1: 19hour | V1: 20hour | W1: 21hour | X1: 22hour | Y1: 23hour | Z1: 24hour | AA1: >24hour
A2: 2024-01-01 | B2: 569 | C2: 544 | D2: 549 | E2: 549 | F2: 550 | G2: 550 | H2: 550 | I2: 550 | J2: 550 | K2: 550 | L2: 550 | M2: 550 | N2: 550 | O2: 550 | P2: 550 | Q2: 550 | R2: 568 | S2: 569 | T2: 569 | U2: 569 | V2: 569 | W2: 569 | X2: 569 | Y2: 569 | Z2: 569 | AA2: 0
A3: 2024-01-02 | B3: 931 | C3: 825 | D3: 889 | E3: 898 | F3: 898 | G3: 898 | H3: 898 | I3: 898 | J3: 898 | K3: 898 | L3: 898 | M3: 898 | N3: 898 | O3: 898 | P3: 898 | Q3: 898 | R3: 931 | S3: 931 | T3: 931 | U3: 931 | V3: 931 | W3: 931 | X3: 931 | Y3: 931 | Z3: 931 | AA3: 0
A4: 2024-01-03 | B4: 816 | C4: 775 | D4: 785 | E4: 785 | F4: 785 | G4: 785 | H4: 785 | I4: 785 | J4: 785 | K4: 785 | L4: 785 | M4: 785 | N4: 785 | O4: 785 | P4: 785 | Q4: 785 | R4: 816 | S4: 816 | T4: 816 | U4: 816 | V4: 816 | W4: 816 | X4: 816 | Y4: 816 | Z4: 816 | AA4: 0
A5: 2024-01-23 | B5: 803 | C5: 747 | D5: 765 | E5: 770 | F5: 771 | G5: 771 | H5: 771 | I5: 771 | J5: 771 | K5: 771 | L5: 771 | M5: 771 | N5: 771 | O5: 771 | P5: 771 | Q5: 771 | R5: 802 | S5: 802 | T5: 802 | U5: 802 | V5: 802 | W5: 802 | X5: 803 | Y5: 803 | Z5: 803 | AA5: 0
A6: 2024-01-05 | B6: 724 | C6: 685 | D6: 699 | E6: 703 | F6: 704 | G6: 705 | H6: 705 | I6: 705 | J6: 705 | K6: 705 | L6: 705 | M6: 705 | N6: 705 | O6: 705 | P6: 705 | Q6: 706 | R6: 723 | S6: 723 | T6: 723 | U6: 723 | V6: 723 | W6: 723 | X6: 723 | Y6: 723 | Z6: 724 | AA6: 0
A7: 2024-01-06 | B7: 619 | C7: 577 | D7: 594 | E7: 594 | F7: 595 | G7: 597 | H7: 602 | I7: 602 | J7: 602 | K7: 602 | L7: 602 | M7: 602 | N7: 602 | O7: 602 | P7: 603 | Q7: 608 | R7: 619 | S7: 619 | T7: 619 | U7: 619 | V7: 619 | W7: 619 | X7: 619 | Y7: 619 | Z7: 619 | AA7: 0
A8: 2024-01-09 | B8: 718 | C8: 668 | D8: 695 | E8: 696 | F8: 696 | G8: 696 | H8: 696 | I8: 696 | J8: 696 | K8: 696 | L8: 696 | M8: 696 | N8: 696 | O8: 696 | P8: 696 | Q8: 700 | R8: 714 | S8: 716 | T8: 718 | U8: 718 | V8: 718 | W8: 718 | X8: 718 | Y8: 718 | Z8: 718 | AA8: 0
A9: 2024-01-08 | B9: 955 | C9: 895 | D9: 929 | E9: 931 | F9: 931 | G9: 931 | H9: 931 | I9: 931 | J9: 931 | K9: 931 | L9: 931 | M9: 931 | N9: 931 | O9: 931 | P9: 931 | Q9: 931 | R9: 948 | S9: 949 | T9: 954 | U9: 954 | V9: 954 | W9: 954 | X9: 955 | Y9: 955 | Z9: 955 | AA9: 0
A10: 2024-01-09 | B10: 701 | C10: 644 | D10: 663 | E10: 668 | F10: 668 | G10: 668 | H10: 668 | I10: 668 | J10: 668 | K10: 668 | L10: 668 | M10: 668 | N10: 668 | O10: 668 | P10: 668 | Q10: 668 | R10: 701 | S10: 701 | T10: 701 | U10: 701 | V10: 701 | W10: 701 | X10: 701 | Y10: 701 | Z10: 701 | AA10: 0
A11: 2024-01-10 | B11: 624 | C11: 557 | D11: 589 | E11: 606 | F11: 606 | G11: 606 | H11: 606 | I11: 606 | J11: 606 | K11: 606 | L11: 606 | M11: 606 | N11: 606 | O11: 606 | P11: 606 | Q11: 606 | R11: 624 | S11: 624 | T11: 624 | U11: 624 | V11: 624 | W11: 624 | X11: 624 | Y11: 624 | Z11: 624 | AA11: 0
A12: 2024-01-11 | B12: 649 | C12: 617 | D12: 626 | E12: 628 | F12: 628 | G12: 628 | H12: 628 | I12: 628 | J12: 628 | K12: 628 | L12: 628 | M12: 628 | N12: 628 | O12: 628 | P12: 628 | Q12: 628 | R12: 648 | S12: 648 | T12: 648 | U12: 648 | V12: 648 | W12: 648 | X12: 648 | Y12: 649 | Z12: 649 | AA12: 0
A13: 2024-01-12 | B13: 615 | C13: 584 | D13: 594 | E13: 594 | F13: 594 | G13: 594 | H13: 594 | I13: 594 | J13: 594 | K13: 594 | L13: 594 | M13: 596 | N13: 596 | O13: 596 | P13: 596 | Q13: 598 | R13: 614 | S13: 615 | T13: 615 | U13: 615 | V13: 615 | W13: 615 | X13: 615 | Y13: 615 | Z13: 615 | AA13: 0
A14: 2024-01-13 | B14: 513 | C14: 481 | D14: 499 | E14: 499 | F14: 499 | G14: 499 | H14: 499 | I14: 499 | J14: 499 | K14: 499 | L14: 499 | M14: 499 | N14: 499 | O14: 500 | P14: 501 | Q14: 501 | R14: 513 | S14: 513 | T14: 513 | U14: 513 | V14: 513 | W14: 513 | X14: 513 | Y14: 513 | Z14: 513 | AA14: 0
A15: 2024-01-15 | B15: 572 | C15: 543 | D15: 549 | E15: 549 | F15: 549 | G15: 549 | H15: 549 | I15: 549 | J15: 549 | K15: 549 | L15: 549 | M15: 550 | N15: 550 | O15: 550 | P15: 550 | Q15: 551 | R15: 567 | S15: 572 | T15: 572 | U15: 572 | V15: 572 | W15: 572 | X15: 572 | Y15: 572 | Z15: 572 | AA15: 0
A16: 2024-01-16 | B16: 869 | C16: 820 | D16: 846 | E16: 846 | F16: 846 | G16: 846 | H16: 846 | I16: 846 | J16: 846 | K16: 846 | L16: 846 | M16: 846 | N16: 847 | O16: 847 | P16: 848 | Q16: 850 | R16: 869 | S16: 869 | T16: 869 | U16: 869 | V16: 869 | W16: 869 | X16: 869 | Y16: 869 | Z16: 869 | AA16: 0
A17: 2024-01-18 | B17: 821 | C17: 770 | D17: 788 | E17: 788 | F17: 788 | G17: 788 | H17: 788 | I17: 788 | J17: 789 | K17: 789 | L17: 789 | M17: 789 | N17: 789 | O17: 790 | P17: 792 | Q17: 797 | R17: 818 | S17: 819 | T17: 819 | U17: 819 | V17: 819 | W17: 819 | X17: 820 | Y17: 821 | Z17: 821 | AA17: 0
A18: 2024-01-18 | B18: 711 | C18: 676 | D18: 687 | E18: 691 | F18: 691 | G18: 691 | H18: 691 | I18: 691 | J18: 691 | K18: 691 | L18: 691 | M18: 691 | N18: 691 | O18: 691 | P18: 693 | Q18: 698 | R18: 704 | S18: 704 | T18: 704 | U18: 704 | V18: 704 | W18: 704 | X18: 707 | Y18: 711 | Z18: 711 | AA18: 0
A19: 2024-01-18 | B19: 666 | C19: 635 | D19: 650 | E19: 650 | F19: 650 | G19: 650 | H19: 650 | I19: 650 | J19: 650 | K19: 650 | L19: 650 | M19: 651 | N19: 651 | O19: 651 | P19: 651 | Q19: 651 | R19: 665 | S19: 665 | T19: 665 | U19: 666 | V19: 666 | W19: 666 | X19: 666 | Y19: 666 | Z19: 666 | AA19: 0
A20: 2024-01-19 | B20: 650 | C20: 609 | D20: 624 | E20: 624 | F20: 624 | G20: 624 | H20: 624 | I20: 624 | J20: 624 | K20: 624 | L20: 624 | M20: 624 | N20: 624 | O20: 624 | P20: 631 | Q20: 638 | R20: 647 | S20: 647 | T20: 647 | U20: 648 | V20: 648 | W20: 648 | X20: 648 | Y20: 648 | Z20: 648 | AA20: 2
A21: 2024-01-20 | B21: 597 | C21: 548 | D21: 562 | E21: 562 | F21: 563 | G21: 565 | H21: 565 | I21: 565 | J21: 565 | K21: 565 | L21: 565 | M21: 565 | N21: 565 | O21: 565 | P21: 570 | Q21: 581 | R21: 597 | S21: 597 | T21: 597 | U21: 597 | V21: 597 | W21: 597 | X21: 597 | Y21: 597 | Z21: 597 | AA21: 0
A22: 2024-01-21 | B22: 663 | C22: 618 | D22: 634 | E22: 634 | F22: 635 | G22: 635 | H22: 635 | I22: 635 | J22: 635 | K22: 635 | L22: 635 | M22: 635 | N22: 635 | O22: 635 | P22: 635 | Q22: 641 | R22: 662 | S22: 662 | T22: 663 | U22: 663 | V22: 663 | W22: 663 | X22: 663 | Y22: 663 | Z22: 663 | AA22: 0
A23: 2024-01-23 | B23: 913 | C23: 854 | D23: 865 | E23: 869 | F23: 869 | G23: 869 | H23: 869 | I23: 869 | J23: 869 | K23: 869 | L23: 869 | M23: 869 | N23: 869 | O23: 877 | P23: 877 | Q23: 879 | R23: 912 | S23: 912 | T23: 913 | U23: 913 | V23: 913 | W23: 913 | X23: 913 | Y23: 913 | Z23: 913 | AA23: 0
A24: 2024-01-23 | B24: 721 | C24: 699 | D24: 708 | E24: 710 | F24: 710 | G24: 712 | H24: 712 | I24: 712 | J24: 712 | K24: 713 | L24: 713 | M24: 713 | N24: 713 | O24: 713 | P24: 714 | Q24: 716 | R24: 718 | S24: 720 | T24: 721 | U24: 721 | V24: 721 | W24: 721 | X24: 721 | Y24: 721 | Z24: 721 | AA24: 0
A25: 2024-01-24 | B25: 580 | C25: 549 | D25: 561 | E25: 562 | F25: 562 | G25: 563 | H25: 563 | I25: 564 | J25: 564 | K25: 564 | L25: 564 | M25: 564 | N25: 564 | O25: 565 | P25: 567 | Q25: 573 | R25: 579 | S25: 579 | T25: 580 | U25: 580 | V25: 580 | W25: 580 | X25: 580 | Y25: 580 | Z25: 580 | AA25: 0
A26: 2024-01-25 | B26: 597 | C26: 559 | D26: 573 | E26: 577 | F26: 578 | G26: 581 | H26: 581 | I26: 581 | J26: 582 | K26: 582 | L26: 582 | M26: 583 | N26: 584 | O26: 585 | P26: 588 | Q26: 590 | R26: 595 | S26: 595 | T26: 596 | U26: 596 | V26: 597 | W26: 597 | X26: 597 | Y26: 597 | Z26: 597 | AA26: 0
A27: 2024-02-26 | B27: 610 | C27: 554 | D27: 573 | E27: 576 | F27: 578 | G27: 582 | H27: 583 | I27: 583 | J27: 585 | K27: 585 | L27: 586 | M27: 586 | N27: 587 | O27: 590 | P27: 591 | Q27: 591 | R27: 601 | S27: 603 | T27: 606 | U27: 606 | V27: 606 | W27: 606 | X27: 609 | Y27: 609 | Z27: 610 | AA27: 0
A28: 2024-02-26 | B28: 575 | C28: 494 | D28: 518 | E28: 528 | F28: 532 | G28: 534 | H28: 536 | I28: 537 | J28: 538 | K28: 540 | L28: 540 | M28: 541 | N28: 541 | O28: 545 | P28: 547 | Q28: 554 | R28: 560 | S28: 562 | T28: 569 | U28: 570 | V28: 571 | W28: 571 | X28: 572 | Y28: 572 | Z28: 574 | AA28: 1
A29: 2024-01-30 | B29: 612 | C29: 486 | D29: 506 | E29: 520 | F29: 536 | G29: 545 | H29: 552 | I29: 556 | J29: 559 | K29: 566 | L29: 566 | M29: 567 | N29: 567 | O29: 568 | P29: 571 | Q29: 578 | R29: 596 | S29: 598 | T29: 604 | U29: 605 | V29: 605 | W29: 605 | X29: 605 | Y29: 606 | Z29: 607 | AA29: 5
A30: 2024-02-18 | B30: 836 | C30: 658 | D30: 692 | E30: 718 | F30: 730 | G30: 747 | H30: 759 | I30: 764 | J30: 767 | K30: 767 | L30: 767 | M30: 769 | N30: 772 | O30: 778 | P30: 782 | Q30: 797 | R30: 807 | S30: 810 | T30: 815 | U30: 819 | V30: 820 | W30: 822 | X30: 824 | Y30: 825 | Z30: 828 | AA30: 8
A31: 2024-02-27 | B31: 769 | C31: 559 | D31: 632 | E31: 664 | F31: 677 | G31: 685 | H31: 694 | I31: 695 | J31: 697 | K31: 697 | L31: 700 | M31: 700 | N31: 704 | O31: 706 | P31: 711 | Q31: 721 | R31: 729 | S31: 729 | T31: 735 | U31: 737 | V31: 740 | W31: 742 | X31: 746 | Y31: 762 | Z31: 765 | AA31: 4
A32: 2024-01-31 | B32: 847 | C32: 572 | D32: 631 | E32: 660 | F32: 677 | G32: 686 | H32: 692 | I32: 695 | J32: 697 | K32: 697 | L32: 701 | M32: 704 | N32: 709 | O32: 720 | P32: 734 | Q32: 759 | R32: 773 | S32: 778 | T32: 786 | U32: 789 | V32: 791 | W32: 793 | X32: 807 | Y32: 818 | Z32: 827 | AA32: 20
A33: 2024-02-26 | B33: 739 | C33: 428 | D33: 510 | E33: 540 | F33: 578 | G33: 606 | H33: 620 | I33: 624 | J33: 625 | K33: 629 | L33: 632 | M33: 634 | N33: 635 | O33: 642 | P33: 659 | Q33: 672 | R33: 677 | S33: 681 | T33: 696 | U33: 700 | V33: 704 | W33: 707 | X33: 723 | Y33: 730 | Z33: 732 | AA33: 7
A34: 2024-02-20 | B34: 834 | C34: 479 | D34: 601 | E34: 636 | F34: 662 | G34: 675 | H34: 678 | I34: 687 | J34: 689 | K34: 690 | L34: 691 | M34: 691 | N34: 691 | O34: 694 | P34: 707 | Q34: 725 | R34: 756 | S34: 766 | T34: 791 | U34: 799 | V34: 803 | W34: 804 | X34: 806 | Y34: 810 | Z34: 815 | AA34: 19
A35: 2024-02-27 | B35: 445 | C35: 259 | D35: 327 | E35: 348 | F35: 357 | G35: 369 | H35: 373 | I35: 377 | J35: 377 | K35: 380 | L35: 381 | M35: 381 | N35: 381 | O35: 384 | P35: 391 | Q35: 400 | R35: 403 | S35: 405 | T35: 410 | U35: 424 | V35: 425 | W35: 427 | X35: 429 | Y35: 431 | Z35: 433 | AA35: 12
A36: 2024-02-27 | B36: 1307 | C36: 687 | D36: 865 | E36: 938 | F36: 1000 | G36: 1029 | H36: 1048 | I36: 1072 | J36: 1076 | K36: 1078 | L36: 1078 | M36: 1079 | N36: 1088 | O36: 1094 | P36: 1113 | Q36: 1137 | R36: 1154 | S36: 1166 | T36: 1175 | U36: 1181 | V36: 1191 | W36: 1195 | X36: 1217 | Y36: 1253 | Z36: 1265 | AA36: 42
A37: 2024-02-20 | B37: 1077 | C37: 548 | D37: 726 | E37: 791 | F37: 833 | G37: 863 | H37: 881 | I37: 887 | J37: 895 | K37: 895 | L37: 896 | M37: 902 | N37: 906 | O37: 911 | P37: 931 | Q37: 956 | R37: 968 | S37: 980 | T37: 994 | U37: 997 | V37: 1002 | W37: 1004 | X37: 1008 | Y37: 1031 | Z37: 1035 | AA37: 42
A38: 2024-02-28 | B38: 913 | C38: 475 | D38: 595 | E38: 653 | F38: 682 | G38: 715 | H38: 722 | I38: 726 | J38: 728 | K38: 728 | L38: 728 | M38: 729 | N38: 737 | O38: 746 | P38: 762 | Q38: 795 | R38: 824 | S38: 834 | T38: 844 | U38: 851 | V38: 853 | W38: 858 | X38: 862 | Y38: 876 | Z38: 879 | AA38: 34
A39: 2024-02-17 | B39: 798 | C39: 372 | D39: 465 | E39: 536 | F39: 567 | G39: 602 | H39: 618 | I39: 618 | J39: 619 | K39: 619 | L39: 620 | M39: 620 | N39: 630 | O39: 633 | P39: 656 | Q39: 698 | R39: 733 | S39: 745 | T39: 751 | U39: 766 | V39: 768 | W39: 770 | X39: 773 | Y39: 779 | Z39: 781 | AA39: 17
A40: 2024-02-28 | B40: 780 | C40: 421 | D40: 509 | E40: 573 | F40: 597 | G40: 620 | H40: 630 | I40: 633 | J40: 636 | K40: 636 | L40: 636 | M40: 636 | N40: 642 | O40: 648 | P40: 667 | Q40: 699 | R40: 707 | S40: 715 | T40: 724 | U40: 731 | V40: 739 | W40: 740 | X40: 747 | Y40: 750 | Z40: 765 | AA40: 15
A41: 2024-02-20 | B41: 427 | C41: 219 | D41: 272 | E41: 296 | F41: 313 | G41: 331 | H41: 335 | I41: 336 | J41: 339 | K41: 340 | L41: 340 | M41: 341 | N41: 341 | O41: 351 | P41: 362 | Q41: 385 | R41: 393 | S41: 394 | T41: 401 | U41: 410 | V41: 413 | W41: 413 | X41: 419 | Y41: 421 | Z41: 421 | AA41: 6
A42: 2024-02-20 | B42: 369 | C42: 171 | D42: 220 | E42: 245 | F42: 255 | G42: 273 | H42: 277 | I42: 277 | J42: 278 | K42: 279 | L42: 280 | M42: 280 | N42: 280 | O42: 287 | P42: 298 | Q42: 319 | R42: 324 | S42: 325 | T42: 332 | U42: 344 | V42: 345 | W42: 346 | X42: 348 | Y42: 352 | Z42: 360 | AA42: 9
A43: 2024-02-18 | B43: 1155 | C43: 621 | D43: 747 | E43: 821 | F43: 850 | G43: 885 | H43: 900 | I43: 902 | J43: 906 | K43: 907 | L43: 907 | M43: 909 | N43: 932 | O43: 949 | P43: 975 | Q43: 1035 | R43: 1054 | S43: 1062 | T43: 1087 | U43: 1100 | V43: 1110 | W43: 1114 | X43: 1120 | Y43: 1123 | Z43: 1126 | AA43: 29
A44: 2024-02-24 | B44: 497 | C44: 240 | D44: 285 | E44: 311 | F44: 326 | G44: 343 | H44: 345 | I44: 351 | J44: 362 | K44: 365 | L44: 365 | M44: 366 | N44: 370 | O44: 375 | P44: 391 | Q44: 428 | R44: 452 | S44: 463 | T44: 468 | U44: 473 | V44: 476 | W44: 479 | X44: 481 | Y44: 489 | Z44: 491 | AA44: 6
A45: 2024-02-18 | B45: 458 | C45: 210 | D45: 256 | E45: 273 | F45: 301 | G45: 319 | H45: 322 | I45: 323 | J45: 326 | K45: 330 | L45: 337 | M45: 341 | N45: 348 | O45: 356 | P45: 373 | Q45: 392 | R45: 405 | S45: 409 | T45: 420 | U45: 429 | V45: 433 | W45: 436 | X45: 436 | Y45: 440 | Z45: 446 | AA45: 12
A46: 2024-02-26 | B46: 415 | C46: 195 | D46: 245 | E46: 267 | F46: 287 | G46: 302 | H46: 305 | I46: 306 | J46: 308 | K46: 308 | L46: 308 | M46: 308 | N46: 311 | O46: 317 | P46: 335 | Q46: 356 | R46: 371 | S46: 374 | T46: 379 | U46: 385 | V46: 387 | W46: 390 | X46: 392 | Y46: 398 | Z46: 403 | AA46: 12
A47: 2024-02-22 | B47: 399 | C47: 209 | D47: 245 | E47: 265 | F47: 277 | G47: 285 | H47: 287 | I47: 288 | J47: 288 | K47: 288 | L47: 288 | M47: 289 | N47: 296 | O47: 302 | P47: 319 | Q47: 352 | R47: 366 | S47: 371 | T47: 377 | U47: 381 | V47: 382 | W47: 382 | X47: 385 | Y47: 389 | Z47: 390 | AA47: 9
A48: 2024-02-17 | B48: 577 | C48: 270 | D48: 343 | E48: 382 | F48: 403 | G48: 444 | H48: 454 | I48: 458 | J48: 462 | K48: 462 | L48: 463 | M48: 463 | N48: 468 | O48: 473 | P48: 488 | Q48: 509 | R48: 528 | S48: 531 | T48: 538 | U48: 547 | V48: 550 | W48: 551 | X48: 553 | Y48: 559 | Z48: 563 | AA48: 14
A49: 2024-02-28 | B49: 1409 | C49: 715 | D49: 864 | E49: 963 | F49: 994 | G49: 1036 | H49: 1052 | I49: 1057 | J49: 1066 | K49: 1068 | L49: 1072 | M49: 1073 | N49: 1085 | O49: 1114 | P49: 1147 | Q49: 1234 | R49: 1297 | S49: 1307 | T49: 1323 | U49: 1337 | V49: 1339 | W49: 1351 | X49: 1355 | Y49: 1365 | Z49: 1367 | AA49: 42
A50: 2024-02-18 | B50: 2075 | C50: 1091 | D50: 1345 | E50: 1444 | F50: 1487 | G50: 1533 | H50: 1565 | I50: 1574 | J50: 1577 | K50: 1581 | L50: 1582 | M50: 1583 | N50: 1591 | O50: 1628 | P50: 1657 | Q50: 1804 | R50: 1907 | S50: 1920 | T50: 1936 | U50: 1957 | V50: 1974 | W50: 1982 | X50: 1987 | Y50: 1995 | Z50: 2006 | AA50: 69
A51: 2024-02-28 | B51: 1010 | C51: 493 | D51: 610 | E51: 682 | F51: 708 | G51: 733 | H51: 749 | I51: 750 | J51: 750 | K51: 750 | L51: 750 | M51: 750 | N51: 755 | O51: 767 | P51: 786 | Q51: 890 | R51: 936 | S51: 944 | T51: 949 | U51: 959 | V51: 964 | W51: 971 | X51: 971 | Y51: 972 | Z51: 982 | AA51: 28
A52: 2024-03-05 | B52: 950 | C52: 489 | D52: 627 | E52: 692 | F52: 729 | G52: 748 | H52: 767 | I52: 771 | J52: 771 | K52: 771 | L52: 771 | M52: 772 | N52: 776 | O52: 795 | P52: 828 | Q52: 911 | R52: 917 | S52: 928 | T52: 938 | U52: 940 | V52: 943 | W52: 949 | X52: 949 | Y52: 949 | Z52: 950 | AA52: 0
A53: 2024-02-27 | B53: 811 | C53: 553 | D53: 642 | E53: 697 | F53: 703 | G53: 716 | H53: 716 | I53: 717 | J53: 718 | K53: 718 | L53: 718 | M53: 720 | N53: 720 | O53: 734 | P53: 761 | Q53: 778 | R53: 790 | S53: 794 | T53: 805 | U53: 807 | V53: 811 | W53: 811 | X53: 811 | Y53: 811 | Z53: 811 | AA53: 0
A54: 2024-02-23 | B54: 746 | C54: 522 | D54: 602 | E54: 633 | F54: 642 | G54: 648 | H54: 652 | I54: 652 | J54: 652 | K54: 652 | L54: 653 | M54: 653 | N54: 653 | O54: 670 | P54: 693 | Q54: 708 | R54: 721 | S54: 725 | T54: 733 | U54: 735 | V54: 739 | W54: 744 | X54: 746 | Y54: 746 | Z54: 746 | AA54: 0
A55: 2024-02-28 | B55: 775 | C55: 509 | D55: 592 | E55: 637 | F55: 644 | G55: 652 | H55: 654 | I55: 654 | J55: 657 | K55: 657 | L55: 660 | M55: 661 | N55: 661 | O55: 674 | P55: 696 | Q55: 704 | R55: 727 | S55: 735 | T55: 746 | U55: 758 | V55: 770 | W55: 775 | X55: 775 | Y55: 775 | Z55: 775 | AA55: 0
A56: 2024-03-01 | B56: 783 | C56: 506 | D56: 583 | E56: 625 | F56: 649 | G56: 657 | H56: 662 | I56: 662 | J56: 662 | K56: 662 | L56: 663 | M56: 663 | N56: 663 | O56: 677 | P56: 739 | Q56: 754 | R56: 773 | S56: 780 | T56: 781 | U56: 781 | V56: 782 | W56: 783 | X56: 783 | Y56: 783 | Z56: 783 | AA56: 0
A57: 2024-02-27 | B57: 919 | C57: 664 | D57: 727 | E57: 766 | F57: 780 | G57: 793 | H57: 796 | I57: 796 | J57: 797 | K57: 797 | L57: 797 | M57: 797 | N57: 797 | O57: 807 | P57: 828 | Q57: 844 | R57: 883 | S57: 896 | T57: 907 | U57: 911 | V57: 917 | W57: 918 | X57: 918 | Y57: 918 | Z57: 918 | AA57: 0
A58: 2024-03-13 | B58: 967 | C58: 690 | D58: 766 | E58: 812 | F58: 826 | G58: 839 | H58: 839 | I58: 839 | J58: 839 | K58: 839 | L58: 839 | M58: 839 | N58: 839 | O58: 854 | P58: 884 | Q58: 901 | R58: 932 | S58: 949 | T58: 953 | U58: 955 | V58: 959 | W58: 962 | X58: 967 | Y58: 967 | Z58: 967 | AA58: 0
A59: 2024-03-02 | B59: 846 | C59: 679 | D59: 742 | E59: 770 | F59: 778 | G59: 780 | H59: 781 | I59: 781 | J59: 781 | K59: 781 | L59: 781 | M59: 781 | N59: 781 | O59: 790 | P59: 800 | Q59: 807 | R59: 814 | S59: 818 | T59: 827 | U59: 836 | V59: 842 | W59: 844 | X59: 846 | Y59: 846 | Z59: 846 | AA59: 0
A60: 2024-03-01 | B60: 953 | C60: 729 | D60: 817 | E60: 840 | F60: 852 | G60: 855 | H60: 858 | I60: 862 | J60: 862 | K60: 862 | L60: 862 | M60: 862 | N60: 863 | O60: 865 | P60: 866 | Q60: 879 | R60: 929 | S60: 933 | T60: 941 | U60: 947 | V60: 953 | W60: 953 | X60: 953 | Y60: 953 | Z60: 953 | AA60: 0
A61: 2024-03-01 | B61: 868 | C61: 620 | D61: 688 | E61: 700 | F61: 708 | G61: 710 | H61: 710 | I61: 715 | J61: 720 | K61: 720 | L61: 720 | M61: 720 | N61: 720 | O61: 720 | P61: 724 | Q61: 730 | R61: 746 | S61: 767 | T61: 804 | U61: 824 | V61: 844 | W61: 853 | X61: 853 | Y61: 867 | Z61: 867 | AA61: 0
A62: 2024-03-02 | B62: 817 | C62: 515 | D62: 590 | E62: 610 | F62: 616 | G62: 617 | H62: 624 | I62: 641 | J62: 644 | K62: 645 | L62: 645 | M62: 645 | N62: 645 | O62: 651 | P62: 652 | Q62: 665 | R62: 682 | S62: 708 | T62: 738 | U62: 757 | V62: 775 | W62: 787 | X62: 790 | Y62: 812 | Z62: 816 | AA62: 1
A63: 2024-03-07 | B63: 686 | C63: 446 | D63: 537 | E63: 579 | F63: 592 | G63: 598 | H63: 609 | I63: 631 | J63: 638 | K63: 638 | L63: 638 | M63: 638 | N63: 638 | O63: 640 | P63: 643 | Q63: 648 | R63: 664 | S63: 675 | T63: 683 | U63: 684 | V63: 684 | W63: 685 | X63: 685 | Y63: 685 | Z63: 685 | AA63: 1
A64: 2024-03-03 | B64: 934 | C64: 688 | D64: 805 | E64: 826 | F64: 833 | G64: 841 | H64: 856 | I64: 864 | J64: 865 | K64: 865 | L64: 865 | M64: 865 | N64: 866 | O64: 876 | P64: 885 | Q64: 903 | R64: 914 | S64: 924 | T64: 928 | U64: 933 | V64: 934 | W64: 934 | X64: 934 | Y64: 934 | Z64: 934 | AA64: 0
A65: 2024-03-04 | B65: 1065 | C65: 656 | D65: 794 | E65: 850 | F65: 873 | G65: 891 | H65: 911 | I65: 935 | J65: 947 | K65: 948 | L65: 948 | M65: 948 | N65: 948 | O65: 960 | P65: 969 | Q65: 997 | R65: 1029 | S65: 1047 | T65: 1053 | U65: 1055 | V65: 1064 | W65: 1065 | X65: 1065 | Y65: 1065 | Z65: 1065 | AA65: 0
A66: 2024-03-05 | B66: 945 | C66: 524 | D66: 657 | E66: 723 | F66: 757 | G66: 796 | H66: 818 | I66: 824 | J66: 843 | K66: 845 | L66: 845 | M66: 845 | N66: 845 | O66: 864 | P66: 883 | Q66: 917 | R66: 926 | S66: 938 | T66: 944 | U66: 944 | V66: 945 | W66: 945 | X66: 945 | Y66: 945 | Z66: 945 | AA66: 0
A67: 2024-03-06 | B67: 945 | C67: 695 | D67: 787 | E67: 814 | F67: 834 | G67: 845 | H67: 850 | I67: 851 | J67: 851 | K67: 851 | L67: 851 | M67: 851 | N67: 851 | O67: 855 | P67: 856 | Q67: 857 | R67: 875 | S67: 896 | T67: 936 | U67: 942 | V67: 945 | W67: 945 | X67: 945 | Y67: 945 | Z67: 945 | AA67: 0
A68: 2024-03-07 | B68: 1054 | C68: 714 | D68: 850 | E68: 907 | F68: 938 | G68: 943 | H68: 953 | I68: 956 | J68: 957 | K68: 957 | L68: 957 | M68: 957 | N68: 958 | O68: 964 | P68: 972 | Q68: 975 | R68: 992 | S68: 1028 | T68: 1047 | U68: 1048 | V68: 1054 | W68: 1054 | X68: 1054 | Y68: 1054 | Z68: 1054 | AA68: 0
A69: 2024-03-08 | B69: 877 | C69: 563 | D69: 662 | E69: 699 | F69: 714 | G69: 735 | H69: 744 | I69: 744 | J69: 744 | K69: 744 | L69: 744 | M69: 744 | N69: 746 | O69: 756 | P69: 774 | Q69: 796 | R69: 810 | S69: 845 | T69: 868 | U69: 873 | V69: 876 | W69: 876 | X69: 876 | Y69: 876 | Z69: 876 | AA69: 0
A70: 2024-03-09 | B70: 671 | C70: 544 | D70: 596 | E70: 612 | F70: 613 | G70: 614 | H70: 615 | I70: 615 | J70: 615 | K70: 615 | L70: 615 | M70: 615 | N70: 618 | O70: 632 | P70: 641 | Q70: 660 | R70: 663 | S70: 667 | T70: 668 | U70: 669 | V70: 671 | W70: 671 | X70: 671 | Y70: 671 | Z70: 671 | AA70: 0
A71: 2024-03-11 | B71: 852 | C71: 642 | D71: 718 | E71: 753 | F71: 759 | G71: 762 | H71: 762 | I71: 762 | J71: 762 | K71: 762 | L71: 762 | M71: 762 | N71: 763 | O71: 767 | P71: 773 | Q71: 785 | R71: 800 | S71: 836 | T71: 837 | U71: 837 | V71: 843 | W71: 849 | X71: 849 | Y71: 849 | Z71: 852 | AA71: 0
A72: 2024-03-11 | B72: 998 | C72: 612 | D72: 746 | E72: 792 | F72: 800 | G72: 803 | H72: 803 | I72: 803 | J72: 803 | K72: 803 | L72: 803 | M72: 803 | N72: 803 | O72: 810 | P72: 828 | Q72: 846 | R72: 871 | S72: 970 | T72: 974 | U72: 975 | V72: 991 | W72: 998 | X72: 998 | Y72: 998 | Z72: 998 | AA72: 0
A73: 2024-03-12 | B73: 967 | C73: 826 | D73: 880 | E73: 890 | F73: 896 | G73: 896 | H73: 896 | I73: 896 | J73: 896 | K73: 896 | L73: 896 | M73: 898 | N73: 898 | O73: 899 | P73: 908 | Q73: 914 | R73: 933 | S73: 964 | T73: 967 | U73: 967 | V73: 967 | W73: 967 | X73: 967 | Y73: 967 | Z73: 967 | AA73: 0
A74: 2024-03-14 | B74: 825 | C74: 611 | D74: 668 | E74: 674 | F74: 682 | G74: 686 | H74: 687 | I74: 687 | J74: 687 | K74: 687 | L74: 687 | M74: 688 | N74: 690 | O74: 694 | P74: 707 | Q74: 728 | R74: 745 | S74: 795 | T74: 823 | U74: 825 | V74: 825 | W74: 825 | X74: 825 | Y74: 825 | Z74: 825 | AA74: 0
A75: 2024-03-14 | B75: 767 | C75: 613 | D75: 688 | E75: 692 | F75: 694 | G75: 701 | H75: 705 | I75: 706 | J75: 706 | K75: 706 | L75: 706 | M75: 707 | N75: 707 | O75: 715 | P75: 724 | Q75: 735 | R75: 758 | S75: 766 | T75: 766 | U75: 766 | V75: 766 | W75: 767 | X75: 767 | Y75: 767 | Z75: 767 | AA75: 0
A76: 2024-03-15 | B76: 762 | C76: 648 | D76: 673 | E76: 684 | F76: 689 | G76: 700 | H76: 706 | I76: 706 | J76: 706 | K76: 706 | L76: 706 | M76: 706 | N76: 715 | O76: 723 | P76: 726 | Q76: 729 | R76: 760 | S76: 761 | T76: 761 | U76: 761 | V76: 761 | W76: 761 | X76: 761 | Y76: 761 | Z76: 761 | AA76: 1
A77: 2024-03-16 | B77: 607 | C77: 557 | D77: 587 | E77: 590 | F77: 590 | G77: 590 | H77: 590 | I77: 590 | J77: 590 | K77: 590 | L77: 590 | M77: 590 | N77: 598 | O77: 601 | P77: 603 | Q77: 603 | R77: 606 | S77: 606 | T77: 606 | U77: 606 | V77: 606 | W77: 606 | X77: 607 | Y77: 607 | Z77: 607 | AA77: 0
A78: 2024-03-17 | B78: 782 | C78: 707 | D78: 724 | E78: 727 | F78: 735 | G78: 736 | H78: 736 | I78: 736 | J78: 736 | K78: 736 | L78: 736 | M78: 736 | N78: 740 | O78: 756 | P78: 770 | Q78: 771 | R78: 778 | S78: 778 | T78: 780 | U78: 780 | V78: 782 | W78: 782 | X78: 782 | Y78: 782 | Z78: 782 | AA78: 0
A79: 2024-03-18 | B79: 1006 | C79: 858 | D79: 896 | E79: 911 | F79: 924 | G79: 924 | H79: 924 | I79: 924 | J79: 924 | K79: 924 | L79: 924 | M79: 924 | N79: 940 | O79: 961 | P79: 966 | Q79: 973 | R79: 999 | S79: 1001 | T79: 1003 | U79: 1005 | V79: 1006 | W79: 1006 | X79: 1006 | Y79: 1006 | Z79: 1006 | AA79: 0
A80: 2024-03-19 | B80: 747 | C80: 628 | D80: 668 | E80: 673 | F80: 674 | G80: 674 | H80: 674 | I80: 674 | J80: 674 | K80: 674 | L80: 674 | M80: 674 | N80: 689 | O80: 695 | P80: 698 | Q80: 698 | R80: 714 | S80: 720 | T80: 722 | U80: 732 | V80: 747 | W80: 747 | X80: 747 | Y80: 747 | Z80: 747 | AA80: 0
A81: 2024-03-20 | B81: 631 | C81: 537 | D81: 568 | E81: 578 | F81: 584 | G81: 585 | H81: 585 | I81: 585 | J81: 585 | K81: 585 | L81: 585 | M81: 586 | N81: 587 | O81: 588 | P81: 588 | Q81: 589 | R81: 601 | S81: 602 | T81: 608 | U81: 631 | V81: 631 | W81: 631 | X81: 631 | Y81: 631 | Z81: 631 | AA81: 0
A82: 2024-03-21 | B82: 618 | C82: 588 | D82: 603 | E82: 606 | F82: 606 | G82: 607 | H82: 607 | I82: 607 | J82: 607 | K82: 607 | L82: 607 | M82: 607 | N82: 609 | O82: 612 | P82: 614 | Q82: 617 | R82: 617 | S82: 618 | T82: 618 | U82: 618 | V82: 618 | W82: 618 | X82: 618 | Y82: 618 | Z82: 618 | AA82: 0
A83: 2024-03-24 | B83: 642 | C83: 555 | D83: 597 | E83: 602 | F83: 603 | G83: 603 | H83: 603 | I83: 603 | J83: 603 | K83: 603 | L83: 603 | M83: 604 | N83: 604 | O83: 606 | P83: 616 | Q83: 619 | R83: 640 | S83: 642 | T83: 642 | U83: 642 | V83: 642 | W83: 642 | X83: 642 | Y83: 642 | Z83: 642 | AA83: 0
A84: 2024-03-25 | B84: 271 | C84: 249 | D84: 251 | E84: 251 | F84: 251 | G84: 251 | H84: 251 | I84: 251 | J84: 251 | K84: 251 | L84: 251 | M84: 251 | N84: 253 | O84: 253 | P84: 254 | Q84: 261 | R84: 271 | S84: 271 | T84: 271 | U84: 271 | V84: 271 | W84: 271 | X84: 271 | Y84: 271 | Z84: 271 | AA84: 0
A85: 2024-03-24 | B85: 895 | C85: 821 | D85: 842 | E85: 845 | F85: 850 | G85: 850 | H85: 850 | I85: 850 | J85: 850 | K85: 850 | L85: 850 | M85: 850 | N85: 858 | O85: 862 | P85: 869 | Q85: 871 | R85: 882 | S85: 893 | T85: 893 | U85: 894 | V85: 894 | W85: 894 | X85: 895 | Y85: 895 | Z85: 895 | AA85: 0
A86: 2024-03-25 | B86: 786 | C86: 676 | D86: 721 | E86: 727 | F86: 727 | G86: 728 | H86: 728 | I86: 728 | J86: 728 | K86: 728 | L86: 728 | M86: 728 | N86: 733 | O86: 742 | P86: 751 | Q86: 759 | R86: 767 | S86: 779 | T86: 781 | U86: 781 | V86: 781 | W86: 783 | X86: 786 | Y86: 786 | Z86: 786 | AA86: 0
A87: 2024-03-26 | B87: 655 | C87: 543 | D87: 574 | E87: 580 | F87: 581 | G87: 582 | H87: 582 | I87: 582 | J87: 582 | K87: 582 | L87: 582 | M87: 582 | N87: 586 | O87: 590 | P87: 591 | Q87: 595 | R87: 617 | S87: 624 | T87: 630 | U87: 630 | V87: 637 | W87: 650 | X87: 655 | Y87: 655 | Z87: 655 | AA87: 0
A88: 2024-03-27 | B88: 557 | C88: 518 | D88: 524 | E88: 526 | F88: 528 | G88: 529 | H88: 529 | I88: 529 | J88: 529 | K88: 529 | L88: 529 | M88: 529 | N88: 530 | O88: 533 | P88: 540 | Q88: 541 | R88: 548 | S88: 549 | T88: 553 | U88: 553 | V88: 553 | W88: 553 | X88: 557 | Y88: 557 | Z88: 557 | AA88: 0
A89: 2024-03-28 | B89: 597 | C89: 488 | D89: 503 | E89: 510 | F89: 519 | G89: 528 | H89: 528 | I89: 528 | J89: 528 | K89: 528 | L89: 528 | M89: 528 | N89: 528 | O89: 529 | P89: 538 | Q89: 539 | R89: 548 | S89: 550 | T89: 554 | U89: 559 | V89: 561 | W89: 567 | X89: 583 | Y89: 597 | Z89: 597 | AA89: 0
A90: 2024-03-29 | B90: 673 | C90: 516 | D90: 539 | E90: 554 | F90: 583 | G90: 586 | H90: 588 | I90: 588 | J90: 588 | K90: 588 | L90: 588 | M90: 588 | N90: 588 | O90: 595 | P90: 618 | Q90: 618 | R90: 622 | S90: 624 | T90: 655 | U90: 670 | V90: 670 | W90: 671 | X90: 672 | Y90: 672 | Z90: 672 | AA90: 0
A91: 2024-03-30 | B91: 530 | C91: 463 | D91: 489 | E91: 505 | F91: 506 | G91: 506 | H91: 506 | I91: 506 | J91: 506 | K91: 506 | L91: 506 | M91: 506 | N91: 506 | O91: 513 | P91: 515 | Q91: 521 | R91: 526 | S91: 529 | T91: 529 | U91: 529 | V91: 529 | W91: 529 | X91: 530 | Y91: 530 | Z91: 530 | AA91: 0
A92: 2024-04-01 | B92: 522 | C92: 477 | D92: 479 | E92: 479 | F92: 479 | G92: 479 | H92: 479 | I92: 479 | J92: 479 | K92: 479 | L92: 479 | M92: 479 | N92: 479 | O92: 488 | P92: 501 | Q92: 512 | R92: 520 | S92: 522 | T92: 522 | U92: 522 | V92: 522 | W92: 522 | X92: 522 | Y92: 522 | Z92: 522 | AA92: 0
A93: 2024-04-01 | B93: 743 | C93: 647 | D93: 649 | E93: 650 | F93: 650 | G93: 650 | H93: 651 | I93: 651 | J93: 651 | K93: 651 | L93: 651 | M93: 651 | N93: 663 | O93: 675 | P93: 693 | Q93: 699 | R93: 735 | S93: 742 | T93: 742 | U93: 742 | V93: 742 | W93: 742 | X93: 742 | Y93: 742 | Z93: 742 | AA93: 0
A94: 2024-04-02 | B94: 666 | C94: 615 | D94: 624 | E94: 624 | F94: 626 | G94: 626 | H94: 626 | I94: 626 | J94: 626 | K94: 626 | L94: 626 | M94: 627 | N94: 630 | O94: 642 | P94: 642 | Q94: 646 | R94: 664 | S94: 666 | T94: 666 | U94: 666 | V94: 666 | W94: 666 | X94: 666 | Y94: 666 | Z94: 666 | AA94: 0
A95: 2024-04-03 | B95: 690 | C95: 623 | D95: 639 | E95: 639 | F95: 641 | G95: 641 | H95: 641 | I95: 641 | J95: 641 | K95: 641 | L95: 641 | M95: 641 | N95: 647 | O95: 670 | P95: 672 | Q95: 674 | R95: 679 | S95: 683 | T95: 683 | U95: 683 | V95: 683 | W95: 684 | X95: 684 | Y95: 686 | Z95: 687 | AA95: 2
A96: 2024-04-04 | B96: 588 | C96: 520 | D96: 528 | E96: 531 | F96: 539 | G96: 539 | H96: 539 | I96: 539 | J96: 539 | K96: 539 | L96: 539 | M96: 542 | N96: 548 | O96: 570 | P96: 573 | Q96: 576 | R96: 584 | S96: 586 | T96: 586 | U96: 586 | V96: 586 | W96: 586 | X96: 586 | Y96: 586 | Z96: 588 | AA96: 0
A97: 2024-04-05 | B97: 714 | C97: 630 | D97: 643 | E97: 655 | F97: 661 | G97: 662 | H97: 664 | I97: 664 | J97: 664 | K97: 664 | L97: 664 | M97: 668 | N97: 677 | O97: 692 | P97: 694 | Q97: 697 | R97: 709 | S97: 710 | T97: 710 | U97: 710 | V97: 710 | W97: 710 | X97: 710 | Y97: 710 | Z97: 714 | AA97: 0
A98: 2024-04-06 | B98: 661 | C98: 479 | D98: 501 | E98: 515 | F98: 518 | G98: 526 | H98: 530 | I98: 532 | J98: 532 | K98: 532 | L98: 532 | M98: 546 | N98: 551 | O98: 571 | P98: 583 | Q98: 593 | R98: 632 | S98: 635 | T98: 636 | U98: 637 | V98: 637 | W98: 641 | X98: 649 | Y98: 649 | Z98: 660 | AA98: 1
A99: 2024-04-08 | B99: 793 | C99: 505 | D99: 551 | E99: 581 | F99: 592 | G99: 613 | H99: 629 | I99: 629 | J99: 629 | K99: 629 | L99: 629 | M99: 640 | N99: 650 | O99: 668 | P99: 679 | Q99: 680 | R99: 690 | S99: 697 | T99: 699 | U99: 699 | V99: 705 | W99: 719 | X99: 754 | Y99: 772 | Z99: 793 | AA99: 0
A100: 2024-04-08 | B100: 908 | C100: 674 | D100: 754 | E100: 774 | F100: 781 | G100: 790 | H100: 796 | I100: 796 | J100: 796 | K100: 796 | L100: 796 | M100: 807 | N100: 824 | O100: 846 | P100: 852 | Q100: 853 | R100: 897 | S100: 906 | T100: 907 | U100: 908 | V100: 908 | W100: 908 | X100: 908 | Y100: 908 | Z100: 908 | AA100: 0
A101: 2024-04-09 | B101: 676 | C101: 641 | D101: 646 | E101: 646 | F101: 647 | G101: 647 | H101: 647 | I101: 647 | J101: 647 | K101: 647 | L101: 647 | M101: 648 | N101: 651 | O101: 659 | P101: 663 | Q101: 663 | R101: 676 | S101: 676 | T101: 676 | U101: 676 | V101: 676 | W101: 676 | X101: 676 | Y101: 676 | Z101: 676 | AA101: 0
A102: 2024-04-13 | B102: 822 | C102: 751 | D102: 759 | E102: 762 | F102: 762 | G102: 762 | H102: 762 | I102: 762 | J102: 762 | K102: 762 | L102: 762 | M102: 765 | N102: 785 | O102: 796 | P102: 807 | Q102: 811 | R102: 820 | S102: 822 | T102: 822 | U102: 822 | V102: 822 | W102: 822 | X102: 822 | Y102: 822 | Z102: 822 | AA102: 0
A103: 2024-04-15 | B103: 900 | C103: 845 | D103: 846 | E103: 848 | F103: 850 | G103: 850 | H103: 850 | I103: 850 | J103: 850 | K103: 850 | L103: 850 | M103: 851 | N103: 861 | O103: 875 | P103: 875 | Q103: 880 | R103: 895 | S103: 899 | T103: 899 | U103: 899 | V103: 899 | W103: 899 | X103: 899 | Y103: 899 | Z103: 899 | AA103: 1
A104: 2024-04-13 | B104: 821 | C104: 734 | D104: 746 | E104: 747 | F104: 748 | G104: 748 | H104: 748 | I104: 748 | J104: 748 | K104: 748 | L104: 748 | M104: 768 | N104: 792 | O104: 802 | P104: 806 | Q104: 806 | R104: 817 | S104: 821 | T104: 821 | U104: 821 | V104: 821 | W104: 821 | X104: 821 | Y104: 821 | Z104: 821 | AA104: 0
A105: 2024-04-17 | B105: 606 | C105: 538 | D105: 552 | E105: 555 | F105: 568 | G105: 571 | H105: 571 | I105: 571 | J105: 571 | K105: 571 | L105: 571 | M105: 582 | N105: 582 | O105: 593 | P105: 594 | Q105: 595 | R105: 606 | S105: 606 | T105: 606 | U105: 606 | V105: 606 | W105: 606 | X105: 606 | Y105: 606 | Z105: 606 | AA105: 0
A106: 2024-04-15 | B106: 760 | C106: 633 | D106: 661 | E106: 684 | F106: 720 | G106: 732 | H106: 733 | I106: 733 | J106: 733 | K106: 733 | L106: 733 | M106: 733 | N106: 735 | O106: 742 | P106: 750 | Q106: 752 | R106: 760 | S106: 760 | T106: 760 | U106: 760 | V106: 760 | W106: 760 | X106: 760 | Y106: 760 | Z106: 760 | AA106: 0
A107: 2024-04-18 | B107: 881 | C107: 698 | D107: 718 | E107: 747 | F107: 779 | G107: 787 | H107: 787 | I107: 787 | J107: 787 | K107: 787 | L107: 787 | M107: 788 | N107: 793 | O107: 817 | P107: 827 | Q107: 837 | R107: 870 | S107: 881 | T107: 881 | U107: 881 | V107: 881 | W107: 881 | X107: 881 | Y107: 881 | Z107: 881 | AA107: 0
A108: 2024-04-16 | B108: 700 | C108: 644 | D108: 656 | E108: 657 | F108: 657 | G108: 657 | H108: 657 | I108: 657 | J108: 657 | K108: 657 | L108: 657 | M108: 658 | N108: 659 | O108: 659 | P108: 672 | Q108: 691 | R108: 697 | S108: 698 | T108: 698 | U108: 698 | V108: 698 | W108: 698 | X108: 698 | Y108: 698 | Z108: 698 | AA108: 2
A109: 2024-04-17 | B109: 744 | C109: 665 | D109: 675 | E109: 678 | F109: 678 | G109: 678 | H109: 678 | I109: 678 | J109: 678 | K109: 678 | L109: 678 | M109: 679 | N109: 679 | O109: 683 | P109: 695 | Q109: 703 | R109: 737 | S109: 742 | T109: 742 | U109: 742 | V109: 742 | W109: 742 | X109: 742 | Y109: 742 | Z109: 743 | AA109: 1
A110: 2024-04-20 | B110: 794 | C110: 732 | D110: 748 | E110: 763 | F110: 764 | G110: 767 | H110: 767 | I110: 767 | J110: 767 | K110: 767 | L110: 767 | M110: 767 | N110: 768 | O110: 770 | P110: 773 | Q110: 786 | R110: 790 | S110: 794 | T110: 794 | U110: 794 | V110: 794 | W110: 794 | X110: 794 | Y110: 794 | Z110: 794 | AA110: 0
A111: 2024-04-19 | B111: 708 | C111: 495 | D111: 606 | E111: 649 | F111: 661 | G111: 661 | H111: 661 | I111: 661 | J111: 661 | K111: 661 | L111: 661 | M111: 661 | N111: 664 | O111: 670 | P111: 671 | Q111: 681 | R111: 703 | S111: 708 | T111: 708 | U111: 708 | V111: 708 | W111: 708 | X111: 708 | Y111: 708 | Z111: 708 | AA111: 0
A112: 2024-04-20 | B112: 589 | C112: 565 | D112: 570 | E112: 578 | F112: 579 | G112: 579 | H112: 579 | I112: 579 | J112: 579 | K112: 579 | L112: 579 | M112: 579 | N112: 579 | O112: 586 | P112: 586 | Q112: 586 | R112: 589 | S112: 589 | T112: 589 | U112: 589 | V112: 589 | W112: 589 | X112: 589 | Y112: 589 | Z112: 589 | AA112: 0
A113: 2024-04-22 | B113: 838 | C113: 782 | D113: 797 | E113: 797 | F113: 797 | G113: 797 | H113: 797 | I113: 797 | J113: 797 | K113: 797 | L113: 797 | M113: 797 | N113: 797 | O113: 802 | P113: 816 | Q113: 830 | R113: 836 | S113: 836 | T113: 836 | U113: 836 | V113: 836 | W113: 836 | X113: 836 | Y113: 836 | Z113: 836 | AA113: 1
A114: 2024-04-22 | B114: 895 | C114: 832 | D114: 848 | E114: 848 | F114: 848 | G114: 848 | H114: 848 | I114: 848 | J114: 848 | K114: 848 | L114: 848 | M114: 848 | N114: 848 | O114: 850 | P114: 853 | Q114: 856 | R114: 895 | S114: 895 | T114: 895 | U114: 895 | V114: 895 | W114: 895 | X114: 895 | Y114: 895 | Z114: 895 | AA114: 0
A115: 2024-04-23 | B115: 849 | C115: 802 | D115: 814 | E115: 814 | F115: 814 | G115: 814 | H115: 814 | I115: 814 | J115: 814 | K115: 814 | L115: 814 | M115: 814 | N115: 814 | O115: 816 | P115: 823 | Q115: 831 | R115: 848 | S115: 849 | T115: 849 | U115: 849 | V115: 849 | W115: 849 | X115: 849 | Y115: 849 | Z115: 849 | AA115: 0
A116: 2024-04-25 | B116: 753 | C116: 729 | D116: 735 | E116: 735 | F116: 735 | G116: 735 | H116: 735 | I116: 735 | J116: 735 | K116: 735 | L116: 735 | M116: 735 | N116: 735 | O116: 735 | P116: 740 | Q116: 747 | R116: 750 | S116: 750 | T116: 750 | U116: 750 | V116: 750 | W116: 750 | X116: 750 | Y116: 750 | Z116: 750 | AA116: 1
A117: 2024-04-25 | B117: 783 | C117: 746 | D117: 759 | E117: 759 | F117: 759 | G117: 759 | H117: 759 | I117: 759 | J117: 759 | K117: 759 | L117: 759 | M117: 759 | N117: 759 | O117: 759 | P117: 761 | Q117: 770 | R117: 783 | S117: 783 | T117: 783 | U117: 783 | V117: 783 | W117: 783 | X117: 783 | Y117: 783 | Z117: 783 | AA117: 0
A118: 2024-04-26 | B118: 780 | C118: 742 | D118: 765 | E118: 765 | F118: 765 | G118: 765 | H118: 765 | I118: 765 | J118: 765 | K118: 766 | L118: 766 | M118: 766 | N118: 766 | O118: 766 | P118: 768 | Q118: 775 | R118: 780 | S118: 780 | T118: 780 | U118: 780 | V118: 780 | W118: 780 | X118: 780 | Y118: 780 | Z118: 780 | AA118: 0
A119: 2024-04-27 | B119: 686 | C119: 609 | D119: 674 | E119: 674 | F119: 674 | G119: 674 | H119: 674 | I119: 674 | J119: 674 | K119: 674 | L119: 674 | M119: 674 | N119: 674 | O119: 674 | P119: 675 | Q119: 679 | R119: 686 | S119: 686 | T119: 686 | U119: 686 | V119: 686 | W119: 686 | X119: 686 | Y119: 686 | Z119: 686 | AA119: 0
A120: 2024-04-29 | B120: 850 | C120: 806 | D120: 841 | E120: 841 | F120: 841 | G120: 841 | H120: 841 | I120: 841 | J120: 841 | K120: 841 | L120: 841 | M120: 841 | N120: 841 | O120: 841 | P120: 846 | Q120: 849 | R120: 849 | S120: 850 | T120: 850 | U120: 850 | V120: 850 | W120: 850 | X120: 850 | Y120: 850 | Z120: 850 | AA120: 0
A121: 2024-05-02 | B121: 929 | C121: 885 | D121: 907 | E121: 907 | F121: 907 | G121: 907 | H121: 907 | I121: 907 | J121: 907 | K121: 908 | L121: 908 | M121: 908 | N121: 909 | O121: 910 | P121: 912 | Q121: 923 | R121: 928 | S121: 928 | T121: 928 | U121: 928 | V121: 928 | W121: 928 | X121: 928 | Y121: 928 | Z121: 928 | AA121: 0
A122: 2024-05-01 | B122: 843 | C122: 814 | D122: 837 | E122: 837 | F122: 837 | G122: 837 | H122: 837 | I122: 837 | J122: 837 | K122: 840 | L122: 840 | M122: 840 | N122: 841 | O122: 842 | P122: 843 | Q122: 843 | R122: 843 | S122: 843 | T122: 843 | U122: 843 | V122: 843 | W122: 843 | X122: 843 | Y122: 843 | Z122: 843 | AA122: 0
A123: 2024-05-08 | B123: 717 | C123: 698 | D123: 707 | E123: 707 | F123: 707 | G123: 707 | H123: 707 | I123: 707 | J123: 707 | K123: 707 | L123: 707 | M123: 707 | N123: 711 | O123: 713 | P123: 716 | Q123: 716 | R123: 717 | S123: 717 | T123: 717 | U123: 717 | V123: 717 | W123: 717 | X123: 717 | Y123: 717 | Z123: 717 | AA123: 0
A124: 2024-05-13 | B124: 754 | C124: 730 | D124: 748 | E124: 748 | F124: 748 | G124: 748 | H124: 748 | I124: 748 | J124: 748 | K124: 748 | L124: 748 | M124: 748 | N124: 748 | O124: 750 | P124: 750 | Q124: 754 | R124: 754 | S124: 754 | T124: 754 | U124: 754 | V124: 754 | W124: 754 | X124: 754 | Y124: 754 | Z124: 754 | AA124: 0
A125: 2024-05-03 | B125: 676 | C125: 651 | D125: 673 | E125: 674 | F125: 675 | G125: 675 | H125: 675 | I125: 675 | J125: 675 | K125: 675 | L125: 675 | M125: 675 | N125: 675 | O125: 675 | P125: 676 | Q125: 676 | R125: 676 | S125: 676 | T125: 676 | U125: 676 | V125: 676 | W125: 676 | X125: 676 | Y125: 676 | Z125: 676 | AA125: 0
A126: 2024-05-04 | B126: 705 | C126: 676 | D126: 686 | E126: 695 | F126: 695 | G126: 695 | H126: 695 | I126: 695 | J126: 695 | K126: 695 | L126: 695 | M126: 695 | N126: 695 | O126: 702 | P126: 702 | Q126: 703 | R126: 704 | S126: 704 | T126: 704 | U126: 704 | V126: 704 | W126: 704 | X126: 704 | Y126: 705 | Z126: 705 | AA126: 0
A127: 2024-05-08 | B127: 794 | C127: 771 | D127: 779 | E127: 779 | F127: 779 | G127: 779 | H127: 779 | I127: 779 | J127: 779 | K127: 779 | L127: 779 | M127: 779 | N127: 779 | O127: 789 | P127: 792 | Q127: 794 | R127: 794 | S127: 794 | T127: 794 | U127: 794 | V127: 794 | W127: 794 | X127: 794 | Y127: 794 | Z127: 794 | AA127: 0
A128: 2024-05-06 | B128: 956 | C128: 924 | D128: 928 | E128: 928 | F128: 928 | G128: 928 | H128: 928 | I128: 928 | J128: 928 | K128: 928 | L128: 928 | M128: 928 | N128: 930 | O128: 938 | P128: 947 | Q128: 955 | R128: 956 | S128: 956 | T128: 956 | U128: 956 | V128: 956 | W128: 956 | X128: 956 | Y128: 956 | Z128: 956 | AA128: 0
A129: 2024-05-14 | B129: 683 | C129: 651 | D129: 662 | E129: 662 | F129: 663 | G129: 663 | H129: 663 | I129: 663 | J129: 663 | K129: 663 | L129: 663 | M129: 663 | N129: 663 | O129: 663 | P129: 666 | Q129: 675 | R129: 678 | S129: 678 | T129: 678 | U129: 678 | V129: 679 | W129: 679 | X129: 679 | Y129: 679 | Z129: 679 | AA129: 3
A130: 2024-05-11 | B130: 681 | C130: 658 | D130: 669 | E130: 669 | F130: 669 | G130: 669 | H130: 669 | I130: 669 | J130: 669 | K130: 669 | L130: 669 | M130: 669 | N130: 669 | O130: 669 | P130: 673 | Q130: 679 | R130: 680 | S130: 680 | T130: 680 | U130: 680 | V130: 680 | W130: 680 | X130: 680 | Y130: 680 | Z130: 680 | AA130: 1
A131: 2024-05-10 | B131: 680 | C131: 654 | D131: 678 | E131: 678 | F131: 678 | G131: 678 | H131: 678 | I131: 678 | J131: 678 | K131: 678 | L131: 678 | M131: 678 | N131: 678 | O131: 678 | P131: 678 | Q131: 678 | R131: 680 | S131: 680 | T131: 680 | U131: 680 | V131: 680 | W131: 680 | X131: 680 | Y131: 680 | Z131: 680 | AA131: 0
A132: 2024-05-10 | B132: 681 | C132: 676 | D132: 679 | E132: 679 | F132: 679 | G132: 679 | H132: 679 | I132: 679 | J132: 679 | K132: 679 | L132: 679 | M132: 679 | N132: 679 | O132: 680 | P132: 680 | Q132: 681 | R132: 681 | S132: 681 | T132: 681 | U132: 681 | V132: 681 | W132: 681 | X132: 681 | Y132: 681 | Z132: 681 | AA132: 0
A133: 2024-05-11 | B133: 558 | C133: 541 | D133: 553 | E133: 554 | F133: 554 | G133: 554 | H133: 554 | I133: 554 | J133: 554 | K133: 554 | L133: 554 | M133: 554 | N133: 554 | O133: 554 | P133: 554 | Q133: 557 | R133: 557 | S133: 557 | T133: 557 | U133: 557 | V133: 557 | W133: 557 | X133: 557 | Y133: 557 | Z133: 557 | AA133: 0
A134: 2024-05-13 | B134: 551 | C134: 515 | D134: 539 | E134: 541 | F134: 541 | G134: 541 | H134: 541 | I134: 541 | J134: 541 | K134: 541 | L134: 541 | M134: 541 | N134: 541 | O134: 544 | P134: 550 | Q134: 550 | R134: 551 | S134: 551 | T134: 551 | U134: 551 | V134: 551 | W134: 551 | X134: 551 | Y134: 551 | Z134: 551 | AA134: 0
A135: 2024-05-13 | B135: 734 | C135: 712 | D135: 725 | E135: 727 | F135: 727 | G135: 727 | H135: 727 | I135: 727 | J135: 727 | K135: 727 | L135: 727 | M135: 727 | N135: 727 | O135: 730 | P135: 734 | Q135: 734 | R135: 734 | S135: 734 | T135: 734 | U135: 734 | V135: 734 | W135: 734 | X135: 734 | Y135: 734 | Z135: 734 | AA135: 0
A136: 2024-05-14 | B136: 802 | C136: 757 | D136: 790 | E136: 798 | F136: 800 | G136: 802 | H136: 802 | I136: 802 | J136: 802 | K136: 802 | L136: 802 | M136: 802 | N136: 802 | O136: 802 | P136: 802 | Q136: 802 | R136: 802 | S136: 802 | T136: 802 | U136: 802 | V136: 802 | W136: 802 | X136: 802 | Y136: 802 | Z136: 802 | AA136: 0
A137: 2024-05-15 | B137: 827 | C137: 683 | D137: 781 | E137: 817 | F137: 821 | G137: 821 | H137: 821 | I137: 821 | J137: 821 | K137: 821 | L137: 821 | M137: 821 | N137: 821 | O137: 821 | P137: 821 | Q137: 824 | R137: 826 | S137: 826 | T137: 826 | U137: 826 | V137: 826 | W137: 826 | X137: 826 | Y137: 826 | Z137: 827 | AA137: 0
A138: 2024-05-18 | B138: 791 | C138: 782 | D138: 786 | E138: 786 | F138: 786 | G138: 786 | H138: 786 | I138: 786 | J138: 786 | K138: 786 | L138: 786 | M138: 786 | N138: 786 | O138: 786 | P138: 786 | Q138: 790 | R138: 791 | S138: 791 | T138: 791 | U138: 791 | V138: 791 | W138: 791 | X138: 791 | Y138: 791 | Z138: 791 | AA138: 0
A139: 2024-05-17 | B139: 725 | C139: 711 | D139: 715 | E139: 719 | F139: 719 | G139: 719 | H139: 719 | I139: 719 | J139: 719 | K139: 719 | L139: 719 | M139: 719 | N139: 719 | O139: 719 | P139: 719 | Q139: 722 | R139: 725 | S139: 725 | T139: 725 | U139: 725 | V139: 725 | W139: 725 | X139: 725 | Y139: 725 | Z139: 725 | AA139: 0
A140: 2024-05-18 | B140: 621 | C140: 581 | D140: 616 | E140: 617 | F140: 617 | G140: 617 | H140: 617 | I140: 617 | J140: 617 | K140: 617 | L140: 617 | M140: 617 | N140: 618 | O140: 618 | P140: 618 | Q140: 619 | R140: 620 | S140: 621 | T140: 621 | U140: 621 | V140: 621 | W140: 621 | X140: 621 | Y140: 621 | Z140: 621 | AA140: 0
A141: 2024-05-20 | B141: 667 | C141: 639 | D141: 656 | E141: 656 | F141: 656 | G141: 656 | H141: 656 | I141: 656 | J141: 656 | K141: 656 | L141: 656 | M141: 656 | N141: 658 | O141: 660 | P141: 663 | Q141: 663 | R141: 663 | S141: 664 | T141: 664 | U141: 664 | V141: 664 | W141: 664 | X141: 664 | Y141: 664 | Z141: 664 | AA141: 3
A142: 2024-05-30 | B142: 871 | C142: 836 | D142: 843 | E142: 843 | F142: 843 | G142: 843 | H142: 843 | I142: 843 | J142: 843 | K142: 843 | L142: 843 | M142: 843 | N142: 843 | O142: 852 | P142: 865 | Q142: 869 | R142: 871 | S142: 871 | T142: 871 | U142: 871 | V142: 871 | W142: 871 | X142: 871 | Y142: 871 | Z142: 871 | AA142: 0
A143: 2024-05-21 | B143: 763 | C143: 738 | D143: 746 | E143: 747 | F143: 747 | G143: 747 | H143: 747 | I143: 747 | J143: 747 | K143: 747 | L143: 747 | M143: 747 | N143: 747 | O143: 748 | P143: 755 | Q143: 760 | R143: 761 | S143: 761 | T143: 761 | U143: 761 | V143: 761 | W143: 761 | X143: 761 | Y143: 761 | Z143: 762 | AA143: 1
A144: 2024-05-30 | B144: 745 | C144: 733 | D144: 741 | E144: 741 | F144: 741 | G144: 741 | H144: 741 | I144: 741 | J144: 741 | K144: 741 | L144: 741 | M144: 741 | N144: 741 | O144: 742 | P144: 743 | Q144: 743 | R144: 745 | S144: 745 | T144: 745 | U144: 745 | V144: 745 | W144: 745 | X144: 745 | Y144: 745 | Z144: 745 | AA144: 0
A145: 2024-05-25 | B145: 723 | C145: 705 | D145: 716 | E145: 716 | F145: 716 | G145: 716 | H145: 716 | I145: 716 | J145: 716 | K145: 716 | L145: 716 | M145: 716 | N145: 716 | O145: 716 | P145: 718 | Q145: 719 | R145: 723 | S145: 723 | T145: 723 | U145: 723 | V145: 723 | W145: 723 | X145: 723 | Y145: 723 | Z145: 723 | AA145: 0
A146: 2024-05-25 | B146: 705 | C146: 670 | D146: 688 | E146: 692 | F146: 693 | G146: 693 | H146: 693 | I146: 693 | J146: 693 | K146: 693 | L146: 693 | M146: 693 | N146: 694 | O146: 700 | P146: 703 | Q146: 704 | R146: 705 | S146: 705 | T146: 705 | U146: 705 | V146: 705 | W146: 705 | X146: 705 | Y146: 705 | Z146: 705 | AA146: 0
A147: 2024-05-25 | B147: 663 | C147: 588 | D147: 638 | E147: 638 | F147: 638 | G147: 638 | H147: 638 | I147: 638 | J147: 638 | K147: 638 | L147: 638 | M147: 638 | N147: 641 | O147: 647 | P147: 661 | Q147: 663 | R147: 663 | S147: 663 | T147: 663 | U147: 663 | V147: 663 | W147: 663 | X147: 663 | Y147: 663 | Z147: 663 | AA147: 0
A148: 2024-05-27 | B148: 616 | C148: 560 | D148: 586 | E148: 587 | F148: 587 | G148: 587 | H148: 587 | I148: 587 | J148: 587 | K148: 587 | L148: 587 | M148: 587 | N148: 595 | O148: 613 | P148: 615 | Q148: 615 | R148: 616 | S148: 616 | T148: 616 | U148: 616 | V148: 616 | W148: 616 | X148: 616 | Y148: 616 | Z148: 616 | AA148: 0
A149: 2024-05-27 | B149: 838 | C149: 778 | D149: 816 | E149: 816 | F149: 816 | G149: 816 | H149: 816 | I149: 816 | J149: 816 | K149: 816 | L149: 816 | M149: 816 | N149: 819 | O149: 825 | P149: 837 | Q149: 837 | R149: 838 | S149: 838 | T149: 838 | U149: 838 | V149: 838 | W149: 838 | X149: 838 | Y149: 838 | Z149: 838 | AA149: 0
A150: 2024-05-28 | B150: 1011 | C150: 957 | D150: 987 | E150: 988 | F150: 988 | G150: 988 | H150: 988 | I150: 988 | J150: 988 | K150: 988 | L150: 988 | M150: 988 | N150: 991 | O150: 991 | P150: 997 | Q150: 1008 | R150: 1010 | S150: 1010 | T150: 1010 | U150: 1010 | V150: 1010 | W150: 1010 | X150: 1010 | Y150: 1010 | Z150: 1010 | AA150: 1
A151: 2024-05-30 | B151: 843 | C151: 798 | D151: 829 | E151: 832 | F151: 834 | G151: 834 | H151: 835 | I151: 836 | J151: 836 | K151: 836 | L151: 836 | M151: 836 | N151: 836 | O151: 836 | P151: 836 | Q151: 839 | R151: 839 | S151: 839 | T151: 839 | U151: 839 | V151: 839 | W151: 839 | X151: 839 | Y151: 839 | Z151: 839 | AA151: 3
A152: 2024-05-30 | B152: 767 | C152: 746 | D152: 765 | E152: 765 | F152: 765 | G152: 765 | H152: 765 | I152: 765 | J152: 765 | K152: 765 | L152: 765 | M152: 765 | N152: 765 | O152: 766 | P152: 767 | Q152: 767 | R152: 767 | S152: 767 | T152: 767 | U152: 767 | V152: 767 | W152: 767 | X152: 767 | Y152: 767 | Z152: 767 | AA152: 0
A153: 2024-05-31 | B153: 754 | C153: 738 | D153: 749 | E153: 749 | F153: 749 | G153: 749 | H153: 749 | I153: 749 | J153: 749 | K153: 749 | L153: 749 | M153: 749 | N153: 749 | O153: 750 | P153: 753 | Q153: 754 | R153: 754 | S153: 754 | T153: 754 | U153: 754 | V153: 754 | W153: 754 | X153: 754 | Y153: 754 | Z153: 754 | AA153: 0
A154: 2024-06-01 | B154: 671 | C154: 653 | D154: 666 | E154: 666 | F154: 666 | G154: 666 | H154: 666 | I154: 666 | J154: 666 | K154: 666 | L154: 666 | M154: 666 | N154: 666 | O154: 668 | P154: 669 | Q154: 671 | R154: 671 | S154: 671 | T154: 671 | U154: 671 | V154: 671 | W154: 671 | X154: 671 | Y154: 671 | Z154: 671 | AA154: 0
A155: 2024-06-04 | B155: 739 | C155: 695 | D155: 709 | E155: 709 | F155: 709 | G155: 709 | H155: 709 | I155: 709 | J155: 709 | K155: 709 | L155: 709 | M155: 709 | N155: 710 | O155: 726 | P155: 733 | Q155: 736 | R155: 738 | S155: 738 | T155: 738 | U155: 738 | V155: 738 | W155: 738 | X155: 739 | Y155: 739 | Z155: 739 | AA155: 0
A156: 2024-06-07 | B156: 977 | C156: 913 | D156: 935 | E156: 935 | F156: 935 | G156: 935 | H156: 935 | I156: 935 | J156: 935 | K156: 935 | L156: 935 | M156: 938 | N156: 953 | O156: 966 | P156: 977 | Q156: 977 | R156: 977 | S156: 977 | T156: 977 | U156: 977 | V156: 977 | W156: 977 | X156: 977 | Y156: 977 | Z156: 977 | AA156: 0
A157: 2024-06-06 | B157: 811 | C157: 785 | D157: 798 | E157: 799 | F157: 799 | G157: 799 | H157: 799 | I157: 799 | J157: 799 | K157: 799 | L157: 799 | M157: 799 | N157: 804 | O157: 805 | P157: 810 | Q157: 810 | R157: 811 | S157: 811 | T157: 811 | U157: 811 | V157: 811 | W157: 811 | X157: 811 | Y157: 811 | Z157: 811 | AA157: 0
A158: 2024-06-05 | B158: 798 | C158: 773 | D158: 785 | E158: 787 | F158: 787 | G158: 787 | H158: 787 | I158: 787 | J158: 787 | K158: 787 | L158: 790 | M158: 790 | N158: 790 | O158: 792 | P158: 796 | Q158: 796 | R158: 798 | S158: 798 | T158: 798 | U158: 798 | V158: 798 | W158: 798 | X158: 798 | Y158: 798 | Z158: 798 | AA158: 0
A159: 2024-06-06 | B159: 750 | C159: 735 | D159: 738 | E159: 738 | F159: 739 | G159: 739 | H159: 739 | I159: 739 | J159: 739 | K159: 739 | L159: 739 | M159: 743 | N159: 743 | O159: 743 | P159: 744 | Q159: 749 | R159: 749 | S159: 749 | T159: 749 | U159: 749 | V159: 749 | W159: 749 | X159: 749 | Y159: 749 | Z159: 749 | AA159: 0
A160: 2024-06-07 | B160: 785 | C160: 753 | D160: 778 | E160: 779 | F160: 779 | G160: 779 | H160: 779 | I160: 779 | J160: 779 | K160: 779 | L160: 779 | M160: 779 | N160: 779 | O160: 779 | P160: 780 | Q160: 784 | R160: 785 | S160: 785 | T160: 785 | U160: 785 | V160: 785 | W160: 785 | X160: 785 | Y160: 785 | Z160: 785 | AA160: 0
A161: 2024-06-08 | B161: 591 | C161: 570 | D161: 587 | E161: 587 | F161: 587 | G161: 587 | H161: 587 | I161: 587 | J161: 587 | K161: 587 | L161: 587 | M161: 587 | N161: 588 | O161: 589 | P161: 590 | Q161: 591 | R161: 591 | S161: 591 | T161: 591 | U161: 591 | V161: 591 | W161: 591 | X161: 591 | Y161: 591 | Z161: 591 | AA161: 0
A162: 2024-06-11 | B162: 688 | C162: 660 | D162: 668 | E162: 670 | F162: 671 | G162: 671 | H162: 671 | I162: 671 | J162: 671 | K162: 671 | L162: 671 | M162: 671 | N162: 671 | O162: 671 | P162: 682 | Q162: 686 | R162: 686 | S162: 686 | T162: 686 | U162: 686 | V162: 686 | W162: 687 | X162: 687 | Y162: 688 | Z162: 688 | AA162: 0
A163: 2024-06-12 | B163: 772 | C163: 714 | D163: 720 | E163: 724 | F163: 725 | G163: 725 | H163: 725 | I163: 725 | J163: 725 | K163: 725 | L163: 725 | M163: 735 | N163: 741 | O163: 767 | P163: 768 | Q163: 771 | R163: 772 | S163: 772 | T163: 772 | U163: 772 | V163: 772 | W163: 772 | X163: 772 | Y163: 772 | Z163: 772 | AA163: 0
A164: 2024-06-13 | B164: 874 | C164: 833 | D164: 838 | E164: 845 | F164: 847 | G164: 847 | H164: 847 | I164: 847 | J164: 847 | K164: 847 | L164: 847 | M164: 850 | N164: 852 | O164: 859 | P164: 862 | Q164: 870 | R164: 874 | S164: 874 | T164: 874 | U164: 874 | V164: 874 | W164: 874 | X164: 874 | Y164: 874 | Z164: 874 | AA164: 0
A165: 2024-06-12 | B165: 830 | C165: 734 | D165: 764 | E165: 800 | F165: 810 | G165: 810 | H165: 810 | I165: 810 | J165: 810 | K165: 810 | L165: 810 | M165: 810 | N165: 811 | O165: 819 | P165: 828 | Q165: 829 | R165: 829 | S165: 829 | T165: 829 | U165: 829 | V165: 829 | W165: 829 | X165: 829 | Y165: 830 | Z165: 830 | AA165: 0
A166: 2024-06-14 | B166: 768 | C166: 647 | D166: 690 | E166: 743 | F166: 745 | G166: 745 | H166: 745 | I166: 745 | J166: 746 | K166: 746 | L166: 746 | M166: 746 | N166: 748 | O166: 754 | P166: 758 | Q166: 766 | R166: 768 | S166: 768 | T166: 768 | U166: 768 | V166: 768 | W166: 768 | X166: 768 | Y166: 768 | Z166: 768 | AA166: 0
A167: 2024-06-14 | B167: 753 | C167: 731 | D167: 745 | E167: 746 | F167: 746 | G167: 746 | H167: 746 | I167: 746 | J167: 746 | K167: 746 | L167: 746 | M167: 746 | N167: 746 | O167: 752 | P167: 752 | Q167: 753 | R167: 753 | S167: 753 | T167: 753 | U167: 753 | V167: 753 | W167: 753 | X167: 753 | Y167: 753 | Z167: 753 | AA167: 0
A168: 2024-06-15 | B168: 713 | C168: 646 | D168: 687 | E168: 688 | F168: 688 | G168: 688 | H168: 688 | I168: 688 | J168: 688 | K168: 688 | L168: 688 | M168: 688 | N168: 688 | O168: 695 | P168: 695 | Q168: 710 | R168: 711 | S168: 713 | T168: 713 | U168: 713 | V168: 713 | W168: 713 | X168: 713 | Y168: 713 | Z168: 713 | AA168: 0
A169: 2024-06-25 | B169: 756 | C169: 740 | D169: 752 | E169: 752 | F169: 752 | G169: 752 | H169: 752 | I169: 752 | J169: 752 | K169: 752 | L169: 752 | M169: 753 | N169: 754 | O169: 754 | P169: 754 | Q169: 754 | R169: 754 | S169: 756 | T169: 756 | U169: 756 | V169: 756 | W169: 756 | X169: 756 | Y169: 756 | Z169: 756 | AA169: 0
A170: 2024-06-18 | B170: 825 | C170: 783 | D170: 793 | E170: 793 | F170: 793 | G170: 793 | H170: 793 | I170: 793 | J170: 793 | K170: 793 | L170: 795 | M170: 804 | N170: 816 | O170: 823 | P170: 823 | Q170: 823 | R170: 825 | S170: 825 | T170: 825 | U170: 825 | V170: 825 | W170: 825 | X170: 825 | Y170: 825 | Z170: 825 | AA170: 0
A171: 2024-06-19 | B171: 840 | C171: 818 | D171: 822 | E171: 822 | F171: 823 | G171: 823 | H171: 823 | I171: 823 | J171: 823 | K171: 823 | L171: 830 | M171: 836 | N171: 838 | O171: 839 | P171: 839 | Q171: 840 | R171: 840 | S171: 840 | T171: 840 | U171: 840 | V171: 840 | W171: 840 | X171: 840 | Y171: 840 | Z171: 840 | AA171: 0
A172: 2024-06-19 | B172: 800 | C172: 772 | D172: 785 | E172: 785 | F172: 785 | G172: 785 | H172: 785 | I172: 785 | J172: 785 | K172: 785 | L172: 785 | M172: 785 | N172: 788 | O172: 790 | P172: 796 | Q172: 797 | R172: 799 | S172: 799 | T172: 799 | U172: 799 | V172: 799 | W172: 799 | X172: 799 | Y172: 799 | Z172: 799 | AA172: 0
A173: 2024-06-20 | B173: 860 | C173: 840 | D173: 847 | E173: 847 | F173: 847 | G173: 847 | H173: 847 | I173: 847 | J173: 847 | K173: 847 | L173: 848 | M173: 852 | N173: 853 | O173: 855 | P173: 855 | Q173: 858 | R173: 859 | S173: 860 | T173: 860 | U173: 860 | V173: 860 | W173: 860 | X173: 860 | Y173: 860 | Z173: 860 | AA173: 0
A174: 2024-06-21 | B174: 748 | C174: 730 | D174: 740 | E174: 740 | F174: 740 | G174: 740 | H174: 740 | I174: 740 | J174: 740 | K174: 740 | L174: 740 | M174: 741 | N174: 743 | O174: 745 | P174: 745 | Q174: 746 | R174: 747 | S174: 747 | T174: 747 | U174: 747 | V174: 747 | W174: 747 | X174: 747 | Y174: 747 | Z174: 747 | AA174: 1
A175: 2024-06-23 | B175: 242 | C175: 238 | D175: 239 | E175: 239 | F175: 239 | G175: 239 | H175: 239 | I175: 239 | J175: 239 | K175: 239 | L175: 239 | M175: 239 | N175: 240 | O175: 240 | P175: 240 | Q175: 242 | R175: 242 | S175: 242 | T175: 242 | U175: 242 | V175: 242 | W175: 242 | X175: 242 | Y175: 242 | Z175: 242 | AA175: 0
A176: 2024-06-24 | B176: 1191 | C176: 1107 | D176: 1111 | E176: 1112 | F176: 1112 | G176: 1112 | H176: 1112 | I176: 1112 | J176: 1112 | K176: 1112 | L176: 1112 | M176: 1114 | N176: 1126 | O176: 1144 | P176: 1166 | Q176: 1180 | R176: 1191 | S176: 1191 | T176: 1191 | U176: 1191 | V176: 1191 | W176: 1191 | X176: 1191 | Y176: 1191 | Z176: 1191 | AA176: 0
A177: 2024-06-25 | B177: 809 | C177: 779 | D177: 790 | E177: 790 | F177: 790 | G177: 790 | H177: 790 | I177: 790 | J177: 790 | K177: 790 | L177: 790 | M177: 793 | N177: 793 | O177: 795 | P177: 809 | Q177: 809 | R177: 809 | S177: 809 | T177: 809 | U177: 809 | V177: 809 | W177: 809 | X177: 809 | Y177: 809 | Z177: 809 | AA177: 0
A178: 2024-06-25 | B178: 722 | C178: 706 | D178: 709 | E178: 709 | F178: 709 | G178: 709 | H178: 709 | I178: 709 | J178: 709 | K178: 709 | L178: 709 | M178: 709 | N178: 711 | O178: 712 | P178: 716 | Q178: 722 | R178: 722 | S178: 722 | T178: 722 | U178: 722 | V178: 722 | W178: 722 | X178: 722 | Y178: 722 | Z178: 722 | AA178: 0
A179: 2024-06-26 | B179: 729 | C179: 724 | D179: 729 | E179: 729 | F179: 729 | G179: 729 | H179: 729 | I179: 729 | J179: 729 | K179: 729 | L179: 729 | M179: 729 | N179: 729 | O179: 729 | P179: 729 | Q179: 729 | R179: 729 | S179: 729 | T179: 729 | U179: 729 | V179: 729 | W179: 729 | X179: 729 | Y179: 729 | Z179: 729 | AA179: 0
A180: 2024-07-03 | B180: 728 | C180: 705 | D180: 725 | E180: 725 | F180: 725 | G180: 725 | H180: 725 | I180: 725 | J180: 725 | K180: 725 | L180: 725 | M180: 725 | N180: 727 | O180: 727 | P180: 727 | Q180: 727 | R180: 727 | S180: 727 | T180: 727 | U180: 727 | V180: 727 | W180: 727 | X180: 727 | Y180: 727 | Z180: 727 | AA180: 0
A181: 2024-06-29 | B181: 775 | C181: 745 | D181: 767 | E181: 769 | F181: 769 | G181: 769 | H181: 769 | I181: 769 | J181: 769 | K181: 769 | L181: 769 | M181: 769 | N181: 771 | O181: 771 | P181: 771 | Q181: 774 | R181: 775 | S181: 775 | T181: 775 | U181: 775 | V181: 775 | W181: 775 | X181: 775 | Y181: 775 | Z181: 775 | AA181: 0
A182: 2024-07-01 | B182: 657 | C182: 648 | D182: 649 | E182: 649 | F182: 649 | G182: 649 | H182: 649 | I182: 649 | J182: 649 | K182: 649 | L182: 649 | M182: 649 | N182: 652 | O182: 653 | P182: 653 | Q182: 657 | R182: 657 | S182: 657 | T182: 657 | U182: 657 | V182: 657 | W182: 657 | X182: 657 | Y182: 657 | Z182: 657 | AA182: 0
A183: 2024-06-30 | B183: 818 | C183: 742 | D183: 757 | E183: 757 | F183: 757 | G183: 757 | H183: 757 | I183: 757 | J183: 757 | K183: 757 | L183: 757 | M183: 757 | N183: 771 | O183: 795 | P183: 811 | Q183: 817 | R183: 817 | S183: 817 | T183: 818 | U183: 818 | V183: 818 | W183: 818 | X183: 818 | Y183: 818 | Z183: 818 | AA183: 0
A184: 2024-07-02 | B184: 858 | C184: 828 | D184: 831 | E184: 831 | F184: 831 | G184: 831 | H184: 831 | I184: 831 | J184: 831 | K184: 831 | L184: 831 | M184: 831 | N184: 831 | O184: 841 | P184: 848 | Q184: 857 | R184: 858 | S184: 858 | T184: 858 | U184: 858 | V184: 858 | W184: 858 | X184: 858 | Y184: 858 | Z184: 858 | AA184: 0
A185: 2024-07-02 | B185: 888 | C185: 880 | D185: 883 | E185: 883 | F185: 883 | G185: 883 | H185: 883 | I185: 883 | J185: 883 | K185: 883 | L185: 883 | M185: 883 | N185: 885 | O185: 886 | P185: 886 | Q185: 888 | R185: 888 | S185: 888 | T185: 888 | U185: 888 | V185: 888 | W185: 888 | X185: 888 | Y185: 888 | Z185: 888 | AA185: 0
A186: 2024-07-04 | B186: 872 | C186: 834 | D186: 859 | E186: 862 | F186: 864 | G186: 864 | H186: 864 | I186: 864 | J186: 864 | K186: 864 | L186: 864 | M186: 864 | N186: 865 | O186: 867 | P186: 869 | Q186: 872 | R186: 872 | S186: 872 | T186: 872 | U186: 872 | V186: 872 | W186: 872 | X186: 872 | Y186: 872 | Z186: 872 | AA186: 0
A187: 2024-07-05 | B187: 852 | C187: 846 | D187: 849 | E187: 849 | F187: 849 | G187: 849 | H187: 849 | I187: 849 | J187: 849 | K187: 849 | L187: 849 | M187: 849 | N187: 850 | O187: 850 | P187: 850 | Q187: 851 | R187: 852 | S187: 852 | T187: 852 | U187: 852 | V187: 852 | W187: 852 | X187: 852 | Y187: 852 | Z187: 852 | AA187: 0
A188: 2024-07-06 | B188: 780 | C188: 768 | D188: 778 | E188: 778 | F188: 778 | G188: 778 | H188: 778 | I188: 778 | J188: 778 | K188: 778 | L188: 778 | M188: 778 | N188: 779 | O188: 779 | P188: 779 | Q188: 780 | R188: 780 | S188: 780 | T188: 780 | U188: 780 | V188: 780 | W188: 780 | X188: 780 | Y188: 780 | Z188: 780 | AA188: 0
A189: 2024-07-06 | B189: 729 | C189: 704 | D189: 716 | E189: 716 | F189: 716 | G189: 716 | H189: 716 | I189: 716 | J189: 716 | K189: 716 | L189: 717 | M189: 718 | N189: 724 | O189: 726 | P189: 726 | Q189: 729 | R189: 729 | S189: 729 | T189: 729 | U189: 729 | V189: 729 | W189: 729 | X189: 729 | Y189: 729 | Z189: 729 | AA189: 0
A190: 2024-07-10 | B190: 838 | C190: 780 | D190: 815 | E190: 817 | F190: 817 | G190: 817 | H190: 817 | I190: 817 | J190: 817 | K190: 817 | L190: 818 | M190: 824 | N190: 828 | O190: 836 | P190: 836 | Q190: 838 | R190: 838 | S190: 838 | T190: 838 | U190: 838 | V190: 838 | W190: 838 | X190: 838 | Y190: 838 | Z190: 838 | AA190: 0
A191: 2024-07-10 | B191: 909 | C191: 852 | D191: 864 | E191: 864 | F191: 864 | G191: 864 | H191: 864 | I191: 864 | J191: 864 | K191: 864 | L191: 865 | M191: 865 | N191: 882 | O191: 888 | P191: 904 | Q191: 904 | R191: 909 | S191: 909 | T191: 909 | U191: 909 | V191: 909 | W191: 909 | X191: 909 | Y191: 909 | Z191: 909 | AA191: 0
A192: 2024-07-09 | B192: 888 | C192: 854 | D192: 877 | E192: 877 | F192: 877 | G192: 877 | H192: 877 | I192: 877 | J192: 877 | K192: 877 | L192: 877 | M192: 878 | N192: 883 | O192: 884 | P192: 884 | Q192: 886 | R192: 888 | S192: 888 | T192: 888 | U192: 888 | V192: 888 | W192: 888 | X192: 888 | Y192: 888 | Z192: 888 | AA192: 0
A193: 2024-07-10 | B193: 814 | C193: 781 | D193: 808 | E193: 808 | F193: 808 | G193: 808 | H193: 808 | I193: 808 | J193: 808 | K193: 808 | L193: 808 | M193: 808 | N193: 812 | O193: 812 | P193: 812 | Q193: 812 | R193: 814 | S193: 814 | T193: 814 | U193: 814 | V193: 814 | W193: 814 | X193: 814 | Y193: 814 | Z193: 814 | AA193: 0
A194: 2024-07-11 | B194: 837 | C194: 818 | D194: 830 | E194: 831 | F194: 831 | G194: 831 | H194: 831 | I194: 831 | J194: 831 | K194: 831 | L194: 831 | M194: 831 | N194: 833 | O194: 835 | P194: 835 | Q194: 837 | R194: 837 | S194: 837 | T194: 837 | U194: 837 | V194: 837 | W194: 837 | X194: 837 | Y194: 837 | Z194: 837 | AA194: 0
A195: 2024-07-16 | B195: 806 | C195: 774 | D195: 786 | E195: 787 | F195: 787 | G195: 787 | H195: 787 | I195: 787 | J195: 787 | K195: 787 | L195: 787 | M195: 787 | N195: 797 | O195: 800 | P195: 804 | Q195: 804 | R195: 806 | S195: 806 | T195: 806 | U195: 806 | V195: 806 | W195: 806 | X195: 806 | Y195: 806 | Z195: 806 | AA195: 0
A196: 2024-07-13 | B196: 709 | C196: 681 | D196: 698 | E196: 699 | F196: 699 | G196: 699 | H196: 699 | I196: 699 | J196: 699 | K196: 699 | L196: 699 | M196: 699 | N196: 699 | O196: 699 | P196: 703 | Q196: 707 | R196: 709 | S196: 709 | T196: 709 | U196: 709 | V196: 709 | W196: 709 | X196: 709 | Y196: 709 | Z196: 709 | AA196: 0
A197: 2024-07-15 | B197: 801 | C197: 779 | D197: 794 | E197: 795 | F197: 795 | G197: 795 | H197: 795 | I197: 795 | J197: 795 | K197: 795 | L197: 795 | M197: 795 | N197: 795 | O197: 795 | P197: 797 | Q197: 798 | R197: 799 | S197: 799 | T197: 799 | U197: 799 | V197: 800 | W197: 800 | X197: 800 | Y197: 800 | Z197: 801 | AA197: 0
A198: 2024-07-15 | B198: 915 | C198: 898 | D198: 905 | E198: 905 | F198: 905 | G198: 905 | H198: 905 | I198: 905 | J198: 905 | K198: 905 | L198: 905 | M198: 905 | N198: 907 | O198: 910 | P198: 912 | Q198: 913 | R198: 915 | S198: 915 | T198: 915 | U198: 915 | V198: 915 | W198: 915 | X198: 915 | Y198: 915 | Z198: 915 | AA198: 0
A199: 2024-07-17 | B199: 733 | C199: 706 | D199: 724 | E199: 724 | F199: 726 | G199: 726 | H199: 726 | I199: 726 | J199: 726 | K199: 726 | L199: 726 | M199: 726 | N199: 726 | O199: 727 | P199: 729 | Q199: 730 | R199: 730 | S199: 733 | T199: 733 | U199: 733 | V199: 733 | W199: 733 | X199: 733 | Y199: 733 | Z199: 733 | AA199: 0
A200: 2024-07-17 | B200: 807 | C200: 798 | D200: 798 | E200: 798 | F200: 799 | G200: 799 | H200: 799 | I200: 799 | J200: 799 | K200: 799 | L200: 799 | M200: 799 | N200: 801 | O200: 803 | P200: 804 | Q200: 804 | R200: 804 | S200: 805 | T200: 805 | U200: 807 | V200: 807 | W200: 807 | X200: 807 | Y200: 807 | Z200: 807 | AA200: 0
... 664 more rows

Sheet 支付时间-发货时间
A1: 支付时间 | B1: 采购单数 | C1: 1天 | D1: 2天 | E1: 3天 | F1: 4天 | G1: 5天 | H1: 6天 | I1: 7天 | J1: 8天 | K1: 9天 | L1: 10天 | M1: 11天 | N1: 12天 | O1: 13天 | P1: 14天 | Q1: 15天 | R1: >15天 | T1: 支付时间 | U1: 采购单数 | V1: 1天 | W1: 2天 | X1: 3天 | Y1: 4天 | Z1: 5天 | AA1: 6天 | AB1: 7天 | AC1: 8天 | AD1: 9天 | AE1: 10天 | AF1: 11天 | AG1: 12天 | AH1: 13天 | AI1: 14天 | AJ1: 15天 | AK1: >15天
A2: 2024-01-01 | B2: 671 | C2: 95 | D2: 483 | E2: 581 | F2: 649 | G2: 662 | H2: 663 | I2: 666 | J2: 669 | K2: 669 | L2: 670 | M2: 670 | N2: 671 | O2: 671 | P2: 671 | Q2: 671 | R2: 0 | T2: 2024-01-01 | U2: =B2 -> 671 | V2: =C2/$B2 -> 0.14 | W2: =D2/$B2 -> 0.72 | X2: 0.87 | Y2: 0.97 | Z2: 0.99 | AA2: 0.99 | AB2: 0.99 | AC2: 1.00 | AD2: 1.00 | AE2: 1.00 | AF2: 1.00 | AG2: 1.00 | AH2: 1.00 | AI2: 1.00 | AJ2: 1.00 | AK2: 0
A3: 2024-01-02 | B3: 830 | C3: 255 | D3: 615 | E3: 758 | F3: 793 | G3: 806 | H3: 816 | I3: 826 | J3: 827 | K3: 827 | L3: 827 | M3: 829 | N3: 829 | O3: 829 | P3: 830 | Q3: 830 | R3: 0 | T3: 2024-01-02 | U3: =B3 -> 830 | V3: =C3/$B3 -> 0.31 | W3: =D3/$B3 -> 0.74 | X3: =E3/$B3 -> 0.91 | Y3: =F3/$B3 -> 0.96 | Z3: =G3/$B3 -> 0.97 | AA3: =H3/$B3 -> 0.98 | AB3: =I3/$B3 -> 1.00 | AC3: =J3/$B3 -> 1.00 | AD3: =K3/$B3 -> 1.00 | AE3: =L3/$B3 -> 1.00 | AF3: =M3/$B3 -> 1.00 | AG3: =N3/$B3 -> 1.00 | AH3: =O3/$B3 -> 1.00 | AI3: =P3/$B3 -> 1.00 | AJ3: =Q3/$B3 -> 1.00 | AK3: =R3/$B3 -> 0
A4: 2024-01-03 | B4: 838 | C4: 285 | D4: 643 | E4: 715 | F4: 756 | G4: 802 | H4: 813 | I4: 817 | J4: 826 | K4: 826 | L4: 832 | M4: 837 | N4: 837 | O4: 837 | P4: 838 | Q4: 838 | R4: 0 | T4: 2024-01-03 | U4: 838 | V4: 0.34 | W4: 0.77 | X4: 0.85 | Y4: 0.90 | Z4: 0.96 | AA4: 0.97 | AB4: 0.97 | AC4: 0.99 | AD4: 0.99 | AE4: 0.99 | AF4: 1.00 | AG4: 1.00 | AH4: 1.00 | AI4: 1.00 | AJ4: 1.00 | AK4: 0
A5: 2024-01-04 | B5: 781 | C5: 280 | D5: 560 | E5: 661 | F5: 710 | G5: 727 | H5: 737 | I5: 769 | J5: 773 | K5: 780 | L5: 781 | M5: 781 | N5: 781 | O5: 781 | P5: 781 | Q5: 781 | R5: 0 | T5: 2024-01-04 | U5: 781 | V5: 0.36 | W5: 0.72 | X5: 0.85 | Y5: 0.91 | Z5: 0.93 | AA5: 0.94 | AB5: 0.98 | AC5: 0.99 | AD5: 1.00 | AE5: 1.00 | AF5: 1.00 | AG5: 1.00 | AH5: 1.00 | AI5: 1.00 | AJ5: 1.00 | AK5: 0
A6: 2024-01-05 | B6: 795 | C6: 261 | D6: 556 | E6: 677 | F6: 732 | G6: 764 | H6: 783 | I6: 787 | J6: 793 | K6: 794 | L6: 794 | M6: 794 | N6: 795 | O6: 795 | P6: 795 | Q6: 795 | R6: 0 | T6: 2024-01-05 | U6: 795 | V6: 0.33 | W6: 0.70 | X6: 0.85 | Y6: 0.92 | Z6: 0.96 | AA6: 0.98 | AB6: 0.99 | AC6: 1.00 | AD6: 1.00 | AE6: 1.00 | AF6: 1.00 | AG6: 1.00 | AH6: 1.00 | AI6: 1.00 | AJ6: 1.00 | AK6: 0
A7: 2024-01-06 | B7: 571 | C7: 226 | D7: 416 | E7: 474 | F7: 499 | G7: 521 | H7: 526 | I7: 561 | J7: 565 | K7: 567 | L7: 571 | M7: 571 | N7: 571 | O7: 571 | P7: 571 | Q7: 571 | R7: 0 | T7: 2024-01-06 | U7: 571 | V7: 0.40 | W7: 0.73 | X7: 0.83 | Y7: 0.87 | Z7: 0.91 | AA7: 0.92 | AB7: 0.98 | AC7: 0.99 | AD7: 0.99 | AE7: 1.00 | AF7: 1.00 | AG7: 1.00 | AH7: 1.00 | AI7: 1.00 | AJ7: 1.00 | AK7: 0
A8: 2024-01-07 | B8: 522 | C8: 167 | D8: 404 | E8: 436 | F8: 474 | G8: 480 | H8: 519 | I8: 520 | J8: 520 | K8: 520 | L8: 522 | M8: 522 | N8: 522 | O8: 522 | P8: 522 | Q8: 522 | R8: 0 | T8: 2024-01-07 | U8: 522 | V8: 0.32 | W8: 0.77 | X8: 0.84 | Y8: 0.91 | Z8: 0.92 | AA8: 0.99 | AB8: 1.00 | AC8: 1.00 | AD8: 1.00 | AE8: 1.00 | AF8: 1.00 | AG8: 1.00 | AH8: 1.00 | AI8: 1.00 | AJ8: 1.00 | AK8: 0
A9: 2024-01-08 | B9: 989 | C9: 313 | D9: 721 | E9: 824 | F9: 866 | G9: 906 | H9: 923 | I9: 966 | J9: 973 | K9: 987 | L9: 988 | M9: 988 | N9: 989 | O9: 989 | P9: 989 | Q9: 989 | R9: 0 | T9: 2024-01-08 | U9: 989 | V9: 0.32 | W9: 0.73 | X9: 0.83 | Y9: 0.88 | Z9: 0.92 | AA9: 0.93 | AB9: 0.98 | AC9: 0.98 | AD9: 1.00 | AE9: 1.00 | AF9: 1.00 | AG9: 1.00 | AH9: 1.00 | AI9: 1.00 | AJ9: 1.00 | AK9: 0
A10: 2024-01-09 | B10: 717 | C10: 234 | D10: 494 | E10: 600 | F10: 656 | G10: 677 | H10: 689 | I10: 703 | J10: 715 | K10: 715 | L10: 715 | M10: 715 | N10: 716 | O10: 716 | P10: 716 | Q10: 717 | R10: 0 | T10: 2024-01-09 | U10: 717 | V10: 0.33 | W10: 0.69 | X10: 0.84 | Y10: 0.91 | Z10: 0.94 | AA10: 0.96 | AB10: 0.98 | AC10: 1.00 | AD10: 1.00 | AE10: 1.00 | AF10: 1.00 | AG10: 1.00 | AH10: 1.00 | AI10: 1.00 | AJ10: 1.00 | AK10: 0
A11: 2024-01-10 | B11: 639 | C11: 244 | D11: 453 | E11: 548 | F11: 573 | G11: 613 | H11: 625 | I11: 629 | J11: 634 | K11: 638 | L11: 639 | M11: 639 | N11: 639 | O11: 639 | P11: 639 | Q11: 639 | R11: 0 | T11: 2024-01-10 | U11: 639 | V11: 0.38 | W11: 0.71 | X11: 0.86 | Y11: 0.90 | Z11: 0.96 | AA11: 0.98 | AB11: 0.98 | AC11: 0.99 | AD11: 1.00 | AE11: 1.00 | AF11: 1.00 | AG11: 1.00 | AH11: 1.00 | AI11: 1.00 | AJ11: 1.00 | AK11: 0
A12: 2024-01-11 | B12: 636 | C12: 186 | D12: 464 | E12: 512 | F12: 571 | G12: 603 | H12: 617 | I12: 623 | J12: 627 | K12: 628 | L12: 628 | M12: 629 | N12: 629 | O12: 633 | P12: 636 | Q12: 636 | R12: 0 | T12: 2024-01-11 | U12: 636 | V12: 0.29 | W12: 0.73 | X12: 0.81 | Y12: 0.90 | Z12: 0.95 | AA12: 0.97 | AB12: 0.98 | AC12: 0.99 | AD12: 0.99 | AE12: 0.99 | AF12: 0.99 | AG12: 0.99 | AH12: 1.00 | AI12: 1.00 | AJ12: 1.00 | AK12: 0
A13: 2024-01-12 | B13: 536 | C13: 189 | D13: 376 | E13: 426 | F13: 462 | G13: 500 | H13: 509 | I13: 515 | J13: 534 | K13: 534 | L13: 534 | M13: 534 | N13: 536 | O13: 536 | P13: 536 | Q13: 536 | R13: 0 | T13: 2024-01-12 | U13: 536 | V13: 0.35 | W13: 0.70 | X13: 0.79 | Y13: 0.86 | Z13: 0.93 | AA13: 0.95 | AB13: 0.96 | AC13: 1.00 | AD13: 1.00 | AE13: 1.00 | AF13: 1.00 | AG13: 1.00 | AH13: 1.00 | AI13: 1.00 | AJ13: 1.00 | AK13: 0
A14: 2024-01-13 | B14: 477 | C14: 186 | D14: 339 | E14: 404 | F14: 428 | G14: 439 | H14: 448 | I14: 471 | J14: 472 | K14: 475 | L14: 477 | M14: 477 | N14: 477 | O14: 477 | P14: 477 | Q14: 477 | R14: 0 | T14: 2024-01-13 | U14: 477 | V14: 0.39 | W14: 0.71 | X14: 0.85 | Y14: 0.90 | Z14: 0.92 | AA14: 0.94 | AB14: 0.99 | AC14: 0.99 | AD14: 1.00 | AE14: 1.00 | AF14: 1.00 | AG14: 1.00 | AH14: 1.00 | AI14: 1.00 | AJ14: 1.00 | AK14: 0
A15: 2024-01-14 | B15: 398 | C15: 129 | D15: 292 | E15: 347 | F15: 360 | G15: 364 | H15: 392 | I15: 393 | J15: 397 | K15: 398 | L15: 398 | M15: 398 | N15: 398 | O15: 398 | P15: 398 | Q15: 398 | R15: 0 | T15: 2024-01-14 | U15: 398 | V15: 0.32 | W15: 0.73 | X15: 0.87 | Y15: 0.90 | Z15: 0.91 | AA15: 0.98 | AB15: 0.99 | AC15: 1.00 | AD15: 1.00 | AE15: 1.00 | AF15: 1.00 | AG15: 1.00 | AH15: 1.00 | AI15: 1.00 | AJ15: 1.00 | AK15: 0
A16: 2024-01-15 | B16: 861 | C16: 308 | D16: 651 | E16: 735 | F16: 765 | G16: 827 | H16: 840 | I16: 841 | J16: 854 | K16: 860 | L16: 860 | M16: 861 | N16: 861 | O16: 861 | P16: 861 | Q16: 861 | R16: 0 | T16: 2024-01-15 | U16: 861 | V16: 0.36 | W16: 0.76 | X16: 0.85 | Y16: 0.89 | Z16: 0.96 | AA16: 0.98 | AB16: 0.98 | AC16: 0.99 | AD16: 1.00 | AE16: 1.00 | AF16: 1.00 | AG16: 1.00 | AH16: 1.00 | AI16: 1.00 | AJ16: 1.00 | AK16: 0
A17: 2024-01-16 | B17: 804 | C17: 264 | D17: 586 | E17: 674 | F17: 753 | G17: 772 | H17: 780 | I17: 782 | J17: 798 | K17: 801 | L17: 801 | M17: 801 | N17: 802 | O17: 802 | P17: 803 | Q17: 804 | R17: 0 | T17: 2024-01-16 | U17: 804 | V17: 0.33 | W17: 0.73 | X17: 0.84 | Y17: 0.94 | Z17: 0.96 | AA17: 0.97 | AB17: 0.97 | AC17: 0.99 | AD17: 1.00 | AE17: 1.00 | AF17: 1.00 | AG17: 1.00 | AH17: 1.00 | AI17: 1.00 | AJ17: 1.00 | AK17: 0
A18: 2024-01-17 | B18: 746 | C18: 296 | D18: 569 | E18: 658 | F18: 688 | G18: 705 | H18: 722 | I18: 735 | J18: 744 | K18: 745 | L18: 745 | M18: 746 | N18: 746 | O18: 746 | P18: 746 | Q18: 746 | R18: 0 | T18: 2024-01-17 | U18: 746 | V18: 0.40 | W18: 0.76 | X18: 0.88 | Y18: 0.92 | Z18: 0.95 | AA18: 0.97 | AB18: 0.99 | AC18: 1.00 | AD18: 1.00 | AE18: 1.00 | AF18: 1.00 | AG18: 1.00 | AH18: 1.00 | AI18: 1.00 | AJ18: 1.00 | AK18: 0
A19: 2024-01-18 | B19: 711 | C19: 268 | D19: 547 | E19: 609 | F19: 647 | G19: 671 | H19: 699 | I19: 706 | J19: 707 | K19: 709 | L19: 710 | M19: 710 | N19: 710 | O19: 711 | P19: 711 | Q19: 711 | R19: 0 | T19: 2024-01-18 | U19: 711 | V19: 0.38 | W19: 0.77 | X19: 0.86 | Y19: 0.91 | Z19: 0.94 | AA19: 0.98 | AB19: 0.99 | AC19: 0.99 | AD19: 1.00 | AE19: 1.00 | AF19: 1.00 | AG19: 1.00 | AH19: 1.00 | AI19: 1.00 | AJ19: 1.00 | AK19: 0
A20: 2024-01-19 | B20: 668 | C20: 232 | D20: 473 | E20: 547 | F20: 580 | G20: 637 | H20: 651 | I20: 659 | J20: 665 | K20: 668 | L20: 668 | M20: 668 | N20: 668 | O20: 668 | P20: 668 | Q20: 668 | R20: 0 | T20: 2024-01-19 | U20: 668 | V20: 0.35 | W20: 0.71 | X20: 0.82 | Y20: 0.87 | Z20: 0.95 | AA20: 0.97 | AB20: 0.99 | AC20: 1.00 | AD20: 1.00 | AE20: 1.00 | AF20: 1.00 | AG20: 1.00 | AH20: 1.00 | AI20: 1.00 | AJ20: 1.00 | AK20: 0
A21: 2024-01-20 | B21: 442 | C21: 181 | D21: 334 | E21: 359 | F21: 416 | G21: 431 | H21: 435 | I21: 441 | J21: 441 | K21: 442 | L21: 442 | M21: 442 | N21: 442 | O21: 442 | P21: 442 | Q21: 442 | R21: 0 | T21: 2024-01-20 | U21: 442 | V21: 0.41 | W21: 0.76 | X21: 0.81 | Y21: 0.94 | Z21: 0.98 | AA21: 0.98 | AB21: 1.00 | AC21: 1.00 | AD21: 1.00 | AE21: 1.00 | AF21: 1.00 | AG21: 1.00 | AH21: 1.00 | AI21: 1.00 | AJ21: 1.00 | AK21: 0
A22: 2024-01-21 | B22: 480 | C22: 142 | D22: 378 | E22: 442 | F22: 458 | G22: 470 | H22: 476 | I22: 477 | J22: 480 | K22: 480 | L22: 480 | M22: 480 | N22: 480 | O22: 480 | P22: 480 | Q22: 480 | R22: 0 | T22: 2024-01-21 | U22: 480 | V22: 0.30 | W22: 0.79 | X22: 0.92 | Y22: 0.95 | Z22: 0.98 | AA22: 0.99 | AB22: 0.99 | AC22: 1.00 | AD22: 1.00 | AE22: 1.00 | AF22: 1.00 | AG22: 1.00 | AH22: 1.00 | AI22: 1.00 | AJ22: 1.00 | AK22: 0
A23: 2024-01-22 | B23: 826 | C23: 280 | D23: 657 | E23: 738 | F23: 788 | G23: 803 | H23: 814 | I23: 822 | J23: 824 | K23: 824 | L23: 824 | M23: 824 | N23: 826 | O23: 826 | P23: 826 | Q23: 826 | R23: 0 | T23: 2024-01-22 | U23: 826 | V23: 0.34 | W23: 0.80 | X23: 0.89 | Y23: 0.95 | Z23: 0.97 | AA23: 0.99 | AB23: 1.00 | AC23: 1.00 | AD23: 1.00 | AE23: 1.00 | AF23: 1.00 | AG23: 1.00 | AH23: 1.00 | AI23: 1.00 | AJ23: 1.00 | AK23: 0
A24: 2024-01-23 | B24: 956 | C24: 343 | D24: 740 | E24: 866 | F24: 901 | G24: 923 | H24: 938 | I24: 942 | J24: 954 | K24: 956 | L24: 956 | M24: 956 | N24: 956 | O24: 956 | P24: 956 | Q24: 956 | R24: 0 | T24: 2024-01-23 | U24: 956 | V24: 0.36 | W24: 0.77 | X24: 0.91 | Y24: 0.94 | Z24: 0.97 | AA24: 0.98 | AB24: 0.99 | AC24: 1.00 | AD24: 1.00 | AE24: 1.00 | AF24: 1.00 | AG24: 1.00 | AH24: 1.00 | AI24: 1.00 | AJ24: 1.00 | AK24: 0
A25: 2024-01-24 | B25: 548 | C25: 202 | D25: 418 | E25: 478 | F25: 514 | G25: 526 | H25: 536 | I25: 545 | J25: 548 | K25: 548 | L25: 548 | M25: 548 | N25: 548 | O25: 548 | P25: 548 | Q25: 548 | R25: 0 | T25: 2024-01-24 | U25: 548 | V25: 0.37 | W25: 0.76 | X25: 0.87 | Y25: 0.94 | Z25: 0.96 | AA25: 0.98 | AB25: 0.99 | AC25: 1.00 | AD25: 1.00 | AE25: 1.00 | AF25: 1.00 | AG25: 1.00 | AH25: 1.00 | AI25: 1.00 | AJ25: 1.00 | AK25: 0
A26: 2024-01-25 | B26: 526 | C26: 238 | D26: 439 | E26: 494 | F26: 506 | G26: 518 | H26: 521 | I26: 524 | J26: 526 | K26: 526 | L26: 526 | M26: 526 | N26: 526 | O26: 526 | P26: 526 | Q26: 526 | R26: 0 | T26: 2024-01-25 | U26: 526 | V26: 0.45 | W26: 0.83 | X26: 0.94 | Y26: 0.96 | Z26: 0.98 | AA26: 0.99 | AB26: 1.00 | AC26: 1.00 | AD26: 1.00 | AE26: 1.00 | AF26: 1.00 | AG26: 1.00 | AH26: 1.00 | AI26: 1.00 | AJ26: 1.00 | AK26: 0
A27: 2024-01-26 | B27: 473 | C27: 209 | D27: 378 | E27: 420 | F27: 443 | G27: 464 | H27: 466 | I27: 469 | J27: 470 | K27: 471 | L27: 471 | M27: 471 | N27: 471 | O27: 471 | P27: 471 | Q27: 471 | R27: 2 | T27: 2024-01-26 | U27: 473 | V27: 0.44 | W27: 0.80 | X27: 0.89 | Y27: 0.94 | Z27: 0.98 | AA27: 0.99 | AB27: 0.99 | AC27: 0.99 | AD27: 1.00 | AE27: 1.00 | AF27: 1.00 | AG27: 1.00 | AH27: 1.00 | AI27: 1.00 | AJ27: 1.00 | AK27: 0.00
A28: 2024-01-27 | B28: 353 | C28: 163 | D28: 313 | E28: 334 | F28: 347 | G28: 350 | H28: 352 | I28: 352 | J28: 352 | K28: 352 | L28: 352 | M28: 352 | N28: 352 | O28: 352 | P28: 352 | Q28: 352 | R28: 1 | T28: 2024-01-27 | U28: 353 | V28: 0.46 | W28: 0.89 | X28: 0.95 | Y28: 0.98 | Z28: 0.99 | AA28: 1.00 | AB28: 1.00 | AC28: 1.00 | AD28: 1.00 | AE28: 1.00 | AF28: 1.00 | AG28: 1.00 | AH28: 1.00 | AI28: 1.00 | AJ28: 1.00 | AK28: 0.00
A29: 2024-01-28 | B29: 348 | C29: 147 | D29: 318 | E29: 342 | F29: 346 | G29: 346 | H29: 348 | I29: 348 | J29: 348 | K29: 348 | L29: 348 | M29: 348 | N29: 348 | O29: 348 | P29: 348 | Q29: 348 | R29: 0 | T29: 2024-01-28 | U29: 348 | V29: 0.42 | W29: 0.91 | X29: 0.98 | Y29: 0.99 | Z29: 0.99 | AA29: 1.00 | AB29: 1.00 | AC29: 1.00 | AD29: 1.00 | AE29: 1.00 | AF29: 1.00 | AG29: 1.00 | AH29: 1.00 | AI29: 1.00 | AJ29: 1.00 | AK29: 0
A30: 2024-01-29 | B30: 550 | C30: 245 | D30: 466 | E30: 504 | F30: 516 | G30: 517 | H30: 517 | I30: 517 | J30: 549 | K30: 549 | L30: 549 | M30: 549 | N30: 549 | O30: 549 | P30: 549 | Q30: 549 | R30: 1 | T30: 2024-01-29 | U30: 550 | V30: 0.45 | W30: 0.85 | X30: 0.92 | Y30: 0.94 | Z30: 0.94 | AA30: 0.94 | AB30: 0.94 | AC30: 1.00 | AD30: 1.00 | AE30: 1.00 | AF30: 1.00 | AG30: 1.00 | AH30: 1.00 | AI30: 1.00 | AJ30: 1.00 | AK30: 0.00
A31: 2024-01-30 | B31: 483 | C31: 256 | D31: 431 | E31: 470 | F31: 472 | G31: 475 | H31: 475 | I31: 483 | J31: 483 | K31: 483 | L31: 483 | M31: 483 | N31: 483 | O31: 483 | P31: 483 | Q31: 483 | R31: 0 | T31: 2024-01-30 | U31: 483 | V31: 0.53 | W31: 0.89 | X31: 0.97 | Y31: 0.98 | Z31: 0.98 | AA31: 0.98 | AB31: 1.00 | AC31: 1.00 | AD31: 1.00 | AE31: 1.00 | AF31: 1.00 | AG31: 1.00 | AH31: 1.00 | AI31: 1.00 | AJ31: 1.00 | AK31: 0
A32: 2024-01-31 | B32: 379 | C32: 163 | D32: 369 | E32: 378 | F32: 379 | G32: 379 | H32: 379 | I32: 379 | J32: 379 | K32: 379 | L32: 379 | M32: 379 | N32: 379 | O32: 379 | P32: 379 | Q32: 379 | R32: 0 | T32: 2024-01-31 | U32: 379 | V32: 0.43 | W32: 0.97 | X32: 1.00 | Y32: 1.00 | Z32: 1.00 | AA32: 1.00 | AB32: 1.00 | AC32: 1.00 | AD32: 1.00 | AE32: 1.00 | AF32: 1.00 | AG32: 1.00 | AH32: 1.00 | AI32: 1.00 | AJ32: 1.00 | AK32: 0
A33: 2024-02-01 | B33: 122 | C33: 81 | D33: 120 | E33: 121 | F33: 122 | G33: 122 | H33: 122 | I33: 122 | J33: 122 | K33: 122 | L33: 122 | M33: 122 | N33: 122 | O33: 122 | P33: 122 | Q33: 122 | R33: 0 | T33: 2024-02-01 | U33: 122 | V33: 0.66 | W33: 0.98 | X33: 0.99 | Y33: 1.00 | Z33: 1.00 | AA33: 1.00 | AB33: 1.00 | AC33: 1.00 | AD33: 1.00 | AE33: 1.00 | AF33: 1.00 | AG33: 1.00 | AH33: 1.00 | AI33: 1.00 | AJ33: 1.00 | AK33: 0
A34: 2024-02-02 | B34: 37 | C34: 31 | D34: 37 | E34: 37 | F34: 37 | G34: 37 | H34: 37 | I34: 37 | J34: 37 | K34: 37 | L34: 37 | M34: 37 | N34: 37 | O34: 37 | P34: 37 | Q34: 37 | R34: 0 | T34: 2024-02-02 | U34: 37 | V34: 0.84 | W34: 1.00 | X34: 1.00 | Y34: 1.00 | Z34: 1.00 | AA34: 1.00 | AB34: 1.00 | AC34: 1.00 | AD34: 1.00 | AE34: 1.00 | AF34: 1.00 | AG34: 1.00 | AH34: 1.00 | AI34: 1.00 | AJ34: 1.00 | AK34: 0
A35: 2024-02-03 | B35: 4 | C35: 2 | D35: 4 | E35: 4 | F35: 4 | G35: 4 | H35: 4 | I35: 4 | J35: 4 | K35: 4 | L35: 4 | M35: 4 | N35: 4 | O35: 4 | P35: 4 | Q35: 4 | R35: 0 | T35: 2024-02-03 | U35: 4 | V35: 0.50 | W35: 1.00 | X35: 1.00 | Y35: 1.00 | Z35: 1.00 | AA35: 1.00 | AB35: 1.00 | AC35: 1.00 | AD35: 1.00 | AE35: 1.00 | AF35: 1.00 | AG35: 1.00 | AH35: 1.00 | AI35: 1.00 | AJ35: 1.00 | AK35: 0
A36: 2024-02-04 | B36: 7 | C36: 0 | D36: 7 | E36: 7 | F36: 7 | G36: 7 | H36: 7 | I36: 7 | J36: 7 | K36: 7 | L36: 7 | M36: 7 | N36: 7 | O36: 7 | P36: 7 | Q36: 7 | R36: 0 | T36: 2024-02-04 | U36: 7 | V36: 0 | W36: 1.00 | X36: 1.00 | Y36: 1.00 | Z36: 1.00 | AA36: 1.00 | AB36: 1.00 | AC36: 1.00 | AD36: 1.00 | AE36: 1.00 | AF36: 1.00 | AG36: 1.00 | AH36: 1.00 | AI36: 1.00 | AJ36: 1.00 | AK36: 0
A37: 2024-02-05 | B37: 6 | C37: 5 | D37: 6 | E37: 6 | F37: 6 | G37: 6 | H37: 6 | I37: 6 | J37: 6 | K37: 6 | L37: 6 | M37: 6 | N37: 6 | O37: 6 | P37: 6 | Q37: 6 | R37: 0 | T37: 2024-02-05 | U37: 6 | V37: 0.83 | W37: 1.00 | X37: 1.00 | Y37: 1.00 | Z37: 1.00 | AA37: 1.00 | AB37: 1.00 | AC37: 1.00 | AD37: 1.00 | AE37: 1.00 | AF37: 1.00 | AG37: 1.00 | AH37: 1.00 | AI37: 1.00 | AJ37: 1.00 | AK37: 0
A38: 2024-02-06 | B38: 1 | C38: 1 | D38: 1 | E38: 1 | F38: 1 | G38: 1 | H38: 1 | I38: 1 | J38: 1 | K38: 1 | L38: 1 | M38: 1 | N38: 1 | O38: 1 | P38: 1 | Q38: 1 | R38: 0 | T38: 2024-02-06 | U38: 1 | V38: 1.00 | W38: 1.00 | X38: 1.00 | Y38: 1.00 | Z38: 1.00 | AA38: 1.00 | AB38: 1.00 | AC38: 1.00 | AD38: 1.00 | AE38: 1.00 | AF38: 1.00 | AG38: 1.00 | AH38: 1.00 | AI38: 1.00 | AJ38: 1.00 | AK38: 0
A39: 2024-02-17 | B39: 2260 | C39: 93 | D39: 167 | E39: 922 | F39: 1155 | G39: 1310 | H39: 1395 | I39: 1624 | J39: 1777 | K39: 1883 | L39: 2037 | M39: 2080 | N39: 2100 | O39: 2110 | P39: 2142 | Q39: 2149 | R39: 111 | T39: 2024-02-17 | U39: 2260 | V39: 0.04 | W39: 0.07 | X39: 0.41 | Y39: 0.51 | Z39: 0.58 | AA39: 0.62 | AB39: 0.72 | AC39: 0.79 | AD39: 0.83 | AE39: 0.90 | AF39: 0.92 | AG39: 0.93 | AH39: 0.93 | AI39: 0.95 | AJ39: 0.95 | AK39: 0.05
A40: 2024-02-18 | B40: 2572 | C40: 25 | D40: 427 | E40: 1050 | F40: 1486 | G40: 1626 | H40: 1871 | I40: 2013 | J40: 2155 | K40: 2323 | L40: 2411 | M40: 2434 | N40: 2441 | O40: 2483 | P40: 2499 | Q40: 2504 | R40: 68 | T40: 2024-02-18 | U40: 2572 | V40: 0.01 | W40: 0.17 | X40: 0.41 | Y40: 0.58 | Z40: 0.63 | AA40: 0.73 | AB40: 0.78 | AC40: 0.84 | AD40: 0.90 | AE40: 0.94 | AF40: 0.95 | AG40: 0.95 | AH40: 0.97 | AI40: 0.97 | AJ40: 0.97 | AK40: 0.03
A41: 2024-02-19 | B41: 2343 | C41: 26 | D41: 287 | E41: 1460 | F41: 1594 | G41: 1719 | H41: 1870 | I41: 1956 | J41: 2052 | K41: 2135 | L41: 2173 | M41: 2193 | N41: 2219 | O41: 2242 | P41: 2262 | Q41: 2285 | R41: 58 | T41: 2024-02-19 | U41: 2343 | V41: 0.01 | W41: 0.12 | X41: 0.62 | Y41: 0.68 | Z41: 0.73 | AA41: 0.80 | AB41: 0.83 | AC41: 0.88 | AD41: 0.91 | AE41: 0.93 | AF41: 0.94 | AG41: 0.95 | AH41: 0.96 | AI41: 0.97 | AJ41: 0.98 | AK41: 0.02
A42: 2024-02-20 | B42: 2948 | C42: 184 | D42: 1255 | E42: 1837 | F42: 2026 | G42: 2188 | H42: 2352 | I42: 2479 | J42: 2614 | K42: 2671 | L42: 2704 | M42: 2740 | N42: 2771 | O42: 2809 | P42: 2835 | Q42: 2847 | R42: 101 | T42: 2024-02-20 | U42: 2948 | V42: 0.06 | W42: 0.43 | X42: 0.62 | Y42: 0.69 | Z42: 0.74 | AA42: 0.80 | AB42: 0.84 | AC42: 0.89 | AD42: 0.91 | AE42: 0.92 | AF42: 0.93 | AG42: 0.94 | AH42: 0.95 | AI42: 0.96 | AJ42: 0.97 | AK42: 0.03
A43: 2024-02-21 | B43: 2332 | C43: 402 | D43: 1217 | E43: 1475 | F43: 1664 | G43: 1808 | H43: 1923 | I43: 2003 | J43: 2084 | K43: 2144 | L43: 2178 | M43: 2209 | N43: 2239 | O43: 2265 | P43: 2279 | Q43: 2299 | R43: 33 | T43: 2024-02-21 | U43: 2332 | V43: 0.17 | W43: 0.52 | X43: 0.63 | Y43: 0.71 | Z43: 0.78 | AA43: 0.82 | AB43: 0.86 | AC43: 0.89 | AD43: 0.92 | AE43: 0.93 | AF43: 0.95 | AG43: 0.96 | AH43: 0.97 | AI43: 0.98 | AJ43: 0.99 | AK43: 0.01
A44: 2024-02-22 | B44: 1847 | C44: 608 | D44: 1067 | E44: 1280 | F44: 1426 | G44: 1511 | H44: 1588 | I44: 1632 | J44: 1684 | K44: 1716 | L44: 1735 | M44: 1756 | N44: 1773 | O44: 1799 | P44: 1811 | Q44: 1822 | R44: 25 | T44: 2024-02-22 | U44: 1847 | V44: 0.33 | W44: 0.58 | X44: 0.69 | Y44: 0.77 | Z44: 0.82 | AA44: 0.86 | AB44: 0.88 | AC44: 0.91 | AD44: 0.93 | AE44: 0.94 | AF44: 0.95 | AG44: 0.96 | AH44: 0.97 | AI44: 0.98 | AJ44: 0.99 | AK44: 0.01
A45: 2024-02-23 | B45: 1926 | C45: 367 | D45: 1033 | E45: 1318 | F45: 1465 | G45: 1556 | H45: 1647 | I45: 1701 | J45: 1748 | K45: 1801 | L45: 1832 | M45: 1853 | N45: 1866 | O45: 1888 | P45: 1899 | Q45: 1905 | R45: 21 | T45: 2024-02-23 | U45: 1926 | V45: 0.19 | W45: 0.54 | X45: 0.68 | Y45: 0.76 | Z45: 0.81 | AA45: 0.86 | AB45: 0.88 | AC45: 0.91 | AD45: 0.94 | AE45: 0.95 | AF45: 0.96 | AG45: 0.97 | AH45: 0.98 | AI45: 0.99 | AJ45: 0.99 | AK45: 0.01
A46: 2024-02-24 | B46: 1201 | C46: 262 | D46: 644 | E46: 813 | F46: 880 | G46: 972 | H46: 1026 | I46: 1058 | J46: 1089 | K46: 1109 | L46: 1128 | M46: 1137 | N46: 1158 | O46: 1173 | P46: 1176 | Q46: 1184 | R46: 17 | T46: 2024-02-24 | U46: 1201 | V46: 0.22 | W46: 0.54 | X46: 0.68 | Y46: 0.73 | Z46: 0.81 | AA46: 0.85 | AB46: 0.88 | AC46: 0.91 | AD46: 0.92 | AE46: 0.94 | AF46: 0.95 | AG46: 0.96 | AH46: 0.98 | AI46: 0.98 | AJ46: 0.99 | AK46: 0.01
A47: 2024-02-25 | B47: 960 | C47: 368 | D47: 616 | E47: 663 | F47: 797 | G47: 824 | H47: 843 | I47: 862 | J47: 885 | K47: 890 | L47: 903 | M47: 930 | N47: 942 | O47: 945 | P47: 951 | Q47: 954 | R47: 6 | T47: 2024-02-25 | U47: 960 | V47: 0.38 | W47: 0.64 | X47: 0.69 | Y47: 0.83 | Z47: 0.86 | AA47: 0.88 | AB47: 0.90 | AC47: 0.92 | AD47: 0.93 | AE47: 0.94 | AF47: 0.97 | AG47: 0.98 | AH47: 0.98 | AI47: 0.99 | AJ47: 0.99 | AK47: 0.01
A48: 2024-02-26 | B48: 1462 | C48: 198 | D48: 599 | E48: 1089 | F48: 1160 | G48: 1213 | H48: 1264 | I48: 1314 | J48: 1344 | K48: 1378 | L48: 1408 | M48: 1425 | N48: 1432 | O48: 1440 | P48: 1445 | Q48: 1446 | R48: 16 | T48: 2024-02-26 | U48: 1462 | V48: 0.14 | W48: 0.41 | X48: 0.74 | Y48: 0.79 | Z48: 0.83 | AA48: 0.86 | AB48: 0.90 | AC48: 0.92 | AD48: 0.94 | AE48: 0.96 | AF48: 0.97 | AG48: 0.98 | AH48: 0.98 | AI48: 0.99 | AJ48: 0.99 | AK48: 0.01
A49: 2024-02-27 | B49: 1528 | C49: 100 | D49: 922 | E49: 1060 | F49: 1158 | G49: 1243 | H49: 1326 | I49: 1368 | J49: 1401 | K49: 1450 | L49: 1466 | M49: 1471 | N49: 1479 | O49: 1484 | P49: 1491 | Q49: 1492 | R49: 36 | T49: 2024-02-27 | U49: 1528 | V49: 0.07 | W49: 0.60 | X49: 0.69 | Y49: 0.76 | Z49: 0.81 | AA49: 0.87 | AB49: 0.90 | AC49: 0.92 | AD49: 0.95 | AE49: 0.96 | AF49: 0.96 | AG49: 0.97 | AH49: 0.97 | AI49: 0.98 | AJ49: 0.98 | AK49: 0.02
A50: 2024-02-28 | B50: 989 | C50: 321 | D50: 584 | E50: 707 | F50: 783 | G50: 841 | H50: 862 | I50: 888 | J50: 933 | K50: 949 | L50: 960 | M50: 968 | N50: 970 | O50: 970 | P50: 974 | Q50: 980 | R50: 9 | T50: 2024-02-28 | U50: 989 | V50: 0.32 | W50: 0.59 | X50: 0.71 | Y50: 0.79 | Z50: 0.85 | AA50: 0.87 | AB50: 0.90 | AC50: 0.94 | AD50: 0.96 | AE50: 0.97 | AF50: 0.98 | AG50: 0.98 | AH50: 0.98 | AI50: 0.98 | AJ50: 0.99 | AK50: 0.01
A51: 2024-02-29 | B51: 918 | C51: 318 | D51: 592 | E51: 705 | F51: 775 | G51: 795 | H51: 831 | I51: 864 | J51: 883 | K51: 895 | L51: 901 | M51: 906 | N51: 908 | O51: 910 | P51: 912 | Q51: 913 | R51: 5 | T51: 2024-02-29 | U51: 918 | V51: 0.35 | W51: 0.64 | X51: 0.77 | Y51: 0.84 | Z51: 0.87 | AA51: 0.91 | AB51: 0.94 | AC51: 0.96 | AD51: 0.97 | AE51: 0.98 | AF51: 0.99 | AG51: 0.99 | AH51: 0.99 | AI51: 0.99 | AJ51: 0.99 | AK51: 0.01
A52: 2024-03-01 | B52: 936 | C52: 238 | D52: 676 | E52: 762 | F52: 802 | G52: 848 | H52: 872 | I52: 892 | J52: 901 | K52: 906 | L52: 914 | M52: 915 | N52: 921 | O52: 925 | P52: 925 | Q52: 927 | R52: 9 | T52: 2024-03-01 | U52: 936 | V52: 0.25 | W52: 0.72 | X52: 0.81 | Y52: 0.86 | Z52: 0.91 | AA52: 0.93 | AB52: 0.95 | AC52: 0.96 | AD52: 0.97 | AE52: 0.98 | AF52: 0.98 | AG52: 0.98 | AH52: 0.99 | AI52: 0.99 | AJ52: 0.99 | AK52: 0.01
A53: 2024-03-02 | B53: 792 | C53: 216 | D53: 484 | E53: 546 | F53: 616 | G53: 700 | H53: 727 | I53: 743 | J53: 751 | K53: 763 | L53: 768 | M53: 771 | N53: 780 | O53: 781 | P53: 781 | Q53: 782 | R53: 10 | T53: 2024-03-02 | U53: 792 | V53: 0.27 | W53: 0.61 | X53: 0.69 | Y53: 0.78 | Z53: 0.88 | AA53: 0.92 | AB53: 0.94 | AC53: 0.95 | AD53: 0.96 | AE53: 0.97 | AF53: 0.97 | AG53: 0.98 | AH53: 0.99 | AI53: 0.99 | AJ53: 0.99 | AK53: 0.01
A54: 2024-03-03 | B54: 620 | C54: 253 | D54: 432 | E54: 508 | F54: 548 | G54: 569 | H54: 586 | I54: 596 | J54: 604 | K54: 609 | L54: 612 | M54: 616 | N54: 617 | O54: 618 | P54: 618 | Q54: 618 | R54: 2 | T54: 2024-03-03 | U54: 620 | V54: 0.41 | W54: 0.70 | X54: 0.82 | Y54: 0.88 | Z54: 0.92 | AA54: 0.95 | AB54: 0.96 | AC54: 0.97 | AD54: 0.98 | AE54: 0.99 | AF54: 0.99 | AG54: 1.00 | AH54: 1.00 | AI54: 1.00 | AJ54: 1.00 | AK54: 0.00
A55: 2024-03-04 | B55: 1026 | C55: 282 | D55: 703 | E55: 835 | F55: 910 | G55: 951 | H55: 967 | I55: 989 | J55: 1000 | K55: 1009 | L55: 1014 | M55: 1016 | N55: 1018 | O55: 1018 | P55: 1018 | Q55: 1019 | R55: 7 | T55: 2024-03-04 | U55: 1026 | V55: 0.27 | W55: 0.69 | X55: 0.81 | Y55: 0.89 | Z55: 0.93 | AA55: 0.94 | AB55: 0.96 | AC55: 0.97 | AD55: 0.98 | AE55: 0.99 | AF55: 0.99 | AG55: 0.99 | AH55: 0.99 | AI55: 0.99 | AJ55: 0.99 | AK55: 0.01
A56: 2024-03-05 | B56: 1384 | C56: 268 | D56: 818 | E56: 1109 | F56: 1182 | G56: 1224 | H56: 1277 | I56: 1327 | J56: 1349 | K56: 1360 | L56: 1367 | M56: 1370 | N56: 1372 | O56: 1373 | P56: 1374 | Q56: 1379 | R56: 5 | T56: 2024-03-05 | U56: 1384 | V56: 0.19 | W56: 0.59 | X56: 0.80 | Y56: 0.85 | Z56: 0.88 | AA56: 0.92 | AB56: 0.96 | AC56: 0.97 | AD56: 0.98 | AE56: 0.99 | AF56: 0.99 | AG56: 0.99 | AH56: 0.99 | AI56: 0.99 | AJ56: 1.00 | AK56: 0.00
A57: 2024-03-06 | B57: 905 | C57: 65 | D57: 639 | E57: 724 | F57: 780 | G57: 819 | H57: 848 | I57: 861 | J57: 880 | K57: 884 | L57: 890 | M57: 893 | N57: 895 | O57: 901 | P57: 901 | Q57: 901 | R57: 4 | T57: 2024-03-06 | U57: 905 | V57: 0.07 | W57: 0.71 | X57: 0.80 | Y57: 0.86 | Z57: 0.90 | AA57: 0.94 | AB57: 0.95 | AC57: 0.97 | AD57: 0.98 | AE57: 0.98 | AF57: 0.99 | AG57: 0.99 | AH57: 1.00 | AI57: 1.00 | AJ57: 1.00 | AK57: 0.00
A58: 2024-03-07 | B58: 997 | C58: 335 | D58: 646 | E58: 768 | F58: 846 | G58: 896 | H58: 914 | I58: 942 | J58: 959 | K58: 965 | L58: 970 | M58: 975 | N58: 989 | O58: 990 | P58: 992 | Q58: 993 | R58: 4 | T58: 2024-03-07 | U58: 997 | V58: 0.34 | W58: 0.65 | X58: 0.77 | Y58: 0.85 | Z58: 0.90 | AA58: 0.92 | AB58: 0.94 | AC58: 0.96 | AD58: 0.97 | AE58: 0.97 | AF58: 0.98 | AG58: 0.99 | AH58: 0.99 | AI58: 0.99 | AJ58: 1.00 | AK58: 0.00
A59: 2024-03-08 | B59: 876 | C59: 362 | D59: 599 | E59: 695 | F59: 767 | G59: 799 | H59: 824 | I59: 839 | J59: 845 | K59: 856 | L59: 864 | M59: 871 | N59: 871 | O59: 872 | P59: 873 | Q59: 874 | R59: 2 | T59: 2024-03-08 | U59: 876 | V59: 0.41 | W59: 0.68 | X59: 0.79 | Y59: 0.88 | Z59: 0.91 | AA59: 0.94 | AB59: 0.96 | AC59: 0.96 | AD59: 0.98 | AE59: 0.99 | AF59: 0.99 | AG59: 0.99 | AH59: 1.00 | AI59: 1.00 | AJ59: 1.00 | AK59: 0.00
A60: 2024-03-09 | B60: 656 | C60: 245 | D60: 411 | E60: 513 | F60: 555 | G60: 589 | H60: 598 | I60: 617 | J60: 629 | K60: 633 | L60: 643 | M60: 650 | N60: 651 | O60: 652 | P60: 652 | Q60: 653 | R60: 3 | T60: 2024-03-09 | U60: 656 | V60: 0.37 | W60: 0.63 | X60: 0.78 | Y60: 0.85 | Z60: 0.90 | AA60: 0.91 | AB60: 0.94 | AC60: 0.96 | AD60: 0.96 | AE60: 0.98 | AF60: 0.99 | AG60: 0.99 | AH60: 0.99 | AI60: 0.99 | AJ60: 1.00 | AK60: 0.00
A61: 2024-03-10 | B61: 575 | C61: 166 | D61: 423 | E61: 475 | F61: 520 | G61: 526 | H61: 541 | I61: 555 | J61: 557 | K61: 572 | L61: 574 | M61: 575 | N61: 575 | O61: 575 | P61: 575 | Q61: 575 | R61: 0 | T61: 2024-03-10 | U61: 575 | V61: 0.29 | W61: 0.74 | X61: 0.83 | Y61: 0.90 | Z61: 0.91 | AA61: 0.94 | AB61: 0.97 | AC61: 0.97 | AD61: 0.99 | AE61: 1.00 | AF61: 1.00 | AG61: 1.00 | AH61: 1.00 | AI61: 1.00 | AJ61: 1.00 | AK61: 0
A62: 2024-03-11 | B62: 926 | C62: 437 | D62: 681 | E62: 789 | F62: 844 | G62: 863 | H62: 885 | I62: 896 | J62: 907 | K62: 913 | L62: 916 | M62: 918 | N62: 920 | O62: 923 | P62: 924 | Q62: 926 | R62: 0 | T62: 2024-03-11 | U62: 926 | V62: 0.47 | W62: 0.74 | X62: 0.85 | Y62: 0.91 | Z62: 0.93 | AA62: 0.96 | AB62: 0.97 | AC62: 0.98 | AD62: 0.99 | AE62: 0.99 | AF62: 0.99 | AG62: 0.99 | AH62: 1.00 | AI62: 1.00 | AJ62: 1.00 | AK62: 0
A63: 2024-03-12 | B63: 1185 | C63: 380 | D63: 791 | E63: 917 | F63: 984 | G63: 1044 | H63: 1075 | I63: 1099 | J63: 1145 | K63: 1156 | L63: 1159 | M63: 1165 | N63: 1171 | O63: 1177 | P63: 1179 | Q63: 1181 | R63: 4 | T63: 2024-03-12 | U63: 1185 | V63: 0.32 | W63: 0.67 | X63: 0.77 | Y63: 0.83 | Z63: 0.88 | AA63: 0.91 | AB63: 0.93 | AC63: 0.97 | AD63: 0.98 | AE63: 0.98 | AF63: 0.98 | AG63: 0.99 | AH63: 0.99 | AI63: 0.99 | AJ63: 1.00 | AK63: 0.00
A64: 2024-03-13 | B64: 943 | C64: 388 | D64: 637 | E64: 711 | F64: 797 | G64: 839 | H64: 881 | I64: 893 | J64: 907 | K64: 915 | L64: 921 | M64: 926 | N64: 931 | O64: 932 | P64: 934 | Q64: 938 | R64: 5 | T64: 2024-03-13 | U64: 943 | V64: 0.41 | W64: 0.68 | X64: 0.75 | Y64: 0.85 | Z64: 0.89 | AA64: 0.93 | AB64: 0.95 | AC64: 0.96 | AD64: 0.97 | AE64: 0.98 | AF64: 0.98 | AG64: 0.99 | AH64: 0.99 | AI64: 0.99 | AJ64: 0.99 | AK64: 0.01
A65: 2024-03-14 | B65: 924 | C65: 391 | D65: 572 | E65: 716 | F65: 763 | G65: 812 | H65: 856 | I65: 877 | J65: 887 | K65: 893 | L65: 903 | M65: 908 | N65: 915 | O65: 918 | P65: 920 | Q65: 920 | R65: 4 | T65: 2024-03-14 | U65: 924 | V65: 0.42 | W65: 0.62 | X65: 0.77 | Y65: 0.83 | Z65: 0.88 | AA65: 0.93 | AB65: 0.95 | AC65: 0.96 | AD65: 0.97 | AE65: 0.98 | AF65: 0.98 | AG65: 0.99 | AH65: 0.99 | AI65: 1.00 | AJ65: 1.00 | AK65: 0.00
A66: 2024-03-15 | B66: 869 | C66: 226 | D66: 588 | E66: 654 | F66: 740 | G66: 789 | H66: 800 | I66: 811 | J66: 819 | K66: 838 | L66: 849 | M66: 855 | N66: 861 | O66: 862 | P66: 865 | Q66: 865 | R66: 4 | T66: 2024-03-15 | U66: 869 | V66: 0.26 | W66: 0.68 | X66: 0.75 | Y66: 0.85 | Z66: 0.91 | AA66: 0.92 | AB66: 0.93 | AC66: 0.94 | AD66: 0.96 | AE66: 0.98 | AF66: 0.98 | AG66: 0.99 | AH66: 0.99 | AI66: 1.00 | AJ66: 1.00 | AK66: 0.00
A67: 2024-03-16 | B67: 555 | C67: 119 | D67: 350 | E67: 428 | F67: 485 | G67: 495 | H67: 509 | I67: 519 | J67: 532 | K67: 537 | L67: 538 | M67: 544 | N67: 547 | O67: 552 | P67: 553 | Q67: 553 | R67: 2 | T67: 2024-03-16 | U67: =B67 -> 555 | V67: =C67/$B67 -> 0.21 | W67: =D67/$B67 -> 0.63 | X67: =E67/$B67 -> 0.77 | Y67: =F67/$B67 -> 0.87 | Z67: =G67/$B67 -> 0.89 | AA67: =H67/$B67 -> 0.92 | AB67: =I67/$B67 -> 0.94 | AC67: =J67/$B67 -> 0.96 | AD67: =K67/$B67 -> 0.97 | AE67: =L67/$B67 -> 0.97 | AF67: =M67/$B67 -> 0.98 | AG67: =N67/$B67 -> 0.99 | AH67: =O67/$B67 -> 0.99 | AI67: =P67/$B67 -> 1.00 | AJ67: =Q67/$B67 -> 1.00 | AK67: =R67/$B67 -> 0.00
A68: 2024-03-17 | B68: 441 | C68: 192 | D68: 373 | E68: 397 | F68: 413 | G68: 423 | H68: 429 | I68: 434 | J68: 434 | K68: 436 | L68: 438 | M68: 440 | N68: 440 | O68: 441 | P68: 441 | Q68: 441 | R68: 0 | T68: 2024-03-17 | U68: 441 | V68: 0.44 | W68: 0.85 | X68: 0.90 | Y68: 0.94 | Z68: 0.96 | AA68: 0.97 | AB68: 0.98 | AC68: 0.98 | AD68: 0.99 | AE68: 0.99 | AF68: 1.00 | AG68: 1.00 | AH68: 1.00 | AI68: 1.00 | AJ68: 1.00 | AK68: 0
A69: 2024-03-18 | B69: 846 | C69: 361 | D69: 626 | E69: 693 | F69: 744 | G69: 759 | H69: 798 | I69: 801 | J69: 808 | K69: 815 | L69: 820 | M69: 828 | N69: 829 | O69: 836 | P69: 841 | Q69: 842 | R69: 4 | T69: 2024-03-18 | U69: 846 | V69: 0.43 | W69: 0.74 | X69: 0.82 | Y69: 0.88 | Z69: 0.90 | AA69: 0.94 | AB69: 0.95 | AC69: 0.96 | AD69: 0.96 | AE69: 0.97 | AF69: 0.98 | AG69: 0.98 | AH69: 0.99 | AI69: 0.99 | AJ69: 1.00 | AK69: 0.00
A70: 2024-03-19 | B70: 822 | C70: 353 | D70: 572 | E70: 649 | F70: 691 | G70: 731 | H70: 749 | I70: 760 | J70: 776 | K70: 786 | L70: 797 | M70: 804 | N70: 806 | O70: 808 | P70: 817 | Q70: 819 | R70: 3 | T70: 2024-03-19 | U70: 822 | V70: 0.43 | W70: 0.70 | X70: 0.79 | Y70: 0.84 | Z70: 0.89 | AA70: 0.91 | AB70: 0.92 | AC70: 0.94 | AD70: 0.96 | AE70: 0.97 | AF70: 0.98 | AG70: 0.98 | AH70: 0.98 | AI70: 0.99 | AJ70: 1.00 | AK70: 0.00
A71: 2024-03-20 | B71: 841 | C71: 267 | D71: 611 | E71: 681 | F71: 743 | G71: 763 | H71: 774 | I71: 784 | J71: 792 | K71: 808 | L71: 809 | M71: 822 | N71: 827 | O71: 833 | P71: 840 | Q71: 840 | R71: 1 | T71: 2024-03-20 | U71: 841 | V71: 0.32 | W71: 0.73 | X71: 0.81 | Y71: 0.88 | Z71: 0.91 | AA71: 0.92 | AB71: 0.93 | AC71: 0.94 | AD71: 0.96 | AE71: 0.96 | AF71: 0.98 | AG71: 0.98 | AH71: 0.99 | AI71: 1.00 | AJ71: 1.00 | AK71: 0.00
A72: 2024-03-21 | B72: 758 | C72: 309 | D72: 512 | E72: 621 | F72: 656 | G72: 674 | H72: 688 | I72: 700 | J72: 718 | K72: 721 | L72: 726 | M72: 730 | N72: 746 | O72: 754 | P72: 755 | Q72: 755 | R72: 3 | T72: 2024-03-21 | U72: 758 | V72: 0.41 | W72: 0.68 | X72: 0.82 | Y72: 0.87 | Z72: 0.89 | AA72: 0.91 | AB72: 0.92 | AC72: 0.95 | AD72: 0.95 | AE72: 0.96 | AF72: 0.96 | AG72: 0.98 | AH72: 0.99 | AI72: 1.00 | AJ72: 1.00 | AK72: 0.00
A73: 2024-03-22 | B73: 646 | C73: 180 | D73: 426 | E73: 508 | F73: 532 | G73: 559 | H73: 570 | I73: 600 | J73: 608 | K73: 613 | L73: 616 | M73: 639 | N73: 646 | O73: 646 | P73: 646 | Q73: 646 | R73: 0 | T73: 2024-03-22 | U73: 646 | V73: 0.28 | W73: 0.66 | X73: 0.79 | Y73: 0.82 | Z73: 0.87 | AA73: 0.88 | AB73: 0.93 | AC73: 0.94 | AD73: 0.95 | AE73: 0.95 | AF73: 0.99 | AG73: 1.00 | AH73: 1.00 | AI73: 1.00 | AJ73: 1.00 | AK73: 0
A74: 2024-03-23 | B74: 280 | C74: 135 | D74: 206 | E74: 226 | F74: 237 | G74: 245 | H74: 257 | I74: 265 | J74: 267 | K74: 269 | L74: 272 | M74: 278 | N74: 279 | O74: 279 | P74: 279 | Q74: 279 | R74: 1 | T74: 2024-03-23 | U74: 280 | V74: 0.48 | W74: 0.74 | X74: 0.81 | Y74: 0.85 | Z74: 0.88 | AA74: 0.92 | AB74: 0.95 | AC74: 0.95 | AD74: 0.96 | AE74: 0.97 | AF74: 0.99 | AG74: 1.00 | AH74: 1.00 | AI74: 1.00 | AJ74: 1.00 | AK74: 0.00
A75: 2024-03-24 | B75: 471 | C75: 225 | D75: 333 | E75: 383 | F75: 418 | G75: 452 | H75: 456 | I75: 459 | J75: 459 | K75: 467 | L75: 468 | M75: 468 | N75: 468 | O75: 469 | P75: 469 | Q75: 469 | R75: 2 | T75: 2024-03-24 | U75: 471 | V75: 0.48 | W75: 0.71 | X75: 0.81 | Y75: 0.89 | Z75: 0.96 | AA75: 0.97 | AB75: 0.97 | AC75: 0.97 | AD75: 0.99 | AE75: 0.99 | AF75: 0.99 | AG75: 0.99 | AH75: 1.00 | AI75: 1.00 | AJ75: 1.00 | AK75: 0.00
A76: 2024-03-25 | B76: 833 | C76: 253 | D76: 585 | E76: 679 | F76: 765 | G76: 784 | H76: 797 | I76: 804 | J76: 816 | K76: 823 | L76: 826 | M76: 827 | N76: 829 | O76: 829 | P76: 830 | Q76: 831 | R76: 2 | T76: 2024-03-25 | U76: 833 | V76: 0.30 | W76: 0.70 | X76: 0.82 | Y76: 0.92 | Z76: 0.94 | AA76: 0.96 | AB76: 0.97 | AC76: 0.98 | AD76: 0.99 | AE76: 0.99 | AF76: 0.99 | AG76: 1.00 | AH76: 1.00 | AI76: 1.00 | AJ76: 1.00 | AK76: 0.00
A77: 2024-03-26 | B77: 700 | C77: 217 | D77: 484 | E77: 572 | F77: 603 | G77: 633 | H77: 650 | I77: 666 | J77: 681 | K77: 684 | L77: 685 | M77: 691 | N77: 691 | O77: 691 | P77: 697 | Q77: 698 | R77: 2 | T77: 2024-03-26 | U77: 700 | V77: 0.31 | W77: 0.69 | X77: 0.82 | Y77: 0.86 | Z77: 0.90 | AA77: 0.93 | AB77: 0.95 | AC77: 0.97 | AD77: 0.98 | AE77: 0.98 | AF77: 0.99 | AG77: 0.99 | AH77: 0.99 | AI77: 1.00 | AJ77: 1.00 | AK77: 0.00
A78: 2024-03-27 | B78: 782 | C78: 260 | D78: 560 | E78: 636 | F78: 670 | G78: 704 | H78: 731 | I78: 747 | J78: 758 | K78: 761 | L78: 765 | M78: 769 | N78: 777 | O78: 779 | P78: 779 | Q78: 782 | R78: 0 | T78: 2024-03-27 | U78: 782 | V78: 0.33 | W78: 0.72 | X78: 0.81 | Y78: 0.86 | Z78: 0.90 | AA78: 0.93 | AB78: 0.96 | AC78: 0.97 | AD78: 0.97 | AE78: 0.98 | AF78: 0.98 | AG78: 0.99 | AH78: 1.00 | AI78: 1.00 | AJ78: 1.00 | AK78: 0
A79: 2024-03-28 | B79: 549 | C79: 182 | D79: 361 | E79: 433 | F79: 471 | G79: 496 | H79: 513 | I79: 522 | J79: 525 | K79: 534 | L79: 537 | M79: 540 | N79: 540 | O79: 542 | P79: 546 | Q79: 548 | R79: 1 | T79: 2024-03-28 | U79: 549 | V79: 0.33 | W79: 0.66 | X79: 0.79 | Y79: 0.86 | Z79: 0.90 | AA79: 0.93 | AB79: 0.95 | AC79: 0.96 | AD79: 0.97 | AE79: 0.98 | AF79: 0.98 | AG79: 0.98 | AH79: 0.99 | AI79: 0.99 | AJ79: 1.00 | AK79: 0.00
A80: 2024-03-29 | B80: 663 | C80: 211 | D80: 440 | E80: 501 | F80: 560 | G80: 595 | H80: 607 | I80: 613 | J80: 619 | K80: 633 | L80: 643 | M80: 644 | N80: 646 | O80: 651 | P80: 653 | Q80: 655 | R80: 8 | T80: 2024-03-29 | U80: 663 | V80: 0.32 | W80: 0.66 | X80: 0.76 | Y80: 0.84 | Z80: 0.90 | AA80: 0.92 | AB80: 0.92 | AC80: 0.93 | AD80: 0.95 | AE80: 0.97 | AF80: 0.97 | AG80: 0.97 | AH80: 0.98 | AI80: 0.98 | AJ80: 0.99 | AK80: 0.01
A81: 2024-03-30 | B81: 532 | C81: 166 | D81: 364 | E81: 431 | F81: 466 | G81: 488 | H81: 491 | I81: 508 | J81: 512 | K81: 519 | L81: 522 | M81: 525 | N81: 528 | O81: 528 | P81: 530 | Q81: 531 | R81: 1 | T81: 2024-03-30 | U81: 532 | V81: 0.31 | W81: 0.68 | X81: 0.81 | Y81: 0.88 | Z81: 0.92 | AA81: 0.92 | AB81: 0.95 | AC81: 0.96 | AD81: 0.98 | AE81: 0.98 | AF81: 0.99 | AG81: 0.99 | AH81: 0.99 | AI81: 1.00 | AJ81: 1.00 | AK81: 0.00
A82: 2024-03-31 | B82: 374 | C82: 116 | D82: 280 | E82: 336 | F82: 346 | G82: 349 | H82: 353 | I82: 356 | J82: 362 | K82: 364 | L82: 366 | M82: 371 | N82: 372 | O82: 373 | P82: 373 | Q82: 373 | R82: 1 | T82: 2024-03-31 | U82: 374 | V82: 0.31 | W82: 0.75 | X82: 0.90 | Y82: 0.93 | Z82: 0.93 | AA82: 0.94 | AB82: 0.95 | AC82: 0.97 | AD82: 0.97 | AE82: 0.98 | AF82: 0.99 | AG82: 0.99 | AH82: 1.00 | AI82: 1.00 | AJ82: 1.00 | AK82: 0.00
A83: 2024-04-01 | B83: 681 | C83: 261 | D83: 514 | E83: 565 | F83: 578 | G83: 589 | H83: 604 | I83: 632 | J83: 656 | K83: 659 | L83: 667 | M83: 669 | N83: 672 | O83: 673 | P83: 675 | Q83: 679 | R83: 2 | T83: 2024-04-01 | U83: 681 | V83: 0.38 | W83: 0.75 | X83: 0.83 | Y83: 0.85 | Z83: 0.86 | AA83: 0.89 | AB83: 0.93 | AC83: 0.96 | AD83: 0.97 | AE83: 0.98 | AF83: 0.98 | AG83: 0.99 | AH83: 0.99 | AI83: 0.99 | AJ83: 1.00 | AK83: 0.00
A84: 2024-04-02 | B84: 676 | C84: 242 | D84: 376 | E84: 435 | F84: 490 | G84: 532 | H84: 602 | I84: 643 | J84: 652 | K84: 661 | L84: 661 | M84: 665 | N84: 666 | O84: 670 | P84: 672 | Q84: 673 | R84: 3 | T84: 2024-04-02 | U84: 676 | V84: 0.36 | W84: 0.56 | X84: 0.64 | Y84: 0.72 | Z84: 0.79 | AA84: 0.89 | AB84: 0.95 | AC84: 0.96 | AD84: 0.98 | AE84: 0.98 | AF84: 0.98 | AG84: 0.99 | AH84: 0.99 | AI84: 0.99 | AJ84: 1.00 | AK84: 0.00
A85: 2024-04-03 | B85: 741 | C85: 296 | D85: 449 | E85: 498 | F85: 555 | G85: 618 | H85: 668 | I85: 682 | J85: 695 | K85: 701 | L85: 712 | M85: 720 | N85: 733 | O85: 734 | P85: 737 | Q85: 739 | R85: 2 | T85: 2024-04-03 | U85: 741 | V85: 0.40 | W85: 0.61 | X85: 0.67 | Y85: 0.75 | Z85: 0.83 | AA85: 0.90 | AB85: 0.92 | AC85: 0.94 | AD85: 0.95 | AE85: 0.96 | AF85: 0.97 | AG85: 0.99 | AH85: 0.99 | AI85: 0.99 | AJ85: 1.00 | AK85: 0.00
A86: 2024-04-04 | B86: 396 | C86: 87 | D86: 227 | E86: 283 | F86: 311 | G86: 353 | H86: 373 | I86: 380 | J86: 383 | K86: 388 | L86: 388 | M86: 394 | N86: 394 | O86: 395 | P86: 395 | Q86: 395 | R86: 1 | T86: 2024-04-04 | U86: 396 | V86: 0.22 | W86: 0.57 | X86: 0.71 | Y86: 0.79 | Z86: 0.89 | AA86: 0.94 | AB86: 0.96 | AC86: 0.97 | AD86: 0.98 | AE86: 0.98 | AF86: 0.99 | AG86: 0.99 | AH86: 1.00 | AI86: 1.00 | AJ86: 1.00 | AK86: 0.00
A87: 2024-04-05 | B87: 700 | C87: 179 | D87: 323 | E87: 447 | F87: 606 | G87: 643 | H87: 661 | I87: 663 | J87: 671 | K87: 673 | L87: 684 | M87: 689 | N87: 692 | O87: 693 | P87: 697 | Q87: 697 | R87: 3 | T87: 2024-04-05 | U87: 700 | V87: 0.26 | W87: 0.46 | X87: 0.64 | Y87: 0.87 | Z87: 0.92 | AA87: 0.94 | AB87: 0.95 | AC87: 0.96 | AD87: 0.96 | AE87: 0.98 | AF87: 0.98 | AG87: 0.99 | AH87: 0.99 | AI87: 1.00 | AJ87: 1.00 | AK87: 0.00
A88: 2024-04-06 | B88: 570 | C88: 49 | D88: 327 | E88: 427 | F88: 486 | G88: 503 | H88: 515 | I88: 534 | J88: 538 | K88: 552 | L88: 558 | M88: 561 | N88: 565 | O88: 566 | P88: 566 | Q88: 567 | R88: 3 | T88: 2024-04-06 | U88: 570 | V88: 0.09 | W88: 0.57 | X88: 0.75 | Y88: 0.85 | Z88: 0.88 | AA88: 0.90 | AB88: 0.94 | AC88: 0.94 | AD88: 0.97 | AE88: 0.98 | AF88: 0.98 | AG88: 0.99 | AH88: 0.99 | AI88: 0.99 | AJ88: 0.99 | AK88: 0.01
A89: 2024-04-07 | B89: 267 | C89: 67 | D89: 171 | E89: 202 | F89: 207 | G89: 211 | H89: 232 | I89: 238 | J89: 257 | K89: 263 | L89: 264 | M89: 264 | N89: 265 | O89: 265 | P89: 265 | Q89: 266 | R89: 1 | T89: 2024-04-07 | U89: 267 | V89: 0.25 | W89: 0.64 | X89: 0.76 | Y89: 0.78 | Z89: 0.79 | AA89: 0.87 | AB89: 0.89 | AC89: 0.96 | AD89: 0.99 | AE89: 0.99 | AF89: 0.99 | AG89: 0.99 | AH89: 0.99 | AI89: 0.99 | AJ89: 1.00 | AK89: 0.00
A90: 2024-04-08 | B90: 1162 | C90: 487 | D90: 835 | E90: 973 | F90: 1028 | G90: 1089 | H90: 1106 | I90: 1139 | J90: 1144 | K90: 1146 | L90: 1149 | M90: 1155 | N90: 1158 | O90: 1159 | P90: 1160 | Q90: 1162 | R90: 0 | T90: 2024-04-08 | U90: 1162 | V90: 0.42 | W90: 0.72 | X90: 0.84 | Y90: 0.88 | Z90: 0.94 | AA90: 0.95 | AB90: 0.98 | AC90: 0.98 | AD90: 0.99 | AE90: 0.99 | AF90: 0.99 | AG90: 1.00 | AH90: 1.00 | AI90: 1.00 | AJ90: 1.00 | AK90: 0
A91: 2024-04-09 | B91: 883 | C91: 143 | D91: 378 | E91: 685 | F91: 777 | G91: 802 | H91: 830 | I91: 844 | J91: 853 | K91: 864 | L91: 870 | M91: 875 | N91: 877 | O91: 880 | P91: 881 | Q91: 881 | R91: 2 | T91: 2024-04-09 | U91: 883 | V91: 0.16 | W91: 0.43 | X91: 0.78 | Y91: 0.88 | Z91: 0.91 | AA91: 0.94 | AB91: 0.96 | AC91: 0.97 | AD91: 0.98 | AE91: 0.99 | AF91: 0.99 | AG91: 0.99 | AH91: 1.00 | AI91: 1.00 | AJ91: 1.00 | AK91: 0.00
A92: 2024-04-10 | B92: 771 | C92: 205 | D92: 416 | E92: 628 | F92: 656 | G92: 698 | H92: 726 | I92: 737 | J92: 756 | K92: 760 | L92: 760 | M92: 761 | N92: 763 | O92: 765 | P92: 767 | Q92: 767 | R92: 4 | T92: 2024-04-10 | U92: 771 | V92: 0.27 | W92: 0.54 | X92: 0.81 | Y92: 0.85 | Z92: 0.91 | AA92: 0.94 | AB92: 0.96 | AC92: 0.98 | AD92: 0.99 | AE92: 0.99 | AF92: 0.99 | AG92: 0.99 | AH92: 0.99 | AI92: 0.99 | AJ92: 0.99 | AK92: 0.01
A93: 2024-04-11 | B93: 810 | C93: 210 | D93: 431 | E93: 583 | F93: 681 | G93: 725 | H93: 749 | I93: 775 | J93: 781 | K93: 788 | L93: 794 | M93: 794 | N93: 798 | O93: 804 | P93: 805 | Q93: 806 | R93: 4 | T93: 2024-04-11 | U93: 810 | V93: 0.26 | W93: 0.53 | X93: 0.72 | Y93: 0.84 | Z93: 0.90 | AA93: 0.92 | AB93: 0.96 | AC93: 0.96 | AD93: 0.97 | AE93: 0.98 | AF93: 0.98 | AG93: 0.99 | AH93: 0.99 | AI93: 0.99 | AJ93: 1.00 | AK93: 0.00
A94: 2024-04-12 | B94: 771 | C94: 250 | D94: 478 | E94: 621 | F94: 690 | G94: 707 | H94: 747 | I94: 751 | J94: 756 | K94: 758 | L94: 762 | M94: 764 | N94: 769 | O94: 770 | P94: 770 | Q94: 770 | R94: 1 | T94: 2024-04-12 | U94: 771 | V94: 0.32 | W94: 0.62 | X94: 0.81 | Y94: 0.89 | Z94: 0.92 | AA94: 0.97 | AB94: 0.97 | AC94: 0.98 | AD94: 0.98 | AE94: 0.99 | AF94: 0.99 | AG94: 1.00 | AH94: 1.00 | AI94: 1.00 | AJ94: 1.00 | AK94: 0.00
A95: 2024-04-13 | B95: 584 | C95: 160 | D95: 363 | E95: 478 | F95: 510 | G95: 548 | H95: 558 | I95: 566 | J95: 568 | K95: 572 | L95: 574 | M95: 576 | N95: 576 | O95: 582 | P95: 584 | Q95: 584 | R95: 0 | T95: 2024-04-13 | U95: 584 | V95: 0.27 | W95: 0.62 | X95: 0.82 | Y95: 0.87 | Z95: 0.94 | AA95: 0.96 | AB95: 0.97 | AC95: 0.97 | AD95: 0.98 | AE95: 0.98 | AF95: 0.99 | AG95: 0.99 | AH95: 1.00 | AI95: 1.00 | AJ95: 1.00 | AK95: 0
A96: 2024-04-14 | B96: 527 | C96: 155 | D96: 412 | E96: 451 | F96: 495 | G96: 502 | H96: 509 | I96: 515 | J96: 521 | K96: 522 | L96: 525 | M96: 527 | N96: 527 | O96: 527 | P96: 527 | Q96: 527 | R96: 0 | T96: 2024-04-14 | U96: 527 | V96: 0.29 | W96: 0.78 | X96: 0.86 | Y96: 0.94 | Z96: 0.95 | AA96: 0.97 | AB96: 0.98 | AC96: 0.99 | AD96: 0.99 | AE96: 1.00 | AF96: 1.00 | AG96: 1.00 | AH96: 1.00 | AI96: 1.00 | AJ96: 1.00 | AK96: 0
A97: 2024-04-15 | B97: 885 | C97: 314 | D97: 651 | E97: 777 | F97: 801 | G97: 828 | H97: 834 | I97: 846 | J97: 857 | K97: 862 | L97: 867 | M97: 880 | N97: 882 | O97: 883 | P97: 883 | Q97: 884 | R97: 1 | T97: 2024-04-15 | U97: 885 | V97: 0.35 | W97: 0.74 | X97: 0.88 | Y97: 0.91 | Z97: 0.94 | AA97: 0.94 | AB97: 0.96 | AC97: 0.97 | AD97: 0.97 | AE97: 0.98 | AF97: 0.99 | AG97: 1.00 | AH97: 1.00 | AI97: 1.00 | AJ97: 1.00 | AK97: 0.00
A98: 2024-04-16 | B98: 917 | C98: 434 | D98: 691 | E98: 766 | F98: 805 | G98: 850 | H98: 879 | I98: 886 | J98: 889 | K98: 894 | L98: 907 | M98: 913 | N98: 914 | O98: 915 | P98: 915 | Q98: 916 | R98: 1 | T98: 2024-04-16 | U98: 917 | V98: 0.47 | W98: 0.75 | X98: 0.84 | Y98: 0.88 | Z98: 0.93 | AA98: 0.96 | AB98: 0.97 | AC98: 0.97 | AD98: 0.97 | AE98: 0.99 | AF98: 1.00 | AG98: 1.00 | AH98: 1.00 | AI98: 1.00 | AJ98: 1.00 | AK98: 0.00
A99: 2024-04-17 | B99: 820 | C99: 365 | D99: 609 | E99: 653 | F99: 708 | G99: 760 | H99: 773 | I99: 783 | J99: 797 | K99: 805 | L99: 810 | M99: 814 | N99: 814 | O99: 814 | P99: 815 | Q99: 816 | R99: 4 | T99: 2024-04-17 | U99: 820 | V99: 0.45 | W99: 0.74 | X99: 0.80 | Y99: 0.86 | Z99: 0.93 | AA99: 0.94 | AB99: 0.95 | AC99: 0.97 | AD99: 0.98 | AE99: 0.99 | AF99: 0.99 | AG99: 0.99 | AH99: 0.99 | AI99: 0.99 | AJ99: 1.00 | AK99: 0.00
A100: 2024-04-18 | B100: 948 | C100: 399 | D100: 563 | E100: 749 | F100: 847 | G100: 892 | H100: 905 | I100: 915 | J100: 931 | K100: 935 | L100: 937 | M100: 940 | N100: 941 | O100: 942 | P100: 943 | Q100: 943 | R100: 5 | T100: 2024-04-18 | U100: 948 | V100: 0.42 | W100: 0.59 | X100: 0.79 | Y100: 0.89 | Z100: 0.94 | AA100: 0.95 | AB100: 0.97 | AC100: 0.98 | AD100: 0.99 | AE100: 0.99 | AF100: 0.99 | AG100: 0.99 | AH100: 0.99 | AI100: 0.99 | AJ100: 0.99 | AK100: 0.01
A101: 2024-04-19 | B101: 701 | C101: 148 | D101: 334 | E101: 554 | F101: 599 | G101: 628 | H101: 645 | I101: 672 | J101: 679 | K101: 686 | L101: 691 | M101: 692 | N101: 692 | O101: 693 | P101: 694 | Q101: 697 | R101: 4 | T101: 2024-04-19 | U101: 701 | V101: 0.21 | W101: 0.48 | X101: 0.79 | Y101: 0.85 | Z101: 0.90 | AA101: 0.92 | AB101: 0.96 | AC101: 0.97 | AD101: 0.98 | AE101: 0.99 | AF101: 0.99 | AG101: 0.99 | AH101: 0.99 | AI101: 0.99 | AJ101: 0.99 | AK101: 0.01
A102: 2024-04-20 | B102: 615 | C102: 34 | D102: 383 | E102: 500 | F102: 520 | G102: 538 | H102: 576 | I102: 596 | J102: 599 | K102: 604 | L102: 610 | M102: 612 | N102: 612 | O102: 612 | P102: 614 | Q102: 614 | R102: 1 | T102: 2024-04-20 | U102: 615 | V102: 0.06 | W102: 0.62 | X102: 0.81 | Y102: 0.85 | Z102: 0.87 | AA102: 0.94 | AB102: 0.97 | AC102: 0.97 | AD102: 0.98 | AE102: 0.99 | AF102: 1.00 | AG102: 1.00 | AH102: 1.00 | AI102: 1.00 | AJ102: 1.00 | AK102: 0.00
A103: 2024-04-21 | B103: 271 | C103: 119 | D103: 197 | E103: 230 | F103: 239 | G103: 264 | H103: 267 | I103: 269 | J103: 269 | K103: 269 | L103: 271 | M103: 271 | N103: 271 | O103: 271 | P103: 271 | Q103: 271 | R103: 0 | T103: 2024-04-21 | U103: 271 | V103: 0.44 | W103: 0.73 | X103: 0.85 | Y103: 0.88 | Z103: 0.97 | AA103: 0.99 | AB103: 0.99 | AC103: 0.99 | AD103: 0.99 | AE103: 1.00 | AF103: 1.00 | AG103: 1.00 | AH103: 1.00 | AI103: 1.00 | AJ103: 1.00 | AK103: 0
A104: 2024-04-22 | B104: 1071 | C104: 524 | D104: 812 | E104: 931 | F104: 1001 | G104: 1017 | H104: 1030 | I104: 1035 | J104: 1041 | K104: 1055 | L104: 1057 | M104: 1058 | N104: 1067 | O104: 1068 | P104: 1068 | Q104: 1071 | R104: 0 | T104: 2024-04-22 | U104: 1071 | V104: 0.49 | W104: 0.76 | X104: 0.87 | Y104: 0.93 | Z104: 0.95 | AA104: 0.96 | AB104: 0.97 | AC104: 0.97 | AD104: 0.99 | AE104: 0.99 | AF104: 0.99 | AG104: 1.00 | AH104: 1.00 | AI104: 1.00 | AJ104: 1.00 | AK104: 0
A105: 2024-04-23 | B105: 944 | C105: 449 | D105: 747 | E105: 841 | F105: 870 | G105: 887 | H105: 895 | I105: 915 | J105: 925 | K105: 927 | L105: 930 | M105: 935 | N105: 941 | O105: 942 | P105: 942 | Q105: 942 | R105: 2 | T105: 2024-04-23 | U105: 944 | V105: 0.48 | W105: 0.79 | X105: 0.89 | Y105: 0.92 | Z105: 0.94 | AA105: 0.95 | AB105: 0.97 | AC105: 0.98 | AD105: 0.98 | AE105: 0.99 | AF105: 0.99 | AG105: 1.00 | AH105: 1.00 | AI105: 1.00 | AJ105: 1.00 | AK105: 0.00
A106: 2024-04-24 | B106: 909 | C106: 482 | D106: 702 | E106: 771 | F106: 804 | G106: 830 | H106: 849 | I106: 875 | J106: 876 | K106: 879 | L106: 888 | M106: 895 | N106: 902 | O106: 903 | P106: 905 | Q106: 905 | R106: 4 | T106: 2024-04-24 | U106: 909 | V106: 0.53 | W106: 0.77 | X106: 0.85 | Y106: 0.88 | Z106: 0.91 | AA106: 0.93 | AB106: 0.96 | AC106: 0.96 | AD106: 0.97 | AE106: 0.98 | AF106: 0.98 | AG106: 0.99 | AH106: 0.99 | AI106: 1.00 | AJ106: 1.00 | AK106: 0.00
A107: 2024-04-25 | B107: 788 | C107: 394 | D107: 582 | E107: 668 | F107: 707 | G107: 735 | H107: 769 | I107: 770 | J107: 773 | K107: 780 | L107: 782 | M107: 783 | N107: 785 | O107: 785 | P107: 786 | Q107: 786 | R107: 2 | T107: 2024-04-25 | U107: 788 | V107: 0.50 | W107: 0.74 | X107: 0.85 | Y107: 0.90 | Z107: 0.93 | AA107: 0.98 | AB107: 0.98 | AC107: 0.98 | AD107: 0.99 | AE107: 0.99 | AF107: 0.99 | AG107: 1.00 | AH107: 1.00 | AI107: 1.00 | AJ107: 1.00 | AK107: 0.00
A108: 2024-04-26 | B108: 783 | C108: 256 | D108: 557 | E108: 637 | F108: 697 | G108: 733 | H108: 739 | I108: 743 | J108: 751 | K108: 753 | L108: 757 | M108: 764 | N108: 776 | O108: 781 | P108: 782 | Q108: 782 | R108: 1 | T108: 2024-04-26 | U108: 783 | V108: 0.33 | W108: 0.71 | X108: 0.81 | Y108: 0.89 | Z108: 0.94 | AA108: 0.94 | AB108: 0.95 | AC108: 0.96 | AD108: 0.96 | AE108: 0.97 | AF108: 0.98 | AG108: 0.99 | AH108: 1.00 | AI108: 1.00 | AJ108: 1.00 | AK108: 0.00
A109: 2024-04-27 | B109: 651 | C109: 314 | D109: 502 | E109: 560 | F109: 596 | G109: 606 | H109: 610 | I109: 616 | J109: 625 | K109: 628 | L109: 630 | M109: 647 | N109: 649 | O109: 649 | P109: 649 | Q109: 649 | R109: 2 | T109: 2024-04-27 | U109: 651 | V109: 0.48 | W109: 0.77 | X109: 0.86 | Y109: 0.92 | Z109: 0.93 | AA109: 0.94 | AB109: 0.95 | AC109: 0.96 | AD109: 0.96 | AE109: 0.97 | AF109: 0.99 | AG109: 1.00 | AH109: 1.00 | AI109: 1.00 | AJ109: 1.00 | AK109: 0.00
A110: 2024-04-28 | B110: 341 | C110: 148 | D110: 279 | E110: 307 | F110: 311 | G110: 313 | H110: 327 | I110: 332 | J110: 334 | K110: 336 | L110: 340 | M110: 340 | N110: 340 | O110: 340 | P110: 340 | Q110: 341 | R110: 0 | T110: 2024-04-28 | U110: 341 | V110: 0.43 | W110: 0.82 | X110: 0.90 | Y110: 0.91 | Z110: 0.92 | AA110: 0.96 | AB110: 0.97 | AC110: 0.98 | AD110: 0.99 | AE110: 1.00 | AF110: 1.00 | AG110: 1.00 | AH110: 1.00 | AI110: 1.00 | AJ110: 1.00 | AK110: 0
A111: 2024-04-29 | B111: 1114 | C111: 526 | D111: 866 | E111: 943 | F111: 979 | G111: 1024 | H111: 1048 | I111: 1068 | J111: 1079 | K111: 1104 | L111: 1113 | M111: 1114 | N111: 1114 | O111: 1114 | P111: 1114 | Q111: 1114 | R111: 0 | T111: 2024-04-29 | U111: 1114 | V111: 0.47 | W111: 0.78 | X111: 0.85 | Y111: 0.88 | Z111: 0.92 | AA111: 0.94 | AB111: 0.96 | AC111: 0.97 | AD111: 0.99 | AE111: 1.00 | AF111: 1.00 | AG111: 1.00 | AH111: 1.00 | AI111: 1.00 | AJ111: 1.00 | AK111: 0
